Workbook

Sheet Testarea (hidden)
A1: DfE | B1: School name | C1: Early years | D1: Ref | E1: =SUM(E2:E169) -> 0 | F1: SEN topup | G1: Ref | H1: =SUM(H2:H169) -> 59176.6 | I1: SEN max | J1: Ref | K1: =SUM(K2:K169) -> 0 | L1: SRP1pre£ | M1: Ref | N1: =SUM(N2:N169) -> 0 | O1: SRP1post£ | P1: Ref | Q1: =SUM(Q2:Q169) -> 0 | R1: SRP2pre£ | S1: Ref | T1: =SUM(T2:T169) -> -1231.55 | U1: SRP2post£ | V1: Ref | W1: =SUM(W2:W169) -> -1121.09 | X1: Place check | Y1: Ref | Z1: =SUM(Z2:Z169) -> 0 | AA1: Lower Threshold | AB1: Ref | AC1: =SUM(AC2:AC169) -> 169 | AD1: Qual year | AE1: Ref | AF1: =SUM(AF2:AF169) -> 14 | AG1: Upper Threshold | AH1: Ref | AI1: =SUM(AI2:AI209) -> 15
A2: 2001 | B2: Horizon Primary Academy | C2: 0 | D2: 0 | E2: =C2-D2 -> 0 | F2: 0 | H2: =ROUND(F2-G2,2) -> 0 | I2: 0 | K2: =ROUND(I2-J2,2) -> 0 | L2: 0 | N2: =ROUND(L2-M2,2) -> 0 | O2: 0 | Q2: =ROUND(O2-P2,2) -> 0 | R2: 0 | S2: 0 | T2: =ROUND(R2-S2,2) -> 0 | U2: 0 | V2: 0 | W2: =ROUND(U2-V2,2) -> 0 | Z2: =X2-Y2 -> 0 | AA2: 0 | AB2: =IF(ISERROR(VLOOKUP(A2+8860000,'Growth Data'!A:F,6,0)),0,VLOOKUP(A2+8860000,'Growth Data'!A:F,6,0)) -> 0 | AC2: =IF(AD2="YES",AA2-AB2,0) -> 0 | AD2: NO | AE2: =IF(ISERROR(VLOOKUP(A2+8860000,'Growth Data'!A:C,3,0)),"NO",VLOOKUP(A2+8860000,'Growth Data'!A:C,3,0)) -> NO | AF2: =IF(AD2=AE2,0,1) -> 0 | AG2: 0 | AH2: =IF(ISERROR(VLOOKUP(A2+8860000,'Growth Data'!A:G,7,0)),0,VLOOKUP(A2+8860000,'Growth Data'!A:G,7,0)) -> 0 | AI2: =IF(AG2=AH2,0,1) -> 0
A3: 2003 | B3: Oaks Primary Academy | C3: 4.93 | D3: 4.93 | E3: 0 | F3: 0 | H3: =ROUND(F3-G3,2) -> 0 | I3: 0 | K3: =ROUND(I3-J3,2) -> 0 | L3: 0 | N3: 0 | O3: 0 | Q3: 0 | R3: 0 | S3: 0 | T3: 0 | U3: 0 | V3: 0 | W3: 0 | Z3: 0 | AA3: 0 | AB3: =IF(ISERROR(VLOOKUP(A3+8860000,'Growth Data'!A:F,6,0)),0,VLOOKUP(A3+8860000,'Growth Data'!A:F,6,0)) -> 0 | AC3: =IF(AD3="YES",AA3-AB3,0) -> 0 | AD3: NO | AE3: =IF(ISERROR(VLOOKUP(A3+8860000,'Growth Data'!A:C,3,0)),"NO",VLOOKUP(A3+8860000,'Growth Data'!A:C,3,0)) -> NO | AF3: 0 | AG3: 0 | AH3: =IF(ISERROR(VLOOKUP(A3+8860000,'Growth Data'!A:G,7,0)),0,VLOOKUP(A3+8860000,'Growth Data'!A:G,7,0)) -> 0 | AI3: =IF(AG3=AH3,0,1) -> 0
A4: 2004 | B4: Tree Tops Primary Academy | C4: 5.18 | D4: 5.18 | E4: 0 | F4: 0 | H4: 0 | I4: 0 | K4: 0 | L4: 0 | N4: 0 | O4: 0 | Q4: 0 | R4: 0 | S4: 0 | T4: 0 | U4: 0 | V4: 0 | W4: 0 | Z4: 0 | AA4: 0 | AB4: =IF(ISERROR(VLOOKUP(A4+8860000,'Growth Data'!A:F,6,0)),0,VLOOKUP(A4+8860000,'Growth Data'!A:F,6,0)) -> 0 | AC4: 0 | AD4: NO | AE4: =IF(ISERROR(VLOOKUP(A4+8860000,'Growth Data'!A:C,3,0)),"NO",VLOOKUP(A4+8860000,'Growth Data'!A:C,3,0)) -> NO | AF4: 0 | AG4: 0 | AH4: =IF(ISERROR(VLOOKUP(A4+8860000,'Growth Data'!A:G,7,0)),0,VLOOKUP(A4+8860000,'Growth Data'!A:G,7,0)) -> 0 | AI4: 0
A5: 2006 | B5: St James the Great Academy | C5: 5.06 | D5: 5.06 | E5: 0 | F5: 0 | H5: 0 | I5: 0 | K5: 0 | L5: 0 | N5: 0 | O5: 0 | Q5: 0 | R5: 0 | S5: 0 | T5: 0 | U5: 0 | V5: 0 | W5: 0 | Z5: 0 | AA5: 0 | AB5: =IF(ISERROR(VLOOKUP(A5+8860000,'Growth Data'!A:F,6,0)),0,VLOOKUP(A5+8860000,'Growth Data'!A:F,6,0)) -> 0 | AC5: 0 | AD5: NO | AE5: =IF(ISERROR(VLOOKUP(A5+8860000,'Growth Data'!A:C,3,0)),"NO",VLOOKUP(A5+8860000,'Growth Data'!A:C,3,0)) -> NO | AF5: 0 | AG5: 0 | AH5: =IF(ISERROR(VLOOKUP(A5+8860000,'Growth Data'!A:G,7,0)),0,VLOOKUP(A5+8860000,'Growth Data'!A:G,7,0)) -> 0 | AI5: 0
A6: 2007 | B6: Molehill Primary Academy | C6: 0 | D6: 0 | E6: 0 | F6: 0 | H6: 0 | I6: 0 | K6: 0 | L6: 0 | N6: 0 | O6: 0 | Q6: 0 | R6: 0 | S6: 0 | T6: 0 | U6: 0 | V6: 0 | W6: 0 | Z6: 0 | AA6: 0 | AB6: =IF(ISERROR(VLOOKUP(A6+8860000,'Growth Data'!A:F,6,0)),0,VLOOKUP(A6+8860000,'Growth Data'!A:F,6,0)) -> 0 | AC6: 0 | AD6: NO | AE6: =IF(ISERROR(VLOOKUP(A6+8860000,'Growth Data'!A:C,3,0)),"NO",VLOOKUP(A6+8860000,'Growth Data'!A:C,3,0)) -> NO | AF6: 0 | AG6: 0 | AH6: =IF(ISERROR(VLOOKUP(A6+8860000,'Growth Data'!A:G,7,0)),0,VLOOKUP(A6+8860000,'Growth Data'!A:G,7,0)) -> 0 | AI6: 0
A7: 2008 | B7: Tiger Primary School | C7: 0 | D7: 0 | E7: 0 | F7: 0 | H7: 0 | I7: 0 | K7: 0 | L7: 0 | N7: 0 | O7: 0 | Q7: 0 | R7: 0 | S7: 0 | T7: 0 | U7: 0 | V7: 0 | W7: 0 | Z7: 0 | AA7: 0 | AB7: =IF(ISERROR(VLOOKUP(A7+8860000,'Growth Data'!A:F,6,0)),0,VLOOKUP(A7+8860000,'Growth Data'!A:F,6,0)) -> 0 | AC7: 0 | AD7: NO | AE7: =IF(ISERROR(VLOOKUP(A7+8860000,'Growth Data'!A:C,3,0)),"NO",VLOOKUP(A7+8860000,'Growth Data'!A:C,3,0)) -> NO | AF7: 0 | AG7: 0 | AH7: =IF(ISERROR(VLOOKUP(A7+8860000,'Growth Data'!A:G,7,0)),0,VLOOKUP(A7+8860000,'Growth Data'!A:G,7,0)) -> 0 | AI7: 0
A8: 2009 | B8: Northdown Primary School | C8: 5.45 | D8: 5.45 | E8: 0 | F8: 0 | H8: 0 | I8: 0 | K8: 0 | L8: 0 | N8: 0 | O8: 0 | Q8: 0 | R8: 0 | S8: 0 | T8: 0 | U8: 0 | V8: 0 | W8: 0 | Z8: 0 | AA8: 45 | AB8: =IF(ISERROR(VLOOKUP(A8+8860000,'Growth Data'!A:F,6,0)),0,VLOOKUP(A8+8860000,'Growth Data'!A:F,6,0)) -> 45 | AC8: 0 | AD8: YES | AE8: =IF(ISERROR(VLOOKUP(A8+8860000,'Growth Data'!A:C,3,0)),"NO",VLOOKUP(A8+8860000,'Growth Data'!A:C,3,0)) -> Yes | AF8: 0 | AG8: 60 | AH8: =IF(ISERROR(VLOOKUP(A8+8860000,'Growth Data'!A:G,7,0)),0,VLOOKUP(A8+8860000,'Growth Data'!A:G,7,0)) -> 60 | AI8: 0
A9: 2010 | B9: Newlands Primary School | C9: 0 | D9: 0 | E9: 0 | F9: 0 | H9: 0 | I9: 0 | K9: 0 | L9: 0 | N9: 0 | O9: 0 | Q9: 0 | R9: 0 | S9: 0 | T9: 0 | U9: 0 | V9: 0 | W9: 0 | Z9: 0 | AA9: 0 | AB9: =IF(ISERROR(VLOOKUP(A9+8860000,'Growth Data'!A:F,6,0)),0,VLOOKUP(A9+8860000,'Growth Data'!A:F,6,0)) -> 0 | AC9: 0 | AD9: NO | AE9: =IF(ISERROR(VLOOKUP(A9+8860000,'Growth Data'!A:C,3,0)),"NO",VLOOKUP(A9+8860000,'Growth Data'!A:C,3,0)) -> NO | AF9: 0 | AG9: 0 | AH9: =IF(ISERROR(VLOOKUP(A9+8860000,'Growth Data'!A:G,7,0)),0,VLOOKUP(A9+8860000,'Growth Data'!A:G,7,0)) -> 0 | AI9: 0
A10: 2011 | B10: Salmestone Primary School | C10: 4.97 | D10: 4.97 | E10: 0 | F10: 0 | H10: 0 | I10: 0 | K10: 0 | L10: 0 | N10: 0 | O10: 0 | Q10: 0 | R10: 0 | S10: 0 | T10: 0 | U10: 0 | V10: 0 | W10: 0 | Z10: 0 | AA10: 0 | AB10: =IF(ISERROR(VLOOKUP(A10+8860000,'Growth Data'!A:F,6,0)),0,VLOOKUP(A10+8860000,'Growth Data'!A:F,6,0)) -> 0 | AC10: 0 | AD10: NO | AE10: =IF(ISERROR(VLOOKUP(A10+8860000,'Growth Data'!A:C,3,0)),"NO",VLOOKUP(A10+8860000,'Growth Data'!A:C,3,0)) -> NO | AF10: 0 | AG10: 0 | AH10: =IF(ISERROR(VLOOKUP(A10+8860000,'Growth Data'!A:G,7,0)),0,VLOOKUP(A10+8860000,'Growth Data'!A:G,7,0)) -> 0 | AI10: 0
A11: 2013 | B11: Hersden Village Primary School | C11: 0 | D11: 0 | E11: 0 | F11: 0 | H11: 0 | I11: 0 | K11: 0 | L11: 0 | N11: 0 | O11: 0 | Q11: 0 | R11: 0 | S11: 0 | T11: 0 | U11: 0 | V11: 0 | W11: 0 | Z11: 0 | AA11: 0 | AB11: =IF(ISERROR(VLOOKUP(A11+8860000,'Growth Data'!A:F,6,0)),0,VLOOKUP(A11+8860000,'Growth Data'!A:F,6,0)) -> 0 | AC11: 0 | AD11: NO | AE11: =IF(ISERROR(VLOOKUP(A11+8860000,'Growth Data'!A:C,3,0)),"NO",VLOOKUP(A11+8860000,'Growth Data'!A:C,3,0)) -> NO | AF11: 0 | AG11: 0 | AH11: =IF(ISERROR(VLOOKUP(A11+8860000,'Growth Data'!A:G,7,0)),0,VLOOKUP(A11+8860000,'Growth Data'!A:G,7,0)) -> 0 | AI11: 0
A12: 2014 | B12: St Laurence in Thanet C of E Junior Academy | C12: 0 | D12: 0 | E12: 0 | F12: 0 | H12: 0 | I12: 0 | K12: 0 | L12: 0 | N12: 0 | O12: 0 | Q12: 0 | R12: 0 | S12: 0 | T12: 0 | U12: 0 | V12: 0 | W12: 0 | Z12: 0 | AA12: 0 | AB12: =IF(ISERROR(VLOOKUP(A12+8860000,'Growth Data'!A:F,6,0)),0,VLOOKUP(A12+8860000,'Growth Data'!A:F,6,0)) -> 0 | AC12: 0 | AD12: NO | AE12: =IF(ISERROR(VLOOKUP(A12+8860000,'Growth Data'!A:C,3,0)),"NO",VLOOKUP(A12+8860000,'Growth Data'!A:C,3,0)) -> NO | AF12: 0 | AG12: 0 | AH12: =IF(ISERROR(VLOOKUP(A12+8860000,'Growth Data'!A:G,7,0)),0,VLOOKUP(A12+8860000,'Growth Data'!A:G,7,0)) -> 0 | AI12: 0
A13: 2015 | B13: Dame Janet Primary Academy | C13: 5.18 | D13: 5.18 | E13: 0 | F13: 0 | H13: 0 | I13: 0 | K13: 0 | L13: 0 | N13: 0 | O13: 0 | Q13: 0 | R13: 0 | S13: 0 | T13: 0 | U13: 0 | V13: 0 | W13: 0 | Z13: 0 | AA13: 0 | AB13: =IF(ISERROR(VLOOKUP(A13+8860000,'Growth Data'!A:F,6,0)),0,VLOOKUP(A13+8860000,'Growth Data'!A:F,6,0)) -> 0 | AC13: 0 | AD13: NO | AE13: =IF(ISERROR(VLOOKUP(A13+8860000,'Growth Data'!A:C,3,0)),"NO",VLOOKUP(A13+8860000,'Growth Data'!A:C,3,0)) -> NO | AF13: 0 | AG13: 0 | AH13: =IF(ISERROR(VLOOKUP(A13+8860000,'Growth Data'!A:G,7,0)),0,VLOOKUP(A13+8860000,'Growth Data'!A:G,7,0)) -> 0 | AI13: 0
A14: 2017 | B14: Drapers Mills Primary Academy | C14: 5.34 | D14: 5.34 | E14: 0 | F14: 0 | H14: 0 | I14: 0 | K14: 0 | L14: 0 | N14: 0 | O14: 0 | Q14: 0 | R14: 0 | S14: 0 | T14: 0 | U14: 0 | V14: 0 | W14: 0 | Z14: 0 | AA14: 79 | AB14: =IF(ISERROR(VLOOKUP(A14+8860000,'Growth Data'!A:F,6,0)),0,VLOOKUP(A14+8860000,'Growth Data'!A:F,6,0)) -> 0 | AC14: 79 | AD14: YES | AE14: =IF(ISERROR(VLOOKUP(A14+8860000,'Growth Data'!A:C,3,0)),"NO",VLOOKUP(A14+8860000,'Growth Data'!A:C,3,0)) -> NO | AF14: 1 | AG14: 90 | AH14: =IF(ISERROR(VLOOKUP(A14+8860000,'Growth Data'!A:G,7,0)),0,VLOOKUP(A14+8860000,'Growth Data'!A:G,7,0)) -> 0 | AI14: 1
A15: 2018 | B15: Temple Grove Academy | C15: 4.86 | D15: 4.86 | E15: 0 | F15: 0 | H15: 0 | I15: 0 | K15: 0 | L15: 0 | N15: 0 | O15: 0 | Q15: 0 | R15: 0 | S15: 0 | T15: 0 | U15: 0 | V15: 0 | W15: 0 | Z15: 0 | AA15: 0 | AB15: =IF(ISERROR(VLOOKUP(A15+8860000,'Growth Data'!A:F,6,0)),0,VLOOKUP(A15+8860000,'Growth Data'!A:F,6,0)) -> 0 | AC15: 0 | AD15: NO | AE15: =IF(ISERROR(VLOOKUP(A15+8860000,'Growth Data'!A:C,3,0)),"NO",VLOOKUP(A15+8860000,'Growth Data'!A:C,3,0)) -> NO | AF15: 0 | AG15: 0 | AH15: =IF(ISERROR(VLOOKUP(A15+8860000,'Growth Data'!A:G,7,0)),0,VLOOKUP(A15+8860000,'Growth Data'!A:G,7,0)) -> 0 | AI15: 0
A16: 2019 | B16: Chantry Community Academy | C16: 5.16 | D16: 5.16 | E16: 0 | F16: 0 | H16: 0 | I16: 0 | K16: 0 | L16: 0 | N16: 0 | O16: 0 | Q16: 0 | R16: 0 | S16: 0 | T16: 0 | U16: 0 | V16: 0 | W16: 0 | Z16: 0 | AA16: 30 | AB16: =IF(ISERROR(VLOOKUP(A16+8860000,'Growth Data'!A:F,6,0)),0,VLOOKUP(A16+8860000,'Growth Data'!A:F,6,0)) -> 46 | AC16: -16 | AD16: YES | AE16: =IF(ISERROR(VLOOKUP(A16+8860000,'Growth Data'!A:C,3,0)),"NO",VLOOKUP(A16+8860000,'Growth Data'!A:C,3,0)) -> Yes | AF16: 0 | AG16: 60 | AH16: =IF(ISERROR(VLOOKUP(A16+8860000,'Growth Data'!A:G,7,0)),0,VLOOKUP(A16+8860000,'Growth Data'!A:G,7,0)) -> 60 | AI16: 0
A17: 2020 | B17: Christ Church CEJ School, Ramsgate | C17: 0 | D17: 0 | E17: 0 | F17: 0 | H17: 0 | I17: 0 | K17: 0 | L17: 0 | N17: 0 | O17: 0 | Q17: 0 | R17: 0 | S17: 0 | T17: 0 | U17: 0 | V17: 0 | W17: 0 | Z17: 0 | AA17: 0 | AB17: =IF(ISERROR(VLOOKUP(A17+8860000,'Growth Data'!A:F,6,0)),0,VLOOKUP(A17+8860000,'Growth Data'!A:F,6,0)) -> 0 | AC17: 0 | AD17: NO | AE17: =IF(ISERROR(VLOOKUP(A17+8860000,'Growth Data'!A:C,3,0)),"NO",VLOOKUP(A17+8860000,'Growth Data'!A:C,3,0)) -> NO | AF17: 0 | AG17: 0 | AH17: =IF(ISERROR(VLOOKUP(A17+8860000,'Growth Data'!A:G,7,0)),0,VLOOKUP(A17+8860000,'Growth Data'!A:G,7,0)) -> 0 | AI17: 0
A18: 2021 | B18: Kemsley Primary Academy | C18: 4.85 | D18: 4.85 | E18: 0 | F18: 0 | H18: 0 | I18: 0 | K18: 0 | L18: 0 | N18: 0 | O18: 0 | Q18: 0 | R18: 0 | S18: 0 | T18: 0 | U18: 0 | V18: 0 | W18: 0 | Z18: 0 | AA18: 0 | AB18: =IF(ISERROR(VLOOKUP(A18+8860000,'Growth Data'!A:F,6,0)),0,VLOOKUP(A18+8860000,'Growth Data'!A:F,6,0)) -> 0 | AC18: 0 | AD18: NO | AE18: =IF(ISERROR(VLOOKUP(A18+8860000,'Growth Data'!A:C,3,0)),"NO",VLOOKUP(A18+8860000,'Growth Data'!A:C,3,0)) -> NO | AF18: 0 | AG18: 0 | AH18: =IF(ISERROR(VLOOKUP(A18+8860000,'Growth Data'!A:G,7,0)),0,VLOOKUP(A18+8860000,'Growth Data'!A:G,7,0)) -> 0 | AI18: 0
A19: 2022 | B19: Milton Court Primary Academy | C19: 5.21 | D19: 5.21 | E19: 0 | F19: 0 | H19: 0 | I19: 0 | K19: 0 | L19: 0 | N19: 0 | O19: 0 | Q19: 0 | R19: 0 | S19: 0 | T19: 0 | U19: 0 | V19: 0 | W19: 0 | Z19: 0 | AA19: 0 | AB19: =IF(ISERROR(VLOOKUP(A19+8860000,'Growth Data'!A:F,6,0)),0,VLOOKUP(A19+8860000,'Growth Data'!A:F,6,0)) -> 0 | AC19: 0 | AD19: NO | AE19: =IF(ISERROR(VLOOKUP(A19+8860000,'Growth Data'!A:C,3,0)),"NO",VLOOKUP(A19+8860000,'Growth Data'!A:C,3,0)) -> NO | AF19: 0 | AG19: 0 | AH19: =IF(ISERROR(VLOOKUP(A19+8860000,'Growth Data'!A:G,7,0)),0,VLOOKUP(A19+8860000,'Growth Data'!A:G,7,0)) -> 0 | AI19: 0
A20: 2023 | B20: Temple Ewell CEP School | C20: 0 | D20: 0 | E20: 0 | F20: 2069.03 | H20: 2069.03 | I20: 0 | K20: 0 | L20: 0 | N20: 0 | O20: 0 | Q20: 0 | R20: 0 | S20: 0 | T20: 0 | U20: 0 | V20: 0 | W20: 0 | Z20: 0 | AA20: 0 | AB20: =IF(ISERROR(VLOOKUP(A20+8860000,'Growth Data'!A:F,6,0)),0,VLOOKUP(A20+8860000,'Growth Data'!A:F,6,0)) -> 0 | AC20: 0 | AD20: NO | AE20: =IF(ISERROR(VLOOKUP(A20+8860000,'Growth Data'!A:C,3,0)),"NO",VLOOKUP(A20+8860000,'Growth Data'!A:C,3,0)) -> NO | AF20: 0 | AG20: 0 | AH20: =IF(ISERROR(VLOOKUP(A20+8860000,'Growth Data'!A:G,7,0)),0,VLOOKUP(A20+8860000,'Growth Data'!A:G,7,0)) -> 0 | AI20: 0
A21: 2024 | B21: Copperfield Academy | C21: 4.86 | D21: 4.86 | E21: 0 | F21: 0 | H21: 0 | I21: 0 | K21: 0 | L21: 0 | N21: 0 | O21: 0 | Q21: 0 | R21: 0 | S21: 0 | T21: 0 | U21: 0 | V21: 0 | W21: 0 | Z21: 0 | AA21: 0 | AB21: =IF(ISERROR(VLOOKUP(A21+8860000,'Growth Data'!A:F,6,0)),0,VLOOKUP(A21+8860000,'Growth Data'!A:F,6,0)) -> 0 | AC21: 0 | AD21: NO | AE21: =IF(ISERROR(VLOOKUP(A21+8860000,'Growth Data'!A:C,3,0)),"NO",VLOOKUP(A21+8860000,'Growth Data'!A:C,3,0)) -> No | AF21: 0 | AG21: 0 | AH21: =IF(ISERROR(VLOOKUP(A21+8860000,'Growth Data'!A:G,7,0)),0,VLOOKUP(A21+8860000,'Growth Data'!A:G,7,0)) -> 0 | AI21: 0
A22: 2025 | B22: Wells Free School, The | C22: 0 | D22: 0 | E22: 0 | F22: 1559.07 | H22: 1559.07 | I22: 0 | K22: 0 | L22: 0 | N22: 0 | O22: 0 | Q22: 0 | R22: 0 | S22: 0 | T22: 0 | U22: 0 | V22: 0 | W22: 0 | Z22: 0 | AA22: 0 | AB22: =IF(ISERROR(VLOOKUP(A22+8860000,'Growth Data'!A:F,6,0)),0,VLOOKUP(A22+8860000,'Growth Data'!A:F,6,0)) -> 0 | AC22: 0 | AD22: NO | AE22: =IF(ISERROR(VLOOKUP(A22+8860000,'Growth Data'!A:C,3,0)),"NO",VLOOKUP(A22+8860000,'Growth Data'!A:C,3,0)) -> NO | AF22: 0 | AG22: 0 | AH22: =IF(ISERROR(VLOOKUP(A22+8860000,'Growth Data'!A:G,7,0)),0,VLOOKUP(A22+8860000,'Growth Data'!A:G,7,0)) -> 0 | AI22: 0
A23: 2026 | B23: Petham Primary School | C23: 0 | D23: 0 | E23: 0 | F23: 3688.14 | H23: 3688.14 | I23: 0 | K23: 0 | L23: 0 | N23: 0 | O23: 0 | Q23: 0 | R23: 0 | S23: 0 | T23: 0 | U23: 0 | V23: 0 | W23: 0 | Z23: 0 | AA23: 0 | AB23: =IF(ISERROR(VLOOKUP(A23+8860000,'Growth Data'!A:F,6,0)),0,VLOOKUP(A23+8860000,'Growth Data'!A:F,6,0)) -> 0 | AC23: 0 | AD23: NO | AE23: =IF(ISERROR(VLOOKUP(A23+8860000,'Growth Data'!A:C,3,0)),"NO",VLOOKUP(A23+8860000,'Growth Data'!A:C,3,0)) -> NO | AF23: 0 | AG23: 0 | AH23: =IF(ISERROR(VLOOKUP(A23+8860000,'Growth Data'!A:G,7,0)),0,VLOOKUP(A23+8860000,'Growth Data'!A:G,7,0)) -> 0 | AI23: 0
A24: 2027 | B24: Archbishop Courtenay Primary School | C24: 5.08 | D24: 5.08 | E24: 0 | F24: 0 | H24: 0 | I24: 0 | K24: 0 | L24: 0 | N24: 0 | O24: 0 | Q24: 0 | R24: 0 | S24: 0 | T24: 0 | U24: 0 | V24: 0 | W24: 0 | Z24: 0 | AA24: 0 | AB24: =IF(ISERROR(VLOOKUP(A24+8860000,'Growth Data'!A:F,6,0)),0,VLOOKUP(A24+8860000,'Growth Data'!A:F,6,0)) -> 0 | AC24: 0 | AD24: NO | AE24: =IF(ISERROR(VLOOKUP(A24+8860000,'Growth Data'!A:C,3,0)),"NO",VLOOKUP(A24+8860000,'Growth Data'!A:C,3,0)) -> NO | AF24: 0 | AG24: 0 | AH24: =IF(ISERROR(VLOOKUP(A24+8860000,'Growth Data'!A:G,7,0)),0,VLOOKUP(A24+8860000,'Growth Data'!A:G,7,0)) -> 0 | AI24: 0
A25: 2028 | B25: Cliftonville Primary School | C25: 5.17 | D25: 5.17 | E25: 0 | F25: 0 | H25: 0 | I25: 0 | K25: 0 | L25: 0 | N25: 0 | O25: 0 | Q25: 0 | R25: 0 | S25: 0 | T25: 0 | U25: 0 | V25: 0 | W25: 0 | Z25: 0 | AA25: 0 | AB25: =IF(ISERROR(VLOOKUP(A25+8860000,'Growth Data'!A:F,6,0)),0,VLOOKUP(A25+8860000,'Growth Data'!A:F,6,0)) -> 90 | AC25: 0 | AD25: NO | AE25: =IF(ISERROR(VLOOKUP(A25+8860000,'Growth Data'!A:C,3,0)),"NO",VLOOKUP(A25+8860000,'Growth Data'!A:C,3,0)) -> Yes | AF25: 1 | AG25: 0 | AH25: =IF(ISERROR(VLOOKUP(A25+8860000,'Growth Data'!A:G,7,0)),0,VLOOKUP(A25+8860000,'Growth Data'!A:G,7,0)) -> 120 | AI25: 1
A26: 2029 | B26: Tymberwood Academy | C26: 5.14 | D26: 5.14 | E26: 0 | F26: 0 | H26: 0 | I26: 0 | K26: 0 | L26: 0 | N26: 0 | O26: 0 | Q26: 0 | R26: 0 | S26: 0 | T26: 0 | U26: 0 | V26: 0 | W26: 0 | Z26: 0 | AA26: 0 | AB26: =IF(ISERROR(VLOOKUP(A26+8860000,'Growth Data'!A:F,6,0)),0,VLOOKUP(A26+8860000,'Growth Data'!A:F,6,0)) -> 0 | AC26: 0 | AD26: NO | AE26: =IF(ISERROR(VLOOKUP(A26+8860000,'Growth Data'!A:C,3,0)),"NO",VLOOKUP(A26+8860000,'Growth Data'!A:C,3,0)) -> NO | AF26: 0 | AG26: 0 | AH26: =IF(ISERROR(VLOOKUP(A26+8860000,'Growth Data'!A:G,7,0)),0,VLOOKUP(A26+8860000,'Growth Data'!A:G,7,0)) -> 0 | AI26: 0
A27: 2030 | B27: Valley Invicta Primary School at Aylesford | C27: 0 | D27: 0 | E27: 0 | F27: 0 | H27: 0 | I27: 0 | K27: 0 | L27: 0 | N27: 0 | O27: 0 | Q27: 0 | R27: 0 | S27: 0 | T27: 0 | U27: 0 | V27: 0 | W27: 0 | Z27: 0 | AA27: 0 | AB27: =IF(ISERROR(VLOOKUP(A27+8860000,'Growth Data'!A:F,6,0)),0,VLOOKUP(A27+8860000,'Growth Data'!A:F,6,0)) -> 0 | AC27: 0 | AD27: NO | AE27: =IF(ISERROR(VLOOKUP(A27+8860000,'Growth Data'!A:C,3,0)),"NO",VLOOKUP(A27+8860000,'Growth Data'!A:C,3,0)) -> NO | AF27: 0 | AG27: 0 | AH27: =IF(ISERROR(VLOOKUP(A27+8860000,'Growth Data'!A:G,7,0)),0,VLOOKUP(A27+8860000,'Growth Data'!A:G,7,0)) -> 0 | AI27: 0
A28: 2031 | B28: Morehall Academy | C28: 0 | D28: 0 | E28: 0 | F28: 0 | H28: 0 | I28: 0 | K28: 0 | L28: 0 | N28: 0 | O28: 0 | Q28: 0 | R28: 0 | S28: 0 | T28: 0 | U28: 0 | V28: 0 | W28: 0 | Z28: 0 | AA28: 0 | AB28: =IF(ISERROR(VLOOKUP(A28+8860000,'Growth Data'!A:F,6,0)),0,VLOOKUP(A28+8860000,'Growth Data'!A:F,6,0)) -> 0 | AC28: 0 | AD28: NO | AE28: =IF(ISERROR(VLOOKUP(A28+8860000,'Growth Data'!A:C,3,0)),"NO",VLOOKUP(A28+8860000,'Growth Data'!A:C,3,0)) -> NO | AF28: 0 | AG28: 0 | AH28: =IF(ISERROR(VLOOKUP(A28+8860000,'Growth Data'!A:G,7,0)),0,VLOOKUP(A28+8860000,'Growth Data'!A:G,7,0)) -> 0 | AI28: 0
A29: 2032 | B29: Richmond Academy | C29: 5.36 | D29: 5.36 | E29: 0 | F29: 0 | H29: 0 | I29: 0 | K29: 0 | L29: 0 | N29: 0 | O29: 0 | Q29: 0 | R29: 0 | S29: 0 | T29: 0 | U29: 0 | V29: 0 | W29: 0 | Z29: 0 | AA29: 0 | AB29: =IF(ISERROR(VLOOKUP(A29+8860000,'Growth Data'!A:F,6,0)),0,VLOOKUP(A29+8860000,'Growth Data'!A:F,6,0)) -> 0 | AC29: 0 | AD29: NO | AE29: =IF(ISERROR(VLOOKUP(A29+8860000,'Growth Data'!A:C,3,0)),"NO",VLOOKUP(A29+8860000,'Growth Data'!A:C,3,0)) -> NO | AF29: 0 | AG29: 0 | AH29: =IF(ISERROR(VLOOKUP(A29+8860000,'Growth Data'!A:G,7,0)),0,VLOOKUP(A29+8860000,'Growth Data'!A:G,7,0)) -> 0 | AI29: 0
A30: 2033 | B30: Pilgrims' Way Primary School | C30: 4.97 | D30: 4.97 | E30: 0 | F30: 0 | H30: 0 | I30: 0 | K30: 0 | L30: 0 | N30: 0 | O30: 0 | Q30: 0 | R30: 0 | S30: 0 | T30: 0 | U30: 0 | V30: 0 | W30: 0 | Z30: 0 | AA30: 0 | AB30: =IF(ISERROR(VLOOKUP(A30+8860000,'Growth Data'!A:F,6,0)),0,VLOOKUP(A30+8860000,'Growth Data'!A:F,6,0)) -> 0 | AC30: 0 | AD30: NO | AE30: =IF(ISERROR(VLOOKUP(A30+8860000,'Growth Data'!A:C,3,0)),"NO",VLOOKUP(A30+8860000,'Growth Data'!A:C,3,0)) -> NO | AF30: 0 | AG30: 0 | AH30: =IF(ISERROR(VLOOKUP(A30+8860000,'Growth Data'!A:G,7,0)),0,VLOOKUP(A30+8860000,'Growth Data'!A:G,7,0)) -> 0 | AI30: 0
A31: 2034 | B31: Thistle Hill Academy | C31: 0 | D31: 0 | E31: 0 | F31: 0 | H31: 0 | I31: 0 | K31: 0 | L31: 0 | N31: 0 | O31: 0 | Q31: 0 | R31: 0 | S31: 0 | T31: 0 | U31: 0 | V31: 0 | W31: 0 | Z31: 0 | AA31: 0 | AB31: =IF(ISERROR(VLOOKUP(A31+8860000,'Growth Data'!A:F,6,0)),0,VLOOKUP(A31+8860000,'Growth Data'!A:F,6,0)) -> 30 | AC31: 0 | AD31: NO | AE31: =IF(ISERROR(VLOOKUP(A31+8860000,'Growth Data'!A:C,3,0)),"NO",VLOOKUP(A31+8860000,'Growth Data'!A:C,3,0)) -> Yes | AF31: 1 | AG31: 0 | AH31: =IF(ISERROR(VLOOKUP(A31+8860000,'Growth Data'!A:G,7,0)),0,VLOOKUP(A31+8860000,'Growth Data'!A:G,7,0)) -> 60 | AI31: 1
A32: 2036 | B32: Valley Invicta Primary School at Leybourne Chase | C32: 0 | D32: 0 | E32: 0 | F32: 1983.78 | H32: 1983.78 | I32: 0 | K32: 0 | L32: 0 | N32: 0 | O32: 0 | Q32: 0 | R32: 0 | S32: 0 | T32: 0 | U32: 0 | V32: 0 | W32: 0 | Z32: 0 | AA32: 0 | AB32: =IF(ISERROR(VLOOKUP(A32+8860000,'Growth Data'!A:F,6,0)),0,VLOOKUP(A32+8860000,'Growth Data'!A:F,6,0)) -> 16 | AC32: 0 | AD32: NO | AE32: =IF(ISERROR(VLOOKUP(A32+8860000,'Growth Data'!A:C,3,0)),"NO",VLOOKUP(A32+8860000,'Growth Data'!A:C,3,0)) -> Yes | AF32: 1 | AG32: 0 | AH32: =IF(ISERROR(VLOOKUP(A32+8860000,'Growth Data'!A:G,7,0)),0,VLOOKUP(A32+8860000,'Growth Data'!A:G,7,0)) -> 30 | AI32: 1
A33: 2037 | B33: Valley Invicta Primary School at Holborough Lakes | C33: 0 | D33: 0 | E33: 0 | F33: 0 | H33: 0 | I33: 0 | K33: 0 | L33: 0 | N33: 0 | O33: 0 | Q33: 0 | R33: 0 | S33: 0 | T33: 0 | U33: 0 | V33: 0 | W33: 0 | Z33: 0 | AA33: 0 | AB33: =IF(ISERROR(VLOOKUP(A33+8860000,'Growth Data'!A:F,6,0)),0,VLOOKUP(A33+8860000,'Growth Data'!A:F,6,0)) -> 15 | AC33: 0 | AD33: NO | AE33: =IF(ISERROR(VLOOKUP(A33+8860000,'Growth Data'!A:C,3,0)),"NO",VLOOKUP(A33+8860000,'Growth Data'!A:C,3,0)) -> Yes | AF33: 1 | AG33: 0 | AH33: =IF(ISERROR(VLOOKUP(A33+8860000,'Growth Data'!A:G,7,0)),0,VLOOKUP(A33+8860000,'Growth Data'!A:G,7,0)) -> 30 | AI33: 1
A34: 2038 | B34: Valley Invicta Primary School at Kings Hill | C34: 0 | D34: 0 | E34: =C34-D34 -> 0 | F34: 2530.75 | H34: 2530.75 | I34: 0 | K34: 0 | L34: 0 | N34: =ROUND(L34-M34,2) -> 0 | O34: 0 | Q34: =ROUND(O34-P34,2) -> 0 | R34: 0 | S34: 0 | T34: =ROUND(R34-S34,2) -> 0 | U34: 0 | V34: 0 | W34: =ROUND(U34-V34,2) -> 0 | Z34: =X34-Y34 -> 0 | AA34: 0 | AB34: =IF(ISERROR(VLOOKUP(A34+8860000,'Growth Data'!A:F,6,0)),0,VLOOKUP(A34+8860000,'Growth Data'!A:F,6,0)) -> 15 | AC34: 0 | AD34: NO | AE34: =IF(ISERROR(VLOOKUP(A34+8860000,'Growth Data'!A:C,3,0)),"NO",VLOOKUP(A34+8860000,'Growth Data'!A:C,3,0)) -> Yes | AF34: =IF(AD34=AE34,0,1) -> 1 | AG34: 0 | AH34: =IF(ISERROR(VLOOKUP(A34+8860000,'Growth Data'!A:G,7,0)),0,VLOOKUP(A34+8860000,'Growth Data'!A:G,7,0)) -> 30 | AI34: 1
A35: 2039 | B35: Martello Grove Academy | C35: 0 | D35: 0 | E35: 0 | F35: 0 | H35: 0 | I35: 0 | K35: 0 | L35: 0 | N35: 0 | O35: 0 | Q35: 0 | R35: 0 | S35: 0 | T35: 0 | U35: 0 | V35: 0 | W35: 0 | Z35: 0 | AA35: 0 | AB35: =IF(ISERROR(VLOOKUP(A35+8860000,'Growth Data'!A:F,6,0)),0,VLOOKUP(A35+8860000,'Growth Data'!A:F,6,0)) -> 4 | AC35: 0 | AD35: NO | AE35: =IF(ISERROR(VLOOKUP(A35+8860000,'Growth Data'!A:C,3,0)),"NO",VLOOKUP(A35+8860000,'Growth Data'!A:C,3,0)) -> Yes | AF35: 1 | AG35: 0 | AH35: =IF(ISERROR(VLOOKUP(A35+8860000,'Growth Data'!A:G,7,0)),0,VLOOKUP(A35+8860000,'Growth Data'!A:G,7,0)) -> 30 | AI35: 1
A36: 2041 | B36: Holy Family Catholic Primary School, The | C36: 0 | D36: 0 | E36: 0 | F36: 0 | H36: 0 | I36: 0 | K36: 0 | L36: 0 | N36: 0 | O36: 0 | Q36: 0 | R36: 0 | S36: 0 | T36: 0 | U36: 0 | V36: 0 | W36: 0 | Z36: 0 | AA36: 0 | AB36: =IF(ISERROR(VLOOKUP(A36+8860000,'Growth Data'!A:F,6,0)),0,VLOOKUP(A36+8860000,'Growth Data'!A:F,6,0)) -> 0 | AC36: 0 | AD36: NO | AE36: =IF(ISERROR(VLOOKUP(A36+8860000,'Growth Data'!A:C,3,0)),"NO",VLOOKUP(A36+8860000,'Growth Data'!A:C,3,0)) -> NO | AF36: 0 | AG36: 0 | AH36: =IF(ISERROR(VLOOKUP(A36+8860000,'Growth Data'!A:G,7,0)),0,VLOOKUP(A36+8860000,'Growth Data'!A:G,7,0)) -> 0 | AI36: 0
A37: 2043 | B37: Jubilee Primary School | C37: 0 | D37: 0 | E37: 0 | F37: 0 | H37: 0 | I37: 0 | K37: 0 | L37: 0 | N37: 0 | O37: 0 | Q37: 0 | R37: 0 | S37: 0 | T37: 0 | U37: 0 | V37: 0 | W37: 0 | Z37: 0 | AA37: 0 | AB37: =IF(ISERROR(VLOOKUP(A37+8860000,'Growth Data'!A:F,6,0)),0,VLOOKUP(A37+8860000,'Growth Data'!A:F,6,0)) -> 0 | AC37: 0 | AD37: NO | AE37: =IF(ISERROR(VLOOKUP(A37+8860000,'Growth Data'!A:C,3,0)),"NO",VLOOKUP(A37+8860000,'Growth Data'!A:C,3,0)) -> NO | AF37: 0 | AG37: 0 | AH37: =IF(ISERROR(VLOOKUP(A37+8860000,'Growth Data'!A:G,7,0)),0,VLOOKUP(A37+8860000,'Growth Data'!A:G,7,0)) -> 0 | AI37: 0
A38: 2045 | B38: Skinners' Kent Primary School | C38: 0 | D38: 0 | E38: 0 | F38: 2270.02 | H38: 2270.02 | I38: 0 | K38: 0 | L38: 0 | N38: 0 | O38: 0 | Q38: 0 | R38: 0 | S38: 0 | T38: 0 | U38: 0 | V38: 0 | W38: 0 | Z38: 0 | AA38: 0 | AB38: =IF(ISERROR(VLOOKUP(A38+8860000,'Growth Data'!A:F,6,0)),0,VLOOKUP(A38+8860000,'Growth Data'!A:F,6,0)) -> 0 | AC38: 0 | AD38: NO | AE38: =IF(ISERROR(VLOOKUP(A38+8860000,'Growth Data'!A:C,3,0)),"NO",VLOOKUP(A38+8860000,'Growth Data'!A:C,3,0)) -> Yes | AF38: 1 | AG38: 0 | AH38: =IF(ISERROR(VLOOKUP(A38+8860000,'Growth Data'!A:G,7,0)),0,VLOOKUP(A38+8860000,'Growth Data'!A:G,7,0)) -> 30 | AI38: 1
A39: 2047 | B39: Knockhall Academy | C39: 4.81 | D39: 4.81 | E39: 0 | F39: 0 | H39: 0 | I39: 0 | K39: 0 | L39: 0 | N39: 0 | O39: 0 | Q39: 0 | R39: 0 | S39: 0 | T39: 0 | U39: 0 | V39: 0 | W39: 0 | Z39: 0 | AA39: 60 | AB39: =IF(ISERROR(VLOOKUP(A39+8860000,'Growth Data'!A:F,6,0)),0,VLOOKUP(A39+8860000,'Growth Data'!A:F,6,0)) -> 0 | AC39: 60 | AD39: YES | AE39: =IF(ISERROR(VLOOKUP(A39+8860000,'Growth Data'!A:C,3,0)),"NO",VLOOKUP(A39+8860000,'Growth Data'!A:C,3,0)) -> NO | AF39: 1 | AG39: 90 | AH39: =IF(ISERROR(VLOOKUP(A39+8860000,'Growth Data'!A:G,7,0)),0,VLOOKUP(A39+8860000,'Growth Data'!A:G,7,0)) -> 0 | AI39: 1
A40: 2048 | B40: Reculver C of E Primary School | C40: 0 | D40: 0 | E40: 0 | F40: 0 | H40: 0 | I40: 0 | K40: 0 | L40: 0 | N40: 0 | O40: 0 | Q40: 0 | R40: 0 | S40: 0 | T40: 0 | U40: 0 | V40: 0 | W40: 0 | Z40: 0 | AA40: 0 | AB40: =IF(ISERROR(VLOOKUP(A40+8860000,'Growth Data'!A:F,6,0)),0,VLOOKUP(A40+8860000,'Growth Data'!A:F,6,0)) -> 0 | AC40: 0 | AD40: NO | AE40: =IF(ISERROR(VLOOKUP(A40+8860000,'Growth Data'!A:C,3,0)),"NO",VLOOKUP(A40+8860000,'Growth Data'!A:C,3,0)) -> NO | AF40: 0 | AG40: 0 | AH40: =IF(ISERROR(VLOOKUP(A40+8860000,'Growth Data'!A:G,7,0)),0,VLOOKUP(A40+8860000,'Growth Data'!A:G,7,0)) -> 0 | AI40: 0
A41: 2049 | B41: Rosherville Church of England Academy | C41: 0 | D41: 0 | E41: 0 | F41: 0 | H41: 0 | I41: 0 | K41: 0 | L41: 0 | N41: 0 | O41: 0 | Q41: 0 | R41: 0 | S41: 0 | T41: 0 | U41: 0 | V41: 0 | W41: 0 | Z41: 0 | AA41: 0 | AB41: =IF(ISERROR(VLOOKUP(A41+8860000,'Growth Data'!A:F,6,0)),0,VLOOKUP(A41+8860000,'Growth Data'!A:F,6,0)) -> 0 | AC41: 0 | AD41: NO | AE41: =IF(ISERROR(VLOOKUP(A41+8860000,'Growth Data'!A:C,3,0)),"NO",VLOOKUP(A41+8860000,'Growth Data'!A:C,3,0)) -> NO | AF41: 0 | AG41: 0 | AH41: =IF(ISERROR(VLOOKUP(A41+8860000,'Growth Data'!A:G,7,0)),0,VLOOKUP(A41+8860000,'Growth Data'!A:G,7,0)) -> 0 | AI41: 0
A42: 2051 | B42: St Mary of Charity CofE (Aided) Primary School | C42: 0 | D42: 0 | E42: 0 | F42: 0 | H42: 0 | I42: 0 | K42: 0 | L42: 0 | N42: 0 | O42: 0 | Q42: 0 | R42: 0 | S42: 0 | T42: 0 | U42: 0 | V42: 0 | W42: 0 | Z42: 0 | AA42: 0 | AB42: =IF(ISERROR(VLOOKUP(A42+8860000,'Growth Data'!A:F,6,0)),0,VLOOKUP(A42+8860000,'Growth Data'!A:F,6,0)) -> 0 | AC42: 0 | AD42: NO | AE42: =IF(ISERROR(VLOOKUP(A42+8860000,'Growth Data'!A:C,3,0)),"NO",VLOOKUP(A42+8860000,'Growth Data'!A:C,3,0)) -> NO | AF42: 0 | AG42: 0 | AH42: =IF(ISERROR(VLOOKUP(A42+8860000,'Growth Data'!A:G,7,0)),0,VLOOKUP(A42+8860000,'Growth Data'!A:G,7,0)) -> 0 | AI42: 0
A43: 2052 | B43: Kennington C of E Academy | C43: 0 | D43: 0 | E43: 0 | F43: 0 | H43: 0 | I43: 0 | K43: 0 | L43: 0 | N43: 0 | O43: 0 | Q43: 0 | R43: 0 | S43: 0 | T43: 0 | U43: 0 | V43: 0 | W43: 0 | Z43: 0 | AA43: 0 | AB43: =IF(ISERROR(VLOOKUP(A43+8860000,'Growth Data'!A:F,6,0)),0,VLOOKUP(A43+8860000,'Growth Data'!A:F,6,0)) -> 0 | AC43: 0 | AD43: NO | AE43: =IF(ISERROR(VLOOKUP(A43+8860000,'Growth Data'!A:C,3,0)),"NO",VLOOKUP(A43+8860000,'Growth Data'!A:C,3,0)) -> NO | AF43: 0 | AG43: 0 | AH43: =IF(ISERROR(VLOOKUP(A43+8860000,'Growth Data'!A:G,7,0)),0,VLOOKUP(A43+8860000,'Growth Data'!A:G,7,0)) -> 0 | AI43: 0
A44: 2054 | B44: St Edward's Catholic Primary School | C44: 0 | D44: 0 | E44: 0 | F44: 0 | H44: 0 | I44: 0 | K44: 0 | L44: 0 | N44: 0 | O44: 0 | Q44: 0 | R44: 0 | S44: 0 | T44: 0 | U44: 0 | V44: 0 | W44: 0 | Z44: 0 | AA44: 0 | AB44: =IF(ISERROR(VLOOKUP(A44+8860000,'Growth Data'!A:F,6,0)),0,VLOOKUP(A44+8860000,'Growth Data'!A:F,6,0)) -> 0 | AC44: 0 | AD44: NO | AE44: =IF(ISERROR(VLOOKUP(A44+8860000,'Growth Data'!A:C,3,0)),"NO",VLOOKUP(A44+8860000,'Growth Data'!A:C,3,0)) -> NO | AF44: 0 | AG44: 0 | AH44: =IF(ISERROR(VLOOKUP(A44+8860000,'Growth Data'!A:G,7,0)),0,VLOOKUP(A44+8860000,'Growth Data'!A:G,7,0)) -> 0 | AI44: 0
A45: 2055 | B45: Lansdowne Primary School | C45: 0 | D45: 0 | E45: 0 | F45: 0 | H45: 0 | I45: 0 | K45: 0 | L45: 0 | N45: 0 | O45: 0 | Q45: 0 | R45: 0 | S45: 0 | T45: 0 | U45: 0 | V45: 0 | W45: 0 | Z45: 0 | AA45: 30 | AB45: =IF(ISERROR(VLOOKUP(A45+8860000,'Growth Data'!A:F,6,0)),0,VLOOKUP(A45+8860000,'Growth Data'!A:F,6,0)) -> 30 | AC45: 0 | AD45: YES | AE45: =IF(ISERROR(VLOOKUP(A45+8860000,'Growth Data'!A:C,3,0)),"NO",VLOOKUP(A45+8860000,'Growth Data'!A:C,3,0)) -> Yes | AF45: 0 | AG45: 60 | AH45: =IF(ISERROR(VLOOKUP(A45+8860000,'Growth Data'!A:G,7,0)),0,VLOOKUP(A45+8860000,'Growth Data'!A:G,7,0)) -> 60 | AI45: 0
A46: 2058 | B46: Charlton CofE Primary School | C46: 0 | D46: 0 | E46: 0 | F46: 0 | H46: 0 | I46: 0 | K46: 0 | L46: 0 | N46: 0 | O46: 0 | Q46: 0 | R46: 0 | S46: 0 | T46: 0 | U46: 0 | V46: 0 | W46: 0 | Z46: 0 | AA46: 0 | AB46: =IF(ISERROR(VLOOKUP(A46+8860000,'Growth Data'!A:F,6,0)),0,VLOOKUP(A46+8860000,'Growth Data'!A:F,6,0)) -> 0 | AC46: 0 | AD46: NO | AE46: =IF(ISERROR(VLOOKUP(A46+8860000,'Growth Data'!A:C,3,0)),"NO",VLOOKUP(A46+8860000,'Growth Data'!A:C,3,0)) -> NO | AF46: 0 | AG46: 0 | AH46: =IF(ISERROR(VLOOKUP(A46+8860000,'Growth Data'!A:G,7,0)),0,VLOOKUP(A46+8860000,'Growth Data'!A:G,7,0)) -> 0 | AI46: 0
A47: 2059 | B47: Lydd Primary School | C47: 4.81 | D47: 4.81 | E47: 0 | F47: 0 | H47: 0 | I47: 0 | K47: 0 | L47: 0 | N47: 0 | O47: 0 | Q47: 0 | R47: 0 | S47: 0 | T47: 0 | U47: 0 | V47: 0 | W47: 0 | Z47: 0 | AA47: 0 | AB47: =IF(ISERROR(VLOOKUP(A47+8860000,'Growth Data'!A:F,6,0)),0,VLOOKUP(A47+8860000,'Growth Data'!A:F,6,0)) -> 0 | AC47: 0 | AD47: NO | AE47: =IF(ISERROR(VLOOKUP(A47+8860000,'Growth Data'!A:C,3,0)),"NO",VLOOKUP(A47+8860000,'Growth Data'!A:C,3,0)) -> NO | AF47: 0 | AG47: 0 | AH47: =IF(ISERROR(VLOOKUP(A47+8860000,'Growth Data'!A:G,7,0)),0,VLOOKUP(A47+8860000,'Growth Data'!A:G,7,0)) -> 0 | AI47: 0
A48: 2060 | B48: Beaver Green Primary School | C48: 5.14 | D48: 5.14 | E48: 0 | F48: 0 | H48: 0 | I48: 0 | K48: 0 | L48: 0 | N48: 0 | O48: 0 | Q48: 0 | R48: 0 | S48: 0 | T48: 0 | U48: 0 | V48: 0 | W48: 0 | Z48: 0 | AA48: 0 | AB48: =IF(ISERROR(VLOOKUP(A48+8860000,'Growth Data'!A:F,6,0)),0,VLOOKUP(A48+8860000,'Growth Data'!A:F,6,0)) -> 0 | AC48: 0 | AD48: NO | AE48: =IF(ISERROR(VLOOKUP(A48+8860000,'Growth Data'!A:C,3,0)),"NO",VLOOKUP(A48+8860000,'Growth Data'!A:C,3,0)) -> NO | AF48: 0 | AG48: 0 | AH48: =IF(ISERROR(VLOOKUP(A48+8860000,'Growth Data'!A:G,7,0)),0,VLOOKUP(A48+8860000,'Growth Data'!A:G,7,0)) -> 0 | AI48: 0
A49: 2061 | B49: Finberry Primary School | C49: 0 | D49: 0 | E49: 0 | F49: 0 | H49: 0 | I49: 0 | K49: 0 | L49: 0 | N49: 0 | O49: 0 | Q49: 0 | R49: 0 | S49: 0 | T49: 0 | U49: 0 | V49: 0 | W49: 0 | Z49: 0 | AA49: 0 | AB49: =IF(ISERROR(VLOOKUP(A49+8860000,'Growth Data'!A:F,6,0)),0,VLOOKUP(A49+8860000,'Growth Data'!A:F,6,0)) -> 0 | AC49: 0 | AD49: NO | AE49: =IF(ISERROR(VLOOKUP(A49+8860000,'Growth Data'!A:C,3,0)),"NO",VLOOKUP(A49+8860000,'Growth Data'!A:C,3,0)) -> Yes | AF49: 1 | AG49: 0 | AH49: =IF(ISERROR(VLOOKUP(A49+8860000,'Growth Data'!A:G,7,0)),0,VLOOKUP(A49+8860000,'Growth Data'!A:G,7,0)) -> 30 | AI49: 1
A50: 2063 | B50: Istead Rise Primary School | C50: 0 | D50: 0 | E50: 0 | F50: 0 | H50: 0 | I50: 0 | K50: 0 | L50: 0 | N50: 0 | O50: 0 | Q50: 0 | R50: 0 | S50: 0 | T50: 0 | U50: 0 | V50: 0 | W50: 0 | Z50: 0 | AA50: 48 | AB50: =IF(ISERROR(VLOOKUP(A50+8860000,'Growth Data'!A:F,6,0)),0,VLOOKUP(A50+8860000,'Growth Data'!A:F,6,0)) -> 0 | AC50: 48 | AD50: YES | AE50: =IF(ISERROR(VLOOKUP(A50+8860000,'Growth Data'!A:C,3,0)),"NO",VLOOKUP(A50+8860000,'Growth Data'!A:C,3,0)) -> NO | AF50: 1 | AG50: 60 | AH50: =IF(ISERROR(VLOOKUP(A50+8860000,'Growth Data'!A:G,7,0)),0,VLOOKUP(A50+8860000,'Growth Data'!A:G,7,0)) -> 0 | AI50: 1
A51: 2064 | B51: Ramsgate Free School | C51: 0 | D51: 0 | E51: 0 | F51: 465.24 | H51: 465.24 | I51: 0 | K51: 0 | L51: 0 | N51: 0 | O51: 0 | Q51: 0 | R51: 0 | S51: 0 | T51: 0 | U51: 0 | V51: 0 | W51: 0 | Z51: 0 | AA51: 0 | AB51: =IF(ISERROR(VLOOKUP(A51+8860000,'Growth Data'!A:F,6,0)),0,VLOOKUP(A51+8860000,'Growth Data'!A:F,6,0)) -> 0 | AC51: 0 | AD51: NO | AE51: =IF(ISERROR(VLOOKUP(A51+8860000,'Growth Data'!A:C,3,0)),"NO",VLOOKUP(A51+8860000,'Growth Data'!A:C,3,0)) -> NO | AF51: 0 | AG51: 0 | AH51: =IF(ISERROR(VLOOKUP(A51+8860000,'Growth Data'!A:G,7,0)),0,VLOOKUP(A51+8860000,'Growth Data'!A:G,7,0)) -> 0 | AI51: 0
A52: 2069 | B52: Dartford Primary Academy | C52: 4.81 | D52: 4.81 | E52: 0 | F52: 0 | H52: 0 | I52: 0 | K52: 0 | L52: 0 | N52: 0 | O52: 0 | Q52: 0 | R52: 0 | S52: 0 | T52: 0 | U52: 0 | V52: 0 | W52: 0 | Z52: 0 | AA52: 0 | AB52: =IF(ISERROR(VLOOKUP(A52+8860000,'Growth Data'!A:F,6,0)),0,VLOOKUP(A52+8860000,'Growth Data'!A:F,6,0)) -> 0 | AC52: 0 | AD52: NO | AE52: =IF(ISERROR(VLOOKUP(A52+8860000,'Growth Data'!A:C,3,0)),"NO",VLOOKUP(A52+8860000,'Growth Data'!A:C,3,0)) -> NO | AF52: 0 | AG52: 0 | AH52: =IF(ISERROR(VLOOKUP(A52+8860000,'Growth Data'!A:G,7,0)),0,VLOOKUP(A52+8860000,'Growth Data'!A:G,7,0)) -> 0 | AI52: 0
A53: 2073 | B53: Langley Park Primary Academy | C53: 0 | D53: 0 | E53: 0 | F53: 0 | H53: 0 | I53: 0 | K53: 0 | L53: 0 | N53: 0 | O53: 0 | Q53: 0 | R53: 0 | S53: 0 | T53: 0 | U53: 0 | V53: 0 | W53: 0 | Z53: 0 | AA53: 0 | AB53: =IF(ISERROR(VLOOKUP(A53+8860000,'Growth Data'!A:F,6,0)),0,VLOOKUP(A53+8860000,'Growth Data'!A:F,6,0)) -> 0 | AC53: 0 | AD53: NO | AE53: =IF(ISERROR(VLOOKUP(A53+8860000,'Growth Data'!A:C,3,0)),"NO",VLOOKUP(A53+8860000,'Growth Data'!A:C,3,0)) -> NO | AF53: 0 | AG53: 0 | AH53: =IF(ISERROR(VLOOKUP(A53+8860000,'Growth Data'!A:G,7,0)),0,VLOOKUP(A53+8860000,'Growth Data'!A:G,7,0)) -> 0 | AI53: 0
A54: 2077 | B54: Westgate Primary School | C54: 0 | D54: 0 | E54: 0 | F54: 0 | H54: 0 | I54: 0 | K54: 0 | L54: 0 | N54: 0 | O54: 0 | Q54: 0 | R54: 0 | S54: 0 | T54: 0 | U54: 0 | V54: 0 | W54: 0 | Z54: 0 | AA54: 0 | AB54: =IF(ISERROR(VLOOKUP(A54+8860000,'Growth Data'!A:F,6,0)),0,VLOOKUP(A54+8860000,'Growth Data'!A:F,6,0)) -> 0 | AC54: 0 | AD54: NO | AE54: =IF(ISERROR(VLOOKUP(A54+8860000,'Growth Data'!A:C,3,0)),"NO",VLOOKUP(A54+8860000,'Growth Data'!A:C,3,0)) -> NO | AF54: 0 | AG54: 0 | AH54: =IF(ISERROR(VLOOKUP(A54+8860000,'Growth Data'!A:G,7,0)),0,VLOOKUP(A54+8860000,'Growth Data'!A:G,7,0)) -> 0 | AI54: 0
A55: 2078 | B55: St Nicholas C of E Primary Academy | C55: 0 | D55: 0 | E55: 0 | F55: 0 | H55: 0 | I55: 0 | K55: 0 | L55: 0 | N55: 0 | O55: 0 | Q55: 0 | R55: 0 | S55: 0 | T55: 0 | U55: 0 | V55: 0 | W55: 0 | Z55: 0 | AA55: 0 | AB55: =IF(ISERROR(VLOOKUP(A55+8860000,'Growth Data'!A:F,6,0)),0,VLOOKUP(A55+8860000,'Growth Data'!A:F,6,0)) -> 0 | AC55: 0 | AD55: NO | AE55: =IF(ISERROR(VLOOKUP(A55+8860000,'Growth Data'!A:C,3,0)),"NO",VLOOKUP(A55+8860000,'Growth Data'!A:C,3,0)) -> NO | AF55: 0 | AG55: 0 | AH55: =IF(ISERROR(VLOOKUP(A55+8860000,'Growth Data'!A:G,7,0)),0,VLOOKUP(A55+8860000,'Growth Data'!A:G,7,0)) -> 0 | AI55: 0
A56: 2080 | B56: Barming Primary School | C56: 0 | D56: 0 | E56: 0 | F56: 0 | H56: 0 | I56: 0 | K56: 0 | L56: 0 | N56: 0 | O56: 0 | Q56: 0 | R56: 0 | S56: 0 | T56: 0 | U56: 0 | V56: 0 | W56: 0 | Z56: 0 | AA56: 0 | AB56: =IF(ISERROR(VLOOKUP(A56+8860000,'Growth Data'!A:F,6,0)),0,VLOOKUP(A56+8860000,'Growth Data'!A:F,6,0)) -> 0 | AC56: 0 | AD56: NO | AE56: =IF(ISERROR(VLOOKUP(A56+8860000,'Growth Data'!A:C,3,0)),"NO",VLOOKUP(A56+8860000,'Growth Data'!A:C,3,0)) -> NO | AF56: 0 | AG56: 0 | AH56: =IF(ISERROR(VLOOKUP(A56+8860000,'Growth Data'!A:G,7,0)),0,VLOOKUP(A56+8860000,'Growth Data'!A:G,7,0)) -> 0 | AI56: 0
A57: 2081 | B57: Brenzett CE Primary School | C57: 0 | D57: 0 | E57: 0 | F57: 1534.44 | H57: 1534.44 | I57: 0 | K57: 0 | L57: 0 | N57: 0 | O57: 0 | Q57: 0 | R57: 0 | S57: 0 | T57: 0 | U57: 0 | V57: 0 | W57: 0 | Z57: 0 | AA57: 0 | AB57: =IF(ISERROR(VLOOKUP(A57+8860000,'Growth Data'!A:F,6,0)),0,VLOOKUP(A57+8860000,'Growth Data'!A:F,6,0)) -> 0 | AC57: 0 | AD57: NO | AE57: =IF(ISERROR(VLOOKUP(A57+8860000,'Growth Data'!A:C,3,0)),"NO",VLOOKUP(A57+8860000,'Growth Data'!A:C,3,0)) -> NO | AF57: 0 | AG57: 0 | AH57: =IF(ISERROR(VLOOKUP(A57+8860000,'Growth Data'!A:G,7,0)),0,VLOOKUP(A57+8860000,'Growth Data'!A:G,7,0)) -> 0 | AI57: 0
A58: 2110 | B58: Culverstone Green Primary School | C58: 0 | D58: 0 | E58: 0 | F58: 1492.91 | H58: 1492.91 | I58: 0 | K58: 0 | L58: 0 | N58: 0 | O58: 0 | Q58: 0 | R58: 0 | S58: 0 | T58: 0 | U58: 0 | V58: 0 | W58: 0 | Z58: 0 | AA58: 0 | AB58: =IF(ISERROR(VLOOKUP(A58+8860000,'Growth Data'!A:F,6,0)),0,VLOOKUP(A58+8860000,'Growth Data'!A:F,6,0)) -> 0 | AC58: 0 | AD58: NO | AE58: =IF(ISERROR(VLOOKUP(A58+8860000,'Growth Data'!A:C,3,0)),"NO",VLOOKUP(A58+8860000,'Growth Data'!A:C,3,0)) -> NO | AF58: 0 | AG58: 0 | AH58: =IF(ISERROR(VLOOKUP(A58+8860000,'Growth Data'!A:G,7,0)),0,VLOOKUP(A58+8860000,'Growth Data'!A:G,7,0)) -> 0 | AI58: 0
A59: 2141 | B59: Amherst School | C59: 0 | D59: 0 | E59: 0 | F59: 2312.72 | H59: 2312.72 | I59: 0 | K59: 0 | L59: 0 | N59: 0 | O59: 0 | Q59: 0 | R59: 0 | S59: 0 | T59: 0 | U59: 0 | V59: 0 | W59: 0 | Z59: 0 | AA59: 0 | AB59: =IF(ISERROR(VLOOKUP(A59+8860000,'Growth Data'!A:F,6,0)),0,VLOOKUP(A59+8860000,'Growth Data'!A:F,6,0)) -> 0 | AC59: 0 | AD59: NO | AE59: =IF(ISERROR(VLOOKUP(A59+8860000,'Growth Data'!A:C,3,0)),"NO",VLOOKUP(A59+8860000,'Growth Data'!A:C,3,0)) -> NO | AF59: 0 | AG59: 0 | AH59: =IF(ISERROR(VLOOKUP(A59+8860000,'Growth Data'!A:G,7,0)),0,VLOOKUP(A59+8860000,'Growth Data'!A:G,7,0)) -> 0 | AI59: 0
A60: 2180 | B60: South Borough Primary School | C60: 4.83 | D60: 4.83 | E60: 0 | F60: 0 | H60: 0 | I60: 0 | K60: 0 | L60: 0 | N60: 0 | O60: 0 | Q60: 0 | R60: 0 | S60: 0 | T60: 0 | U60: 0 | V60: 0 | W60: 0 | Z60: 0 | AA60: 0 | AB60: =IF(ISERROR(VLOOKUP(A60+8860000,'Growth Data'!A:F,6,0)),0,VLOOKUP(A60+8860000,'Growth Data'!A:F,6,0)) -> 30 | AC60: 0 | AD60: NO | AE60: =IF(ISERROR(VLOOKUP(A60+8860000,'Growth Data'!A:C,3,0)),"NO",VLOOKUP(A60+8860000,'Growth Data'!A:C,3,0)) -> Yes | AF60: 1 | AG60: 0 | AH60: =IF(ISERROR(VLOOKUP(A60+8860000,'Growth Data'!A:G,7,0)),0,VLOOKUP(A60+8860000,'Growth Data'!A:G,7,0)) -> 60 | AI60: 1
A61: 2223 | B61: Bobbing Village School | C61: 0 | D61: 0 | E61: 0 | F61: 0 | H61: 0 | I61: 0 | K61: 0 | L61: 0 | N61: 0 | O61: 0 | Q61: 0 | R61: 0 | S61: 0 | T61: 0 | U61: 0 | V61: 0 | W61: 0 | Z61: 0 | AA61: 0 | AB61: =IF(ISERROR(VLOOKUP(A61+8860000,'Growth Data'!A:F,6,0)),0,VLOOKUP(A61+8860000,'Growth Data'!A:F,6,0)) -> 0 | AC61: 0 | AD61: NO | AE61: =IF(ISERROR(VLOOKUP(A61+8860000,'Growth Data'!A:C,3,0)),"NO",VLOOKUP(A61+8860000,'Growth Data'!A:C,3,0)) -> NO | AF61: 0 | AG61: 0 | AH61: =IF(ISERROR(VLOOKUP(A61+8860000,'Growth Data'!A:G,7,0)),0,VLOOKUP(A61+8860000,'Growth Data'!A:G,7,0)) -> 0 | AI61: 0
A62: 2229 | B62: Graveney Primary School | C62: 0 | D62: 0 | E62: 0 | F62: 2033.87 | H62: 2033.87 | I62: 0 | K62: 0 | L62: 0 | N62: 0 | O62: 0 | Q62: 0 | R62: 0 | S62: 0 | T62: 0 | U62: 0 | V62: 0 | W62: 0 | Z62: 0 | AA62: 0 | AB62: =IF(ISERROR(VLOOKUP(A62+8860000,'Growth Data'!A:F,6,0)),0,VLOOKUP(A62+8860000,'Growth Data'!A:F,6,0)) -> 0 | AC62: 0 | AD62: NO | AE62: =IF(ISERROR(VLOOKUP(A62+8860000,'Growth Data'!A:C,3,0)),"NO",VLOOKUP(A62+8860000,'Growth Data'!A:C,3,0)) -> NO | AF62: 0 | AG62: 0 | AH62: =IF(ISERROR(VLOOKUP(A62+8860000,'Growth Data'!A:G,7,0)),0,VLOOKUP(A62+8860000,'Growth Data'!A:G,7,0)) -> 0 | AI62: 0
A63: 2230 | B63: Iwade School | C63: 0 | D63: 0 | E63: 0 | F63: 0 | H63: 0 | I63: 0 | K63: 0 | L63: 0 | N63: 0 | O63: 0 | Q63: 0 | R63: 0 | S63: 0 | T63: 0 | U63: 0 | V63: 0 | W63: 0 | Z63: 0 | AA63: 61 | AB63: =IF(ISERROR(VLOOKUP(A63+8860000,'Growth Data'!A:F,6,0)),0,VLOOKUP(A63+8860000,'Growth Data'!A:F,6,0)) -> 60 | AC63: 1 | AD63: YES | AE63: =IF(ISERROR(VLOOKUP(A63+8860000,'Growth Data'!A:C,3,0)),"NO",VLOOKUP(A63+8860000,'Growth Data'!A:C,3,0)) -> Yes | AF63: 0 | AG63: 90 | AH63: =IF(ISERROR(VLOOKUP(A63+8860000,'Growth Data'!A:G,7,0)),0,VLOOKUP(A63+8860000,'Growth Data'!A:G,7,0)) -> 90 | AI63: 0
A64: 2232 | B64: Luddenham School | C64: 0 | D64: 0 | E64: 0 | F64: 0 | H64: 0 | I64: 0 | K64: 0 | L64: 0 | N64: 0 | O64: 0 | Q64: 0 | R64: 0 | S64: 0 | T64: 0 | U64: 0 | V64: 0 | W64: 0 | Z64: 0 | AA64: 0 | AB64: =IF(ISERROR(VLOOKUP(A64+8860000,'Growth Data'!A:F,6,0)),0,VLOOKUP(A64+8860000,'Growth Data'!A:F,6,0)) -> 0 | AC64: 0 | AD64: NO | AE64: =IF(ISERROR(VLOOKUP(A64+8860000,'Growth Data'!A:C,3,0)),"NO",VLOOKUP(A64+8860000,'Growth Data'!A:C,3,0)) -> NO | AF64: 0 | AG64: 0 | AH64: =IF(ISERROR(VLOOKUP(A64+8860000,'Growth Data'!A:G,7,0)),0,VLOOKUP(A64+8860000,'Growth Data'!A:G,7,0)) -> 0 | AI64: 0
A65: 2233 | B65: Lynsted and Norton School | C65: 0 | D65: 0 | E65: 0 | F65: 1071.39 | H65: 1071.39 | I65: 0 | K65: 0 | L65: 0 | N65: 0 | O65: 0 | Q65: 0 | R65: 0 | S65: 0 | T65: 0 | U65: 0 | V65: 0 | W65: 0 | Z65: 0 | AA65: 0 | AB65: =IF(ISERROR(VLOOKUP(A65+8860000,'Growth Data'!A:F,6,0)),0,VLOOKUP(A65+8860000,'Growth Data'!A:F,6,0)) -> 0 | AC65: 0 | AD65: NO | AE65: =IF(ISERROR(VLOOKUP(A65+8860000,'Growth Data'!A:C,3,0)),"NO",VLOOKUP(A65+8860000,'Growth Data'!A:C,3,0)) -> NO | AF65: 0 | AG65: 0 | AH65: =IF(ISERROR(VLOOKUP(A65+8860000,'Growth Data'!A:G,7,0)),0,VLOOKUP(A65+8860000,'Growth Data'!A:G,7,0)) -> 0 | AI65: 0
A66: 2235 | B66: Minster in Sheppey Primary School | C66: 0 | D66: 0 | E66: =C66-D66 -> 0 | F66: 0 | H66: 0 | I66: 0 | K66: 0 | L66: 0 | N66: =ROUND(L66-M66,2) -> 0 | O66: 0 | Q66: =ROUND(O66-P66,2) -> 0 | R66: 0 | S66: 0 | T66: =ROUND(R66-S66,2) -> 0 | U66: 0 | V66: 0 | W66: =ROUND(U66-V66,2) -> 0 | Z66: =X66-Y66 -> 0 | AA66: 0 | AB66: =IF(ISERROR(VLOOKUP(A66+8860000,'Growth Data'!A:F,6,0)),0,VLOOKUP(A66+8860000,'Growth Data'!A:F,6,0)) -> 0 | AC66: 0 | AD66: NO | AE66: =IF(ISERROR(VLOOKUP(A66+8860000,'Growth Data'!A:C,3,0)),"NO",VLOOKUP(A66+8860000,'Growth Data'!A:C,3,0)) -> NO | AF66: =IF(AD66=AE66,0,1) -> 0 | AG66: 0 | AH66: =IF(ISERROR(VLOOKUP(A66+8860000,'Growth Data'!A:G,7,0)),0,VLOOKUP(A66+8860000,'Growth Data'!A:G,7,0)) -> 0 | AI66: 0
A67: 2246 | B67: Sheldwich Primary School | C67: 0 | D67: 0 | E67: 0 | F67: 1175.47 | H67: =ROUND(F67-G67,2) -> 1175.47 | I67: 0 | K67: =ROUND(I67-J67,2) -> 0 | L67: 0 | N67: 0 | O67: 0 | Q67: 0 | R67: 0 | S67: 0 | T67: 0 | U67: 0 | V67: 0 | W67: 0 | Z67: 0 | AA67: 0 | AB67: =IF(ISERROR(VLOOKUP(A67+8860000,'Growth Data'!A:F,6,0)),0,VLOOKUP(A67+8860000,'Growth Data'!A:F,6,0)) -> 0 | AC67: =IF(AD67="YES",AA67-AB67,0) -> 0 | AD67: NO | AE67: =IF(ISERROR(VLOOKUP(A67+8860000,'Growth Data'!A:C,3,0)),"NO",VLOOKUP(A67+8860000,'Growth Data'!A:C,3,0)) -> NO | AF67: 0 | AG67: 0 | AH67: =IF(ISERROR(VLOOKUP(A67+8860000,'Growth Data'!A:G,7,0)),0,VLOOKUP(A67+8860000,'Growth Data'!A:G,7,0)) -> 0 | AI67: =IF(AG67=AH67,0,1) -> 0
A68: 2249 | B68: Regis Manor School | C68: 5.08 | D68: 5.08 | E68: 0 | F68: 0 | H68: 0 | I68: 0 | K68: 0 | L68: 0 | N68: 0 | O68: 0 | Q68: 0 | R68: 0 | S68: 0 | T68: 0 | U68: 0 | V68: 0 | W68: 0 | Z68: 0 | AA68: 0 | AB68: =IF(ISERROR(VLOOKUP(A68+8860000,'Growth Data'!A:F,6,0)),0,VLOOKUP(A68+8860000,'Growth Data'!A:F,6,0)) -> 0 | AC68: 0 | AD68: NO | AE68: =IF(ISERROR(VLOOKUP(A68+8860000,'Growth Data'!A:C,3,0)),"NO",VLOOKUP(A68+8860000,'Growth Data'!A:C,3,0)) -> NO | AF68: 0 | AG68: 0 | AH68: =IF(ISERROR(VLOOKUP(A68+8860000,'Growth Data'!A:G,7,0)),0,VLOOKUP(A68+8860000,'Growth Data'!A:G,7,0)) -> 0 | AI68: 0
A69: 2264 | B69: Hampton Primary School | C69: 4.81 | D69: 4.81 | E69: 0 | F69: 0 | H69: 0 | I69: 0 | K69: 0 | L69: 0 | N69: 0 | O69: 0 | Q69: 0 | R69: 0 | S69: 0 | T69: 0 | U69: 0 | V69: 0 | W69: 0 | Z69: 0 | AA69: 0 | AB69: =IF(ISERROR(VLOOKUP(A69+8860000,'Growth Data'!A:F,6,0)),0,VLOOKUP(A69+8860000,'Growth Data'!A:F,6,0)) -> 0 | AC69: 0 | AD69: NO | AE69: =IF(ISERROR(VLOOKUP(A69+8860000,'Growth Data'!A:C,3,0)),"NO",VLOOKUP(A69+8860000,'Growth Data'!A:C,3,0)) -> NO | AF69: 0 | AG69: 0 | AH69: =IF(ISERROR(VLOOKUP(A69+8860000,'Growth Data'!A:G,7,0)),0,VLOOKUP(A69+8860000,'Growth Data'!A:G,7,0)) -> 0 | AI69: 0
A70: 2286 | B70: Hamstreet Primary Academy | C70: 0 | D70: 0 | E70: 0 | F70: 0 | H70: 0 | I70: 0 | K70: 0 | L70: 0 | N70: 0 | O70: 0 | Q70: 0 | R70: 0 | S70: 0 | T70: 0 | U70: 0 | V70: 0 | W70: 0 | Z70: 0 | AA70: 0 | AB70: =IF(ISERROR(VLOOKUP(A70+8860000,'Growth Data'!A:F,6,0)),0,VLOOKUP(A70+8860000,'Growth Data'!A:F,6,0)) -> 0 | AC70: 0 | AD70: NO | AE70: =IF(ISERROR(VLOOKUP(A70+8860000,'Growth Data'!A:C,3,0)),"NO",VLOOKUP(A70+8860000,'Growth Data'!A:C,3,0)) -> NO | AF70: 0 | AG70: 0 | AH70: =IF(ISERROR(VLOOKUP(A70+8860000,'Growth Data'!A:G,7,0)),0,VLOOKUP(A70+8860000,'Growth Data'!A:G,7,0)) -> 0 | AI70: 0
A71: 2288 | B71: Smarden Primary School | C71: 0 | D71: 0 | E71: 0 | F71: 4018.92 | H71: 4018.92 | I71: 0 | K71: 0 | L71: 0 | N71: 0 | O71: 0 | Q71: 0 | R71: 0 | S71: 0 | T71: 0 | U71: 0 | V71: 0 | W71: 0 | Z71: 0 | AA71: 0 | AB71: =IF(ISERROR(VLOOKUP(A71+8860000,'Growth Data'!A:F,6,0)),0,VLOOKUP(A71+8860000,'Growth Data'!A:F,6,0)) -> 0 | AC71: 0 | AD71: NO | AE71: =IF(ISERROR(VLOOKUP(A71+8860000,'Growth Data'!A:C,3,0)),"NO",VLOOKUP(A71+8860000,'Growth Data'!A:C,3,0)) -> NO | AF71: 0 | AG71: 0 | AH71: =IF(ISERROR(VLOOKUP(A71+8860000,'Growth Data'!A:G,7,0)),0,VLOOKUP(A71+8860000,'Growth Data'!A:G,7,0)) -> 0 | AI71: 0
A72: 2290 | B72: Tenterden Infant School | C72: 0 | D72: 0 | E72: 0 | F72: 2384.78 | H72: 2384.78 | I72: 0 | K72: 0 | L72: 0 | N72: 0 | O72: 0 | Q72: 0 | R72: 0 | S72: 0 | T72: 0 | U72: 0 | V72: 0 | W72: 0 | Z72: 0 | AA72: 0 | AB72: =IF(ISERROR(VLOOKUP(A72+8860000,'Growth Data'!A:F,6,0)),0,VLOOKUP(A72+8860000,'Growth Data'!A:F,6,0)) -> 0 | AC72: 0 | AD72: NO | AE72: =IF(ISERROR(VLOOKUP(A72+8860000,'Growth Data'!A:C,3,0)),"NO",VLOOKUP(A72+8860000,'Growth Data'!A:C,3,0)) -> NO | AF72: 0 | AG72: 0 | AH72: =IF(ISERROR(VLOOKUP(A72+8860000,'Growth Data'!A:G,7,0)),0,VLOOKUP(A72+8860000,'Growth Data'!A:G,7,0)) -> 0 | AI72: 0
A73: 2307 | B73: Warden House Primary School | C73: 0 | D73: 0 | E73: 0 | F73: 0 | H73: 0 | I73: 0 | K73: 0 | L73: 0 | N73: 0 | O73: 0 | Q73: 0 | R73: 0 | S73: 0 | T73: 0 | U73: 0 | V73: 0 | W73: 0 | Z73: 0 | AA73: 0 | AB73: =IF(ISERROR(VLOOKUP(A73+8860000,'Growth Data'!A:F,6,0)),0,VLOOKUP(A73+8860000,'Growth Data'!A:F,6,0)) -> 0 | AC73: 0 | AD73: NO | AE73: =IF(ISERROR(VLOOKUP(A73+8860000,'Growth Data'!A:C,3,0)),"NO",VLOOKUP(A73+8860000,'Growth Data'!A:C,3,0)) -> NO | AF73: 0 | AG73: 0 | AH73: =IF(ISERROR(VLOOKUP(A73+8860000,'Growth Data'!A:G,7,0)),0,VLOOKUP(A73+8860000,'Growth Data'!A:G,7,0)) -> 0 | AI73: 0
A74: 2309 | B74: Priory Fields School | C74: 0 | D74: 0 | E74: 0 | F74: 0 | H74: 0 | I74: 0 | K74: 0 | L74: 0 | N74: 0 | O74: 0 | Q74: 0 | R74: 0 | S74: 0 | T74: 0 | U74: 0 | V74: 0 | W74: 0 | Z74: 0 | AA74: 0 | AB74: =IF(ISERROR(VLOOKUP(A74+8860000,'Growth Data'!A:F,6,0)),0,VLOOKUP(A74+8860000,'Growth Data'!A:F,6,0)) -> 0 | AC74: 0 | AD74: NO | AE74: =IF(ISERROR(VLOOKUP(A74+8860000,'Growth Data'!A:C,3,0)),"NO",VLOOKUP(A74+8860000,'Growth Data'!A:C,3,0)) -> NO | AF74: 0 | AG74: 0 | AH74: =IF(ISERROR(VLOOKUP(A74+8860000,'Growth Data'!A:G,7,0)),0,VLOOKUP(A74+8860000,'Growth Data'!A:G,7,0)) -> 0 | AI74: 0
A75: 2310 | B75: Barton Junior School | C75: 0 | D75: 0 | E75: 0 | F75: 0 | H75: 0 | I75: 0 | K75: 0 | L75: 0 | N75: 0 | O75: 0 | Q75: 0 | R75: 0 | S75: 0 | T75: 0 | U75: 0 | V75: 0 | W75: 0 | Z75: 0 | AA75: 0 | AB75: =IF(ISERROR(VLOOKUP(A75+8860000,'Growth Data'!A:F,6,0)),0,VLOOKUP(A75+8860000,'Growth Data'!A:F,6,0)) -> 0 | AC75: 0 | AD75: NO | AE75: =IF(ISERROR(VLOOKUP(A75+8860000,'Growth Data'!A:C,3,0)),"NO",VLOOKUP(A75+8860000,'Growth Data'!A:C,3,0)) -> NO | AF75: 0 | AG75: 0 | AH75: =IF(ISERROR(VLOOKUP(A75+8860000,'Growth Data'!A:G,7,0)),0,VLOOKUP(A75+8860000,'Growth Data'!A:G,7,0)) -> 0 | AI75: 0
A76: 2313 | B76: St Martin's School | C76: 0 | D76: 0 | E76: 0 | F76: 0 | H76: 0 | I76: 0 | K76: 0 | L76: 0 | N76: 0 | O76: 0 | Q76: 0 | R76: 0 | S76: 0 | T76: 0 | U76: 0 | V76: 0 | W76: 0 | Z76: 0 | AA76: 0 | AB76: =IF(ISERROR(VLOOKUP(A76+8860000,'Growth Data'!A:F,6,0)),0,VLOOKUP(A76+8860000,'Growth Data'!A:F,6,0)) -> 0 | AC76: 0 | AD76: NO | AE76: =IF(ISERROR(VLOOKUP(A76+8860000,'Growth Data'!A:C,3,0)),"NO",VLOOKUP(A76+8860000,'Growth Data'!A:C,3,0)) -> NO | AF76: 0 | AG76: 0 | AH76: =IF(ISERROR(VLOOKUP(A76+8860000,'Growth Data'!A:G,7,0)),0,VLOOKUP(A76+8860000,'Growth Data'!A:G,7,0)) -> 0 | AI76: 0
A77: 2315 | B77: White Cliffs Primary College for the Arts | C77: 0 | D77: 0 | E77: 0 | F77: 0 | H77: 0 | I77: 0 | K77: 0 | L77: 0 | N77: 0 | O77: 0 | Q77: 0 | R77: 0 | S77: 0 | T77: 0 | U77: 0 | V77: 0 | W77: 0 | Z77: 0 | AA77: 30 | AB77: =IF(ISERROR(VLOOKUP(A77+8860000,'Growth Data'!A:F,6,0)),0,VLOOKUP(A77+8860000,'Growth Data'!A:F,6,0)) -> 30 | AC77: 0 | AD77: YES | AE77: =IF(ISERROR(VLOOKUP(A77+8860000,'Growth Data'!A:C,3,0)),"NO",VLOOKUP(A77+8860000,'Growth Data'!A:C,3,0)) -> Yes | AF77: 0 | AG77: 60 | AH77: =IF(ISERROR(VLOOKUP(A77+8860000,'Growth Data'!A:G,7,0)),0,VLOOKUP(A77+8860000,'Growth Data'!A:G,7,0)) -> 60 | AI77: 0
A78: 2316 | B78: Shatterlocks Infant School | C78: 5.05 | D78: 5.05 | E78: 0 | F78: 0 | H78: 0 | I78: 0 | K78: 0 | L78: 0 | N78: 0 | O78: 0 | Q78: 0 | R78: 0 | S78: 0 | T78: 0 | U78: 0 | V78: 0 | W78: 0 | Z78: 0 | AA78: 0 | AB78: =IF(ISERROR(VLOOKUP(A78+8860000,'Growth Data'!A:F,6,0)),0,VLOOKUP(A78+8860000,'Growth Data'!A:F,6,0)) -> 0 | AC78: 0 | AD78: NO | AE78: =IF(ISERROR(VLOOKUP(A78+8860000,'Growth Data'!A:C,3,0)),"NO",VLOOKUP(A78+8860000,'Growth Data'!A:C,3,0)) -> NO | AF78: 0 | AG78: 0 | AH78: =IF(ISERROR(VLOOKUP(A78+8860000,'Growth Data'!A:G,7,0)),0,VLOOKUP(A78+8860000,'Growth Data'!A:G,7,0)) -> 0 | AI78: 0
A79: 2435 | B79: South Avenue Primary School | C79: 0 | D79: 0 | E79: 0 | F79: 0 | H79: 0 | I79: 0 | K79: 0 | L79: 0 | N79: 0 | O79: 0 | Q79: 0 | R79: 0 | S79: 0 | T79: 0 | U79: 0 | V79: 0 | W79: 0 | Z79: 0 | AA79: 0 | AB79: =IF(ISERROR(VLOOKUP(A79+8860000,'Growth Data'!A:F,6,0)),0,VLOOKUP(A79+8860000,'Growth Data'!A:F,6,0)) -> 0 | AC79: 0 | AD79: NO | AE79: =IF(ISERROR(VLOOKUP(A79+8860000,'Growth Data'!A:C,3,0)),"NO",VLOOKUP(A79+8860000,'Growth Data'!A:C,3,0)) -> NO | AF79: 0 | AG79: 0 | AH79: =IF(ISERROR(VLOOKUP(A79+8860000,'Growth Data'!A:G,7,0)),0,VLOOKUP(A79+8860000,'Growth Data'!A:G,7,0)) -> 0 | AI79: 0
A80: 2438 | B80: Joydens Wood Junior School | C80: 0 | D80: 0 | E80: 0 | F80: 24.93 | H80: 24.93 | I80: 0 | K80: 0 | L80: 0 | N80: 0 | O80: 0 | Q80: 0 | R80: 0 | S80: 0 | T80: 0 | U80: 0 | V80: 0 | W80: 0 | Z80: 0 | AA80: 0 | AB80: =IF(ISERROR(VLOOKUP(A80+8860000,'Growth Data'!A:F,6,0)),0,VLOOKUP(A80+8860000,'Growth Data'!A:F,6,0)) -> 0 | AC80: 0 | AD80: NO | AE80: =IF(ISERROR(VLOOKUP(A80+8860000,'Growth Data'!A:C,3,0)),"NO",VLOOKUP(A80+8860000,'Growth Data'!A:C,3,0)) -> NO | AF80: 0 | AG80: 0 | AH80: =IF(ISERROR(VLOOKUP(A80+8860000,'Growth Data'!A:G,7,0)),0,VLOOKUP(A80+8860000,'Growth Data'!A:G,7,0)) -> 0 | AI80: 0
A81: 2462 | B81: Riverview Infant School | C81: 0 | D81: 0 | E81: 0 | F81: 0 | H81: 0 | I81: 0 | K81: 0 | L81: 0 | N81: 0 | O81: 0 | Q81: 0 | R81: 0 | S81: 0 | T81: 0 | U81: 0 | V81: 0 | W81: 0 | Z81: 0 | AA81: 0 | AB81: =IF(ISERROR(VLOOKUP(A81+8860000,'Growth Data'!A:F,6,0)),0,VLOOKUP(A81+8860000,'Growth Data'!A:F,6,0)) -> 0 | AC81: 0 | AD81: NO | AE81: =IF(ISERROR(VLOOKUP(A81+8860000,'Growth Data'!A:C,3,0)),"NO",VLOOKUP(A81+8860000,'Growth Data'!A:C,3,0)) -> NO | AF81: 0 | AG81: 0 | AH81: =IF(ISERROR(VLOOKUP(A81+8860000,'Growth Data'!A:G,7,0)),0,VLOOKUP(A81+8860000,'Growth Data'!A:G,7,0)) -> 0 | AI81: 0
A82: 2500 | B82: Joydens Wood Infant School | C82: 0 | D82: 0 | E82: 0 | F82: 0 | H82: 0 | I82: 0 | K82: 0 | L82: 0 | N82: 0 | O82: 0 | Q82: 0 | R82: 0 | S82: 0 | T82: 0 | U82: 0 | V82: 0 | W82: 0 | Z82: 0 | AA82: 0 | AB82: =IF(ISERROR(VLOOKUP(A82+8860000,'Growth Data'!A:F,6,0)),0,VLOOKUP(A82+8860000,'Growth Data'!A:F,6,0)) -> 0 | AC82: 0 | AD82: NO | AE82: =IF(ISERROR(VLOOKUP(A82+8860000,'Growth Data'!A:C,3,0)),"NO",VLOOKUP(A82+8860000,'Growth Data'!A:C,3,0)) -> NO | AF82: 0 | AG82: 0 | AH82: =IF(ISERROR(VLOOKUP(A82+8860000,'Growth Data'!A:G,7,0)),0,VLOOKUP(A82+8860000,'Growth Data'!A:G,7,0)) -> 0 | AI82: 0
A83: 2511 | B83: Hartley Primary Academy | C83: 0 | D83: 0 | E83: 0 | F83: 0 | H83: 0 | I83: 0 | K83: 0 | L83: 0 | N83: 0 | O83: 0 | Q83: 0 | R83: 0 | S83: 0 | T83: 0 | U83: 0 | V83: 0 | W83: 0 | Z83: 0 | AA83: 0 | AB83: =IF(ISERROR(VLOOKUP(A83+8860000,'Growth Data'!A:F,6,0)),0,VLOOKUP(A83+8860000,'Growth Data'!A:F,6,0)) -> 0 | AC83: 0 | AD83: NO | AE83: =IF(ISERROR(VLOOKUP(A83+8860000,'Growth Data'!A:C,3,0)),"NO",VLOOKUP(A83+8860000,'Growth Data'!A:C,3,0)) -> NO | AF83: 0 | AG83: 0 | AH83: =IF(ISERROR(VLOOKUP(A83+8860000,'Growth Data'!A:G,7,0)),0,VLOOKUP(A83+8860000,'Growth Data'!A:G,7,0)) -> 0 | AI83: 0
A84: 2523 | B84: Upton Junior School | C84: 0 | D84: 0 | E84: 0 | F84: 0 | H84: 0 | I84: 0 | K84: 0 | L84: 0 | N84: 0 | O84: 0 | Q84: 0 | R84: 0 | S84: 0 | T84: 0 | U84: 0 | V84: 0 | W84: 0 | Z84: 0 | AA84: 0 | AB84: =IF(ISERROR(VLOOKUP(A84+8860000,'Growth Data'!A:F,6,0)),0,VLOOKUP(A84+8860000,'Growth Data'!A:F,6,0)) -> 0 | AC84: 0 | AD84: NO | AE84: =IF(ISERROR(VLOOKUP(A84+8860000,'Growth Data'!A:C,3,0)),"NO",VLOOKUP(A84+8860000,'Growth Data'!A:C,3,0)) -> NO | AF84: 0 | AG84: 0 | AH84: =IF(ISERROR(VLOOKUP(A84+8860000,'Growth Data'!A:G,7,0)),0,VLOOKUP(A84+8860000,'Growth Data'!A:G,7,0)) -> 0 | AI84: 0
A85: 2595 | B85: Grove Park Primary School | C85: 0 | D85: 0 | E85: 0 | F85: 0 | H85: 0 | I85: 0 | K85: 0 | L85: 0 | N85: 0 | O85: 0 | Q85: 0 | R85: 0 | S85: 0 | T85: 0 | U85: 0 | V85: 0 | W85: 0 | Z85: 0 | AA85: 0 | AB85: =IF(ISERROR(VLOOKUP(A85+8860000,'Growth Data'!A:F,6,0)),0,VLOOKUP(A85+8860000,'Growth Data'!A:F,6,0)) -> 0 | AC85: 0 | AD85: NO | AE85: =IF(ISERROR(VLOOKUP(A85+8860000,'Growth Data'!A:C,3,0)),"NO",VLOOKUP(A85+8860000,'Growth Data'!A:C,3,0)) -> NO | AF85: 0 | AG85: 0 | AH85: =IF(ISERROR(VLOOKUP(A85+8860000,'Growth Data'!A:G,7,0)),0,VLOOKUP(A85+8860000,'Growth Data'!A:G,7,0)) -> 0 | AI85: 0
A86: 2596 | B86: Chilton Academy Primary School | C86: 0 | D86: 0 | E86: 0 | F86: 0 | H86: 0 | I86: 0 | K86: 0 | L86: 0 | N86: 0 | O86: 0 | Q86: 0 | R86: 0 | S86: 0 | T86: 0 | U86: 0 | V86: 0 | W86: 0 | Z86: 0 | AA86: 0 | AB86: =IF(ISERROR(VLOOKUP(A86+8860000,'Growth Data'!A:F,6,0)),0,VLOOKUP(A86+8860000,'Growth Data'!A:F,6,0)) -> 0 | AC86: 0 | AD86: NO | AE86: =IF(ISERROR(VLOOKUP(A86+8860000,'Growth Data'!A:C,3,0)),"NO",VLOOKUP(A86+8860000,'Growth Data'!A:C,3,0)) -> NO | AF86: 0 | AG86: 0 | AH86: =IF(ISERROR(VLOOKUP(A86+8860000,'Growth Data'!A:G,7,0)),0,VLOOKUP(A86+8860000,'Growth Data'!A:G,7,0)) -> 0 | AI86: 0
A87: 2608 | B87: St Stephen's Junior School | C87: 0 | D87: 0 | E87: 0 | F87: 0 | H87: 0 | I87: 0 | K87: 0 | L87: 0 | N87: 0 | O87: 0 | Q87: 0 | R87: 0 | S87: 0 | T87: 0 | U87: 0 | V87: 0 | W87: 0 | Z87: 0 | AA87: 0 | AB87: =IF(ISERROR(VLOOKUP(A87+8860000,'Growth Data'!A:F,6,0)),0,VLOOKUP(A87+8860000,'Growth Data'!A:F,6,0)) -> 0 | AC87: 0 | AD87: NO | AE87: =IF(ISERROR(VLOOKUP(A87+8860000,'Growth Data'!A:C,3,0)),"NO",VLOOKUP(A87+8860000,'Growth Data'!A:C,3,0)) -> NO | AF87: 0 | AG87: 0 | AH87: =IF(ISERROR(VLOOKUP(A87+8860000,'Growth Data'!A:G,7,0)),0,VLOOKUP(A87+8860000,'Growth Data'!A:G,7,0)) -> 0 | AI87: 0
A88: 2625 | B88: Godinton Primary Academy | C88: 0 | D88: 0 | E88: 0 | F88: 0 | H88: 0 | I88: 0 | K88: 0 | L88: 0 | N88: 0 | O88: 0 | Q88: 0 | R88: 0 | S88: 0 | T88: 0 | U88: 0 | V88: 0 | W88: 0 | Z88: 0 | AA88: 0 | AB88: =IF(ISERROR(VLOOKUP(A88+8860000,'Growth Data'!A:F,6,0)),0,VLOOKUP(A88+8860000,'Growth Data'!A:F,6,0)) -> 0 | AC88: 0 | AD88: NO | AE88: =IF(ISERROR(VLOOKUP(A88+8860000,'Growth Data'!A:C,3,0)),"NO",VLOOKUP(A88+8860000,'Growth Data'!A:C,3,0)) -> NO | AF88: 0 | AG88: 0 | AH88: =IF(ISERROR(VLOOKUP(A88+8860000,'Growth Data'!A:G,7,0)),0,VLOOKUP(A88+8860000,'Growth Data'!A:G,7,0)) -> 0 | AI88: 0
A89: 2650 | B89: Dymchurch Primary School | C89: 0 | D89: 0 | E89: 0 | F89: 0 | H89: 0 | I89: 0 | K89: 0 | L89: 0 | N89: 0 | O89: 0 | Q89: 0 | R89: 0 | S89: 0 | T89: 0 | U89: 0 | V89: 0 | W89: 0 | Z89: 0 | AA89: 0 | AB89: =IF(ISERROR(VLOOKUP(A89+8860000,'Growth Data'!A:F,6,0)),0,VLOOKUP(A89+8860000,'Growth Data'!A:F,6,0)) -> 0 | AC89: 0 | AD89: NO | AE89: =IF(ISERROR(VLOOKUP(A89+8860000,'Growth Data'!A:C,3,0)),"NO",VLOOKUP(A89+8860000,'Growth Data'!A:C,3,0)) -> NO | AF89: 0 | AG89: 0 | AH89: =IF(ISERROR(VLOOKUP(A89+8860000,'Growth Data'!A:G,7,0)),0,VLOOKUP(A89+8860000,'Growth Data'!A:G,7,0)) -> 0 | AI89: 0
A90: 2654 | B90: Canterbury Primary School, The | C90: 0 | D90: 0 | E90: 0 | F90: 0 | H90: 0 | I90: 0 | K90: 0 | L90: 0 | N90: 0 | O90: 0 | Q90: 0 | R90: 0 | S90: 0 | T90: 0 | U90: 0 | V90: 0 | W90: 0 | Z90: 0 | AA90: 0 | AB90: =IF(ISERROR(VLOOKUP(A90+8860000,'Growth Data'!A:F,6,0)),0,VLOOKUP(A90+8860000,'Growth Data'!A:F,6,0)) -> 0 | AC90: 0 | AD90: NO | AE90: =IF(ISERROR(VLOOKUP(A90+8860000,'Growth Data'!A:C,3,0)),"NO",VLOOKUP(A90+8860000,'Growth Data'!A:C,3,0)) -> No | AF90: 0 | AG90: 0 | AH90: =IF(ISERROR(VLOOKUP(A90+8860000,'Growth Data'!A:G,7,0)),0,VLOOKUP(A90+8860000,'Growth Data'!A:G,7,0)) -> 0 | AI90: 0
A91: 2656 | B91: Meopham Community Academy | C91: 0 | D91: 0 | E91: 0 | F91: 0 | H91: 0 | I91: 0 | K91: 0 | L91: 0 | N91: 0 | O91: 0 | Q91: 0 | R91: 0 | S91: 0 | T91: 0 | U91: 0 | V91: 0 | W91: 0 | Z91: 0 | AA91: 0 | AB91: =IF(ISERROR(VLOOKUP(A91+8860000,'Growth Data'!A:F,6,0)),0,VLOOKUP(A91+8860000,'Growth Data'!A:F,6,0)) -> 0 | AC91: 0 | AD91: NO | AE91: =IF(ISERROR(VLOOKUP(A91+8860000,'Growth Data'!A:C,3,0)),"NO",VLOOKUP(A91+8860000,'Growth Data'!A:C,3,0)) -> NO | AF91: 0 | AG91: 0 | AH91: =IF(ISERROR(VLOOKUP(A91+8860000,'Growth Data'!A:G,7,0)),0,VLOOKUP(A91+8860000,'Growth Data'!A:G,7,0)) -> 0 | AI91: 0
A92: 2657 | B92: Temple Hill Primary Academy | C92: 5.03 | D92: 5.03 | E92: 0 | F92: 0 | H92: 0 | I92: 0 | K92: 0 | L92: 0 | N92: 0 | O92: 0 | Q92: 0 | R92: 0 | S92: 0 | T92: 0 | U92: 0 | V92: 0 | W92: 0 | Z92: 0 | AA92: 0 | AB92: =IF(ISERROR(VLOOKUP(A92+8860000,'Growth Data'!A:F,6,0)),0,VLOOKUP(A92+8860000,'Growth Data'!A:F,6,0)) -> 0 | AC92: 0 | AD92: NO | AE92: =IF(ISERROR(VLOOKUP(A92+8860000,'Growth Data'!A:C,3,0)),"NO",VLOOKUP(A92+8860000,'Growth Data'!A:C,3,0)) -> No | AF92: 0 | AG92: 0 | AH92: =IF(ISERROR(VLOOKUP(A92+8860000,'Growth Data'!A:G,7,0)),0,VLOOKUP(A92+8860000,'Growth Data'!A:G,7,0)) -> 0 | AI92: 0
A93: 2658 | B93: Westcourt School | C93: 5.06 | D93: 5.06 | E93: 0 | F93: 0 | H93: 0 | I93: 0 | K93: 0 | L93: 0 | N93: 0 | O93: 0 | Q93: 0 | R93: 0 | S93: 904.1891111 | T93: -904.19 | U93: 0 | V93: 834.465551 | W93: -834.47 | Z93: 0 | AA93: 0 | AB93: =IF(ISERROR(VLOOKUP(A93+8860000,'Growth Data'!A:F,6,0)),0,VLOOKUP(A93+8860000,'Growth Data'!A:F,6,0)) -> 0 | AC93: 0 | AD93: NO | AE93: =IF(ISERROR(VLOOKUP(A93+8860000,'Growth Data'!A:C,3,0)),"NO",VLOOKUP(A93+8860000,'Growth Data'!A:C,3,0)) -> No | AF93: 0 | AG93: 0 | AH93: =IF(ISERROR(VLOOKUP(A93+8860000,'Growth Data'!A:G,7,0)),0,VLOOKUP(A93+8860000,'Growth Data'!A:G,7,0)) -> 0 | AI93: 0
A94: 2679 | B94: Brent Primary School, The | C94: 0 | D94: 0 | E94: 0 | F94: 0 | H94: 0 | I94: 0 | K94: 0 | L94: 0 | N94: 0 | O94: 0 | Q94: 0 | R94: 0 | S94: 0 | T94: 0 | U94: 0 | V94: 0 | W94: 0 | Z94: 0 | AA94: 0 | AB94: =IF(ISERROR(VLOOKUP(A94+8860000,'Growth Data'!A:F,6,0)),0,VLOOKUP(A94+8860000,'Growth Data'!A:F,6,0)) -> 0 | AC94: 0 | AD94: NO | AE94: =IF(ISERROR(VLOOKUP(A94+8860000,'Growth Data'!A:C,3,0)),"NO",VLOOKUP(A94+8860000,'Growth Data'!A:C,3,0)) -> No | AF94: 0 | AG94: 0 | AH94: =IF(ISERROR(VLOOKUP(A94+8860000,'Growth Data'!A:G,7,0)),0,VLOOKUP(A94+8860000,'Growth Data'!A:G,7,0)) -> 0 | AI94: 0
A95: 2684 | B95: Wentworth Primary School | C95: 0 | D95: 0 | E95: 0 | F95: 0 | H95: 0 | I95: 0 | K95: 0 | L95: 0 | N95: 0 | O95: 0 | Q95: 0 | R95: 0 | S95: 0 | T95: 0 | U95: 0 | V95: 0 | W95: 0 | Z95: 0 | AA95: 0 | AB95: =IF(ISERROR(VLOOKUP(A95+8860000,'Growth Data'!A:F,6,0)),0,VLOOKUP(A95+8860000,'Growth Data'!A:F,6,0)) -> 0 | AC95: 0 | AD95: NO | AE95: =IF(ISERROR(VLOOKUP(A95+8860000,'Growth Data'!A:C,3,0)),"NO",VLOOKUP(A95+8860000,'Growth Data'!A:C,3,0)) -> No | AF95: 0 | AG95: 0 | AH95: =IF(ISERROR(VLOOKUP(A95+8860000,'Growth Data'!A:G,7,0)),0,VLOOKUP(A95+8860000,'Growth Data'!A:G,7,0)) -> 0 | AI95: 0
A96: 2685 | B96: Gateway Primary Academy, The | C96: 0 | D96: 0 | E96: 0 | F96: 0 | H96: 0 | I96: 0 | K96: 0 | L96: 0 | N96: 0 | O96: 0 | Q96: 0 | R96: 0 | S96: 0 | T96: 0 | U96: 0 | V96: 0 | W96: 0 | Z96: 0 | AA96: 0 | AB96: =IF(ISERROR(VLOOKUP(A96+8860000,'Growth Data'!A:F,6,0)),0,VLOOKUP(A96+8860000,'Growth Data'!A:F,6,0)) -> 0 | AC96: 0 | AD96: NO | AE96: =IF(ISERROR(VLOOKUP(A96+8860000,'Growth Data'!A:C,3,0)),"NO",VLOOKUP(A96+8860000,'Growth Data'!A:C,3,0)) -> NO | AF96: 0 | AG96: 0 | AH96: =IF(ISERROR(VLOOKUP(A96+8860000,'Growth Data'!A:G,7,0)),0,VLOOKUP(A96+8860000,'Growth Data'!A:G,7,0)) -> 0 | AI96: 0
A97: 2686 | B97: Furley Park Primary Academy | C97: 0 | D97: 0 | E97: 0 | F97: 0 | H97: 0 | I97: 0 | K97: 0 | L97: 0 | N97: 0 | O97: 0 | Q97: 0 | R97: 0 | S97: 0 | T97: 0 | U97: 0 | V97: 0 | W97: 0 | Z97: 0 | AA97: 62 | AB97: =IF(ISERROR(VLOOKUP(A97+8860000,'Growth Data'!A:F,6,0)),0,VLOOKUP(A97+8860000,'Growth Data'!A:F,6,0)) -> 63 | AC97: -1 | AD97: YES | AE97: =IF(ISERROR(VLOOKUP(A97+8860000,'Growth Data'!A:C,3,0)),"NO",VLOOKUP(A97+8860000,'Growth Data'!A:C,3,0)) -> Yes | AF97: 0 | AG97: 90 | AH97: =IF(ISERROR(VLOOKUP(A97+8860000,'Growth Data'!A:G,7,0)),0,VLOOKUP(A97+8860000,'Growth Data'!A:G,7,0)) -> 90 | AI97: 0
A98: 3019 | B98: Shorne Church of England (V.C) Primary School | C98: 0 | D98: 0 | E98: =C98-D98 -> 0 | F98: 0 | H98: 0 | I98: 0 | K98: 0 | L98: 0 | N98: =ROUND(L98-M98,2) -> 0 | O98: 0 | Q98: =ROUND(O98-P98,2) -> 0 | R98: 0 | S98: 0 | T98: =ROUND(R98-S98,2) -> 0 | U98: 0 | V98: 0 | W98: =ROUND(U98-V98,2) -> 0 | Z98: =X98-Y98 -> 0 | AA98: 0 | AB98: =IF(ISERROR(VLOOKUP(A98+8860000,'Growth Data'!A:F,6,0)),0,VLOOKUP(A98+8860000,'Growth Data'!A:F,6,0)) -> 0 | AC98: 0 | AD98: NO | AE98: =IF(ISERROR(VLOOKUP(A98+8860000,'Growth Data'!A:C,3,0)),"NO",VLOOKUP(A98+8860000,'Growth Data'!A:C,3,0)) -> NO | AF98: =IF(AD98=AE98,0,1) -> 0 | AG98: 0 | AH98: =IF(ISERROR(VLOOKUP(A98+8860000,'Growth Data'!A:G,7,0)),0,VLOOKUP(A98+8860000,'Growth Data'!A:G,7,0)) -> 0 | AI98: 0
A99: 3025 | B99: Chiddingstone CEP School | C99: 0 | D99: 0 | E99: 0 | F99: 4278.45 | H99: 4278.45 | I99: 0 | K99: 0 | L99: 0 | N99: 0 | O99: 0 | Q99: 0 | R99: 0 | S99: 0 | T99: 0 | U99: 0 | V99: 0 | W99: 0 | Z99: 0 | AA99: 0 | AB99: =IF(ISERROR(VLOOKUP(A99+8860000,'Growth Data'!A:F,6,0)),0,VLOOKUP(A99+8860000,'Growth Data'!A:F,6,0)) -> 0 | AC99: 0 | AD99: NO | AE99: =IF(ISERROR(VLOOKUP(A99+8860000,'Growth Data'!A:C,3,0)),"NO",VLOOKUP(A99+8860000,'Growth Data'!A:C,3,0)) -> NO | AF99: 0 | AG99: 0 | AH99: =IF(ISERROR(VLOOKUP(A99+8860000,'Growth Data'!A:G,7,0)),0,VLOOKUP(A99+8860000,'Growth Data'!A:G,7,0)) -> 0 | AI99: 0
A100: 3086 | B100: West Malling CEP School | C100: 0 | D100: 0 | E100: 0 | F100: 0 | H100: 0 | I100: 0 | K100: 0 | L100: 0 | N100: 0 | O100: 0 | Q100: 0 | R100: 0 | S100: 0 | T100: 0 | U100: 0 | V100: 0 | W100: 0 | Z100: 0 | AA100: 0 | AB100: =IF(ISERROR(VLOOKUP(A100+8860000,'Growth Data'!A:F,6,0)),0,VLOOKUP(A100+8860000,'Growth Data'!A:F,6,0)) -> 0 | AC100: 0 | AD100: NO | AE100: =IF(ISERROR(VLOOKUP(A100+8860000,'Growth Data'!A:C,3,0)),"NO",VLOOKUP(A100+8860000,'Growth Data'!A:C,3,0)) -> NO | AF100: 0 | AG100: 0 | AH100: =IF(ISERROR(VLOOKUP(A100+8860000,'Growth Data'!A:G,7,0)),0,VLOOKUP(A100+8860000,'Growth Data'!A:G,7,0)) -> 0 | AI100: 0
A101: 3110 | B101: Milstead and Frinsted CEP School | C101: 0 | D101: 0 | E101: 0 | F101: 2232.02 | H101: 2232.02 | I101: 0 | K101: 0 | L101: 0 | N101: 0 | O101: 0 | Q101: 0 | R101: 0 | S101: 0 | T101: 0 | U101: 0 | V101: 0 | W101: 0 | Z101: 0 | AA101: 0 | AB101: =IF(ISERROR(VLOOKUP(A101+8860000,'Growth Data'!A:F,6,0)),0,VLOOKUP(A101+8860000,'Growth Data'!A:F,6,0)) -> 0 | AC101: 0 | AD101: NO | AE101: =IF(ISERROR(VLOOKUP(A101+8860000,'Growth Data'!A:C,3,0)),"NO",VLOOKUP(A101+8860000,'Growth Data'!A:C,3,0)) -> NO | AF101: 0 | AG101: 0 | AH101: =IF(ISERROR(VLOOKUP(A101+8860000,'Growth Data'!A:G,7,0)),0,VLOOKUP(A101+8860000,'Growth Data'!A:G,7,0)) -> 0 | AI101: 0
A102: 3112 | B102: Selling CEP School | C102: 0 | D102: 0 | E102: 0 | F102: 1656.13 | H102: 1656.13 | I102: 0 | K102: 0 | L102: 0 | N102: 0 | O102: 0 | Q102: 0 | R102: 0 | S102: 0 | T102: 0 | U102: 0 | V102: 0 | W102: 0 | Z102: 0 | AA102: 0 | AB102: =IF(ISERROR(VLOOKUP(A102+8860000,'Growth Data'!A:F,6,0)),0,VLOOKUP(A102+8860000,'Growth Data'!A:F,6,0)) -> 0 | AC102: 0 | AD102: NO | AE102: =IF(ISERROR(VLOOKUP(A102+8860000,'Growth Data'!A:C,3,0)),"NO",VLOOKUP(A102+8860000,'Growth Data'!A:C,3,0)) -> NO | AF102: 0 | AG102: 0 | AH102: =IF(ISERROR(VLOOKUP(A102+8860000,'Growth Data'!A:G,7,0)),0,VLOOKUP(A102+8860000,'Growth Data'!A:G,7,0)) -> 0 | AI102: 0
A103: 3119 | B103: Adisham CEP School | C103: 0 | D103: 0 | E103: 0 | F103: 2608.59 | H103: 2608.59 | I103: 0 | K103: 0 | L103: 0 | N103: 0 | O103: 0 | Q103: 0 | R103: 0 | S103: 0 | T103: 0 | U103: 0 | V103: 0 | W103: 0 | Z103: 0 | AA103: 0 | AB103: =IF(ISERROR(VLOOKUP(A103+8860000,'Growth Data'!A:F,6,0)),0,VLOOKUP(A103+8860000,'Growth Data'!A:F,6,0)) -> 0 | AC103: 0 | AD103: NO | AE103: =IF(ISERROR(VLOOKUP(A103+8860000,'Growth Data'!A:C,3,0)),"NO",VLOOKUP(A103+8860000,'Growth Data'!A:C,3,0)) -> NO | AF103: 0 | AG103: 0 | AH103: =IF(ISERROR(VLOOKUP(A103+8860000,'Growth Data'!A:G,7,0)),0,VLOOKUP(A103+8860000,'Growth Data'!A:G,7,0)) -> 0 | AI103: 0
A104: 3128 | B104: Sturry CEP School | C104: 0 | D104: 0 | E104: 0 | F104: 0 | H104: 0 | I104: 0 | K104: 0 | L104: 0 | N104: 0 | O104: 0 | Q104: 0 | R104: 0 | S104: 0 | T104: 0 | U104: 0 | V104: 0 | W104: 0 | Z104: 0 | AA104: 0 | AB104: =IF(ISERROR(VLOOKUP(A104+8860000,'Growth Data'!A:F,6,0)),0,VLOOKUP(A104+8860000,'Growth Data'!A:F,6,0)) -> 0 | AC104: 0 | AD104: NO | AE104: =IF(ISERROR(VLOOKUP(A104+8860000,'Growth Data'!A:C,3,0)),"NO",VLOOKUP(A104+8860000,'Growth Data'!A:C,3,0)) -> NO | AF104: 0 | AG104: 0 | AH104: =IF(ISERROR(VLOOKUP(A104+8860000,'Growth Data'!A:G,7,0)),0,VLOOKUP(A104+8860000,'Growth Data'!A:G,7,0)) -> 0 | AI104: 0
A105: 3140 | B105: Kingsnorth CEP School | C105: 0 | D105: 0 | E105: 0 | F105: 0 | H105: 0 | I105: 0 | K105: 0 | L105: 0 | N105: 0 | O105: 0 | Q105: 0 | R105: 0 | S105: 0 | T105: 0 | U105: 0 | V105: 0 | W105: 0 | Z105: 0 | AA105: 0 | AB105: =IF(ISERROR(VLOOKUP(A105+8860000,'Growth Data'!A:F,6,0)),0,VLOOKUP(A105+8860000,'Growth Data'!A:F,6,0)) -> 0 | AC105: 0 | AD105: NO | AE105: =IF(ISERROR(VLOOKUP(A105+8860000,'Growth Data'!A:C,3,0)),"NO",VLOOKUP(A105+8860000,'Growth Data'!A:C,3,0)) -> NO | AF105: 0 | AG105: 0 | AH105: =IF(ISERROR(VLOOKUP(A105+8860000,'Growth Data'!A:G,7,0)),0,VLOOKUP(A105+8860000,'Growth Data'!A:G,7,0)) -> 0 | AI105: 0
A106: 3142 | B106: Pluckley CEP School | C106: 0 | D106: 0 | E106: 0 | F106: 3392.91 | H106: 3392.91 | I106: 0 | K106: 0 | L106: 0 | N106: 0 | O106: 0 | Q106: 0 | R106: 0 | S106: 0 | T106: 0 | U106: 0 | V106: 0 | W106: 0 | Z106: 0 | AA106: 0 | AB106: =IF(ISERROR(VLOOKUP(A106+8860000,'Growth Data'!A:F,6,0)),0,VLOOKUP(A106+8860000,'Growth Data'!A:F,6,0)) -> 0 | AC106: 0 | AD106: NO | AE106: =IF(ISERROR(VLOOKUP(A106+8860000,'Growth Data'!A:C,3,0)),"NO",VLOOKUP(A106+8860000,'Growth Data'!A:C,3,0)) -> NO | AF106: 0 | AG106: 0 | AH106: =IF(ISERROR(VLOOKUP(A106+8860000,'Growth Data'!A:G,7,0)),0,VLOOKUP(A106+8860000,'Growth Data'!A:G,7,0)) -> 0 | AI106: 0
A107: 3143 | B107: St Michael's CEP School | C107: 0 | D107: 0 | E107: 0 | F107: 1618.35 | H107: 1618.35 | I107: 0 | K107: 0 | L107: 0 | N107: 0 | O107: 0 | Q107: 0 | R107: 0 | S107: 0 | T107: 0 | U107: 0 | V107: 0 | W107: 0 | Z107: 0 | AA107: 0 | AB107: =IF(ISERROR(VLOOKUP(A107+8860000,'Growth Data'!A:F,6,0)),0,VLOOKUP(A107+8860000,'Growth Data'!A:F,6,0)) -> 0 | AC107: 0 | AD107: NO | AE107: =IF(ISERROR(VLOOKUP(A107+8860000,'Growth Data'!A:C,3,0)),"NO",VLOOKUP(A107+8860000,'Growth Data'!A:C,3,0)) -> NO | AF107: 0 | AG107: 0 | AH107: =IF(ISERROR(VLOOKUP(A107+8860000,'Growth Data'!A:G,7,0)),0,VLOOKUP(A107+8860000,'Growth Data'!A:G,7,0)) -> 0 | AI107: 0
A108: 3144 | B108: Tenterden CEJ School | C108: 0 | D108: 0 | E108: 0 | F108: 1980.78 | H108: 1980.78 | I108: 0 | K108: 0 | L108: 0 | N108: 0 | O108: 0 | Q108: 0 | R108: 0 | S108: 0 | T108: 0 | U108: 0 | V108: 0 | W108: 0 | Z108: 0 | AA108: 0 | AB108: =IF(ISERROR(VLOOKUP(A108+8860000,'Growth Data'!A:F,6,0)),0,VLOOKUP(A108+8860000,'Growth Data'!A:F,6,0)) -> 0 | AC108: 0 | AD108: NO | AE108: =IF(ISERROR(VLOOKUP(A108+8860000,'Growth Data'!A:C,3,0)),"NO",VLOOKUP(A108+8860000,'Growth Data'!A:C,3,0)) -> NO | AF108: 0 | AG108: 0 | AH108: =IF(ISERROR(VLOOKUP(A108+8860000,'Growth Data'!A:G,7,0)),0,VLOOKUP(A108+8860000,'Growth Data'!A:G,7,0)) -> 0 | AI108: 0
A109: 3148 | B109: Christ Church CEP Academy, Folkestone | C109: 0 | D109: 0 | E109: 0 | F109: 0 | H109: 0 | I109: 0 | K109: 0 | L109: 0 | N109: 0 | O109: 0 | Q109: 0 | R109: 0 | S109: 0 | T109: 0 | U109: 0 | V109: 0 | W109: 0 | Z109: 0 | AA109: 0 | AB109: =IF(ISERROR(VLOOKUP(A109+8860000,'Growth Data'!A:F,6,0)),0,VLOOKUP(A109+8860000,'Growth Data'!A:F,6,0)) -> 0 | AC109: 0 | AD109: NO | AE109: =IF(ISERROR(VLOOKUP(A109+8860000,'Growth Data'!A:C,3,0)),"NO",VLOOKUP(A109+8860000,'Growth Data'!A:C,3,0)) -> NO | AF109: 0 | AG109: 0 | AH109: =IF(ISERROR(VLOOKUP(A109+8860000,'Growth Data'!A:G,7,0)),0,VLOOKUP(A109+8860000,'Growth Data'!A:G,7,0)) -> 0 | AI109: 0
A110: 3306 | B110: Brenchley & Matfield CEP School | C110: 0 | D110: 0 | E110: 0 | F110: 3152.63 | H110: 3152.63 | I110: 0 | K110: 0 | L110: 0 | N110: 0 | O110: 0 | Q110: 0 | R110: 0 | S110: 0 | T110: 0 | U110: 0 | V110: 0 | W110: 0 | Z110: 0 | AA110: 0 | AB110: =IF(ISERROR(VLOOKUP(A110+8860000,'Growth Data'!A:F,6,0)),0,VLOOKUP(A110+8860000,'Growth Data'!A:F,6,0)) -> 0 | AC110: 0 | AD110: NO | AE110: =IF(ISERROR(VLOOKUP(A110+8860000,'Growth Data'!A:C,3,0)),"NO",VLOOKUP(A110+8860000,'Growth Data'!A:C,3,0)) -> NO | AF110: 0 | AG110: 0 | AH110: =IF(ISERROR(VLOOKUP(A110+8860000,'Growth Data'!A:G,7,0)),0,VLOOKUP(A110+8860000,'Growth Data'!A:G,7,0)) -> 0 | AI110: 0
A111: 3348 | B111: St Eanswythe's CEP School | C111: 0 | D111: 0 | E111: 0 | F111: 0 | H111: 0 | I111: 0 | K111: 0 | L111: 0 | N111: 0 | O111: 0 | Q111: 0 | R111: 0 | S111: 0 | T111: 0 | U111: 0 | V111: 0 | W111: 0 | Z111: 0 | AA111: 0 | AB111: =IF(ISERROR(VLOOKUP(A111+8860000,'Growth Data'!A:F,6,0)),0,VLOOKUP(A111+8860000,'Growth Data'!A:F,6,0)) -> 0 | AC111: 0 | AD111: NO | AE111: =IF(ISERROR(VLOOKUP(A111+8860000,'Growth Data'!A:C,3,0)),"NO",VLOOKUP(A111+8860000,'Growth Data'!A:C,3,0)) -> NO | AF111: 0 | AG111: 0 | AH111: =IF(ISERROR(VLOOKUP(A111+8860000,'Growth Data'!A:G,7,0)),0,VLOOKUP(A111+8860000,'Growth Data'!A:G,7,0)) -> 0 | AI111: 0
A112: 3349 | B112: Folkestone St Mary's CEP Academy | C112: 5.11 | D112: 5.11 | E112: 0 | F112: 0 | H112: 0 | I112: 0 | K112: 0 | L112: 0 | N112: 0 | O112: 0 | Q112: 0 | R112: 0 | S112: 0 | T112: 0 | U112: 0 | V112: 0 | W112: 0 | Z112: 0 | AA112: 0 | AB112: =IF(ISERROR(VLOOKUP(A112+8860000,'Growth Data'!A:F,6,0)),0,VLOOKUP(A112+8860000,'Growth Data'!A:F,6,0)) -> 0 | AC112: 0 | AD112: NO | AE112: =IF(ISERROR(VLOOKUP(A112+8860000,'Growth Data'!A:C,3,0)),"NO",VLOOKUP(A112+8860000,'Growth Data'!A:C,3,0)) -> NO | AF112: 0 | AG112: 0 | AH112: =IF(ISERROR(VLOOKUP(A112+8860000,'Growth Data'!A:G,7,0)),0,VLOOKUP(A112+8860000,'Growth Data'!A:G,7,0)) -> 0 | AI112: 0
A113: 3372 | B113: St John's CEP School, Maidstone | C113: 0 | D113: 0 | E113: 0 | F113: 0 | H113: 0 | I113: 0 | K113: 0 | L113: 0 | N113: 0 | O113: 0 | Q113: 0 | R113: 0 | S113: 0 | T113: 0 | U113: 0 | V113: 0 | W113: 0 | Z113: 0 | AA113: 30 | AB113: =IF(ISERROR(VLOOKUP(A113+8860000,'Growth Data'!A:F,6,0)),0,VLOOKUP(A113+8860000,'Growth Data'!A:F,6,0)) -> 32 | AC113: -2 | AD113: YES | AE113: =IF(ISERROR(VLOOKUP(A113+8860000,'Growth Data'!A:C,3,0)),"NO",VLOOKUP(A113+8860000,'Growth Data'!A:C,3,0)) -> Yes | AF113: 0 | AG113: 60 | AH113: =IF(ISERROR(VLOOKUP(A113+8860000,'Growth Data'!A:G,7,0)),0,VLOOKUP(A113+8860000,'Growth Data'!A:G,7,0)) -> 60 | AI113: 0
A114: 3708 | B114: St John's Catholic Primary School, Gravesend | C114: 4.84 | D114: 4.84 | E114: 0 | F114: 0 | H114: 0 | I114: 0 | K114: 0 | L114: 0 | N114: 0 | O114: 0 | Q114: 0 | R114: 0 | S114: 0 | T114: 0 | U114: 0 | V114: 0 | W114: 0 | Z114: 0 | AA114: 0 | AB114: =IF(ISERROR(VLOOKUP(A114+8860000,'Growth Data'!A:F,6,0)),0,VLOOKUP(A114+8860000,'Growth Data'!A:F,6,0)) -> 0 | AC114: 0 | AD114: NO | AE114: =IF(ISERROR(VLOOKUP(A114+8860000,'Growth Data'!A:C,3,0)),"NO",VLOOKUP(A114+8860000,'Growth Data'!A:C,3,0)) -> No | AF114: 0 | AG114: 0 | AH114: =IF(ISERROR(VLOOKUP(A114+8860000,'Growth Data'!A:G,7,0)),0,VLOOKUP(A114+8860000,'Growth Data'!A:G,7,0)) -> 0 | AI114: 0
A115: 3714 | B115: St Peter's Catholic Primary School, Sittingbourne | C115: 0 | D115: 0 | E115: 0 | F115: 0 | H115: 0 | I115: 0 | K115: 0 | L115: 0 | N115: 0 | O115: 0 | Q115: 0 | R115: 0 | S115: 0 | T115: 0 | U115: 0 | V115: 0 | W115: 0 | Z115: 0 | AA115: 0 | AB115: =IF(ISERROR(VLOOKUP(A115+8860000,'Growth Data'!A:F,6,0)),0,VLOOKUP(A115+8860000,'Growth Data'!A:F,6,0)) -> 0 | AC115: 0 | AD115: NO | AE115: =IF(ISERROR(VLOOKUP(A115+8860000,'Growth Data'!A:C,3,0)),"NO",VLOOKUP(A115+8860000,'Growth Data'!A:C,3,0)) -> NO | AF115: 0 | AG115: 0 | AH115: =IF(ISERROR(VLOOKUP(A115+8860000,'Growth Data'!A:G,7,0)),0,VLOOKUP(A115+8860000,'Growth Data'!A:G,7,0)) -> 0 | AI115: 0
A116: 3715 | B116: St Mary's Catholic Primary School, Whitstable | C116: 0 | D116: 0 | E116: 0 | F116: 0 | H116: 0 | I116: 0 | K116: 0 | L116: 0 | N116: 0 | O116: 0 | Q116: 0 | R116: 0 | S116: 0 | T116: 0 | U116: 0 | V116: 0 | W116: 0 | Z116: 0 | AA116: 0 | AB116: =IF(ISERROR(VLOOKUP(A116+8860000,'Growth Data'!A:F,6,0)),0,VLOOKUP(A116+8860000,'Growth Data'!A:F,6,0)) -> 0 | AC116: 0 | AD116: NO | AE116: =IF(ISERROR(VLOOKUP(A116+8860000,'Growth Data'!A:C,3,0)),"NO",VLOOKUP(A116+8860000,'Growth Data'!A:C,3,0)) -> NO | AF116: 0 | AG116: 0 | AH116: =IF(ISERROR(VLOOKUP(A116+8860000,'Growth Data'!A:G,7,0)),0,VLOOKUP(A116+8860000,'Growth Data'!A:G,7,0)) -> 0 | AI116: 0
A117: 3719 | B117: St Joseph's Catholic Primary School, Aylesham | C117: 0 | D117: 0 | E117: 0 | F117: 536.11 | H117: 536.11 | I117: 0 | K117: 0 | L117: 0 | N117: 0 | O117: 0 | Q117: 0 | R117: 0 | S117: 0 | T117: 0 | U117: 0 | V117: 0 | W117: 0 | Z117: 0 | AA117: 0 | AB117: =IF(ISERROR(VLOOKUP(A117+8860000,'Growth Data'!A:F,6,0)),0,VLOOKUP(A117+8860000,'Growth Data'!A:F,6,0)) -> 0 | AC117: 0 | AD117: NO | AE117: =IF(ISERROR(VLOOKUP(A117+8860000,'Growth Data'!A:C,3,0)),"NO",VLOOKUP(A117+8860000,'Growth Data'!A:C,3,0)) -> NO | AF117: 0 | AG117: 0 | AH117: =IF(ISERROR(VLOOKUP(A117+8860000,'Growth Data'!A:G,7,0)),0,VLOOKUP(A117+8860000,'Growth Data'!A:G,7,0)) -> 0 | AI117: 0
A118: 3720 | B118: St Mary's Catholic School, Deal | C118: 0 | D118: 0 | E118: 0 | F118: 0 | H118: 0 | I118: 0 | K118: 0 | L118: 0 | N118: 0 | O118: 0 | Q118: 0 | R118: 0 | S118: 0 | T118: 0 | U118: 0 | V118: 0 | W118: 0 | Z118: 0 | AA118: 0 | AB118: =IF(ISERROR(VLOOKUP(A118+8860000,'Growth Data'!A:F,6,0)),0,VLOOKUP(A118+8860000,'Growth Data'!A:F,6,0)) -> 0 | AC118: 0 | AD118: NO | AE118: =IF(ISERROR(VLOOKUP(A118+8860000,'Growth Data'!A:C,3,0)),"NO",VLOOKUP(A118+8860000,'Growth Data'!A:C,3,0)) -> NO | AF118: 0 | AG118: 0 | AH118: =IF(ISERROR(VLOOKUP(A118+8860000,'Growth Data'!A:G,7,0)),0,VLOOKUP(A118+8860000,'Growth Data'!A:G,7,0)) -> 0 | AI118: 0
A119: 3740 | B119: St Richard's Catholic Primary School, Dover | C119: 0 | D119: 0 | E119: 0 | F119: 0 | H119: 0 | I119: 0 | K119: 0 | L119: 0 | N119: 0 | O119: 0 | Q119: 0 | R119: 0 | S119: 0 | T119: 0 | U119: 0 | V119: 0 | W119: 0 | Z119: 0 | AA119: 0 | AB119: =IF(ISERROR(VLOOKUP(A119+8860000,'Growth Data'!A:F,6,0)),0,VLOOKUP(A119+8860000,'Growth Data'!A:F,6,0)) -> 0 | AC119: 0 | AD119: NO | AE119: =IF(ISERROR(VLOOKUP(A119+8860000,'Growth Data'!A:C,3,0)),"NO",VLOOKUP(A119+8860000,'Growth Data'!A:C,3,0)) -> NO | AF119: 0 | AG119: 0 | AH119: =IF(ISERROR(VLOOKUP(A119+8860000,'Growth Data'!A:G,7,0)),0,VLOOKUP(A119+8860000,'Growth Data'!A:G,7,0)) -> 0 | AI119: 0
A120: 3743 | B120: St Simon of England RCP School, Ashford | C120: 0 | D120: 0 | E120: 0 | F120: 0 | H120: 0 | I120: 0 | K120: 0 | L120: 0 | N120: 0 | O120: 0 | Q120: 0 | R120: 0 | S120: 0 | T120: 0 | U120: 0 | V120: 0 | W120: 0 | Z120: 0 | AA120: 0 | AB120: =IF(ISERROR(VLOOKUP(A120+8860000,'Growth Data'!A:F,6,0)),0,VLOOKUP(A120+8860000,'Growth Data'!A:F,6,0)) -> 0 | AC120: 0 | AD120: NO | AE120: =IF(ISERROR(VLOOKUP(A120+8860000,'Growth Data'!A:C,3,0)),"NO",VLOOKUP(A120+8860000,'Growth Data'!A:C,3,0)) -> NO | AF120: 0 | AG120: 0 | AH120: =IF(ISERROR(VLOOKUP(A120+8860000,'Growth Data'!A:G,7,0)),0,VLOOKUP(A120+8860000,'Growth Data'!A:G,7,0)) -> 0 | AI120: 0
A121: 3744 | B121: St Margaret Clitherow Catholic Primary School | C121: 0 | D121: 0 | E121: 0 | F121: 0 | H121: 0 | I121: 0 | K121: 0 | L121: 0 | N121: 0 | O121: 0 | Q121: 0 | R121: 0 | S121: 0 | T121: 0 | U121: 0 | V121: 0 | W121: 0 | Z121: 0 | AA121: 0 | AB121: =IF(ISERROR(VLOOKUP(A121+8860000,'Growth Data'!A:F,6,0)),0,VLOOKUP(A121+8860000,'Growth Data'!A:F,6,0)) -> 0 | AC121: 0 | AD121: NO | AE121: =IF(ISERROR(VLOOKUP(A121+8860000,'Growth Data'!A:C,3,0)),"NO",VLOOKUP(A121+8860000,'Growth Data'!A:C,3,0)) -> NO | AF121: 0 | AG121: 0 | AH121: =IF(ISERROR(VLOOKUP(A121+8860000,'Growth Data'!A:G,7,0)),0,VLOOKUP(A121+8860000,'Growth Data'!A:G,7,0)) -> 0 | AI121: 0
A122: 3745 | B122: More Park RCP School | C122: 0 | D122: 0 | E122: 0 | F122: 0 | H122: 0 | I122: 0 | K122: 0 | L122: 0 | N122: 0 | O122: 0 | Q122: 0 | R122: 0 | S122: 0 | T122: 0 | U122: 0 | V122: 0 | W122: 0 | Z122: 0 | AA122: 0 | AB122: =IF(ISERROR(VLOOKUP(A122+8860000,'Growth Data'!A:F,6,0)),0,VLOOKUP(A122+8860000,'Growth Data'!A:F,6,0)) -> 0 | AC122: 0 | AD122: NO | AE122: =IF(ISERROR(VLOOKUP(A122+8860000,'Growth Data'!A:C,3,0)),"NO",VLOOKUP(A122+8860000,'Growth Data'!A:C,3,0)) -> NO | AF122: 0 | AG122: 0 | AH122: =IF(ISERROR(VLOOKUP(A122+8860000,'Growth Data'!A:G,7,0)),0,VLOOKUP(A122+8860000,'Growth Data'!A:G,7,0)) -> 0 | AI122: 0
A123: 3751 | B123: St Thomas' Catholic Primary School, Sevenoaks | C123: 0 | D123: 0 | E123: 0 | F123: 1283.73 | H123: 1283.73 | I123: 0 | K123: 0 | L123: 0 | N123: 0 | O123: 0 | Q123: 0 | R123: 0 | S123: 0 | T123: 0 | U123: 0 | V123: 0 | W123: 0 | Z123: 0 | AA123: 0 | AB123: =IF(ISERROR(VLOOKUP(A123+8860000,'Growth Data'!A:F,6,0)),0,VLOOKUP(A123+8860000,'Growth Data'!A:F,6,0)) -> 0 | AC123: 0 | AD123: NO | AE123: =IF(ISERROR(VLOOKUP(A123+8860000,'Growth Data'!A:C,3,0)),"NO",VLOOKUP(A123+8860000,'Growth Data'!A:C,3,0)) -> NO | AF123: 0 | AG123: 0 | AH123: =IF(ISERROR(VLOOKUP(A123+8860000,'Growth Data'!A:G,7,0)),0,VLOOKUP(A123+8860000,'Growth Data'!A:G,7,0)) -> 0 | AI123: 0
A124: 3889 | B124: St Gregory's Catholic Primary School, Margate | C124: 4.84 | D124: 4.84 | E124: 0 | F124: 0 | H124: 0 | I124: 0 | K124: 0 | L124: 0 | N124: 0 | O124: 0 | Q124: 0 | R124: 0 | S124: 0 | T124: 0 | U124: 0 | V124: 0 | W124: 0 | Z124: 0 | AA124: 0 | AB124: =IF(ISERROR(VLOOKUP(A124+8860000,'Growth Data'!A:F,6,0)),0,VLOOKUP(A124+8860000,'Growth Data'!A:F,6,0)) -> 0 | AC124: 0 | AD124: NO | AE124: =IF(ISERROR(VLOOKUP(A124+8860000,'Growth Data'!A:C,3,0)),"NO",VLOOKUP(A124+8860000,'Growth Data'!A:C,3,0)) -> NO | AF124: 0 | AG124: 0 | AH124: =IF(ISERROR(VLOOKUP(A124+8860000,'Growth Data'!A:G,7,0)),0,VLOOKUP(A124+8860000,'Growth Data'!A:G,7,0)) -> 0 | AI124: 0
A125: 3890 | B125: St Joseph's Catholic Primary School, Broadstairs | C125: 0 | D125: 0 | E125: 0 | F125: 0 | H125: 0 | I125: 0 | K125: 0 | L125: 0 | N125: 0 | O125: 0 | Q125: 0 | R125: 0 | S125: 0 | T125: 0 | U125: 0 | V125: 0 | W125: 0 | Z125: 0 | AA125: 0 | AB125: =IF(ISERROR(VLOOKUP(A125+8860000,'Growth Data'!A:F,6,0)),0,VLOOKUP(A125+8860000,'Growth Data'!A:F,6,0)) -> 0 | AC125: 0 | AD125: NO | AE125: =IF(ISERROR(VLOOKUP(A125+8860000,'Growth Data'!A:C,3,0)),"NO",VLOOKUP(A125+8860000,'Growth Data'!A:C,3,0)) -> NO | AF125: 0 | AG125: 0 | AH125: =IF(ISERROR(VLOOKUP(A125+8860000,'Growth Data'!A:G,7,0)),0,VLOOKUP(A125+8860000,'Growth Data'!A:G,7,0)) -> 0 | AI125: 0
A126: 3900 | B126: Whitehill Primary School | C126: 5.11 | D126: 5.11 | E126: 0 | F126: 0 | H126: 0 | I126: 0 | K126: 0 | L126: 0 | N126: 0 | O126: 0 | Q126: 0 | R126: 0 | S126: 0 | T126: 0 | U126: 0 | V126: 0 | W126: 0 | Z126: 0 | AA126: 0 | AB126: =IF(ISERROR(VLOOKUP(A126+8860000,'Growth Data'!A:F,6,0)),0,VLOOKUP(A126+8860000,'Growth Data'!A:F,6,0)) -> 0 | AC126: 0 | AD126: NO | AE126: =IF(ISERROR(VLOOKUP(A126+8860000,'Growth Data'!A:C,3,0)),"NO",VLOOKUP(A126+8860000,'Growth Data'!A:C,3,0)) -> NO | AF126: 0 | AG126: 0 | AH126: =IF(ISERROR(VLOOKUP(A126+8860000,'Growth Data'!A:G,7,0)),0,VLOOKUP(A126+8860000,'Growth Data'!A:G,7,0)) -> 0 | AI126: 0
A127: 3912 | B127: Westlands Primary School, The | C127: 0 | D127: 0 | E127: 0 | F127: 0 | H127: 0 | I127: 0 | K127: 0 | L127: 0 | N127: 0 | O127: 0 | Q127: 0 | R127: 0 | S127: 0 | T127: 0 | U127: 0 | V127: 0 | W127: 0 | Z127: 0 | AA127: 60 | AB127: =IF(ISERROR(VLOOKUP(A127+8860000,'Growth Data'!A:F,6,0)),0,VLOOKUP(A127+8860000,'Growth Data'!A:F,6,0)) -> 60 | AC127: 0 | AD127: YES | AE127: =IF(ISERROR(VLOOKUP(A127+8860000,'Growth Data'!A:C,3,0)),"NO",VLOOKUP(A127+8860000,'Growth Data'!A:C,3,0)) -> Yes | AF127: 0 | AG127: 90 | AH127: =IF(ISERROR(VLOOKUP(A127+8860000,'Growth Data'!A:G,7,0)),0,VLOOKUP(A127+8860000,'Growth Data'!A:G,7,0)) -> 90 | AI127: 0
A128: 3914 | B128: Oakfield Primary Academy | C128: 4.81 | D128: 4.81 | E128: 0 | F128: 0 | H128: 0 | I128: 0 | K128: 0 | L128: 0 | N128: 0 | O128: 0 | Q128: 0 | R128: 0 | S128: 0 | T128: 0 | U128: 0 | V128: 0 | W128: 0 | Z128: 0 | AA128: 0 | AB128: =IF(ISERROR(VLOOKUP(A128+8860000,'Growth Data'!A:F,6,0)),0,VLOOKUP(A128+8860000,'Growth Data'!A:F,6,0)) -> 0 | AC128: 0 | AD128: NO | AE128: =IF(ISERROR(VLOOKUP(A128+8860000,'Growth Data'!A:C,3,0)),"NO",VLOOKUP(A128+8860000,'Growth Data'!A:C,3,0)) -> NO | AF128: 0 | AG128: 0 | AH128: =IF(ISERROR(VLOOKUP(A128+8860000,'Growth Data'!A:G,7,0)),0,VLOOKUP(A128+8860000,'Growth Data'!A:G,7,0)) -> 0 | AI128: 0
A129: 3915 | B129: Manor Community Primary School | C129: 4.99 | D129: 4.99 | E129: 0 | F129: 0 | H129: 0 | I129: 0 | K129: 0 | L129: 0 | N129: 0 | O129: 0 | Q129: 0 | R129: 0 | S129: 0 | T129: 0 | U129: 0 | V129: 0 | W129: 0 | Z129: 0 | AA129: 0 | AB129: =IF(ISERROR(VLOOKUP(A129+8860000,'Growth Data'!A:F,6,0)),0,VLOOKUP(A129+8860000,'Growth Data'!A:F,6,0)) -> 0 | AC129: 0 | AD129: NO | AE129: =IF(ISERROR(VLOOKUP(A129+8860000,'Growth Data'!A:C,3,0)),"NO",VLOOKUP(A129+8860000,'Growth Data'!A:C,3,0)) -> NO | AF129: 0 | AG129: 0 | AH129: =IF(ISERROR(VLOOKUP(A129+8860000,'Growth Data'!A:G,7,0)),0,VLOOKUP(A129+8860000,'Growth Data'!A:G,7,0)) -> 0 | AI129: 0
A130: 4000 | B130: St Augustine Academy | C130: 0 | D130: 0 | E130: =C130-D130 -> 0 | F130: 0 | H130: 0 | I130: 0 | K130: 0 | L130: 0 | N130: =ROUND(L130-M130,2) -> 0 | O130: 0 | Q130: =ROUND(O130-P130,2) -> 0 | R130: 0 | S130: 0 | T130: =ROUND(R130-S130,2) -> 0 | U130: 0 | V130: 0 | W130: =ROUND(U130-V130,2) -> 0 | Z130: =X130-Y130 -> 0 | AA130: 0 | AB130: =IF(ISERROR(VLOOKUP(A130+8860000,'Growth Data'!A:F,6,0)),0,VLOOKUP(A130+8860000,'Growth Data'!A:F,6,0)) -> 0 | AC130: 0 | AD130: NO | AE130: =IF(ISERROR(VLOOKUP(A130+8860000,'Growth Data'!A:C,3,0)),"NO",VLOOKUP(A130+8860000,'Growth Data'!A:C,3,0)) -> NO | AF130: =IF(AD130=AE130,0,1) -> 0 | AG130: 0 | AH130: =IF(ISERROR(VLOOKUP(A130+8860000,'Growth Data'!A:G,7,0)),0,VLOOKUP(A130+8860000,'Growth Data'!A:G,7,0)) -> 0 | AI130: 0
A131: 4001 | B131: Ebbsfleet Academy, The | C131: 0 | D131: 0 | E131: 0 | F131: 0 | H131: =ROUND(F131-G131,2) -> 0 | I131: 0 | K131: =ROUND(I131-J131,2) -> 0 | L131: 0 | N131: 0 | O131: 0 | Q131: 0 | R131: 0 | S131: 0 | T131: 0 | U131: 0 | V131: 0 | W131: 0 | Z131: 0 | AA131: 0 | AB131: =IF(ISERROR(VLOOKUP(A131+8860000,'Growth Data'!A:F,6,0)),0,VLOOKUP(A131+8860000,'Growth Data'!A:F,6,0)) -> 0 | AC131: =IF(AD131="YES",AA131-AB131,0) -> 0 | AD131: NO | AE131: =IF(ISERROR(VLOOKUP(A131+8860000,'Growth Data'!A:C,3,0)),"NO",VLOOKUP(A131+8860000,'Growth Data'!A:C,3,0)) -> NO | AF131: 0 | AG131: 0 | AH131: =IF(ISERROR(VLOOKUP(A131+8860000,'Growth Data'!A:G,7,0)),0,VLOOKUP(A131+8860000,'Growth Data'!A:G,7,0)) -> 0 | AI131: =IF(AG131=AH131,0,1) -> 0
A132: 4002 | B132: Sittingbourne Community College | C132: 0 | D132: 0 | E132: 0 | F132: 0 | H132: 0 | I132: 0 | K132: 0 | L132: 0 | N132: 0 | O132: 0 | Q132: 0 | R132: 0 | S132: 0 | T132: 0 | U132: 0 | V132: 0 | W132: 0 | Z132: 0 | AA132: 0 | AB132: =IF(ISERROR(VLOOKUP(A132+8860000,'Growth Data'!A:F,6,0)),0,VLOOKUP(A132+8860000,'Growth Data'!A:F,6,0)) -> 0 | AC132: 0 | AD132: NO | AE132: =IF(ISERROR(VLOOKUP(A132+8860000,'Growth Data'!A:C,3,0)),"NO",VLOOKUP(A132+8860000,'Growth Data'!A:C,3,0)) -> No | AF132: 0 | AG132: 0 | AH132: =IF(ISERROR(VLOOKUP(A132+8860000,'Growth Data'!A:G,7,0)),0,VLOOKUP(A132+8860000,'Growth Data'!A:G,7,0)) -> 0 | AI132: 0
A133: 4003 | B133: High Weald Academy, The | C133: 0 | D133: 0 | E133: 0 | F133: 0 | H133: 0 | I133: 0 | K133: 0 | L133: 0 | N133: 0 | O133: 0 | Q133: 0 | R133: 0 | S133: 0 | T133: 0 | U133: 0 | V133: 0 | W133: 0 | Z133: 0 | AA133: 0 | AB133: =IF(ISERROR(VLOOKUP(A133+8860000,'Growth Data'!A:F,6,0)),0,VLOOKUP(A133+8860000,'Growth Data'!A:F,6,0)) -> 0 | AC133: 0 | AD133: NO | AE133: =IF(ISERROR(VLOOKUP(A133+8860000,'Growth Data'!A:C,3,0)),"NO",VLOOKUP(A133+8860000,'Growth Data'!A:C,3,0)) -> NO | AF133: 0 | AG133: 0 | AH133: =IF(ISERROR(VLOOKUP(A133+8860000,'Growth Data'!A:G,7,0)),0,VLOOKUP(A133+8860000,'Growth Data'!A:G,7,0)) -> 0 | AI133: 0
A134: 4004 | B134: Meopham School | C134: 0 | D134: 0 | E134: 0 | F134: 0 | H134: 0 | I134: 0 | K134: 0 | L134: 0 | N134: 0 | O134: 0 | Q134: 0 | R134: 0 | S134: 0 | T134: 0 | U134: 0 | V134: 0 | W134: 0 | Z134: 0 | AA134: 0 | AB134: =IF(ISERROR(VLOOKUP(A134+8860000,'Growth Data'!A:F,6,0)),0,VLOOKUP(A134+8860000,'Growth Data'!A:F,6,0)) -> 0 | AC134: 0 | AD134: NO | AE134: =IF(ISERROR(VLOOKUP(A134+8860000,'Growth Data'!A:C,3,0)),"NO",VLOOKUP(A134+8860000,'Growth Data'!A:C,3,0)) -> NO | AF134: 0 | AG134: 0 | AH134: =IF(ISERROR(VLOOKUP(A134+8860000,'Growth Data'!A:G,7,0)),0,VLOOKUP(A134+8860000,'Growth Data'!A:G,7,0)) -> 0 | AI134: 0
A135: 4006 | B135: Trinity School | C135: 0 | D135: 0 | E135: 0 | F135: 0 | H135: 0 | I135: 0 | K135: 0 | L135: 0 | N135: 0 | O135: 0 | Q135: 0 | R135: 0 | S135: 0 | T135: 0 | U135: 0 | V135: 0 | W135: 0 | Z135: 0 | AA135: 0 | AB135: =IF(ISERROR(VLOOKUP(A135+8860000,'Growth Data'!A:F,6,0)),0,VLOOKUP(A135+8860000,'Growth Data'!A:F,6,0)) -> 0 | AC135: 0 | AD135: NO | AE135: =IF(ISERROR(VLOOKUP(A135+8860000,'Growth Data'!A:C,3,0)),"NO",VLOOKUP(A135+8860000,'Growth Data'!A:C,3,0)) -> NO | AF135: 0 | AG135: 0 | AH135: =IF(ISERROR(VLOOKUP(A135+8860000,'Growth Data'!A:G,7,0)),0,VLOOKUP(A135+8860000,'Growth Data'!A:G,7,0)) -> 0 | AI135: 0
A136: 4007 | B136: Wye School | C136: 0 | D136: 0 | E136: 0 | F136: 0 | H136: 0 | I136: 0 | K136: 0 | L136: 0 | N136: 0 | O136: 0 | Q136: 0 | R136: 0 | S136: 0 | T136: 0 | U136: 0 | V136: 0 | W136: 0 | Z136: 0 | AA136: 0 | AB136: =IF(ISERROR(VLOOKUP(A136+8860000,'Growth Data'!A:F,6,0)),0,VLOOKUP(A136+8860000,'Growth Data'!A:F,6,0)) -> 0 | AC136: 0 | AD136: NO | AE136: =IF(ISERROR(VLOOKUP(A136+8860000,'Growth Data'!A:C,3,0)),"NO",VLOOKUP(A136+8860000,'Growth Data'!A:C,3,0)) -> NO | AF136: 0 | AG136: 0 | AH136: =IF(ISERROR(VLOOKUP(A136+8860000,'Growth Data'!A:G,7,0)),0,VLOOKUP(A136+8860000,'Growth Data'!A:G,7,0)) -> 0 | AI136: 0
A137: 4009 | B137: Hadlow Rural Community School | C137: 0 | D137: 0 | E137: 0 | F137: 0 | H137: 0 | I137: 0 | K137: 0 | L137: 0 | N137: 0 | O137: 0 | Q137: 0 | R137: 0 | S137: 327.3640994 | T137: -327.36 | U137: 0 | V137: 286.6181275 | W137: -286.62 | Z137: 0 | AA137: 0 | AB137: =IF(ISERROR(VLOOKUP(A137+8860000,'Growth Data'!A:F,6,0)),0,VLOOKUP(A137+8860000,'Growth Data'!A:F,6,0)) -> 0 | AC137: 0 | AD137: NO | AE137: =IF(ISERROR(VLOOKUP(A137+8860000,'Growth Data'!A:C,3,0)),"NO",VLOOKUP(A137+8860000,'Growth Data'!A:C,3,0)) -> NO | AF137: 0 | AG137: 0 | AH137: =IF(ISERROR(VLOOKUP(A137+8860000,'Growth Data'!A:G,7,0)),0,VLOOKUP(A137+8860000,'Growth Data'!A:G,7,0)) -> 0 | AI137: 0
A138: 4012 | B138: Leigh UTC, The | C138: 0 | D138: 0 | E138: 0 | F138: 326.15 | H138: 326.15 | I138: 0 | K138: 0 | L138: 0 | N138: 0 | O138: 0 | Q138: 0 | R138: 0 | S138: 0 | T138: 0 | U138: 0 | V138: 0 | W138: 0 | Z138: 0 | AA138: 0 | AB138: =IF(ISERROR(VLOOKUP(A138+8860000,'Growth Data'!A:F,6,0)),0,VLOOKUP(A138+8860000,'Growth Data'!A:F,6,0)) -> 0 | AC138: 0 | AD138: NO | AE138: =IF(ISERROR(VLOOKUP(A138+8860000,'Growth Data'!A:C,3,0)),"NO",VLOOKUP(A138+8860000,'Growth Data'!A:C,3,0)) -> NO | AF138: 0 | AG138: 0 | AH138: =IF(ISERROR(VLOOKUP(A138+8860000,'Growth Data'!A:G,7,0)),0,VLOOKUP(A138+8860000,'Growth Data'!A:G,7,0)) -> 0 | AI138: 0
A139: 4013 | B139: St Edmund's Catholic School | C139: 0 | D139: 0 | E139: 0 | F139: 0 | H139: 0 | I139: 0 | K139: 0 | L139: 0 | N139: 0 | O139: 0 | Q139: 0 | R139: 0 | S139: 0 | T139: 0 | U139: 0 | V139: 0 | W139: 0 | Z139: 0 | AA139: 0 | AB139: =IF(ISERROR(VLOOKUP(A139+8860000,'Growth Data'!A:F,6,0)),0,VLOOKUP(A139+8860000,'Growth Data'!A:F,6,0)) -> 0 | AC139: 0 | AD139: NO | AE139: =IF(ISERROR(VLOOKUP(A139+8860000,'Growth Data'!A:C,3,0)),"NO",VLOOKUP(A139+8860000,'Growth Data'!A:C,3,0)) -> NO | AF139: 0 | AG139: 0 | AH139: =IF(ISERROR(VLOOKUP(A139+8860000,'Growth Data'!A:G,7,0)),0,VLOOKUP(A139+8860000,'Growth Data'!A:G,7,0)) -> 0 | AI139: 0
A140: 4031 | B140: Orchards Academy | C140: 0 | D140: 0 | E140: 0 | F140: 0 | H140: 0 | I140: 0 | K140: 0 | L140: 0 | N140: 0 | O140: 0 | Q140: 0 | R140: 0 | S140: 0 | T140: 0 | U140: 0 | V140: 0 | W140: 0 | Z140: 0 | AA140: 0 | AB140: =IF(ISERROR(VLOOKUP(A140+8860000,'Growth Data'!A:F,6,0)),0,VLOOKUP(A140+8860000,'Growth Data'!A:F,6,0)) -> 0 | AC140: 0 | AD140: NO | AE140: =IF(ISERROR(VLOOKUP(A140+8860000,'Growth Data'!A:C,3,0)),"NO",VLOOKUP(A140+8860000,'Growth Data'!A:C,3,0)) -> NO | AF140: 0 | AG140: 0 | AH140: =IF(ISERROR(VLOOKUP(A140+8860000,'Growth Data'!A:G,7,0)),0,VLOOKUP(A140+8860000,'Growth Data'!A:G,7,0)) -> 0 | AI140: 0
A141: 4046 | B141: Weald of Kent Grammar School | C141: 0 | D141: 0 | E141: 0 | F141: 1512.72 | H141: 1512.72 | I141: 0 | K141: 0 | L141: 0 | N141: 0 | O141: 0 | Q141: 0 | R141: 0 | S141: 0 | T141: 0 | U141: 0 | V141: 0 | W141: 0 | Z141: 0 | AA141: 0 | AB141: =IF(ISERROR(VLOOKUP(A141+8860000,'Growth Data'!A:F,6,0)),0,VLOOKUP(A141+8860000,'Growth Data'!A:F,6,0)) -> 0 | AC141: 0 | AD141: NO | AE141: =IF(ISERROR(VLOOKUP(A141+8860000,'Growth Data'!A:C,3,0)),"NO",VLOOKUP(A141+8860000,'Growth Data'!A:C,3,0)) -> No | AF141: 0 | AG141: 0 | AH141: =IF(ISERROR(VLOOKUP(A141+8860000,'Growth Data'!A:G,7,0)),0,VLOOKUP(A141+8860000,'Growth Data'!A:G,7,0)) -> 0 | AI141: 0
A142: 4058 | B142: Invicta Grammar School | C142: 0 | D142: 0 | E142: 0 | F142: 0 | H142: 0 | I142: 0 | K142: 0 | L142: 0 | N142: 0 | O142: 0 | Q142: 0 | R142: 0 | S142: 0 | T142: 0 | U142: 0 | V142: 0 | W142: 0 | Z142: 0 | AA142: 0 | AB142: =IF(ISERROR(VLOOKUP(A142+8860000,'Growth Data'!A:F,6,0)),0,VLOOKUP(A142+8860000,'Growth Data'!A:F,6,0)) -> 0 | AC142: 0 | AD142: NO | AE142: =IF(ISERROR(VLOOKUP(A142+8860000,'Growth Data'!A:C,3,0)),"NO",VLOOKUP(A142+8860000,'Growth Data'!A:C,3,0)) -> NO | AF142: 0 | AG142: 0 | AH142: =IF(ISERROR(VLOOKUP(A142+8860000,'Growth Data'!A:G,7,0)),0,VLOOKUP(A142+8860000,'Growth Data'!A:G,7,0)) -> 0 | AI142: 0
A143: 4080 | B143: Highsted Grammar School | C143: 0 | D143: 0 | E143: 0 | F143: 0 | H143: 0 | I143: 0 | K143: 0 | L143: 0 | N143: 0 | O143: 0 | Q143: 0 | R143: 0 | S143: 0 | T143: 0 | U143: 0 | V143: 0 | W143: 0 | Z143: 0 | AA143: 0 | AB143: =IF(ISERROR(VLOOKUP(A143+8860000,'Growth Data'!A:F,6,0)),0,VLOOKUP(A143+8860000,'Growth Data'!A:F,6,0)) -> 0 | AC143: 0 | AD143: NO | AE143: =IF(ISERROR(VLOOKUP(A143+8860000,'Growth Data'!A:C,3,0)),"NO",VLOOKUP(A143+8860000,'Growth Data'!A:C,3,0)) -> NO | AF143: 0 | AG143: 0 | AH143: =IF(ISERROR(VLOOKUP(A143+8860000,'Growth Data'!A:G,7,0)),0,VLOOKUP(A143+8860000,'Growth Data'!A:G,7,0)) -> 0 | AI143: 0
A144: 4092 | B144: Highworth Grammar School | C144: 0 | D144: 0 | E144: 0 | F144: 0 | H144: 0 | I144: 0 | K144: 0 | L144: 0 | N144: 0 | O144: 0 | Q144: 0 | R144: 0 | S144: 0 | T144: 0 | U144: 0 | V144: 0 | W144: 0 | Z144: 0 | AA144: 0 | AB144: =IF(ISERROR(VLOOKUP(A144+8860000,'Growth Data'!A:F,6,0)),0,VLOOKUP(A144+8860000,'Growth Data'!A:F,6,0)) -> 0 | AC144: 0 | AD144: NO | AE144: =IF(ISERROR(VLOOKUP(A144+8860000,'Growth Data'!A:C,3,0)),"NO",VLOOKUP(A144+8860000,'Growth Data'!A:C,3,0)) -> NO | AF144: 0 | AG144: 0 | AH144: =IF(ISERROR(VLOOKUP(A144+8860000,'Growth Data'!A:G,7,0)),0,VLOOKUP(A144+8860000,'Growth Data'!A:G,7,0)) -> 0 | AI144: 0
A145: 4101 | B145: Harvey Grammar School, The | C145: 0 | D145: 0 | E145: 0 | F145: 0 | H145: 0 | I145: 0 | K145: 0 | L145: 0 | N145: 0 | O145: 0 | Q145: 0 | R145: 0 | S145: 0 | T145: 0 | U145: 0 | V145: 0 | W145: 0 | Z145: 0 | AA145: 0 | AB145: =IF(ISERROR(VLOOKUP(A145+8860000,'Growth Data'!A:F,6,0)),0,VLOOKUP(A145+8860000,'Growth Data'!A:F,6,0)) -> 0 | AC145: 0 | AD145: NO | AE145: =IF(ISERROR(VLOOKUP(A145+8860000,'Growth Data'!A:C,3,0)),"NO",VLOOKUP(A145+8860000,'Growth Data'!A:C,3,0)) -> NO | AF145: 0 | AG145: 0 | AH145: =IF(ISERROR(VLOOKUP(A145+8860000,'Growth Data'!A:G,7,0)),0,VLOOKUP(A145+8860000,'Growth Data'!A:G,7,0)) -> 0 | AI145: 0
A146: 4113 | B146: Astor College | C146: 0 | D146: 0 | E146: 0 | F146: 0 | H146: 0 | I146: 0 | K146: 0 | L146: 0 | N146: 0 | O146: 0 | Q146: 0 | R146: 0 | S146: 0 | T146: 0 | U146: 0 | V146: 0 | W146: 0 | Z146: 0 | AA146: 0 | AB146: =IF(ISERROR(VLOOKUP(A146+8860000,'Growth Data'!A:F,6,0)),0,VLOOKUP(A146+8860000,'Growth Data'!A:F,6,0)) -> 0 | AC146: 0 | AD146: NO | AE146: =IF(ISERROR(VLOOKUP(A146+8860000,'Growth Data'!A:C,3,0)),"NO",VLOOKUP(A146+8860000,'Growth Data'!A:C,3,0)) -> NO | AF146: 0 | AG146: 0 | AH146: =IF(ISERROR(VLOOKUP(A146+8860000,'Growth Data'!A:G,7,0)),0,VLOOKUP(A146+8860000,'Growth Data'!A:G,7,0)) -> 0 | AI146: 0
A147: 4120 | B147: King Ethelbert School | C147: 0 | D147: 0 | E147: 0 | F147: 0 | H147: 0 | I147: 0 | K147: 0 | L147: 0 | N147: 0 | O147: 0 | Q147: 0 | R147: 0 | S147: 0 | T147: 0 | U147: 0 | V147: 0 | W147: 0 | Z147: 0 | AA147: 0 | AB147: =IF(ISERROR(VLOOKUP(A147+8860000,'Growth Data'!A:F,6,0)),0,VLOOKUP(A147+8860000,'Growth Data'!A:F,6,0)) -> 0 | AC147: 0 | AD147: NO | AE147: =IF(ISERROR(VLOOKUP(A147+8860000,'Growth Data'!A:C,3,0)),"NO",VLOOKUP(A147+8860000,'Growth Data'!A:C,3,0)) -> NO | AF147: 0 | AG147: 0 | AH147: =IF(ISERROR(VLOOKUP(A147+8860000,'Growth Data'!A:G,7,0)),0,VLOOKUP(A147+8860000,'Growth Data'!A:G,7,0)) -> 0 | AI147: 0
A148: 4172 | B148: Hartsdown Academy | C148: 0 | D148: 0 | E148: 0 | F148: 0 | H148: 0 | I148: 0 | K148: 0 | L148: 0 | N148: 0 | O148: 0 | Q148: 0 | R148: 0 | S148: 0 | T148: 0 | U148: 0 | V148: 0 | W148: 0 | Z148: 0 | AA148: 0 | AB148: =IF(ISERROR(VLOOKUP(A148+8860000,'Growth Data'!A:F,6,0)),0,VLOOKUP(A148+8860000,'Growth Data'!A:F,6,0)) -> 0 | AC148: 0 | AD148: NO | AE148: =IF(ISERROR(VLOOKUP(A148+8860000,'Growth Data'!A:C,3,0)),"NO",VLOOKUP(A148+8860000,'Growth Data'!A:C,3,0)) -> NO | AF148: 0 | AG148: 0 | AH148: =IF(ISERROR(VLOOKUP(A148+8860000,'Growth Data'!A:G,7,0)),0,VLOOKUP(A148+8860000,'Growth Data'!A:G,7,0)) -> 0 | AI148: 0
A149: 4196 | B149: Towers School and Sixth Form Centre, The | C149: 0 | D149: 0 | E149: 0 | F149: 0 | H149: 0 | I149: 0 | K149: 0 | L149: 0 | N149: 0 | O149: 0 | Q149: 0 | R149: 0 | S149: 0 | T149: 0 | U149: 0 | V149: 0 | W149: 0 | Z149: 0 | AA149: 0 | AB149: =IF(ISERROR(VLOOKUP(A149+8860000,'Growth Data'!A:F,6,0)),0,VLOOKUP(A149+8860000,'Growth Data'!A:F,6,0)) -> 0 | AC149: 0 | AD149: NO | AE149: =IF(ISERROR(VLOOKUP(A149+8860000,'Growth Data'!A:C,3,0)),"NO",VLOOKUP(A149+8860000,'Growth Data'!A:C,3,0)) -> NO | AF149: 0 | AG149: 0 | AH149: =IF(ISERROR(VLOOKUP(A149+8860000,'Growth Data'!A:G,7,0)),0,VLOOKUP(A149+8860000,'Growth Data'!A:G,7,0)) -> 0 | AI149: 0
A150: 4207 | B150: Goodwin Academy | C150: 0 | D150: 0 | E150: 0 | F150: 0 | H150: 0 | I150: 0 | K150: 0 | L150: 0 | N150: 0 | O150: 0 | Q150: 0 | R150: 0 | S150: 0 | T150: 0 | U150: 0 | V150: 0 | W150: 0 | Z150: 0 | AA150: 0 | AB150: =IF(ISERROR(VLOOKUP(A150+8860000,'Growth Data'!A:F,6,0)),0,VLOOKUP(A150+8860000,'Growth Data'!A:F,6,0)) -> 0 | AC150: 0 | AD150: NO | AE150: =IF(ISERROR(VLOOKUP(A150+8860000,'Growth Data'!A:C,3,0)),"NO",VLOOKUP(A150+8860000,'Growth Data'!A:C,3,0)) -> NO | AF150: 0 | AG150: 0 | AH150: =IF(ISERROR(VLOOKUP(A150+8860000,'Growth Data'!A:G,7,0)),0,VLOOKUP(A150+8860000,'Growth Data'!A:G,7,0)) -> 0 | AI150: 0
A151: 4242 | B151: Abbey School | C151: 0 | D151: 0 | E151: 0 | F151: 0 | H151: 0 | I151: 0 | K151: 0 | L151: 0 | N151: 0 | O151: 0 | Q151: 0 | R151: 0 | S151: 0 | T151: 0 | U151: 0 | V151: 0 | W151: 0 | Z151: 0 | AA151: 0 | AB151: =IF(ISERROR(VLOOKUP(A151+8860000,'Growth Data'!A:F,6,0)),0,VLOOKUP(A151+8860000,'Growth Data'!A:F,6,0)) -> 0 | AC151: 0 | AD151: NO | AE151: =IF(ISERROR(VLOOKUP(A151+8860000,'Growth Data'!A:C,3,0)),"NO",VLOOKUP(A151+8860000,'Growth Data'!A:C,3,0)) -> NO | AF151: 0 | AG151: 0 | AH151: =IF(ISERROR(VLOOKUP(A151+8860000,'Growth Data'!A:G,7,0)),0,VLOOKUP(A151+8860000,'Growth Data'!A:G,7,0)) -> 0 | AI151: 0
A152: 4249 | B152: Valley Park School | C152: 0 | D152: 0 | E152: 0 | F152: 0 | H152: 0 | I152: 0 | K152: 0 | L152: 0 | N152: 0 | O152: 0 | Q152: 0 | R152: 0 | S152: 0 | T152: 0 | U152: 0 | V152: 0 | W152: 0 | Z152: 0 | AA152: 0 | AB152: =IF(ISERROR(VLOOKUP(A152+8860000,'Growth Data'!A:F,6,0)),0,VLOOKUP(A152+8860000,'Growth Data'!A:F,6,0)) -> 0 | AC152: 0 | AD152: NO | AE152: =IF(ISERROR(VLOOKUP(A152+8860000,'Growth Data'!A:C,3,0)),"NO",VLOOKUP(A152+8860000,'Growth Data'!A:C,3,0)) -> NO | AF152: 0 | AG152: 0 | AH152: =IF(ISERROR(VLOOKUP(A152+8860000,'Growth Data'!A:G,7,0)),0,VLOOKUP(A152+8860000,'Growth Data'!A:G,7,0)) -> 0 | AI152: 0
A153: 4527 | B153: Borden Grammar School | C153: 0 | D153: 0 | E153: 0 | F153: 0 | H153: 0 | I153: 0 | K153: 0 | L153: 0 | N153: 0 | O153: 0 | Q153: 0 | R153: 0 | S153: 0 | T153: 0 | U153: 0 | V153: 0 | W153: 0 | Z153: 0 | AA153: 0 | AB153: =IF(ISERROR(VLOOKUP(A153+8860000,'Growth Data'!A:F,6,0)),0,VLOOKUP(A153+8860000,'Growth Data'!A:F,6,0)) -> 0 | AC153: 0 | AD153: NO | AE153: =IF(ISERROR(VLOOKUP(A153+8860000,'Growth Data'!A:C,3,0)),"NO",VLOOKUP(A153+8860000,'Growth Data'!A:C,3,0)) -> NO | AF153: 0 | AG153: 0 | AH153: =IF(ISERROR(VLOOKUP(A153+8860000,'Growth Data'!A:G,7,0)),0,VLOOKUP(A153+8860000,'Growth Data'!A:G,7,0)) -> 0 | AI153: 0
A154: 4528 | B154: Norton Knatchbull School, The | C154: 0 | D154: 0 | E154: 0 | F154: 0 | H154: 0 | I154: 0 | K154: 0 | L154: 0 | N154: 0 | O154: 0 | Q154: 0 | R154: 0 | S154: 0 | T154: 0 | U154: 0 | V154: 0 | W154: 0 | Z154: 0 | AA154: 0 | AB154: =IF(ISERROR(VLOOKUP(A154+8860000,'Growth Data'!A:F,6,0)),0,VLOOKUP(A154+8860000,'Growth Data'!A:F,6,0)) -> 0 | AC154: 0 | AD154: NO | AE154: =IF(ISERROR(VLOOKUP(A154+8860000,'Growth Data'!A:C,3,0)),"NO",VLOOKUP(A154+8860000,'Growth Data'!A:C,3,0)) -> NO | AF154: 0 | AG154: 0 | AH154: =IF(ISERROR(VLOOKUP(A154+8860000,'Growth Data'!A:G,7,0)),0,VLOOKUP(A154+8860000,'Growth Data'!A:G,7,0)) -> 0 | AI154: 0
A155: 4633 | B155: Ursuline College | C155: 0 | D155: 0 | E155: 0 | F155: 0 | H155: 0 | I155: 0 | K155: 0 | L155: 0 | N155: 0 | O155: 0 | Q155: 0 | R155: 0 | S155: 0 | T155: 0 | U155: 0 | V155: 0 | W155: 0 | Z155: 0 | AA155: 0 | AB155: =IF(ISERROR(VLOOKUP(A155+8860000,'Growth Data'!A:F,6,0)),0,VLOOKUP(A155+8860000,'Growth Data'!A:F,6,0)) -> 0 | AC155: 0 | AD155: NO | AE155: =IF(ISERROR(VLOOKUP(A155+8860000,'Growth Data'!A:C,3,0)),"NO",VLOOKUP(A155+8860000,'Growth Data'!A:C,3,0)) -> No | AF155: 0 | AG155: 0 | AH155: =IF(ISERROR(VLOOKUP(A155+8860000,'Growth Data'!A:G,7,0)),0,VLOOKUP(A155+8860000,'Growth Data'!A:G,7,0)) -> 0 | AI155: 0
A156: 5209 | B156: Allington Primary School | C156: 0 | D156: 0 | E156: 0 | F156: 1061.75 | H156: 1061.75 | I156: 0 | K156: 0 | L156: 0 | N156: 0 | O156: 0 | Q156: 0 | R156: 0 | S156: 0 | T156: 0 | U156: 0 | V156: 0 | W156: 0 | Z156: 0 | AA156: 0 | AB156: =IF(ISERROR(VLOOKUP(A156+8860000,'Growth Data'!A:F,6,0)),0,VLOOKUP(A156+8860000,'Growth Data'!A:F,6,0)) -> 0 | AC156: 0 | AD156: NO | AE156: =IF(ISERROR(VLOOKUP(A156+8860000,'Growth Data'!A:C,3,0)),"NO",VLOOKUP(A156+8860000,'Growth Data'!A:C,3,0)) -> NO | AF156: 0 | AG156: 0 | AH156: =IF(ISERROR(VLOOKUP(A156+8860000,'Growth Data'!A:G,7,0)),0,VLOOKUP(A156+8860000,'Growth Data'!A:G,7,0)) -> 0 | AI156: 0
A157: 5210 | B157: St Botolph's CEP School | C157: 0 | D157: 0 | E157: 0 | F157: 0 | H157: 0 | I157: 0 | K157: 0 | L157: 0 | N157: 0 | O157: 0 | Q157: 0 | R157: 0 | S157: 0 | T157: 0 | U157: 0 | V157: 0 | W157: 0 | Z157: 0 | AA157: 30 | AB157: =IF(ISERROR(VLOOKUP(A157+8860000,'Growth Data'!A:F,6,0)),0,VLOOKUP(A157+8860000,'Growth Data'!A:F,6,0)) -> 31 | AC157: -1 | AD157: YES | AE157: =IF(ISERROR(VLOOKUP(A157+8860000,'Growth Data'!A:C,3,0)),"NO",VLOOKUP(A157+8860000,'Growth Data'!A:C,3,0)) -> Yes | AF157: 0 | AG157: 60 | AH157: =IF(ISERROR(VLOOKUP(A157+8860000,'Growth Data'!A:G,7,0)),0,VLOOKUP(A157+8860000,'Growth Data'!A:G,7,0)) -> 60 | AI157: 0
A158: 5216 | B158: Stella Maris Catholic Primary School | C158: 0 | D158: 0 | E158: 0 | F158: 0 | H158: 0 | I158: 0 | K158: 0 | L158: 0 | N158: 0 | O158: 0 | Q158: 0 | R158: 0 | S158: 0 | T158: 0 | U158: 0 | V158: 0 | W158: 0 | Z158: 0 | AA158: 0 | AB158: =IF(ISERROR(VLOOKUP(A158+8860000,'Growth Data'!A:F,6,0)),0,VLOOKUP(A158+8860000,'Growth Data'!A:F,6,0)) -> 0 | AC158: 0 | AD158: NO | AE158: =IF(ISERROR(VLOOKUP(A158+8860000,'Growth Data'!A:C,3,0)),"NO",VLOOKUP(A158+8860000,'Growth Data'!A:C,3,0)) -> NO | AF158: 0 | AG158: 0 | AH158: =IF(ISERROR(VLOOKUP(A158+8860000,'Growth Data'!A:G,7,0)),0,VLOOKUP(A158+8860000,'Growth Data'!A:G,7,0)) -> 0 | AI158: 0
A159: 5217 | B159: Our Lady of Hartley Catholic Primary School | C159: 0 | D159: 0 | E159: 0 | F159: 1689.89 | H159: 1689.89 | I159: 0 | K159: 0 | L159: 0 | N159: 0 | O159: 0 | Q159: 0 | R159: 0 | S159: 0 | T159: 0 | U159: 0 | V159: 0 | W159: 0 | Z159: 0 | AA159: 0 | AB159: =IF(ISERROR(VLOOKUP(A159+8860000,'Growth Data'!A:F,6,0)),0,VLOOKUP(A159+8860000,'Growth Data'!A:F,6,0)) -> 0 | AC159: 0 | AD159: NO | AE159: =IF(ISERROR(VLOOKUP(A159+8860000,'Growth Data'!A:C,3,0)),"NO",VLOOKUP(A159+8860000,'Growth Data'!A:C,3,0)) -> NO | AF159: 0 | AG159: 0 | AH159: =IF(ISERROR(VLOOKUP(A159+8860000,'Growth Data'!A:G,7,0)),0,VLOOKUP(A159+8860000,'Growth Data'!A:G,7,0)) -> 0 | AI159: 0
A160: 5219 | B160: Wilmington Primary School | C160: 0 | D160: 0 | E160: 0 | F160: 1230.93 | H160: 1230.93 | I160: 0 | K160: 0 | L160: 0 | N160: 0 | O160: 0 | Q160: 0 | R160: 0 | S160: 0 | T160: 0 | U160: 0 | V160: 0 | W160: 0 | Z160: 0 | AA160: 0 | AB160: =IF(ISERROR(VLOOKUP(A160+8860000,'Growth Data'!A:F,6,0)),0,VLOOKUP(A160+8860000,'Growth Data'!A:F,6,0)) -> 0 | AC160: 0 | AD160: NO | AE160: =IF(ISERROR(VLOOKUP(A160+8860000,'Growth Data'!A:C,3,0)),"NO",VLOOKUP(A160+8860000,'Growth Data'!A:C,3,0)) -> NO | AF160: 0 | AG160: 0 | AH160: =IF(ISERROR(VLOOKUP(A160+8860000,'Growth Data'!A:G,7,0)),0,VLOOKUP(A160+8860000,'Growth Data'!A:G,7,0)) -> 0 | AI160: 0
A161: 5220 | B161: Halfway Houses Primary School | C161: 0 | D161: 0 | E161: 0 | F161: 0 | H161: 0 | I161: 0 | K161: 0 | L161: 0 | N161: 0 | O161: 0 | Q161: 0 | R161: 0 | S161: 0 | T161: 0 | U161: 0 | V161: 0 | W161: 0 | Z161: 0 | AA161: 61 | AB161: =IF(ISERROR(VLOOKUP(A161+8860000,'Growth Data'!A:F,6,0)),0,VLOOKUP(A161+8860000,'Growth Data'!A:F,6,0)) -> 60 | AC161: 1 | AD161: YES | AE161: =IF(ISERROR(VLOOKUP(A161+8860000,'Growth Data'!A:C,3,0)),"NO",VLOOKUP(A161+8860000,'Growth Data'!A:C,3,0)) -> Yes | AF161: 0 | AG161: 90 | AH161: =IF(ISERROR(VLOOKUP(A161+8860000,'Growth Data'!A:G,7,0)),0,VLOOKUP(A161+8860000,'Growth Data'!A:G,7,0)) -> 90 | AI161: 0
A162: 5222 | B162: St Joseph's Catholic Primary School, Northfleet | C162: 0 | D162: 0 | E162: =C162-D162 -> 0 | F162: 0 | H162: 0 | I162: 0 | K162: 0 | L162: 0 | N162: =ROUND(L162-M162,2) -> 0 | O162: 0 | Q162: =ROUND(O162-P162,2) -> 0 | R162: 0 | S162: 0 | T162: =ROUND(R162-S162,2) -> 0 | U162: 0 | V162: 0 | W162: =ROUND(U162-V162,2) -> 0 | Z162: =X162-Y162 -> 0 | AA162: 0 | AB162: =IF(ISERROR(VLOOKUP(A162+8860000,'Growth Data'!A:F,6,0)),0,VLOOKUP(A162+8860000,'Growth Data'!A:F,6,0)) -> 0 | AC162: 0 | AD162: NO | AE162: =IF(ISERROR(VLOOKUP(A162+8860000,'Growth Data'!A:C,3,0)),"NO",VLOOKUP(A162+8860000,'Growth Data'!A:C,3,0)) -> NO | AF162: =IF(AD162=AE162,0,1) -> 0 | AG162: 0 | AH162: =IF(ISERROR(VLOOKUP(A162+8860000,'Growth Data'!A:G,7,0)),0,VLOOKUP(A162+8860000,'Growth Data'!A:G,7,0)) -> 0 | AI162: 0
A163: 5228 | B163: St George's Church of England Primary School | C163: 0 | D163: 0 | E163: 0 | F163: 0 | H163: 0 | I163: 0 | K163: 0 | L163: 0 | N163: 0 | O163: 0 | Q163: 0 | R163: 0 | S163: 0 | T163: 0 | U163: 0 | V163: 0 | W163: 0 | Z163: 0 | AA163: 0 | AB163: =IF(ISERROR(VLOOKUP(A163+8860000,'Growth Data'!A:F,6,0)),0,VLOOKUP(A163+8860000,'Growth Data'!A:F,6,0)) -> 0 | AC163: 0 | AD163: NO | AE163: =IF(ISERROR(VLOOKUP(A163+8860000,'Growth Data'!A:C,3,0)),"NO",VLOOKUP(A163+8860000,'Growth Data'!A:C,3,0)) -> NO | AF163: 0 | AG163: 0 | AH163: =IF(ISERROR(VLOOKUP(A163+8860000,'Growth Data'!A:G,7,0)),0,VLOOKUP(A163+8860000,'Growth Data'!A:G,7,0)) -> 0 | AI163: 0
A164: 5400 | B164: Wilmington Grammar School for Girls | C164: 0 | D164: 0 | E164: 0 | F164: 0 | H164: 0 | I164: 0 | K164: 0 | L164: 0 | N164: 0 | O164: 0 | Q164: 0 | R164: 0 | S164: 0 | T164: 0 | U164: 0 | V164: 0 | W164: 0 | Z164: 0 | AA164: 0 | AB164: =IF(ISERROR(VLOOKUP(A164+8860000,'Growth Data'!A:F,6,0)),0,VLOOKUP(A164+8860000,'Growth Data'!A:F,6,0)) -> 120 | AC164: 0 | AD164: NO | AE164: =IF(ISERROR(VLOOKUP(A164+8860000,'Growth Data'!A:C,3,0)),"NO",VLOOKUP(A164+8860000,'Growth Data'!A:C,3,0)) -> Yes | AF164: 1 | AG164: 0 | AH164: =IF(ISERROR(VLOOKUP(A164+8860000,'Growth Data'!A:G,7,0)),0,VLOOKUP(A164+8860000,'Growth Data'!A:G,7,0)) -> 150 | AI164: 1
A165: 5401 | B165: Maplesden Noakes School, The | C165: 0 | D165: 0 | E165: 0 | F165: 0 | H165: 0 | I165: 0 | K165: 0 | L165: 0 | N165: 0 | O165: 0 | Q165: 0 | R165: 0 | S165: 0 | T165: 0 | U165: 0 | V165: 0 | W165: 0 | Z165: 0 | AA165: 0 | AB165: =IF(ISERROR(VLOOKUP(A165+8860000,'Growth Data'!A:F,6,0)),0,VLOOKUP(A165+8860000,'Growth Data'!A:F,6,0)) -> 0 | AC165: 0 | AD165: NO | AE165: =IF(ISERROR(VLOOKUP(A165+8860000,'Growth Data'!A:C,3,0)),"NO",VLOOKUP(A165+8860000,'Growth Data'!A:C,3,0)) -> NO | AF165: 0 | AG165: 0 | AH165: =IF(ISERROR(VLOOKUP(A165+8860000,'Growth Data'!A:G,7,0)),0,VLOOKUP(A165+8860000,'Growth Data'!A:G,7,0)) -> 0 | AI165: 0
A166: 5403 | B166: Wilmington Grammar School for Boys | C166: 0 | D166: 0 | E166: 0 | F166: 0 | H166: 0 | I166: 0 | K166: 0 | L166: 0 | N166: 0 | O166: 0 | Q166: 0 | R166: 0 | S166: 0 | T166: 0 | U166: 0 | V166: 0 | W166: 0 | Z166: 0 | AA166: 0 | AB166: =IF(ISERROR(VLOOKUP(A166+8860000,'Growth Data'!A:F,6,0)),0,VLOOKUP(A166+8860000,'Growth Data'!A:F,6,0)) -> 134 | AC166: 0 | AD166: NO | AE166: =IF(ISERROR(VLOOKUP(A166+8860000,'Growth Data'!A:C,3,0)),"NO",VLOOKUP(A166+8860000,'Growth Data'!A:C,3,0)) -> Yes | AF166: 1 | AG166: 0 | AH166: =IF(ISERROR(VLOOKUP(A166+8860000,'Growth Data'!A:G,7,0)),0,VLOOKUP(A166+8860000,'Growth Data'!A:G,7,0)) -> 150 | AI166: 1
A167: 5404 | B167: Saint George's CE School | C167: 0 | D167: 0 | E167: 0 | F167: 0 | H167: 0 | I167: 0 | K167: 0 | L167: 0 | N167: 0 | O167: 0 | Q167: 0 | R167: 0 | S167: 0 | T167: 0 | U167: 0 | V167: 0 | W167: 0 | Z167: 0 | AA167: 0 | AB167: =IF(ISERROR(VLOOKUP(A167+8860000,'Growth Data'!A:F,6,0)),0,VLOOKUP(A167+8860000,'Growth Data'!A:F,6,0)) -> 0 | AC167: 0 | AD167: NO | AE167: =IF(ISERROR(VLOOKUP(A167+8860000,'Growth Data'!A:C,3,0)),"NO",VLOOKUP(A167+8860000,'Growth Data'!A:C,3,0)) -> NO | AF167: 0 | AG167: 0 | AH167: =IF(ISERROR(VLOOKUP(A167+8860000,'Growth Data'!A:G,7,0)),0,VLOOKUP(A167+8860000,'Growth Data'!A:G,7,0)) -> 0 | AI167: 0
A168: 5406 | B168: Dartford Grammar School | C168: 0 | D168: 0 | E168: 0 | F168: 0 | H168: 0 | I168: 0 | K168: 0 | L168: 0 | N168: 0 | O168: 0 | Q168: 0 | R168: 0 | S168: 0 | T168: 0 | U168: 0 | V168: 0 | W168: 0 | Z168: 0 | AA168: 0 | AB168: =IF(ISERROR(VLOOKUP(A168+8860000,'Growth Data'!A:F,6,0)),0,VLOOKUP(A168+8860000,'Growth Data'!A:F,6,0)) -> 0 | AC168: 0 | AD168: NO | AE168: =IF(ISERROR(VLOOKUP(A168+8860000,'Growth Data'!A:C,3,0)),"NO",VLOOKUP(A168+8860000,'Growth Data'!A:C,3,0)) -> NO | AF168: 0 | AG168: 0 | AH168: =IF(ISERROR(VLOOKUP(A168+8860000,'Growth Data'!A:G,7,0)),0,VLOOKUP(A168+8860000,'Growth Data'!A:G,7,0)) -> 0 | AI168: 0
A169: 5408 | B169: Homewood School and Sixth Form Centre | C169: 0 | D169: 0 | E169: 0 | F169: 0 | H169: 0 | I169: 0 | K169: 0 | L169: 0 | N169: 0 | O169: 0 | Q169: 0 | R169: 0 | S169: 0 | T169: 0 | U169: 0 | V169: 0 | W169: 0 | Z169: 0 | AA169: 0 | AB169: =IF(ISERROR(VLOOKUP(A169+8860000,'Growth Data'!A:F,6,0)),0,VLOOKUP(A169+8860000,'Growth Data'!A:F,6,0)) -> 0 | AC169: 0 | AD169: NO | AE169: =IF(ISERROR(VLOOKUP(A169+8860000,'Growth Data'!A:C,3,0)),"NO",VLOOKUP(A169+8860000,'Growth Data'!A:C,3,0)) -> NO | AF169: 0 | AG169: 0 | AH169: =IF(ISERROR(VLOOKUP(A169+8860000,'Growth Data'!A:G,7,0)),0,VLOOKUP(A169+8860000,'Growth Data'!A:G,7,0)) -> 0 | AI169: 0
A170: 5409 | B170: Wrotham School | C170: 0 | D170: 0 | E170: =C170-D170 -> 0 | F170: 0 | H170: =ROUND(F170-G170,2) -> 0 | I170: 0 | K170: =ROUND(I170-J170,2) -> 0 | L170: 0 | N170: =ROUND(L170-M170,2) -> 0 | O170: 0 | Q170: =ROUND(O170-P170,2) -> 0 | R170: 0 | S170: 0 | T170: =ROUND(R170-S170,2) -> 0 | U170: 0 | V170: 0 | W170: =ROUND(U170-V170,2) -> 0 | Z170: =X170-Y170 -> 0 | AA170: 0 | AB170: =IF(ISERROR(VLOOKUP(A170+8860000,'Growth Data'!A:F,6,0)),0,VLOOKUP(A170+8860000,'Growth Data'!A:F,6,0)) -> 0 | AC170: =IF(AD170="YES",AA170-AB170,0) -> 0 | AD170: NO | AE170: =IF(ISERROR(VLOOKUP(A170+8860000,'Growth Data'!A:C,3,0)),"NO",VLOOKUP(A170+8860000,'Growth Data'!A:C,3,0)) -> NO | AF170: =IF(AD170=AE170,0,1) -> 0 | AG170: 0 | AH170: =IF(ISERROR(VLOOKUP(A170+8860000,'Growth Data'!A:G,7,0)),0,VLOOKUP(A170+8860000,'Growth Data'!A:G,7,0)) -> 0 | AI170: 0
A171: 5414 | B171: Fulston Manor School | C171: 0 | D171: 0 | E171: 0 | F171: 0 | H171: 0 | I171: 0 | K171: 0 | L171: 0 | N171: 0 | O171: 0 | Q171: 0 | R171: 0 | T171: 0 | U171: 0 | W171: 0 | Z171: 0 | AA171: 0 | AB171: =IF(ISERROR(VLOOKUP(A171+8860000,'Growth Data'!A:F,6,0)),0,VLOOKUP(A171+8860000,'Growth Data'!A:F,6,0)) -> 0 | AC171: 0 | AD171: NO | AE171: =IF(ISERROR(VLOOKUP(A171+8860000,'Growth Data'!A:C,3,0)),"NO",VLOOKUP(A171+8860000,'Growth Data'!A:C,3,0)) -> NO | AF171: 0 | AG171: 0 | AH171: =IF(ISERROR(VLOOKUP(A171+8860000,'Growth Data'!A:G,7,0)),0,VLOOKUP(A171+8860000,'Growth Data'!A:G,7,0)) -> 0 | AI171: 0
A172: 5416 | B172: Cranbrook School | C172: 0 | D172: 0 | E172: 0 | F172: 0 | H172: 0 | I172: 0 | K172: 0 | L172: 0 | N172: 0 | O172: 0 | Q172: 0 | R172: 0 | T172: 0 | U172: 0 | W172: 0 | Z172: 0 | AA172: 0 | AB172: =IF(ISERROR(VLOOKUP(A172+8860000,'Growth Data'!A:F,6,0)),0,VLOOKUP(A172+8860000,'Growth Data'!A:F,6,0)) -> 0 | AC172: 0 | AD172: NO | AE172: =IF(ISERROR(VLOOKUP(A172+8860000,'Growth Data'!A:C,3,0)),"NO",VLOOKUP(A172+8860000,'Growth Data'!A:C,3,0)) -> NO | AF172: 0 | AG172: 0 | AH172: =IF(ISERROR(VLOOKUP(A172+8860000,'Growth Data'!A:G,7,0)),0,VLOOKUP(A172+8860000,'Growth Data'!A:G,7,0)) -> 0 | AI172: 0
A173: 5418 | B173: Skinners' School, The | C173: 0 | D173: 0 | E173: 0 | F173: 0 | H173: 0 | I173: 0 | K173: 0 | L173: 0 | N173: 0 | O173: 0 | Q173: 0 | R173: 0 | T173: 0 | U173: 0 | W173: 0 | Z173: 0 | AA173: 0 | AB173: =IF(ISERROR(VLOOKUP(A173+8860000,'Growth Data'!A:F,6,0)),0,VLOOKUP(A173+8860000,'Growth Data'!A:F,6,0)) -> 0 | AC173: 0 | AD173: NO | AE173: =IF(ISERROR(VLOOKUP(A173+8860000,'Growth Data'!A:C,3,0)),"NO",VLOOKUP(A173+8860000,'Growth Data'!A:C,3,0)) -> NO | AF173: 0 | AG173: 0 | AH173: =IF(ISERROR(VLOOKUP(A173+8860000,'Growth Data'!A:G,7,0)),0,VLOOKUP(A173+8860000,'Growth Data'!A:G,7,0)) -> 0 | AI173: 0
A174: 5421 | B174: Canterbury Academy, The | C174: 0 | D174: 0 | E174: 0 | F174: 0 | H174: 0 | I174: 0 | K174: 0 | L174: 0 | N174: 0 | O174: 0 | Q174: 0 | R174: 0 | T174: 0 | U174: 0 | W174: 0 | Z174: 0 | AA174: 0 | AB174: =IF(ISERROR(VLOOKUP(A174+8860000,'Growth Data'!A:F,6,0)),0,VLOOKUP(A174+8860000,'Growth Data'!A:F,6,0)) -> 0 | AC174: 0 | AD174: NO | AE174: =IF(ISERROR(VLOOKUP(A174+8860000,'Growth Data'!A:C,3,0)),"NO",VLOOKUP(A174+8860000,'Growth Data'!A:C,3,0)) -> No | AF174: 0 | AG174: 0 | AH174: =IF(ISERROR(VLOOKUP(A174+8860000,'Growth Data'!A:G,7,0)),0,VLOOKUP(A174+8860000,'Growth Data'!A:G,7,0)) -> 0 | AI174: 0
A175: 5422 | B175: Oakwood Park Grammar School, Maidstone | C175: 0 | D175: 0 | E175: 0 | F175: 0 | H175: 0 | I175: 0 | K175: 0 | L175: 0 | N175: 0 | O175: 0 | Q175: 0 | R175: 0 | T175: 0 | U175: 0 | W175: 0 | Z175: 0 | AA175: 0 | AB175: =IF(ISERROR(VLOOKUP(A175+8860000,'Growth Data'!A:F,6,0)),0,VLOOKUP(A175+8860000,'Growth Data'!A:F,6,0)) -> 0 | AC175: 0 | AD175: NO | AE175: =IF(ISERROR(VLOOKUP(A175+8860000,'Growth Data'!A:C,3,0)),"NO",VLOOKUP(A175+8860000,'Growth Data'!A:C,3,0)) -> NO | AF175: 0 | AG175: 0 | AH175: =IF(ISERROR(VLOOKUP(A175+8860000,'Growth Data'!A:G,7,0)),0,VLOOKUP(A175+8860000,'Growth Data'!A:G,7,0)) -> 0 | AI175: 0
A176: 5428 | B176: Sir Roger Manwood's School | C176: 0 | D176: 0 | E176: 0 | F176: 0 | H176: 0 | I176: 0 | K176: 0 | L176: 0 | N176: 0 | O176: 0 | Q176: 0 | R176: 0 | T176: 0 | U176: 0 | W176: 0 | Z176: 0 | AA176: 0 | AB176: =IF(ISERROR(VLOOKUP(A176+8860000,'Growth Data'!A:F,6,0)),0,VLOOKUP(A176+8860000,'Growth Data'!A:F,6,0)) -> 0 | AC176: 0 | AD176: NO | AE176: =IF(ISERROR(VLOOKUP(A176+8860000,'Growth Data'!A:C,3,0)),"NO",VLOOKUP(A176+8860000,'Growth Data'!A:C,3,0)) -> NO | AF176: 0 | AG176: 0 | AH176: =IF(ISERROR(VLOOKUP(A176+8860000,'Growth Data'!A:G,7,0)),0,VLOOKUP(A176+8860000,'Growth Data'!A:G,7,0)) -> 0 | AI176: 0
A177: 5432 | B177: St Simon Stock Catholic School, Maidstone | C177: 0 | D177: 0 | E177: 0 | F177: 0 | H177: 0 | I177: 0 | K177: 0 | L177: 0 | N177: 0 | O177: 0 | Q177: 0 | R177: 0 | T177: 0 | U177: 0 | W177: 0 | Z177: 0 | AA177: 0 | AB177: =IF(ISERROR(VLOOKUP(A177+8860000,'Growth Data'!A:F,6,0)),0,VLOOKUP(A177+8860000,'Growth Data'!A:F,6,0)) -> 0 | AC177: 0 | AD177: NO | AE177: =IF(ISERROR(VLOOKUP(A177+8860000,'Growth Data'!A:C,3,0)),"NO",VLOOKUP(A177+8860000,'Growth Data'!A:C,3,0)) -> NO | AF177: 0 | AG177: 0 | AH177: =IF(ISERROR(VLOOKUP(A177+8860000,'Growth Data'!A:G,7,0)),0,VLOOKUP(A177+8860000,'Growth Data'!A:G,7,0)) -> 0 | AI177: 0
A178: 5434 | B178: Westlands School, The | C178: 0 | D178: 0 | E178: 0 | F178: 0 | H178: 0 | I178: 0 | K178: 0 | L178: 0 | N178: 0 | O178: 0 | Q178: 0 | R178: 0 | T178: 0 | U178: 0 | W178: 0 | Z178: 0 | AA178: 0 | AB178: =IF(ISERROR(VLOOKUP(A178+8860000,'Growth Data'!A:F,6,0)),0,VLOOKUP(A178+8860000,'Growth Data'!A:F,6,0)) -> 0 | AC178: 0 | AD178: NO | AE178: =IF(ISERROR(VLOOKUP(A178+8860000,'Growth Data'!A:C,3,0)),"NO",VLOOKUP(A178+8860000,'Growth Data'!A:C,3,0)) -> NO | AF178: 0 | AG178: 0 | AH178: =IF(ISERROR(VLOOKUP(A178+8860000,'Growth Data'!A:G,7,0)),0,VLOOKUP(A178+8860000,'Growth Data'!A:G,7,0)) -> 0 | AI178: 0
A179: 5435 | B179: St Gregory's Catholic School | C179: 0 | D179: 0 | E179: 0 | F179: 0 | H179: 0 | I179: 0 | K179: 0 | L179: 0 | N179: 0 | O179: 0 | Q179: 0 | R179: 0 | T179: 0 | U179: 0 | W179: 0 | Z179: 0 | AA179: 0 | AB179: =IF(ISERROR(VLOOKUP(A179+8860000,'Growth Data'!A:F,6,0)),0,VLOOKUP(A179+8860000,'Growth Data'!A:F,6,0)) -> 0 | AC179: 0 | AD179: NO | AE179: =IF(ISERROR(VLOOKUP(A179+8860000,'Growth Data'!A:C,3,0)),"NO",VLOOKUP(A179+8860000,'Growth Data'!A:C,3,0)) -> NO | AF179: 0 | AG179: 0 | AH179: =IF(ISERROR(VLOOKUP(A179+8860000,'Growth Data'!A:G,7,0)),0,VLOOKUP(A179+8860000,'Growth Data'!A:G,7,0)) -> 0 | AI179: 0
A180: 5437 | B180: Folkestone School for Girls, The | C180: 0 | D180: 0 | E180: 0 | F180: 0 | H180: 0 | I180: 0 | K180: 0 | L180: 0 | N180: 0 | O180: 0 | Q180: 0 | R180: 0 | T180: 0 | U180: 0 | W180: 0 | Z180: 0 | AA180: 0 | AB180: =IF(ISERROR(VLOOKUP(A180+8860000,'Growth Data'!A:F,6,0)),0,VLOOKUP(A180+8860000,'Growth Data'!A:F,6,0)) -> 0 | AC180: 0 | AD180: NO | AE180: =IF(ISERROR(VLOOKUP(A180+8860000,'Growth Data'!A:C,3,0)),"NO",VLOOKUP(A180+8860000,'Growth Data'!A:C,3,0)) -> NO | AF180: 0 | AG180: 0 | AH180: =IF(ISERROR(VLOOKUP(A180+8860000,'Growth Data'!A:G,7,0)),0,VLOOKUP(A180+8860000,'Growth Data'!A:G,7,0)) -> 0 | AI180: 0
A181: 5439 | B181: Mascalls Academy | C181: 0 | D181: 0 | E181: 0 | F181: 0 | H181: 0 | I181: 0 | K181: 0 | L181: 0 | N181: 0 | O181: 0 | Q181: 0 | R181: 0 | T181: 0 | U181: 0 | W181: 0 | Z181: 0 | AA181: 0 | AB181: =IF(ISERROR(VLOOKUP(A181+8860000,'Growth Data'!A:F,6,0)),0,VLOOKUP(A181+8860000,'Growth Data'!A:F,6,0)) -> 0 | AC181: 0 | AD181: NO | AE181: =IF(ISERROR(VLOOKUP(A181+8860000,'Growth Data'!A:C,3,0)),"NO",VLOOKUP(A181+8860000,'Growth Data'!A:C,3,0)) -> NO | AF181: 0 | AG181: 0 | AH181: =IF(ISERROR(VLOOKUP(A181+8860000,'Growth Data'!A:G,7,0)),0,VLOOKUP(A181+8860000,'Growth Data'!A:G,7,0)) -> 0 | AI181: 0
A182: 5443 | B182: Tonbridge Grammar School | C182: 0 | D182: 0 | E182: 0 | F182: 2881.38 | H182: 2881.38 | I182: 0 | K182: 0 | L182: 0 | N182: 0 | O182: 0 | Q182: 0 | R182: 0 | T182: 0 | U182: 0 | W182: 0 | Z182: 0 | AA182: 0 | AB182: =IF(ISERROR(VLOOKUP(A182+8860000,'Growth Data'!A:F,6,0)),0,VLOOKUP(A182+8860000,'Growth Data'!A:F,6,0)) -> 0 | AC182: 0 | AD182: NO | AE182: =IF(ISERROR(VLOOKUP(A182+8860000,'Growth Data'!A:C,3,0)),"NO",VLOOKUP(A182+8860000,'Growth Data'!A:C,3,0)) -> NO | AF182: 0 | AG182: 0 | AH182: =IF(ISERROR(VLOOKUP(A182+8860000,'Growth Data'!A:G,7,0)),0,VLOOKUP(A182+8860000,'Growth Data'!A:G,7,0)) -> 0 | AI182: 0
A183: 5444 | B183: Barton Court Grammar School | C183: 0 | D183: 0 | E183: 0 | F183: 0 | H183: 0 | I183: 0 | K183: 0 | L183: 0 | N183: 0 | O183: 0 | Q183: 0 | R183: 0 | T183: 0 | U183: 0 | W183: 0 | Z183: 0 | AA183: 0 | AB183: =IF(ISERROR(VLOOKUP(A183+8860000,'Growth Data'!A:F,6,0)),0,VLOOKUP(A183+8860000,'Growth Data'!A:F,6,0)) -> 0 | AC183: 0 | AD183: NO | AE183: =IF(ISERROR(VLOOKUP(A183+8860000,'Growth Data'!A:C,3,0)),"NO",VLOOKUP(A183+8860000,'Growth Data'!A:C,3,0)) -> NO | AF183: 0 | AG183: 0 | AH183: =IF(ISERROR(VLOOKUP(A183+8860000,'Growth Data'!A:G,7,0)),0,VLOOKUP(A183+8860000,'Growth Data'!A:G,7,0)) -> 0 | AI183: 0
A184: 5446 | B184: St Anselm's Catholic School, Canterbury | C184: 0 | D184: 0 | E184: 0 | F184: 0 | H184: 0 | I184: 0 | K184: 0 | L184: 0 | N184: 0 | O184: 0 | Q184: 0 | R184: 0 | T184: 0 | U184: 0 | W184: 0 | Z184: 0 | AA184: 0 | AB184: =IF(ISERROR(VLOOKUP(A184+8860000,'Growth Data'!A:F,6,0)),0,VLOOKUP(A184+8860000,'Growth Data'!A:F,6,0)) -> 0 | AC184: 0 | AD184: NO | AE184: =IF(ISERROR(VLOOKUP(A184+8860000,'Growth Data'!A:C,3,0)),"NO",VLOOKUP(A184+8860000,'Growth Data'!A:C,3,0)) -> NO | AF184: 0 | AG184: 0 | AH184: =IF(ISERROR(VLOOKUP(A184+8860000,'Growth Data'!A:G,7,0)),0,VLOOKUP(A184+8860000,'Growth Data'!A:G,7,0)) -> 0 | AI184: 0
A185: 5448 | B185: Herne Bay High School | C185: 0 | D185: 0 | E185: 0 | F185: 0 | H185: 0 | I185: 0 | K185: 0 | L185: 0 | N185: 0 | O185: 0 | Q185: 0 | R185: 0 | T185: 0 | U185: 0 | W185: 0 | Z185: 0 | AA185: 0 | AB185: =IF(ISERROR(VLOOKUP(A185+8860000,'Growth Data'!A:F,6,0)),0,VLOOKUP(A185+8860000,'Growth Data'!A:F,6,0)) -> 0 | AC185: 0 | AD185: NO | AE185: =IF(ISERROR(VLOOKUP(A185+8860000,'Growth Data'!A:C,3,0)),"NO",VLOOKUP(A185+8860000,'Growth Data'!A:C,3,0)) -> NO | AF185: 0 | AG185: 0 | AH185: =IF(ISERROR(VLOOKUP(A185+8860000,'Growth Data'!A:G,7,0)),0,VLOOKUP(A185+8860000,'Growth Data'!A:G,7,0)) -> 0 | AI185: 0
A186: 5449 | B186: Queen Elizabeth's Grammar School | C186: 0 | D186: 0 | E186: 0 | F186: 0 | H186: 0 | I186: 0 | K186: 0 | L186: 0 | N186: 0 | O186: 0 | Q186: 0 | R186: 0 | T186: 0 | U186: 0 | W186: 0 | Z186: 0 | AA186: 0 | AB186: =IF(ISERROR(VLOOKUP(A186+8860000,'Growth Data'!A:F,6,0)),0,VLOOKUP(A186+8860000,'Growth Data'!A:F,6,0)) -> 0 | AC186: 0 | AD186: NO | AE186: =IF(ISERROR(VLOOKUP(A186+8860000,'Growth Data'!A:C,3,0)),"NO",VLOOKUP(A186+8860000,'Growth Data'!A:C,3,0)) -> NO | AF186: 0 | AG186: 0 | AH186: =IF(ISERROR(VLOOKUP(A186+8860000,'Growth Data'!A:G,7,0)),0,VLOOKUP(A186+8860000,'Growth Data'!A:G,7,0)) -> 0 | AI186: 0
A187: 5450 | B187: Hillview School for Girls | C187: 0 | D187: 0 | E187: 0 | F187: 0 | H187: 0 | I187: 0 | K187: 0 | L187: 0 | N187: 0 | O187: 0 | Q187: 0 | R187: 0 | T187: 0 | U187: 0 | W187: 0 | Z187: 0 | AA187: 0 | AB187: =IF(ISERROR(VLOOKUP(A187+8860000,'Growth Data'!A:F,6,0)),0,VLOOKUP(A187+8860000,'Growth Data'!A:F,6,0)) -> 0 | AC187: 0 | AD187: NO | AE187: =IF(ISERROR(VLOOKUP(A187+8860000,'Growth Data'!A:C,3,0)),"NO",VLOOKUP(A187+8860000,'Growth Data'!A:C,3,0)) -> NO | AF187: 0 | AG187: 0 | AH187: =IF(ISERROR(VLOOKUP(A187+8860000,'Growth Data'!A:G,7,0)),0,VLOOKUP(A187+8860000,'Growth Data'!A:G,7,0)) -> 0 | AI187: 0
A188: 5455 | B188: Hayesbrook School, The | C188: 0 | D188: 0 | E188: 0 | F188: 0 | H188: 0 | I188: 0 | K188: 0 | L188: 0 | N188: 0 | O188: 0 | Q188: 0 | R188: 0 | T188: 0 | U188: 0 | W188: 0 | Z188: 0 | AA188: 0 | AB188: =IF(ISERROR(VLOOKUP(A188+8860000,'Growth Data'!A:F,6,0)),0,VLOOKUP(A188+8860000,'Growth Data'!A:F,6,0)) -> 0 | AC188: 0 | AD188: NO | AE188: =IF(ISERROR(VLOOKUP(A188+8860000,'Growth Data'!A:C,3,0)),"NO",VLOOKUP(A188+8860000,'Growth Data'!A:C,3,0)) -> NO | AF188: 0 | AG188: 0 | AH188: =IF(ISERROR(VLOOKUP(A188+8860000,'Growth Data'!A:G,7,0)),0,VLOOKUP(A188+8860000,'Growth Data'!A:G,7,0)) -> 0 | AI188: 0
A189: 5460 | B189: Dane Court Grammar School | C189: 0 | D189: 0 | E189: 0 | F189: 0 | H189: 0 | I189: 0 | K189: 0 | L189: 0 | N189: 0 | O189: 0 | Q189: 0 | R189: 0 | T189: 0 | U189: 0 | W189: 0 | Z189: 0 | AA189: 0 | AB189: =IF(ISERROR(VLOOKUP(A189+8860000,'Growth Data'!A:F,6,0)),0,VLOOKUP(A189+8860000,'Growth Data'!A:F,6,0)) -> 0 | AC189: 0 | AD189: NO | AE189: =IF(ISERROR(VLOOKUP(A189+8860000,'Growth Data'!A:C,3,0)),"NO",VLOOKUP(A189+8860000,'Growth Data'!A:C,3,0)) -> NO | AF189: 0 | AG189: 0 | AH189: =IF(ISERROR(VLOOKUP(A189+8860000,'Growth Data'!A:G,7,0)),0,VLOOKUP(A189+8860000,'Growth Data'!A:G,7,0)) -> 0 | AI189: 0
A190: 5462 | B190: Chatham & Clarendon Grammar School | C190: 0 | D190: 0 | E190: 0 | F190: 0 | H190: 0 | I190: 0 | K190: 0 | L190: 0 | N190: 0 | O190: 0 | Q190: 0 | R190: 0 | T190: 0 | U190: 0 | W190: 0 | Z190: 0 | AA190: 0 | AB190: =IF(ISERROR(VLOOKUP(A190+8860000,'Growth Data'!A:F,6,0)),0,VLOOKUP(A190+8860000,'Growth Data'!A:F,6,0)) -> 0 | AC190: 0 | AD190: NO | AE190: =IF(ISERROR(VLOOKUP(A190+8860000,'Growth Data'!A:C,3,0)),"NO",VLOOKUP(A190+8860000,'Growth Data'!A:C,3,0)) -> NO | AF190: 0 | AG190: 0 | AH190: =IF(ISERROR(VLOOKUP(A190+8860000,'Growth Data'!A:G,7,0)),0,VLOOKUP(A190+8860000,'Growth Data'!A:G,7,0)) -> 0 | AI190: 0
A191: 5463 | B191: Sandwich Technology School | C191: 0 | D191: 0 | E191: 0 | F191: 0 | H191: 0 | I191: 0 | K191: 0 | L191: 0 | N191: 0 | O191: 0 | Q191: 0 | R191: 0 | T191: 0 | U191: 0 | W191: 0 | Z191: 0 | AA191: 0 | AB191: =IF(ISERROR(VLOOKUP(A191+8860000,'Growth Data'!A:F,6,0)),0,VLOOKUP(A191+8860000,'Growth Data'!A:F,6,0)) -> 0 | AC191: 0 | AD191: NO | AE191: =IF(ISERROR(VLOOKUP(A191+8860000,'Growth Data'!A:C,3,0)),"NO",VLOOKUP(A191+8860000,'Growth Data'!A:C,3,0)) -> NO | AF191: 0 | AG191: 0 | AH191: =IF(ISERROR(VLOOKUP(A191+8860000,'Growth Data'!A:G,7,0)),0,VLOOKUP(A191+8860000,'Growth Data'!A:G,7,0)) -> 0 | AI191: 0
A192: 5464 | B192: Bennett Memorial Diocesan School | C192: 0 | D192: 0 | E192: 0 | F192: 0 | H192: 0 | I192: 0 | K192: 0 | L192: 0 | N192: 0 | O192: 0 | Q192: 0 | R192: 0 | T192: 0 | U192: 0 | W192: 0 | Z192: 0 | AA192: 0 | AB192: =IF(ISERROR(VLOOKUP(A192+8860000,'Growth Data'!A:F,6,0)),0,VLOOKUP(A192+8860000,'Growth Data'!A:F,6,0)) -> 0 | AC192: 0 | AD192: NO | AE192: =IF(ISERROR(VLOOKUP(A192+8860000,'Growth Data'!A:C,3,0)),"NO",VLOOKUP(A192+8860000,'Growth Data'!A:C,3,0)) -> NO | AF192: 0 | AG192: 0 | AH192: =IF(ISERROR(VLOOKUP(A192+8860000,'Growth Data'!A:G,7,0)),0,VLOOKUP(A192+8860000,'Growth Data'!A:G,7,0)) -> 0 | AI192: 0
A193: 5465 | B193: Gravesend Grammar School | C193: 0 | D193: 0 | E193: =C193-D193 -> 0 | F193: 0 | H193: =ROUND(F193-G193,2) -> 0 | I193: 1 | K193: =ROUND(I193-J193,2) -> 1 | L193: 1 | N193: =ROUND(L193-M193,2) -> 1 | O193: 1 | Q193: =ROUND(O193-P193,2) -> 1 | R193: 1 | T193: =ROUND(R193-S193,2) -> 1 | U193: 1 | W193: =ROUND(U193-V193,2) -> 1 | Z193: =X193-Y193 -> 0 | AA193: 0 | AB193: =IF(ISERROR(VLOOKUP(A193+8860000,'Growth Data'!A:F,6,0)),0,VLOOKUP(A193+8860000,'Growth Data'!A:F,6,0)) -> 0 | AC193: =IF(AD193="YES",AA193-AB193,0) -> 0 | AD193: NO | AE193: =IF(ISERROR(VLOOKUP(A193+8860000,'Growth Data'!A:C,3,0)),"NO",VLOOKUP(A193+8860000,'Growth Data'!A:C,3,0)) -> NO | AF193: =IF(AD193=AE193,0,1) -> 0 | AG193: 0 | AH193: =IF(ISERROR(VLOOKUP(A193+8860000,'Growth Data'!A:G,7,0)),0,VLOOKUP(A193+8860000,'Growth Data'!A:G,7,0)) -> 0 | AI193: 0
A194: 5466 | B194: Brockhill Park Performing Arts College | C194: 0 | D194: 0 | E194: 0 | F194: 0 | H194: 0 | I194: 2 | K194: 2 | L194: 2 | N194: 2 | O194: 2 | Q194: 2 | R194: 2 | T194: 2 | U194: 2 | W194: 2 | Z194: 0 | AA194: 0 | AB194: =IF(ISERROR(VLOOKUP(A194+8860000,'Growth Data'!A:F,6,0)),0,VLOOKUP(A194+8860000,'Growth Data'!A:F,6,0)) -> 0 | AC194: 0 | AD194: NO | AE194: =IF(ISERROR(VLOOKUP(A194+8860000,'Growth Data'!A:C,3,0)),"NO",VLOOKUP(A194+8860000,'Growth Data'!A:C,3,0)) -> NO | AF194: 0 | AG194: 0 | AH194: =IF(ISERROR(VLOOKUP(A194+8860000,'Growth Data'!A:G,7,0)),0,VLOOKUP(A194+8860000,'Growth Data'!A:G,7,0)) -> 0 | AI194: 0
A195: 5467 | B195: Mayfield Grammar School, Gravesend | C195: 0 | D195: 0 | E195: 0 | F195: 0 | H195: 0 | I195: 3 | K195: 3 | L195: 3 | N195: 3 | O195: 3 | Q195: 3 | R195: 3 | T195: 3 | U195: 3 | W195: 3 | Z195: 0 | AA195: 0 | AB195: =IF(ISERROR(VLOOKUP(A195+8860000,'Growth Data'!A:F,6,0)),0,VLOOKUP(A195+8860000,'Growth Data'!A:F,6,0)) -> 145 | AC195: 0 | AD195: NO | AE195: =IF(ISERROR(VLOOKUP(A195+8860000,'Growth Data'!A:C,3,0)),"NO",VLOOKUP(A195+8860000,'Growth Data'!A:C,3,0)) -> Yes | AF195: 1 | AG195: 0 | AH195: =IF(ISERROR(VLOOKUP(A195+8860000,'Growth Data'!A:G,7,0)),0,VLOOKUP(A195+8860000,'Growth Data'!A:G,7,0)) -> 175 | AI195: =IF(AG195=AH195,0,1) -> 1
A196: 6905 | B196: Knole Academy | C196: 0 | D196: 0 | E196: 0 | F196: 0 | H196: 0 | I196: 4 | K196: 4 | L196: 4 | N196: 4 | O196: 4 | Q196: 4 | R196: 4 | T196: 4 | U196: 4 | W196: 4 | Z196: 0 | AA196: 0 | AB196: =IF(ISERROR(VLOOKUP(A196+8860000,'Growth Data'!A:F,6,0)),0,VLOOKUP(A196+8860000,'Growth Data'!A:F,6,0)) -> 0 | AC196: 0 | AD196: NO | AE196: =IF(ISERROR(VLOOKUP(A196+8860000,'Growth Data'!A:C,3,0)),"NO",VLOOKUP(A196+8860000,'Growth Data'!A:C,3,0)) -> NO | AF196: 0 | AG196: 0 | AH196: =IF(ISERROR(VLOOKUP(A196+8860000,'Growth Data'!A:G,7,0)),0,VLOOKUP(A196+8860000,'Growth Data'!A:G,7,0)) -> 0 | AI196: 0
A197: 6908 | B197: Folkestone Academy | C197: 0 | D197: 0 | E197: 0 | F197: 0 | H197: 0 | I197: 5 | K197: 5 | L197: 5 | N197: 5 | O197: 5 | Q197: 5 | R197: 5 | T197: 5 | U197: 5 | W197: 5 | Z197: 0 | AA197: 0 | AB197: =IF(ISERROR(VLOOKUP(A197+8860000,'Growth Data'!A:F,6,0)),0,VLOOKUP(A197+8860000,'Growth Data'!A:F,6,0)) -> 0 | AC197: 0 | AD197: NO | AE197: =IF(ISERROR(VLOOKUP(A197+8860000,'Growth Data'!A:C,3,0)),"NO",VLOOKUP(A197+8860000,'Growth Data'!A:C,3,0)) -> NO | AF197: 0 | AG197: 0 | AH197: =IF(ISERROR(VLOOKUP(A197+8860000,'Growth Data'!A:G,7,0)),0,VLOOKUP(A197+8860000,'Growth Data'!A:G,7,0)) -> 0 | AI197: 0
A198: 6909 | B198: Marsh Academy | C198: 0 | D198: 0 | E198: 0 | F198: 0 | H198: 0 | I198: 6 | K198: 6 | L198: 6 | N198: 6 | O198: 6 | Q198: 6 | R198: 6 | T198: 6 | U198: 6 | W198: 6 | Z198: 0 | AA198: 0 | AB198: =IF(ISERROR(VLOOKUP(A198+8860000,'Growth Data'!A:F,6,0)),0,VLOOKUP(A198+8860000,'Growth Data'!A:F,6,0)) -> 0 | AC198: 0 | AD198: NO | AE198: =IF(ISERROR(VLOOKUP(A198+8860000,'Growth Data'!A:C,3,0)),"NO",VLOOKUP(A198+8860000,'Growth Data'!A:C,3,0)) -> NO | AF198: 0 | AG198: 0 | AH198: =IF(ISERROR(VLOOKUP(A198+8860000,'Growth Data'!A:G,7,0)),0,VLOOKUP(A198+8860000,'Growth Data'!A:G,7,0)) -> 0 | AI198: 0
A199: 6910 | B199: Leigh Academy, The | C199: 0 | D199: 0 | E199: 0 | F199: 0 | H199: 0 | I199: 7 | K199: 7 | L199: 7 | N199: 7 | O199: 7 | Q199: 7 | R199: 7 | T199: 7 | U199: 7 | W199: 7 | Z199: 0 | AA199: 0 | AB199: =IF(ISERROR(VLOOKUP(A199+8860000,'Growth Data'!A:F,6,0)),0,VLOOKUP(A199+8860000,'Growth Data'!A:F,6,0)) -> 0 | AC199: 0 | AD199: NO | AE199: =IF(ISERROR(VLOOKUP(A199+8860000,'Growth Data'!A:C,3,0)),"NO",VLOOKUP(A199+8860000,'Growth Data'!A:C,3,0)) -> NO | AF199: 0 | AG199: 0 | AH199: =IF(ISERROR(VLOOKUP(A199+8860000,'Growth Data'!A:G,7,0)),0,VLOOKUP(A199+8860000,'Growth Data'!A:G,7,0)) -> 0 | AI199: 0
A200: 6911 | B200: Spires Academy | C200: 0 | D200: 0 | E200: 0 | F200: 0 | H200: 0 | I200: 8 | K200: 8 | L200: 8 | N200: 8 | O200: 8 | Q200: 8 | R200: 8 | T200: 8 | U200: 8 | W200: 8 | Z200: 0 | AA200: 0 | AB200: =IF(ISERROR(VLOOKUP(A200+8860000,'Growth Data'!A:F,6,0)),0,VLOOKUP(A200+8860000,'Growth Data'!A:F,6,0)) -> 0 | AC200: 0 | AD200: NO | AE200: =IF(ISERROR(VLOOKUP(A200+8860000,'Growth Data'!A:C,3,0)),"NO",VLOOKUP(A200+8860000,'Growth Data'!A:C,3,0)) -> No | AF200: 0 | AG200: 0 | AH200: =IF(ISERROR(VLOOKUP(A200+8860000,'Growth Data'!A:G,7,0)),0,VLOOKUP(A200+8860000,'Growth Data'!A:G,7,0)) -> 0 | AI200: 0
... 9 more rows

Sheet Growth Data (hidden)
A1: 1 | B1: 2 | C1: 3 | D1: 4 | E1: 5 | F1: 6 | G1: 7 | H1: 8 | I1: 9 | J1: 10 | K1: 11 | L1: 12
F2: 2017-18 | H2: 2018-19 | I2: 2018-19 | J2: 2019-20
A3: DfE | B3: School Name | C3: 2018-19 | D3: 2019-20 | E3: 2020-21 | F3: Lower | G3: Higher | H3: Lower | I3: Higher | J3: Lower | K3: Higher
A4: 8862009 | B4: Northdown Primary School | C4: Yes | D4: No | E4: No | F4: 45 | G4: 60
A5: 8862019 | B5: Chantry Community Academy | C5: Yes | D5: Yes | E5: No | F5: 46 | G5: 60 | H5: 33 | I5: 60
A6: 8862024 | B6: Copperfield Academy | C6: No | D6: Yes | E6: Yes | H6: 83 | I6: 90 | J6: 60 | K6: 90
A7: 8862028 | B7: Cliftonville Primary School | C7: Yes | D7: Yes | E7: Yes | F7: 90 | G7: 120 | H7: 90 | I7: 120 | J7: 91 | K7: 120
A8: 8862034 | B8: Thistle Hill Academy | C8: Yes | D8: Yes | E8: Yes | F8: 30 | G8: 60 | H8: 30 | I8: 60 | J8: 37 | K8: 60
A9: 8862036 | B9: Valley Invicta Primary School at Leybourne Chase | C9: Yes | D9: Yes | E9: Yes | F9: 16 | G9: 30 | H9: 16 | I9: 30 | J9: 16 | K9: 30
A10: 8862037 | B10: Valley Invicta Primary School at Holborough Lakes | C10: Yes | D10: Yes | E10: Yes | F10: 15 | G10: 30 | H10: 14 | I10: 30 | J10: 15 | K10: 30
A11: 8862038 | B11: Valley Invicta Primary School at Kings Hill | C11: Yes | D11: Yes | E11: Yes | F11: 15 | G11: 30 | H11: 15 | I11: 30 | J11: 12 | K11: 30
A12: 8862039 | B12: Martello Primary | C12: Yes | D12: Yes | E12: Yes | F12: 4 | G12: 30 | H12: 21 | I12: 30 | J12: 14 | K12: 30
A13: 8862045 | B13: Skinners' Kent Primary School | C13: Yes | D13: Yes | E13: Yes | F13: 0 | G13: 30 | H13: 0 | I13: 30 | J13: 0 | K13: 30
A14: 8862055 | B14: Lansdowne Primary School | C14: Yes | D14: Yes | E14: No | F14: 30 | G14: 60 | H14: 30 | I14: 60
A15: 8862061 | B15: Finberry Primary School | C15: Yes | D15: Yes | E15: Yes | F15: 0 | G15: 30 | H15: 3 | I15: 30 | J15: 27 | K15: 30
A16: 8862092 | B16: Knockhall Community Primary School | C16: Yes | D16: Yes | E16: No | F16: 60 | G16: 90 | H16: 67 | I16: 90
A17: 8862180 | B17: South Borough Primary School | C17: Yes | D17: Yes | E17: Yes | F17: 30 | G17: 60 | H17: 30 | I17: 60 | J17: 31 | K17: 60
A18: 8862230 | B18: Iwade Community Primary School | C18: Yes | D18: Yes | E18: Yes | F18: 60 | G18: 90 | H18: 62 | I18: 90 | J18: 64 | K18: 90
A19: 8862315 | B19: White Cliffs Primary College for the Arts | C19: Yes | D19: Yes | E19: No | F19: 30 | G19: 60 | H19: 30 | I19: 60
A20: 8862654 | B20: Canterbury Primary School, The | C20: No | D20: Yes | E20: Yes | H20: 45 | I20: 60 | J20: 33 | K20: 60
A21: 8862657 | B21: Temple Hill Community Primary and Nursery School | C21: No | D21: Yes | E21: Yes | H21: 96 | I21: 120 | J21: 74 | K21: 120
A22: 8862658 | B22: Westcourt School | C22: No | D22: Yes | E22: Yes | H22: 30 | I22: 60 | J22: 30 | K22: 60
A23: 8862679 | B23: Brent Primary School, The | C23: No | D23: Yes | E23: Yes | H23: 64 | I23: 90 | J23: 62 | K23: 90
A24: 8862684 | B24: Wentworth Primary School | C24: No | D24: Yes | E24: Yes | H24: 72 | I24: 90 | J24: 71 | K24: 90
A25: 8862686 | B25: Furley Park Primary School | C25: Yes | D25: No | E25: No | F25: 63 | G25: 90
A26: 8863021 | B26: Stone St Mary's CEP School | C26: Yes | D26: Yes | E26: No | F26: 62 | G26: 90 | H26: 62 | I26: 90
A27: 8863372 | B27: St John's CEP School, Maidstone | C27: Yes | D27: No | E27: No | F27: 32 | G27: 60
A28: 8863708 | B28: St John's Catholic Primary School, Gravesend | C28: No | D28: Yes | E28: Yes | H28: 90 | I28: 120 | J28: 90 | K28: 120
A29: 8863912 | B29: Westlands Primary School, The | C29: Yes | D29: No | E29: No | F29: 60 | G29: 90
A30: 8865204 | B30: Sutton-at-Hone CEP School | C30: Yes | D30: Yes | E30: Yes | F30: 55 | G30: 60 | H30: 58 | I30: 60 | J30: 57 | K30: 60
A31: 8865210 | B31: St Botolph's CEP School | C31: Yes | D31: No | E31: No | F31: 31 | G31: 60
A32: 8865220 | B32: Halfway Houses Primary School | C32: Yes | D32: Yes | E32: Yes | F32: 60 | G32: 90 | H32: 60 | I32: 90 | J32: 60 | K32: 90
A33: 8864002 | B33: Sittingbourne Community College | C33: No | D33: No | E33: Yes | J33: 212 | K33: 270
A34: 8864046 | B34: Weald of Kent Grammar School Annex | C34: No | D34: No | E34: Yes | J34: 179 | K34: 265
A35: 8864633 | B35: Ursuline College, Westgate on Sea | C35: No | D35: No | E35: Yes | J35: 127 | K35: 150
A36: 8865400 | B36: Wilmington Grammar School for Girls | C36: Yes | D36: Yes | E36: No | F36: 120 | G36: 150 | H36: 120 | I36: 150
A37: 8865403 | B37: Wilmington Grammar School for Boys | C37: Yes | D37: Yes | E37: No | F37: 134 | G37: 150 | H37: 148 | I37: 150
A38: 8865411 | B38: Dartford Grammar School for Girls | C38: No | D38: Yes | E38: Yes | H38: 161 | I38: 180 | J38: 160 | K38: 180
A39: 8865421 | B39: Canterbury High School, The | C39: No | D39: No | E39: Yes | J39: 201 | K39: 210
A40: 8865467 | B40: Mayfield Grammar School, Gravesend | C40: Yes | D40: Yes | E40: No | F40: 145 | G40: 175 | H40: 146 | I40: 175
A41: 8866911 | B41: Spires Academy | C41: No | D41: Yes | E41: Yes | H41: 120 | I41: 150 | J41: 120 | K41: 150
A42: 8866920 | B42: Wilmington Academy | C42: No | D42: Yes | E42: Yes | H42: 193 | I42: 240 | J42: 204 | K42: 240

Sheet Contents
A1: Contents
A3: Guidance has been written to aid the user in populating this template, to access this guidance click on this link User guidance
A4: Early Years | B4: This is the input sheet to calculate your Early Years 3 & 4 years olds free entitlement, Early Years Pupil Premium and 2 Year old funding, Special Education Needs Inclusion Fund (SENIF) and Disability Access Fund (DAF). Please note that the funding rates are compliant with Dedicated School Grant Financial year that runs from April 2018 to March 2019.
A5: High Needs Mainstream | B5: The purpose of this template is to calculate your High Needs mainstream funding for 2018-19. Please note that the funding rates are compliant with Dedicated School Grant Financial year that runs from April 2018 to March 2019.
A6: Specialist Resource Provision | B6: The purpose of this template is to calculate your Specialist Resource Provision (SRP) Funding for 2018-19. We have not extended the forecast period in the same way as Early Years and Mainstream High Needs due to complications around place funding. Academies will therefore need to do their own calculations to estimate funding for the period April 2019 to August 2019.
A7: Growth Funding | B7: Funding information will only appear on this template for those Academies entitled to Rising Roll funding. Academies entitled to re-organisation funding will be notified by email.
L8: V2

Sheet Data (hidden)
A1: 1 | B1: 2 | C1: 3 | D1: 4 | E1: 5 | F1: 6 | G1: 7 | H1: 8 | I1: 9 | J1: 10 | K1: 11 | L1: 12 | M1: 13 | N1: 14 | O1: 15 | P1: 16 | Q1: 17 | R1: 18 | S1: 19 | T1: 20 | U1: 21 | V1: 22 | W1: 23 | X1: 24 | Y1: 25
A3: DfE | B3: School name | C3: Base rate | D3: Qualified Teacher Supplement | E3: Disadvantage supplement | F3: IDACI | G3: Ever6 FSM | H3: Low Cost, high Incidence SEN | I3: English as an additional language | J3: Element of Lump Sum | K3: London Fringe Multiplier | L3: des1pre £ | M3: des1post£ | N3: des2pre£ | O3: des2post£ | P3: summerpreplace | Q3: summerpostplace | R3: winterpreplace | S3: winterpostplace | T3: EFA summerpreplace | U3: EFA summerpostplace | V3: EFA winterpreplace | W3: EFA winterpostplace | X3: Phase | Y3: Growth
A4: 2001 | B4: Horizon Primary Academy | F4: 58360.2408 | G4: 23937.82043 | H4: 32209.1362 | I4: 1811.105944 | J4: 6235 | K4: 0.0364 | X4: 1 | Y4: 0
A5: 2003 | B5: Oaks Primary Academy | C5: 4 | D5: 0.9 | E5: 0 | F5: 48026.81731 | G5: 17680.38088 | H5: 41201.37138 | I5: 3630.761563 | J5: 6235 | K5: 0 | X5: 1 | Y5: 0
A6: 2004 | B6: Tree Tops Primary Academy | C6: 4 | D6: 0.9 | E6: 0.636905052 | F6: 82096.6076 | G6: 35493.0233 | H6: 70290.56559 | I6: 13335.4332 | J6: 6235 | K6: 0 | X6: 1 | Y6: 0
A7: 2006 | B7: St James the Great Academy | C7: 4 | D7: 0.9 | E7: 0.131534739 | F7: 55738.433 | G7: 21247.17587 | H7: 45463.78728 | I7: 1827.168968 | J7: 6235 | K7: 0 | X7: 1 | Y7: 0
A8: 2007 | B8: Molehill Primary Academy | F8: 75341.9501 | G8: 34829.57373 | H8: 75282.24365 | I8: 10319.99088 | J8: 6235 | K8: 0 | L8: 1023.240088 | P8: =VLOOKUP(A8,'SRP Rates'!C:K,4,FALSE) -> 4 | R8: =VLOOKUP(A8,'SRP Rates'!C:K,6,FALSE) -> 4 | X8: 1 | Y8: 0
A9: 2008 | B9: Tiger Primary School | F9: 52733.71513 | G9: 17424.44237 | H9: 46219.30137 | I9: 13846.55306 | J9: 6235 | K9: 0 | X9: 1 | Y9: 0
A10: 2009 | B10: Northdown Primary School | C10: 4 | D10: 0.9 | E10: 0.685365219 | F10: 158269.1304 | G10: 49195.68216 | H10: 99034.37717 | I10: 19713.19537 | J10: 6235 | K10: 0 | X10: 1 | Y10: 17122.88
A11: 2010 | B11: Newlands Primary School | F11: 100003.9551 | G11: 42552.96397 | H11: 93700.76583 | I11: 8990.968722 | J11: 6235 | K11: 0 | X11: 1 | Y11: 0
A12: 2011 | B12: Salmestone Primary School | C12: 4 | D12: 0.9 | E12: 0.304606764 | F12: 133657.1599 | G12: 36302.867 | H12: 89013.29412 | I12: 11564.07127 | J12: 6235 | K12: 0 | X12: 1 | Y12: 0
A13: 2013 | B13: Hersden Village Primary School | F13: 20654.2416 | G13: 8364.967848 | H13: 18036.85461 | I13: 2484.277072 | J13: 6235 | K13: 0 | X13: 1 | Y13: 0
A14: 2014 | B14: St Laurence in Thanet C of E Junior Academy | F14: 58775.52715 | G14: 22646.62027 | H14: 43677.73633 | I14: 1035.374549 | J14: 6235 | K14: 0 | X14: 1 | Y14: 0
A15: 2015 | B15: Dame Janet Primary Academy | C15: 4 | D15: 0.9 | E15: 0.456910146 | F15: 149262.9204 | G15: 62336.93283 | H15: 149687.6459 | I15: 16074.29292 | J15: 6235 | K15: 0 | X15: 1 | Y15: 34245.75
A16: 2017 | B16: Drapers Mills Primary Academy | C16: 4 | D16: 0.9 | E16: 0.726902505 | F16: 211776.0247 | G16: 59119.78186 | H16: 153522.0813 | I16: 71326.86225 | J16: 6235 | K16: 0 | X16: 1 | Y16: 0
A17: 2018 | B17: Temple Grove Academy | C17: 4 | D17: 0.9 | E17: 0.006922881 | F17: 36965.4886 | G17: 23725.20121 | H17: 43910.61682 | I17: 15313.41611 | J17: 6235 | K17: 0 | X17: 1 | Y17: 0
A18: 2019 | B18: Chantry Community Academy | C18: 4 | D18: 0.9 | E18: 0.318452526 | F18: 84148.0221 | G18: 29442.57571 | H18: 111450.2699 | I18: 71641.06492 | J18: 6235 | K18: 0 | X18: 1 | Y18: 44519.48
A19: 2020 | B19: Christ Church CEJ School, Ramsgate | F19: 52816.4182 | G19: 19509.07411 | H19: 33935.51284 | I19: 5668.90885 | J19: 6235 | K19: 0 | X19: 1 | Y19: 0
A20: 2021 | B20: Kemsley Primary Academy | C20: 4 | D20: 0.9 | E20: 0 | F20: 34398.71875 | G20: 15956.86995 | H20: 42536.11922 | I20: 4208.735358 | J20: 6235 | K20: 0 | X20: 1 | Y20: 0
A21: 2022 | B21: Milton Court Primary Academy | C21: 4 | D21: 0.9 | E21: 0.034614405 | F21: 46381.9815 | G21: 21670.76939 | H21: 59286.57708 | I21: 5398.12892 | J21: 6235 | K21: 0 | X21: 1 | Y21: 0
A22: 2023 | B22: Temple Ewell CEP School | F22: 13219.1149 | G22: 6689.356135 | H22: 13452.76804 | I22: 597.1577865 | J22: 6235 | K22: 0 | X22: 1 | Y22: 0
A23: 2024 | B23: Copperfield Academy | C23: 4 | D23: 0.9 | E23: 0 | F23: 80945.8141 | G23: 34231.81287 | H23: 119914.9938 | I23: 59164.00678 | J23: 6235 | K23: 0 | X23: 1 | Y23: 34245.75
A24: 2025 | B24: Wells Free School, The | F24: 3656.181557 | G24: 4297.557556 | H24: 21072.48819 | I24: 13800.27702 | J24: 6235 | K24: 0 | X24: 1 | Y24: 0
A25: 2026 | B25: Petham Primary School | F25: 2221.5318 | G25: 2607.598002 | H25: 13875.49326 | I25: 584.8414646 | J25: 6235 | K25: 0 | X25: 1 | Y25: 0
A26: 2027 | B26: Archbishop Courtenay Primary School | C26: 4 | D26: 0.9 | E26: 0.131534739 | F26: 46765.07782 | G26: 22386.22383 | H26: 83227.91492 | I26: 35764.39402 | J26: 6235 | K26: 0 | X26: 1 | Y26: 0
A27: 2028 | B27: Cliftonville Primary School | C27: 4 | D27: 0.9 | E27: 0.422295741 | F27: 272252.7248 | G27: 73067.23118 | H27: 174754.2365 | I27: 64042.13642 | J27: 6235 | K27: 0 | X27: 1 | Y27: 34245.71
A28: 2029 | B28: Tymberwood Academy | C28: 4 | D28: 0.9 | E28: 0.214609311 | F28: 96936.8403 | G28: 40366.16514 | H28: 85581.31162 | I28: 16378.82233 | J28: 6235 | K28: 0 | L28: 1055.252283 | P28: =VLOOKUP(A28,'SRP Rates'!C:K,4,FALSE) -> 4 | R28: =VLOOKUP(A28,'SRP Rates'!C:K,6,FALSE) -> 3 | X28: 1 | Y28: 0
A29: 2030 | B29: Valley Invicta Primary School at Aylesford | F29: 33653.2047 | G29: 18757.96856 | H29: 47414.86585 | I29: 4378.442429 | J29: 6235 | K29: 0 | X29: 1 | Y29: 0
A30: 2033 | B30: Pilgrims' Way Primary School & Nursery | C30: 4 | D30: 0.9 | E30: 0.103843215 | F30: 30541.0588 | G30: 40692.35129 | H30: 84863.40389 | I30: 19418.12808 | J30: 6235 | K30: 0 | X30: 1 | Y30: 0
A31: 2034 | B31: Thistle Hill Academy | F31: 43933.81164 | G31: 26470.37501 | H31: 57018.58608 | I31: 7025.869885 | J31: 6235 | K31: 0 | L31: 346.0913148 | P31: =VLOOKUP(A31,'SRP Rates'!C:K,4,FALSE) -> 4 | R31: =VLOOKUP(A31,'SRP Rates'!C:K,6,FALSE) -> 4 | X31: 1 | Y31: 34245.75
A32: 2036 | B32: Valley Invicta Primary School at Leybourne Chase | F32: 6038.32441 | G32: 5459.369084 | H32: 21765.0303 | I32: 1986.830494 | J32: 6235 | K32: 0 | L32: 387.7579814 | P32: =VLOOKUP(A32,'SRP Rates'!C:K,4,FALSE) -> 4 | R32: =VLOOKUP(A32,'SRP Rates'!C:K,6,FALSE) -> 1 | X32: 1 | Y32: 34245.71
A33: 2037 | B33: Valley Invicta Primary School at Holborough Lakes | F33: 26650.00753 | G33: 7942.559921 | H33: 29241.47927 | I33: 3936.248622 | J33: 6235 | K33: 0 | L33: 300.0386832 | P33: =VLOOKUP(A33,'SRP Rates'!C:K,4,FALSE) -> 4 | R33: =VLOOKUP(A33,'SRP Rates'!C:K,6,FALSE) -> 8 | X33: 1 | Y33: 0
A34: 2038 | B34: Valley Invicta Primary School at Kings Hill | F34: 4319.37287 | G34: 1076.481322 | H34: 17335.90786 | I34: 9142.051529 | J34: 6235 | K34: 0 | L34: 690.6725328 | P34: =VLOOKUP(A34,'SRP Rates'!C:K,4,FALSE) -> 4 | R34: =VLOOKUP(A34,'SRP Rates'!C:K,6,FALSE) -> 8 | X34: 1 | Y34: 0
A35: 2039 | B35: Martello Primary | F35: 45833.17223 | G35: 14319.48601 | H35: 40299.47186 | I35: 10562.50434 | J35: 6235 | K35: 0 | L35: 702.1856907 | P35: =VLOOKUP(A35,'SRP Rates'!C:K,4,FALSE) -> 4 | R35: =VLOOKUP(A35,'SRP Rates'!C:K,6,FALSE) -> 4 | X35: 1 | Y35: 0
A36: 2041 | B36: Holy Family Catholic Primary School, The | F36: 55422.8143 | G36: 17047.30575 | H36: 34377.12647 | I36: 10640.74746 | J36: 6235 | K36: 0 | X36: 1 | Y36: 0
A37: 2043 | B37: Jubilee Primary School | F37: 8974.5786 | G37: 8077.635403 | H37: 28704.09165 | I37: 23327.23412 | J37: 6235 | K37: 0 | X37: 1 | Y37: 0
A38: 2045 | B38: Skinners' Kent Primary School | F38: 6687.175072 | G38: 2173.05894 | H38: 10997.70165 | I38: 6165.692836 | J38: 6235 | K38: 0 | X38: 1 | Y38: 0
A39: 2048 | B39: Reculver C of E Primary School | F39: 11648.0316 | G39: 23533.20354 | H39: 87818.40693 | I39: 2309.849107 | J39: 6235 | K39: 0 | L39: 632.1795957 | P39: =VLOOKUP(A39,'SRP Rates'!C:K,4,FALSE) -> 9 | R39: =VLOOKUP(A39,'SRP Rates'!C:K,6,FALSE) -> 9 | X39: 1 | Y39: 21689.29
A40: 2049 | B40: Rosherville Church of England Academy | F40: 36908.61485 | G40: 10920.93025 | H40: 28184.30345 | I40: 14412.91326 | J40: 6235 | K40: 0 | X40: 1 | Y40: 0
A41: 2051 | B41: St Mary of Charity CofE (Aided) Primary School | F41: 39297.0963 | G41: 13731.43801 | H41: 47979.4511 | I41: 4781.521827 | J41: 6235 | K41: 0 | X41: 1 | Y41: 0
A42: 2052 | B42: Kennington C of E Academy | F42: 37445.8198 | G42: 22834.54734 | H42: 61601.54475 | I42: 4638.19815 | J42: 6235 | K42: 0 | X42: 1 | Y42: 0
A43: 2054 | B43: St Edward's Catholic Primary School | F43: 81551.23155 | G43: 17902.08947 | H43: 35861.95921 | I43: 10942.8148 | J43: 6235 | K43: 0 | X43: 1 | Y43: 0
A44: 2055 | B44: Lansdowne Primary School | F44: 83417.5184 | G44: 25025.62845 | H44: 50332.54537 | I44: 12892.50173 | J44: 6235 | K44: 0 | X44: 1 | Y44: 29679.65
A45: 2058 | B45: Charlton CofE Primary School | F45: 53506.8943 | G45: 8261.82258 | H45: 27748.49531 | I45: 10334.88064 | J45: 6235 | K45: 0 | X45: 1 | Y45: 0
A46: 2059 | B46: Lydd Primary School | C46: 4 | D46: 0.9 | E46: 0 | F46: 44310.5532 | G46: 23658.67702 | H46: 54618.42922 | I46: 1223.366906 | J46: 6235 | K46: 0 | X46: 1 | Y46: 0
A47: 2060 | B47: Beaver Green Primary School | C47: 4 | D47: 0.9 | E47: 0.713056743 | F47: 131570.7212 | G47: 45844.55598 | H47: 83411.24931 | I47: 10250.16972 | J47: 6235 | K47: 0 | X47: 1 | Y47: 0
A48: 2061 | B48: Finberry Primary School | F48: 8946.850889 | G48: 7090.617277 | H48: 35005.61166 | I48: 7048.242287 | J48: 6235 | K48: 0 | L48: 300.0386832 | P48: =VLOOKUP(A48,'SRP Rates'!C:K,4,FALSE) -> 4 | R48: =VLOOKUP(A48,'SRP Rates'!C:K,6,FALSE) -> 8 | X48: 1 | Y48: 0
A49: 2063 | B49: Istead Rise Primary School | F49: 37756.0337 | G49: 14958.85827 | H49: 59883.45378 | I49: 8676.901301 | J49: 6235 | K49: 0 | X49: 1 | Y49: 34245.75
A50: 2064 | B50: Ramsgate Arts Primary school | F50: 52314.21877 | G50: 12313.35752 | H50: 43757.18225 | I50: 6241.902627 | J50: 6235 | K50: 0 | X50: 1 | Y50: 0
A51: 2069 | B51: Dartford Primary Academy | C51: 4 | D51: 0.9 | E51: 0 | F51: 48133.189 | G51: 29179.23851 | H51: 111997.3472 | I51: 39960.30641 | J51: 6235 | K51: 0.0364 | X51: 1 | Y51: 0
A52: 2073 | B52: Langley Park Primary Academy | F52: 33112.89837 | G52: 6938.534287 | H52: 28480.9848 | I52: 20561.08458 | J52: 6235 | K52: 0 | L52: 690.6725328 | P52: =VLOOKUP(A52,'SRP Rates'!C:K,4,FALSE) -> 4 | R52: =VLOOKUP(A52,'SRP Rates'!C:K,6,FALSE) -> 8 | X52: 1 | Y52: 0
A53: 2076 | B53: Cherry Orchard Primary Academy | F53: 16042.31156 | G53: 1005.404789 | H53: 25468.63209 | I53: 6820.879632 | J53: 6235 | K53: 0.0364 | L53: 639.078637 | P53: =VLOOKUP(A53,'SRP Rates'!C:K,4,FALSE) -> 4 | R53: =VLOOKUP(A53,'SRP Rates'!C:K,6,FALSE) -> 8 | X53: 1 | Y53: 0
A54: 2077 | B54: Westgate Primary School | F54: 43567.70332 | G54: 10781.51412 | H54: 48080.30176 | I54: 24267.6242 | J54: 6235 | K54: 0.0364 | X54: 1 | Y54: 0
A55: 2078 | B55: St Nicholas C of E Primary Academy | F55: 41255.69138 | G55: 24788.86813 | H55: 72710.65629 | I55: 2351.762442 | J55: 6235 | K55: 0 | X55: 1 | Y55: 0
A56: 2080 | B56: Barming Primary School | F56: 14590.0602 | G56: 11358.5516 | H56: 52608.31034 | I56: 15574.85856 | J56: 6235 | K56: 0 | X56: 1 | Y56: 0
A57: 2081 | B57: Brenzett CE Primary School | F57: 14475.43571 | G57: 3950.123706 | H57: 17587.65753 | I57: 0 | J57: 6235 | K57: 0 | X57: 1 | Y57: 0
A58: 2085 | B58: Royal Rise Primary School | F58: 14680.1223 | G58: 12186.00254 | H58: 29961.54228 | I58: 14620.00993 | J58: 6235 | K58: 0 | X58: 1 | Y58: 0
A59: 2086 | B59: Bishop Chavasse Primary School | F59: 3517.42535 | G59: 1839.518392 | H59: 0 | I59: 0 | J59: 6235 | K59: 0 | X59: 1 | Y59: 0
A60: 2087 | B60: Morehall Primary | F60: 22765.6975 | G60: 14495.52229 | H60: 39995.7657 | I60: 6671.337854 | J60: 6235 | K60: 0 | L60: 1085.740088 | P60: =VLOOKUP(A60,'SRP Rates'!C:K,4,FALSE) -> 3 | R60: =VLOOKUP(A60,'SRP Rates'!C:K,6,FALSE) -> 3 | X60: 1 | Y60: 0
A61: 2090 | B61: Richmond Academy | C61: 4 | D61: 0.9 | E61: 0.616136409 | F61: 172258.7766 | G61: 44494.30752 | H61: 101089.9134 | I61: 10936.98576 | J61: 6235 | K61: 0 | X61: 1 | Y61: 0
A62: 2092 | B62: Knockhall Primary School | C62: 4 | D62: 0.9 | E62: 0 | F62: 61331.76239 | G62: 33792.84584 | H62: 97173.72299 | I62: 30163.8524 | J62: 6235 | K62: 0.0364 | X62: 1 | Y62: 30821.18
A63: 2096 | B63: Riverview Junior School | F63: 67696.6785 | G63: 18161.77704 | H63: 76833.59482 | I63: 6699.61955 | J63: 6235 | K63: 0 | X63: 1 | Y63: 0
A64: 2110 | B64: Culverstone Green Primary School | F64: 5503.795 | G64: 4968.599802 | H64: 40567.67665 | I64: 1184.463125 | J64: 6235 | K64: 0 | X64: 1 | Y64: 0
A65: 2141 | B65: Amherst School | F65: 0 | G65: 4426.37115 | H65: 25820.17397 | I65: 5668.90885 | J65: 6235 | K65: 0.0364 | X65: 1 | Y65: 0
A66: 2172 | B66: Valley Invicta Primary School at East Borough | F66: 23427.95015 | G66: 14773.00305 | H66: 67494.11293 | I66: 36842.6488 | J66: 6235 | K66: 0 | X66: 1 | Y66: 0
A67: 2180 | B67: South Borough Primary School | C67: 4 | D67: 0.9 | E67: 0.034614405 | F67: 62419.93976 | G67: 17879.73294 | H67: 62739.62997 | I67: 40715.19345 | J67: 6235 | K67: 0 | X67: 1 | Y67: 68491.5
A68: 2223 | B68: Bobbing Village School | F68: 16311.247 | G68: 4290.482335 | H68: 31330.38356 | I68: 1205.407429 | J68: 6235 | K68: 0 | X68: 1 | Y68: 0
A69: 2229 | B69: Graveney Primary School | F69: 13269.1494 | G69: 2174.063426 | H69: 12632.91052 | I69: 0 | J69: 6235 | K69: 0 | X69: 1 | Y69: 0
A70: 2230 | B70: Iwade School | F70: 20297.04982 | G70: 16027.38774 | H70: 71775.64105 | I70: 3654.337936 | J70: 6235 | K70: 0 | X70: 1 | Y70: 23972.03
A71: 2232 | B71: Luddenham School | F71: 22555.5526 | G71: 3351.990705 | H71: 37980.69013 | I71: 5237.515888 | J71: 6235 | K71: 0 | X71: 1 | Y71: 0
A72: 2233 | B72: Lynsted and Norton School | F72: 7745.3406 | G72: 5979.858551 | H72: 26975.22723 | I72: 606.3004118 | J72: 6235 | K72: 0 | X72: 1 | Y72: 0
A73: 2235 | B73: Minster in Sheppey Primary School | F73: 86634.73675 | G73: 38607.11494 | H73: 85033.68575 | I73: 3070.708552 | J73: 6235 | K73: 0 | X73: 1 | Y73: 49085.58
A74: 2246 | B74: Sheldwich Primary School | F74: 8045.5476 | G74: 3034.228497 | H74: 25935.54837 | I74: 3570.296858 | J74: 6235 | K74: 0 | X74: 1 | Y74: 0
A75: 2249 | B75: Regis Manor School | C75: 4 | D75: 0.9 | E75: 0.166149144 | F75: 80925.8003 | G75: 32306.71895 | H75: 67037.54232 | I75: 12667.20025 | J75: 6235 | K75: 0 | X75: 1 | Y75: 0
A76: 2264 | B76: Hampton Primary School | C76: 4 | D76: 0.9 | E76: 0 | F76: 64084.1876 | G76: 41360.1188 | H76: 90304.90149 | I76: 9006.898548 | J76: 6235 | K76: 0 | X76: 1 | Y76: 0
A77: 2286 | B77: Hamstreet Primary Academy | F77: 13757.04992 | G77: 8652.439143 | H77: 48453.46335 | I77: 7218.806538 | J77: 6235 | K77: 0 | X77: 1 | Y77: 0
A78: 2288 | B78: Smarden Primary School | F78: 0 | G78: 1654.565001 | H78: 15799.06567 | I78: 579.1612505 | J78: 6235 | K78: 0 | X78: 1 | Y78: 0
A79: 2290 | B79: Tenterden Infant School | F79: 800.552 | G79: 4445.151997 | H79: 22450.12755 | I79: 6125.922085 | J79: 6235 | K79: 0 | X79: 1 | Y79: 0
A80: 2307 | B80: Warden House Primary School | F80: 89044.03438 | G80: 31381.53833 | H80: 76470.20776 | I80: 1192.602433 | J80: 6235 | K80: 0 | X80: 1 | Y80: 0
A81: 2309 | B81: Priory Fields School | F81: 136744.2885 | G81: 47288.2382 | H81: 77292.84269 | I81: 40556.02649 | J81: 6235 | K81: 0 | X81: 1 | Y81: 0
A82: 2310 | B82: Barton Junior School | F82: 64234.2911 | G82: 23094.08748 | H82: 35215.63146 | I82: 3607.48745 | J82: 6235 | K82: 0 | X82: 1 | Y82: 0
A83: 2313 | B83: St Martin's School | F83: 33509.97819 | G83: 7171.711881 | H83: 36510.30053 | I83: 4112.535693 | J83: 6235 | K83: 0 | X83: 1 | Y83: 0
A84: 2315 | B84: White Cliffs Primary College for the Arts | F84: 107334.0094 | G84: 34886.84693 | H84: 47686.89691 | I84: 12255.92975 | J84: 6235 | K84: 0 | X84: 1 | Y84: 41094.9
A85: 2316 | B85: Shatterlocks Infant School | C85: 4 | D85: 0.9 | E85: 0.339221169 | F85: 54687.7085 | G85: 14699.13425 | H85: 24483.23859 | I85: 5507.860303 | J85: 6235 | K85: 0 | X85: 1 | Y85: 0
A86: 2435 | B86: South Avenue Primary School | F86: 84233.08075 | G86: 31986.96271 | H86: 45781.86614 | I86: 10139.18222 | J86: 6235 | K86: 0 | X86: 1 | Y86: 0
A87: 2438 | B87: Joydens Wood Junior School | F87: 7265.0094 | G87: 5370.795911 | H87: 47133.41402 | I87: 5153.5535 | J87: 6235 | K87: 0.0364 | X87: 1 | Y87: 22830.71
A88: 2462 | B88: Riverview Infant School | F88: 49920.28635 | G88: 7725.977249 | H88: 55756.49535 | I88: 22671.35859 | J88: 6235 | K88: 0 | X88: 1 | Y88: 0
A89: 2463 | B89: Minterne Community Junior School | F89: 33568.14605 | G89: 13977.73125 | H89: 61572.90639 | I89: 1546.06605 | J89: 6235 | K89: 0 | L89: 211.4212351 | P89: =VLOOKUP(A89,'SRP Rates'!C:K,4,FALSE) -> 25 | R89: =VLOOKUP(A89,'SRP Rates'!C:K,6,FALSE) -> 24 | X89: 1 | Y89: 0
A90: 2500 | B90: Joydens Wood Infant School | F90: 6984.8162 | G90: 1280.140681 | H90: 36213.43024 | I90: 14465.08766 | J90: 6235 | K90: 0.0364 | X90: 1 | Y90: 0
A91: 2511 | B91: Hartley Primary Academy | F91: 24957.2086 | G91: 9339.309245 | H91: 37154.24447 | I91: 7206.313466 | J91: 6235 | K91: 0.0364 | X91: 1 | Y91: 0
A92: 2513 | B92: Oaks Community Infant School, The | C92: 4 | D92: 0.9 | E92: 0 | F92: 26047.9607 | G92: 6593.533498 | H92: 43777.74872 | I92: 9833.312565 | J92: 6235 | K92: 0 | L92: 307.4408035 | P92: =VLOOKUP(A92,'SRP Rates'!C:K,4,FALSE) -> 12 | R92: =VLOOKUP(A92,'SRP Rates'!C:K,6,FALSE) -> 12 | X92: 1 | Y92: 0
A93: 2523 | B93: Upton Junior School | F93: 35314.3501 | G93: 21508.39697 | H93: 93843.5533 | I93: 5668.90885 | J93: 6235 | K93: 0 | X93: 1 | Y93: 0
A94: 2531 | B94: Vale View Community School | C94: 4 | D94: 0.9 | E94: 0.297683883 | F94: 62342.987 | G94: 19951.13242 | H94: 44143.89961 | I94: 9767.210919 | J94: 6235 | K94: 0 | X94: 1 | Y94: 0
A95: 2595 | B95: Grove Park Primary School | F95: 43860.2427 | G95: 13908.65418 | H95: 89223.9398 | I95: 7788.53843 | J95: 6235 | K95: 0 | X95: 1 | Y95: 0
A96: 2596 | B96: Chilton Academy Primary School | F96: 54637.674 | G96: 17220.53511 | H96: 55339.85434 | I96: 11972.32206 | J96: 6235 | K96: 0 | X96: 1 | Y96: 0
A97: 2608 | B97: St Stephen's Junior School | F97: 85348.8501 | G97: 26756.56247 | H97: 54533.32673 | I97: 18081.86444 | J97: 6235 | K97: 0 | X97: 1 | Y97: 0
A98: 2625 | B98: Godinton Primary Academy | F98: 20253.9656 | G98: 9083.728044 | H98: 67885.55227 | I98: 7217.84596 | J98: 6235 | K98: 0 | X98: 1 | Y98: 0
A99: 2650 | B99: Dymchurch Primary School | F99: 28899.9272 | G99: 17540.91842 | H99: 34512.50605 | I99: 2944.887714 | J99: 6235 | K99: 0 | X99: 1 | Y99: 0
A100: 2654 | B100: Canterbury Primary School, The | F100: 67766.7268 | G100: 28176.65033 | H100: 45696.96764 | I100: 14962.67668 | J100: 6235 | K100: 0 | L100: 683.0324649 | P100: =VLOOKUP(A100,'SRP Rates'!C:K,4,FALSE) -> 8 | R100: =VLOOKUP(A100,'SRP Rates'!C:K,6,FALSE) -> 12 | X100: 1 | Y100: 76481.94
A101: 2656 | B101: Meopham Community Academy | F101: 9530.664647 | G101: 7845.762947 | H101: 71542.9749 | I101: 2387.490737 | J101: 6235 | K101: 0 | X101: 1 | Y101: 0
A102: 2657 | B102: Temple Hill Primary Academy | C102: 4 | D102: 0.9 | E102: 0.200763549 | F102: 175549.2142 | G102: 64980.11952 | H102: 135930.3494 | I102: 63325.47958 | J102: 6235 | K102: 0.0364 | X102: 1 | Y102: 71916.43
A103: 2658 | B103: Westcourt Primary & Nursery School | C103: 4 | D103: 0.9 | E103: 0.283838121 | F103: 66286.44685 | G103: 23573.81419 | H103: 37662.69333 | I103: 27367.14617 | J103: 6235 | K103: 0 | X103: 1 | Y103: 34245.75
A104: 2676 | B104: West Hill Primary School | F104: 6144.2366 | G104: 9202.566737 | H104: 82447.61541 | I104: 49466.88899 | J104: 6235 | K104: 0.0364 | X104: 1 | Y104: 82189.8
A105: 2679 | B105: Brent Primary School, The | F105: 37796.0613 | G105: 27784.74236 | H105: 74580.09531 | I105: 21484.36173 | J105: 6235 | K105: 0.0364 | X105: 1 | Y105: 34245.75
A106: 2684 | B106: Wentworth Primary School | F106: 35084.1914 | G106: 16690.84706 | H106: 92558.98032 | I106: 20341.37881 | J106: 6235 | K106: 0.0364 | X106: 1 | Y106: 22830.5
A107: 2685 | B107: Gateway Primary Academy, The | F107: 7752.059519 | G107: 4007.096644 | H107: 40010.63678 | I107: 18623.97428 | J107: 6235 | K107: 0.0364 | X107: 1 | Y107: 0
A108: 2686 | B108: Furley Park Primary Academy | F108: 25294.0044 | G108: 20649.75155 | H108: 86680.62821 | I108: 21977.34458 | J108: 6235 | K108: 0 | X108: 1 | Y108: 31962.7
A109: 3019 | B109: Shorne Church of England (V.C) Primary School | F109: 14910.281 | G109: 3368.667275 | H109: 35096.16112 | I109: 2406.977588 | J109: 6235 | K109: 0 | X109: 1 | Y109: 0
A110: 3021 | B110: Stone St Mary's CEP School | F110: 32422.356 | G110: 21060.12816 | H110: 97523.4298 | I110: 34944.2805 | J110: 6235 | K110: 0.0364 | X110: 1 | Y110: 25113.55
A111: 3025 | B111: Chiddingstone CEP School | F111: 2680.10887 | G111: 2568.191883 | H111: 12301.43975 | I111: 601.2479083 | J111: 6235 | K111: 0.0364 | X111: 1 | Y111: 0
A112: 3059 | B112: St Mark's CEP School, Eccles | F112: 13349.2046 | G112: 4316.004348 | H112: 29502.57232 | I112: 608.2121698 | J112: 6235 | K112: 0 | X112: 1 | Y112: 0
A113: 3086 | B113: West Malling CEP School | F113: 25517.595 | G113: 12138.41213 | H113: 45345.59232 | I113: 2972.155193 | J113: 6235 | K113: 0 | L113: 247.6399873 | P113: =VLOOKUP(A113,'SRP Rates'!C:K,4,FALSE) -> 20 | R113: =VLOOKUP(A113,'SRP Rates'!C:K,6,FALSE) -> 18 | X113: 1 | Y113: 0
A114: 3110 | B114: Milstead and Frinsted CEP School | F114: 10357.1415 | G114: 5082.879769 | H114: 20464.95423 | I114: 1202.495817 | J114: 6235 | K114: 0 | X114: 1 | Y114: 0
A115: 3112 | B115: Selling CEP School | F115: 6764.6644 | G115: 4709.014467 | H115: 24447.53522 | I115: 2851.226345 | J115: 6235 | K115: 0 | X115: 1 | Y115: 0
A116: 3119 | B116: Adisham CEP School | F116: 13989.6462 | G116: 2689.08544 | H116: 9052.830931 | I116: 0 | J116: 6235 | K116: 0 | X116: 1 | Y116: 0
A117: 3128 | B117: Sturry CEP School | F117: 50484.8105 | G117: 25031.6922 | H117: 38212.2199 | I117: 4226.523758 | J117: 6235 | K117: 0 | X117: 1 | Y117: 0
A118: 3140 | B118: Kingsnorth CEP School | F118: 16389.65787 | G118: 11439.23021 | H118: 52507.2177 | I118: 7794.925199 | J118: 6235 | K118: 0 | X118: 1 | Y118: 0
A119: 3142 | B119: Pluckley CEP School | F119: 1270.8763 | G119: 3338.957754 | H119: 13304.76533 | I119: 2447.937913 | J119: 6235 | K119: 0 | X119: 1 | Y119: 0
A120: 3143 | B120: St Michael's CEP School | F120: 0 | G120: 6116.882739 | H120: 27650.97444 | I120: 9624.805551 | J120: 6235 | K120: 0 | X120: 1 | Y120: 0
A121: 3144 | B121: Tenterden CEJ School | F121: 440.3036 | G121: 10078.75129 | H121: 31814.66279 | I121: 4638.19815 | J121: 6235 | K121: 0 | X121: 1 | Y121: 0
A122: 3148 | B122: Christ Church CEP Academy, Folkestone | F122: 159840.2137 | G122: 42475.22005 | H122: 85603.2463 | I122: 32571.03394 | J122: 6235 | K122: 0 | X122: 1 | Y122: 0
A123: 3306 | B123: Brenchley & Matfield CEP School | F123: 966.4845964 | G123: 5012.154307 | H123: 24694.44799 | I123: 1915.275853 | J123: 6235 | K123: 0 | X123: 1 | Y123: 0
A124: 3324 | B124: Leybourne, St Peter & St Paul CEP School | F124: 2281.5732 | G124: 1850.029926 | H124: 27013.30426 | I124: 1203.45551 | J124: 6235 | K124: 0 | X124: 1 | Y124: 0
A125: 3329 | B125: Borden CEP School | F125: 7199.96455 | G125: 2140.641378 | H125: 7522.134006 | I125: 2964.433429 | J125: 6235 | K125: 0 | X125: 1 | Y125: 0
A126: 3330 | B126: Bredgar CEP School | F126: 4423.0498 | G126: 2368.286837 | H126: 11655.73969 | I126: 0 | J126: 6235 | K126: 0 | X126: 1 | Y126: 0
A127: 3333 | B127: Chilmington Green | F127: 8621.561083 | G127: 3523.233086 | H127: 10207.40053 | I127: 2215.755937 | J127: 3637.083333 | K127: 0 | X127: 1 | Y127: 0
A128: 3343 | B128: Charing CEP School | F128: 1100.759 | G128: 7241.517474 | H128: 25610.39941 | I128: 1211.934559 | J128: 6235 | K128: 0 | X128: 1 | Y128: 0
A129: 3348 | B129: St Eanswythe's CEP School | F129: 71259.1349 | G129: 11129.21711 | H129: 43352.8409 | I129: 9568.522862 | J129: 6235 | K129: 0 | X129: 1 | Y129: 0
A130: 3349 | B130: Folkestone St Mary's CEP Academy | C130: 4 | D130: 0.9 | E130: 0.235377954 | F130: 143353.846 | G130: 29893.03347 | H130: 75269.25403 | I130: 6648.521994 | J130: 6235 | K130: 0 | X130: 1 | Y130: 0
A131: 3372 | B131: St John's CEP School, Maidstone | F131: 6751.15018 | G131: 3285.795955 | H131: 41668.49103 | I131: 12683.0576 | J131: 6235 | K131: 0 | X131: 1 | Y131: 34245.75
A132: 3708 | B132: St John's Catholic Primary School, Gravesend | C132: 4 | D132: 0.9 | E132: 0.020768643 | F132: 115497.8868 | G132: 20473.28013 | H132: 115523.3519 | I132: 71080.86383 | J132: 6235 | K132: 0 | X132: 1 | Y132: 34245.71
A133: 3714 | B133: St Peter's Catholic Primary School, Sittingbourne | F133: 24096.6152 | G133: 2061.78785 | H133: 24942.39058 | I133: 11236.43632 | J133: 6235 | K133: 0 | X133: 1 | Y133: 0
A134: 3715 | B134: St Mary's Catholic Primary School, Whitstable | F134: 12445.75812 | G134: 7795.381755 | H134: 45328.187 | I134: 7153.689399 | J134: 6235 | K134: 0 | X134: 1 | Y134: 0
A135: 3716 | B135: St Teresa's Catholic Primary School | F135: 18172.5304 | G135: 5525.009628 | H135: 26818.90419 | I135: 20052.00816 | J135: 6235 | K135: 0 | X135: 1 | Y135: 0
A136: 3719 | B136: St Joseph's Catholic Primary School, Aylesham | F136: 30260.8656 | G136: 11525.5949 | H136: 15554.73123 | I136: 624.8683619 | J136: 6235 | K136: 0 | X136: 1 | Y136: 0
A137: 3720 | B137: St Mary's Catholic School, Deal | F137: 32382.3284 | G137: 8172.669737 | H137: 30003.8883 | I137: 4229.468045 | J137: 6235 | K137: 0 | X137: 1 | Y137: 0
A138: 3740 | B138: St Richard's Catholic Primary School, Dover | F138: 55401.66025 | G138: 8960.763279 | H138: 30330.25009 | I138: 16926.00824 | J138: 6235 | K138: 0 | X138: 1 | Y138: 0
A139: 3743 | B139: St Simon of England RCP School, Ashford | F139: 48703.5823 | G139: 10175.39533 | H139: 52771.90305 | I139: 32885.93532 | J139: 6235 | K139: 0 | X139: 1 | Y139: 0
A140: 3744 | B140: St Margaret Clitherow Catholic Primary School | F140: 22555.5526 | G140: 3455.259242 | H140: 52977.92645 | I140: 33451.66934 | J140: 6235 | K140: 0 | X140: 1 | Y140: 0
A141: 3745 | B141: More Park RCP School | F141: 16571.4264 | G141: 4414.844142 | H141: 26596.89976 | I141: 6032.000119 | J141: 6235 | K141: 0 | X141: 1 | Y141: 0
A142: 3751 | B142: St Thomas' Catholic Primary School, Sevenoaks | F142: 600.414 | G142: 2788.322616 | H142: 36657.68475 | I142: 12034.5551 | J142: 6235 | K142: 0.0364 | X142: 1 | Y142: 0
A143: 3754 | B143: St Augustine's Catholic Primary School | F143: 17241.8887 | G143: 6253.553134 | H143: 51182.48229 | I143: 45136.69906 | J143: 6235 | K143: 0 | X143: 1 | Y143: 0
A144: 3889 | B144: St Gregory's Catholic Primary School, Margate | C144: 4 | D144: 0.9 | E144: 0.353066931 | F144: 82511.89395 | G144: 12822.69727 | H144: 62162.33312 | I144: 9744.901164 | J144: 6235 | K144: 0 | X144: 1 | Y144: 0
A145: 3890 | B145: St Joseph's Catholic Primary School, Broadstairs | F145: 33171.61049 | G145: 9481.186312 | H145: 29679.80022 | I145: 7186.184098 | J145: 6235 | K145: 0 | X145: 1 | Y145: 0
A146: 3900 | B146: Whitehill Primary School | C146: 4 | D146: 0.9 | E146: 0.034614405 | F146: 125388.0255 | G146: 41244.83377 | H146: 151133.0439 | I146: 41378.34956 | J146: 6235 | K146: 0 | X146: 1 | Y146: 0
A147: 3912 | B147: Westlands Primary School | F147: 77653.09425 | G147: 33750.7651 | H147: 79308.56845 | I147: 11804.72084 | J147: 6235 | K147: 0 | X147: 1 | Y147: 9132.2
A148: 3914 | B148: Oakfield Primary Academy | C148: 4 | D148: 0.9 | E148: 0 | F148: 92894.0527 | G148: 37013.22242 | H148: 98675.51658 | I148: 50449.38043 | J148: 6235 | K148: 0.0364 | L148: 623.7938197 | P148: =VLOOKUP(A148,'SRP Rates'!C:K,4,FALSE) -> 12 | R148: =VLOOKUP(A148,'SRP Rates'!C:K,6,FALSE) -> 14 | X148: 1 | Y148: 0
A149: 3915 | B149: Manor Community Primary School | C149: 4 | D149: 0.9 | E149: 0.083074572 | F149: 139626.2757 | G149: 40964.95843 | H149: 114687.9887 | I149: 34344.75297 | J149: 6235 | K149: 0.0364 | X149: 1 | Y149: 0
A150: 4000 | B150: St Augustine Academy | F150: 85318.8294 | G150: 74711.01158 | H150: 205438.7377 | I150: 30683.7006 | J150: 5580 | K150: 0 | L150: 660.3810265 | P150: =VLOOKUP(A150,'SRP Rates'!C:K,4,FALSE) -> 9 | R150: =VLOOKUP(A150,'SRP Rates'!C:K,6,FALSE) -> 10 | X150: 2 | Y150: 0
A151: 4001 | B151: Ebbsfleet Academy, The | F151: 123840.391 | G151: 61813.09549 | H151: 131365.8132 | I151: 37420.80255 | J151: 5580 | K151: 0.0364 | X151: 2 | Y151: 0
A152: 4002 | B152: Sittingbourne Community College | F152: 372126.5903 | G152: 169506.815 | H152: 352529.0048 | I152: 26333.15735 | J152: 5580 | K152: 0 | L152: 295.7316856 | N152: 837.4507425 | P152: 47 | R152: 46 | X152: 2 | Y152: 95064.25
A153: 4003 | B153: High Weald Academy, The | F153: 7204.968 | G153: 24425.38532 | H153: 111726.2005 | I153: 2800.586244 | J153: 5580 | K153: 0 | X153: 2 | Y153: 0
A154: 4004 | B154: Meopham School | F154: 71409.46269 | G154: 45273.97339 | H154: 188956.6125 | I154: 11087.6452 | J154: 5580 | K154: 0 | L154: 679.0437988 | P154: =VLOOKUP(A154,'SRP Rates'!C:K,4,FALSE) -> 16 | R154: =VLOOKUP(A154,'SRP Rates'!C:K,6,FALSE) -> 15 | X154: 2 | Y154: 0
A155: 4006 | B155: Trinity School | F155: 2976.077953 | G155: 30836.21643 | H155: 124401.9269 | I155: 6929.77825 | J155: 5580 | K155: 0.0364 | X155: 2 | Y155: 95064.25
A156: 4007 | B156: Wye School | F156: 28015.98437 | G156: 32284.93493 | H156: 112593.1304 | I156: 8315.7339 | J156: 5580 | K156: 0 | X156: 2 | Y156: 0
A157: 4009 | B157: Hadlow Rural Community School | F157: 27904.73353 | G157: 37169.9071 | H157: 126234.2771 | I157: 0 | J157: 5580 | K157: 0 | X157: 2 | Y157: 0
A158: 4012 | B158: Leigh UTC, The | F158: 49037.21399 | G158: 31575.94638 | H158: 65017.25514 | I158: 4157.86695 | J158: 5580 | K158: 0.0364 | X158: 2 | Y158: 31688.09
A159: 4013 | B159: St Edmund's Catholic School | F159: 182300.7007 | G159: 54688.66154 | H159: 154796.4632 | I159: 31876.97995 | J159: 5580 | K159: 0 | X159: 2 | Y159: 0
A160: 4015 | B160: Lenham School, The | F160: 20539.16225 | G160: 38799.38825 | H160: 153462.0291 | I160: 0 | J160: 5580 | K160: 0 | X160: 2 | Y160: 0
A161: 4016 | B161: Charles Dickens School, The | F161: 343976.047 | G161: 133027.9131 | H161: 293935.464 | I161: 20886.20956 | J161: 5580 | K161: 0 | L161: 1045.042413 | P161: =VLOOKUP(A161,'SRP Rates'!C:K,4,FALSE) -> 3 | R161: =VLOOKUP(A161,'SRP Rates'!C:K,6,FALSE) -> 4 | X161: 2 | Y161: 0
A162: 4018 | B162: Goodwin Academy | F162: 125771.7227 | G162: 71647.53963 | H162: 190357.6946 | I162: 8345.274695 | J162: 5580 | K162: 0 | L162: 368.7775294 | P162: =VLOOKUP(A162,'SRP Rates'!C:K,4,FALSE) -> 13 | R162: =VLOOKUP(A162,'SRP Rates'!C:K,6,FALSE) -> 13 | X162: 2 | Y162: 0
A163: 4031 | B163: Orchards Academy | F163: 140185.5899 | G163: 71283.3029 | H163: 167767.6731 | I163: 16631.4678 | J163: 5580 | K163: 0.0364 | X163: 2 | Y163: 0
A164: 4046 | B164: Weald of Kent Grammar School | F164: 19085.59365 | G164: 15716.71641 | H164: 10059.89523 | I164: 4161.671037 | J164: 5580 | K164: 0 | X164: 2 | Y164: 190128.56
A165: 4058 | B165: Invicta Grammar School | F165: 68830.39173 | G165: 25518.05026 | H165: 5958.025803 | I165: 13859.5565 | J165: 5580 | K165: 0 | X165: 2 | Y165: 0
A166: 4080 | B166: Highsted Grammar School | F166: 94463.62845 | G166: 21437.18072 | H166: 6606.792315 | I166: 0 | J166: 5580 | K166: 0 | X166: 2 | Y166: 0
A167: 4092 | B167: Highworth Grammar School | F167: 73266.9522 | G167: 28491.85111 | H167: 8459.39409 | I167: 23561.24605 | J167: 5580 | K167: 0 | X167: 2 | Y167: 0
A168: 4101 | B168: Harvey Grammar School, The | F168: 115337.3898 | G168: 28749.18737 | H168: 10877.26541 | I168: 0 | J168: 5580 | K168: 0 | X168: 2 | Y168: 0
A169: 4113 | B169: Astor College | F169: 279583.4207 | G169: 115094.7666 | H169: 194859.2483 | I169: 23561.24605 | J169: 5580 | K169: 0 | X169: 2 | Y169: 0
A170: 4120 | B170: King Ethelbert School | F170: 129809.5068 | G170: 79946.10346 | H170: 186120.1126 | I170: 4157.86695 | J170: 5580 | K170: 0 | X170: 2 | Y170: 0
A171: 4172 | B171: Hartsdown Academy | F171: 384445.0842 | G171: 144367.8877 | H171: 302319.5378 | I171: 74841.6051 | J171: 5580 | K171: 0 | L171: 853.0793855 | P171: =VLOOKUP(A171,'SRP Rates'!C:K,4,FALSE) -> 3 | R171: =VLOOKUP(A171,'SRP Rates'!C:K,6,FALSE) -> 4 | X171: 2 | Y171: 0
A172: 4196 | B172: Towers School and Sixth Form Centre, The | F172: 151101.4149 | G172: 98950.8232 | H172: 275381.735 | I172: 15317.42494 | J172: 5580 | K172: 0 | X172: 2 | Y172: 0
A173: 4242 | B173: Abbey School, The | F173: 217560.0129 | G173: 120496.3761 | H173: 277407.1666 | I173: 20789.33475 | J173: 5580 | K173: 0 | L173: 618.6372829 | P173: =VLOOKUP(A173,'SRP Rates'!C:K,4,FALSE) -> 33 | R173: =VLOOKUP(A173,'SRP Rates'!C:K,6,FALSE) -> 30 | X173: 2 | Y173: 28519.28
A174: 4249 | B174: Valley Park School | F174: 95340.73975 | G174: 70200.97044 | H174: 289319.5656 | I174: 18017.42345 | J174: 5580 | K174: 0 | X174: 2 | Y174: 0
A175: 4444 | B175: Turner Free School | F175: 10868.19882 | G175: 5496.960473 | H175: 15066.19955 | I175: 1462.408657 | J175: 3255 | K175: 0 | X175: 2 | Y175: 0
A176: 4527 | B176: Borden Grammar School | F176: 95114.63417 | G176: 19506.54703 | H176: 7883.296092 | I176: 2771.9113 | J176: 5580 | K176: 0 | X176: 2 | Y176: 0
A177: 4528 | B177: Norton Knatchbull School, The | F177: 60164.26689 | G177: 28099.33964 | H177: 9986.329921 | I177: 8315.7339 | J177: 5580 | K177: 0 | X177: 2 | Y177: 0
A178: 4633 | B178: Ursuline College | F178: 179398.6998 | G178: 57201.37045 | H178: 156590.3647 | I178: 12473.60085 | J178: 5580 | K178: 0 | X178: 2 | Y178: 47532.13
A179: 5204 | B179: Sutton-at-Hone CEP School | F179: 25921.51884 | G179: 15522.95345 | H179: 63809.40746 | I179: 6687.669281 | J179: 6235 | K179: 0.0364 | X179: 1 | Y179: 11415.25
A180: 5209 | B180: Allington Primary School | F180: 3592.4771 | G180: 2848.072386 | H180: 42289.01131 | I180: 11983.05936 | J180: 6235 | K180: 0 | X180: 1 | Y180: 0
A181: 5210 | B181: St Botolph's CEP School | F181: 75782.2537 | G181: 16805.60172 | H181: 56109.53691 | I181: 24040.39915 | J181: 6235 | K181: 0 | X181: 1 | Y181: 34245.75
A182: 5215 | B182: Horton Kirby CEP School | F182: 5673.9123 | G182: 11305.18672 | H182: 53521.62433 | I182: 6665.118773 | J182: 6235 | K182: 0.0364 | X182: 1 | Y182: 0
A183: 5216 | B183: Stella Maris Catholic Primary School | F183: 54158.80012 | G183: 13096.14397 | H183: 45409.64636 | I183: 12585.67251 | J183: 6235 | K183: 0 | X183: 1 | Y183: 0
A184: 5217 | B184: Our Lady of Hartley Catholic Primary School | F184: 10021.91035 | G184: 4879.564578 | H184: 23557.34696 | I184: 2919.433233 | J184: 6235 | K184: 0.0364 | X184: 1 | Y184: 0
A185: 5219 | B185: Wilmington Primary School | F185: 6674.6023 | G185: 2357.277574 | H185: 28306.22463 | I185: 4809.983267 | J185: 6235 | K185: 0.0364 | X185: 1 | Y185: 0
A186: 5220 | B186: Halfway Houses Primary School | F186: 97721.52479 | G186: 29926.2159 | H186: 99752.25524 | I186: 2986.44863 | J186: 6235 | K186: 0 | X186: 1 | Y186: 9132.2
A187: 5222 | B187: St Joseph's Catholic Primary School, Northfleet | F187: 39707.3792 | G187: 7052.472893 | H187: 39132.25596 | I187: 18325.42995 | J187: 6235 | K187: 0 | X187: 1 | Y187: 0
A188: 5228 | B188: St George's Church of England Primary School | F188: 61892.6765 | G188: 16032.85504 | H188: 56102.32589 | I188: 1206.977168 | J188: 6235 | K188: 0 | X188: 1 | Y188: 0
A189: 5400 | B189: Wilmington Grammar School for Girls | F189: 87181.19326 | G189: 18173.75193 | H189: 3898.083096 | I189: 13859.5565 | J189: 5580 | K189: 0.0364 | X189: 2 | Y189: 47532.14
A190: 5401 | B190: Maplesden Noakes School, The | F190: 83642.67365 | G190: 76610.54886 | H190: 224806.8796 | I190: 41625.07427 | J190: 5580 | K190: 0 | X190: 2 | Y190: 0
A191: 5403 | B191: Wilmington Grammar School for Boys | F191: 87080.0438 | G191: 25579.33598 | H191: 11366.08972 | I191: 2771.9113 | J191: 5580 | K191: 0.0364 | X191: 2 | Y191: 17428.44
A192: 5404 | B192: Saint George's CE School | F192: 159160.4845 | G192: 67532.72437 | H192: 274249.8102 | I192: 8315.7339 | J192: 5580 | K192: 0 | X192: 2 | Y192: 0
A193: 5406 | B193: Dartford Grammar School | F193: 118741.8754 | G193: 22962.74982 | H193: 6029.179495 | I193: 40523.32372 | J193: 5580 | K193: 0.0364 | X193: 2 | Y193: 0
A194: 5408 | B194: Homewood School and Sixth Form Centre | F194: 130631.9084 | G194: 142264.1291 | H194: 493048.7089 | I194: 30508.98132 | J194: 5580 | K194: 0 | X194: 2 | Y194: 0
A195: 5409 | B195: Wrotham School | F195: 27458.9336 | G195: 42750.05757 | H195: 191852.6763 | I195: 1385.95565 | J195: 5580 | K195: 0 | X195: 2 | Y195: 0
A196: 5411 | B196: Dartford Grammar School for Girls | F196: 108049.5027 | G196: 25484.25638 | H196: 4068.003579 | I196: 27719.113 | J196: 5580 | K196: 0.0364 | X196: 2 | Y196: 31688.57
A197: 5414 | B197: Fulston Manor School | F197: 216284.1332 | G197: 76970.17665 | H197: 255172.9577 | I197: 4161.849581 | J197: 5580 | K197: 0 | X197: 2 | Y197: 0
A198: 5416 | B198: Cranbrook School | F198: 3582.4702 | G198: 4196.56118 | H198: 0 | I198: 15245.51215 | J198: 5580 | K198: 0 | X198: 2 | Y198: 0
A199: 5418 | B199: Skinners' School, The | F199: 14515.00845 | G199: 5004.052632 | H199: 5190.487205 | I199: 27901.71585 | J199: 5580 | K199: 0 | X199: 2 | Y199: 7922.02
A200: 5421 | B200: Canterbury Academy, The | F200: 222433.4286 | G200: 125549.0998 | H200: 284268.0645 | I200: 23561.24605 | J200: 5580 | K200: 0 | L200: 207.7579814 | P200: =VLOOKUP(A200,'SRP Rates'!C:K,4,FALSE) -> 25 | R200: =VLOOKUP(A200,'SRP Rates'!C:K,6,FALSE) -> 25 | X200: 2 | Y200: 0
A201: 5422 | B201: Oakwood Park Grammar School, Maidstone | F201: 42294.16285 | G201: 15875.79675 | H201: 4956.082003 | I201: 8315.7339 | J201: 5580 | K201: 0 | X201: 2 | Y201: 0
... 34 more rows

Sheet Home
F9: =IF(dfenum<1,"Please select your DFE number to begin…","") -> Please select your DFE number to begin…
B11: Please enter your DfE number:
B13: =IF(ISERROR(VLOOKUP(dfenum,academies,2,0)),"",(VLOOKUP(dfenum,academies,2,0))) -> 
B14: Phase: | C14: =IF(ISERROR(VLOOKUP(dfenum,academies,24,0)),"",(VLOOKUP(dfenum,academies,24,0))) -> 
B18: The templates in this file are intended to provide a means to forecast and reconcile funding due from Kent County Council.
B19: All funding due from Kent County Council to academies is paid on the Dedicated Schools Grant financial year April 2018 to March 2019
B20: If you have any queries about funding due from Kent County Council, please refer to the guidance documents provided on KELSI in the first instance (documents - funding guidance, input guidance).

Sheet Place Plus (hidden)
M1: Notional SEN budget top up rate working
D2: =dfenum -> 0
M3: Notional AEN/SEN Budget
D4: =academyname ->  | P4: IDACI | S4: =IF(ISERROR(VLOOKUP(dfenum,data,6,0)),0,VLOOKUP(dfenum,data,6,0)) -> 0
D5: 2015/16 | P5: Looked After Children | S5: =IF(ISERROR(VLOOKUP(dfenum,data,7,0)),0,VLOOKUP(dfenum,data,7,0)) -> 0
P6: Low Cost, high Incidence SEN | S6: =IF(ISERROR(VLOOKUP(dfenum,data,8,0)),0,VLOOKUP(dfenum,data,8,0)) -> 0
P7: English as an additional language | S7: =IF(ISERROR(VLOOKUP(dfenum,data,9,0)),0,VLOOKUP(dfenum,data,9,0)) -> 0
P8: Element of Lump Sum | S8: =IF(ISERROR(VLOOKUP(dfenum,data,10,0)),0,VLOOKUP(dfenum,data,10,0)) -> 0
P9: Total (with London Fringe if applicable) | U9: =IF(ISERROR(VLOOKUP(dfenum,data,11,0)),0,VLOOKUP(dfenum,data,11,0)) -> 0
M10: School Contribution per Pre-16 Pupil | U10: 6000
M11: AEN/SEN Top Up per Pre-16 Pupil | U11: =IF(U9>=200000,0,6000-(U9*0.03)) -> 6000
C12: Place Plus funding for pupils who have funding agreed under the new rules | M12: Maximum Contribution for all Pre-16 Pupils | U12: =U9/5 -> 0
C13: In the consultation documents these pupils are those in category C C) Pupil does not have a statement but cost of intervention exceeds £6,000 and pupils that have a new EHCP issued post April 2015
C15: Pupil Data | M15: Element 3 top up | AA15: Notional SEN budget top up | AO15: Post 16 Element 2
C16: Name | D16: Date of Birth | E16: Start Date | F16: End Date | G16: Summer Annual top up rate | H16: Autumn Annual top up rate | I16: Spring Annual top up rate | K16: Total Funding Linked to this Pupil | M16: April | N16: May | O16: June | P16: July | Q16: August | R16: September | S16: October | T16: November | U16: December | V16: January | W16: February | X16: March | Y16: Total | AA16: April | AB16: May | AC16: June | AD16: July | AE16: August | AF16: September | AG16: October | AH16: November | AI16: December | AJ16: January | AK16: February | AL16: March | AM16: Total | AO16: April | AP16: May | AQ16: June | AR16: July | AS16: August | AT16: September | AU16: October | AV16: November | AW16: December | AX16: January | AY16: February | AZ16: March | BA16: Total
E17: 2015-04-01 | F17: 2016-03-31 | K17: =Y17+AM17+BA17 -> 0 | M17: =IF(AND($E17<42125,$F17>42095),$G17/12,0) -> 0 | N17: =IF(AND($E17<42156,$F17>42095),$G17/12,0) -> 0 | O17: =IF(AND($E17<42186,$F17>42095),$G17/12,0) -> 0 | P17: =IF(AND($E17<42217,$F17>42095),$G17/12,0) -> 0 | Q17: =IF(AND($E17<42248,$F17>42095),$G17/12,0) -> 0 | R17: =IF(AND($E17<42278,$F17>42248),$H17/12,0) -> 0 | S17: =IF(AND($E17<42309,$F17>42248),$H17/12,0) -> 0 | T17: =IF(AND($E17<42339,$F17>42248),$H17/12,0) -> 0 | U17: =IF(AND($E17<42370,$F17>42248),$H17/12,0) -> 0 | V17: =IF(AND($E17<42401,$F17>42370),$I17/12,0) -> 0 | W17: =IF(AND($E17<42430,$F17>42370),$I17/12,0) -> 0 | X17: =IF(AND($E17<42461,$F17>42370),$I17/12,0) -> 0 | Y17: =SUM(M17:X17) -> 0 | AA17: =IF(AND(M17>0,$D17>36038),sentopup/12,0) -> 0 | AB17: =IF(AND(N17>0,$D17>36038),sentopup/12,0) -> 0 | AC17: =IF(AND(O17>0,$D17>36038),sentopup/12,0) -> 0 | AD17: =IF(AND(P17>0,$D17>36038),sentopup/12,0) -> 0 | AE17: =IF(AND(Q17>0,$D17>36038),sentopup/12,0) -> 0 | AF17: =IF(AND(R17>0,$D17>36403),sentopup/12,0) -> 0 | AG17: =IF(AND(S17>0,$D17>36403),sentopup/12,0) -> 0 | AH17: =IF(AND(T17>0,$D17>36403),sentopup/12,0) -> 0 | AI17: =IF(AND(U17>0,$D17>36403),sentopup/12,0) -> 0 | AJ17: =IF(AND(V17>0,$D17>36403),sentopup/12,0) -> 0 | AK17: =IF(AND(W17>0,$D17>36403),sentopup/12,0) -> 0 | AL17: =IF(AND(X17>0,$D17>36403),sentopup/12,0) -> 0 | AM17: =SUM(AA17:AL17) -> 0 | AO17: =IF(AND(M17>0,$D17<36039),500,0) -> 0 | AP17: =IF(AND(N17>0,$D17<36039),500,0) -> 0 | AQ17: 0 | AR17: 0 | AS17: 0 | AT17: =IF(AND(R17>0,$D17<36404),500,0) -> 0 | AU17: =IF(AND(S17>0,$D17<36404),500,0) -> 0 | AV17: 0 | AW17: 0 | AX17: 0 | AY17: 0 | AZ17: 0 | BA17: =SUM(AO17:AZ17) -> 0
E18: 2015-04-01 | F18: 2016-03-31 | K18: =Y18+AM18+BA18 -> 0 | M18: =IF(AND($E18<42125,$F18>42095),$G18/12,0) -> 0 | N18: =IF(AND($E18<42156,$F18>42095),$G18/12,0) -> 0 | O18: =IF(AND($E18<42186,$F18>42095),$G18/12,0) -> 0 | P18: =IF(AND($E18<42217,$F18>42095),$G18/12,0) -> 0 | Q18: =IF(AND($E18<42248,$F18>42095),$G18/12,0) -> 0 | R18: =IF(AND($E18<42278,$F18>42248),$H18/12,0) -> 0 | S18: =IF(AND($E18<42309,$F18>42248),$H18/12,0) -> 0 | T18: =IF(AND($E18<42339,$F18>42248),$H18/12,0) -> 0 | U18: =IF(AND($E18<42370,$F18>42248),$H18/12,0) -> 0 | V18: =IF(AND($E18<42401,$F18>42370),$I18/12,0) -> 0 | W18: =IF(AND($E18<42430,$F18>42370),$I18/12,0) -> 0 | X18: =IF(AND($E18<42461,$F18>42370),$I18/12,0) -> 0 | Y18: =SUM(M18:X18) -> 0 | AA18: 0 | AB18: 0 | AC18: 0 | AD18: 0 | AE18: 0 | AF18: 0 | AG18: 0 | AH18: 0 | AI18: 0 | AJ18: 0 | AK18: 0 | AL18: 0 | AM18: =SUM(AA18:AL18) -> 0 | AO18: =IF(AND(M18>0,$D18<36039),500,0) -> 0 | AP18: =IF(AND(N18>0,$D18<36039),500,0) -> 0 | AQ18: =IF(AND(O18>0,$D18<36039),500,0) -> 0 | AR18: =IF(AND(P18>0,$D18<36039),500,0) -> 0 | AS18: =IF(AND(Q18>0,$D18<36039),500,0) -> 0 | AT18: =IF(AND(R18>0,$D18<36404),500,0) -> 0 | AU18: =IF(AND(S18>0,$D18<36404),500,0) -> 0 | AV18: =IF(AND(T18>0,$D18<36404),500,0) -> 0 | AW18: =IF(AND(U18>0,$D18<36404),500,0) -> 0 | AX18: =IF(AND(V18>0,$D18<36404),500,0) -> 0 | AY18: =IF(AND(W18>0,$D18<36404),500,0) -> 0 | AZ18: =IF(AND(X18>0,$D18<36404),500,0) -> 0 | BA18: =SUM(AO18:AZ18) -> 0
E19: 2015-04-01 | F19: 2016-03-31 | K19: 0 | M19: 0 | N19: 0 | O19: 0 | P19: 0 | Q19: 0 | R19: 0 | S19: 0 | T19: 0 | U19: 0 | V19: 0 | W19: 0 | X19: 0 | Y19: 0 | AA19: 0 | AB19: 0 | AC19: 0 | AD19: 0 | AE19: 0 | AF19: 0 | AG19: 0 | AH19: 0 | AI19: 0 | AJ19: 0 | AK19: 0 | AL19: 0 | AM19: 0 | AO19: 0 | AP19: 0 | AQ19: 0 | AR19: 0 | AS19: 0 | AT19: 0 | AU19: 0 | AV19: 0 | AW19: 0 | AX19: 0 | AY19: 0 | AZ19: 0 | BA19: 0
E20: 2015-04-01 | F20: 2016-03-31 | K20: 0 | M20: 0 | N20: 0 | O20: 0 | P20: 0 | Q20: 0 | R20: 0 | S20: 0 | T20: 0 | U20: 0 | V20: 0 | W20: 0 | X20: 0 | Y20: 0 | AA20: 0 | AB20: 0 | AC20: 0 | AD20: 0 | AE20: 0 | AF20: 0 | AG20: 0 | AH20: 0 | AI20: 0 | AJ20: 0 | AK20: 0 | AL20: 0 | AM20: 0 | AO20: 0 | AP20: 0 | AQ20: 0 | AR20: 0 | AS20: 0 | AT20: 0 | AU20: 0 | AV20: 0 | AW20: 0 | AX20: 0 | AY20: 0 | AZ20: 0 | BA20: 0
E21: 2015-04-01 | F21: 2016-03-31 | K21: 0 | M21: 0 | N21: 0 | O21: 0 | P21: 0 | Q21: 0 | R21: 0 | S21: 0 | T21: 0 | U21: 0 | V21: 0 | W21: 0 | X21: 0 | Y21: 0 | AA21: 0 | AB21: 0 | AC21: 0 | AD21: 0 | AE21: 0 | AF21: 0 | AG21: 0 | AH21: 0 | AI21: 0 | AJ21: 0 | AK21: 0 | AL21: 0 | AM21: 0 | AO21: 0 | AP21: 0 | AQ21: 0 | AR21: 0 | AS21: 0 | AT21: 0 | AU21: 0 | AV21: 0 | AW21: 0 | AX21: 0 | AY21: 0 | AZ21: 0 | BA21: 0
E22: 2015-04-01 | F22: 2016-03-31 | K22: 0 | M22: 0 | N22: 0 | O22: 0 | P22: 0 | Q22: 0 | R22: 0 | S22: 0 | T22: 0 | U22: 0 | V22: 0 | W22: 0 | X22: 0 | Y22: 0 | AA22: 0 | AB22: 0 | AC22: 0 | AD22: 0 | AE22: 0 | AF22: 0 | AG22: 0 | AH22: 0 | AI22: 0 | AJ22: 0 | AK22: 0 | AL22: 0 | AM22: 0 | AO22: 0 | AP22: 0 | AQ22: 0 | AR22: 0 | AS22: 0 | AT22: 0 | AU22: 0 | AV22: 0 | AW22: 0 | AX22: 0 | AY22: 0 | AZ22: 0 | BA22: 0
E23: 2015-04-01 | F23: 2016-03-31 | K23: =Y23+AM23+BA23 -> 0 | M23: 0 | N23: 0 | O23: 0 | P23: 0 | Q23: 0 | R23: 0 | S23: 0 | T23: 0 | U23: 0 | V23: 0 | W23: 0 | X23: 0 | Y23: =SUM(M23:X23) -> 0 | AA23: =IF(AND(M23>0,$D23>36038),sentopup/12,0) -> 0 | AB23: =IF(AND(N23>0,$D23>36038),sentopup/12,0) -> 0 | AC23: =IF(AND(O23>0,$D23>36038),sentopup/12,0) -> 0 | AD23: =IF(AND(P23>0,$D23>36038),sentopup/12,0) -> 0 | AE23: =IF(AND(Q23>0,$D23>36038),sentopup/12,0) -> 0 | AF23: =IF(AND(R23>0,$D23>36403),sentopup/12,0) -> 0 | AG23: =IF(AND(S23>0,$D23>36403),sentopup/12,0) -> 0 | AH23: =IF(AND(T23>0,$D23>36403),sentopup/12,0) -> 0 | AI23: =IF(AND(U23>0,$D23>36403),sentopup/12,0) -> 0 | AJ23: =IF(AND(V23>0,$D23>36403),sentopup/12,0) -> 0 | AK23: =IF(AND(W23>0,$D23>36403),sentopup/12,0) -> 0 | AL23: =IF(AND(X23>0,$D23>36403),sentopup/12,0) -> 0 | AM23: =SUM(AA23:AL23) -> 0 | AO23: =IF(AND(M23>0,$D23<36039),500,0) -> 0 | AP23: =IF(AND(N23>0,$D23<36039),500,0) -> 0 | AQ23: =IF(AND(O23>0,$D23<36039),500,0) -> 0 | AR23: =IF(AND(P23>0,$D23<36039),500,0) -> 0 | AS23: =IF(AND(Q23>0,$D23<36039),500,0) -> 0 | AT23: =IF(AND(R23>0,$D23<36404),500,0) -> 0 | AU23: =IF(AND(S23>0,$D23<36404),500,0) -> 0 | AV23: =IF(AND(T23>0,$D23<36404),500,0) -> 0 | AW23: =IF(AND(U23>0,$D23<36404),500,0) -> 0 | AX23: =IF(AND(V23>0,$D23<36404),500,0) -> 0 | AY23: =IF(AND(W23>0,$D23<36404),500,0) -> 0 | AZ23: =IF(AND(X23>0,$D23<36404),500,0) -> 0 | BA23: =SUM(AO23:AZ23) -> 0
E24: 2015-04-01 | F24: 2016-03-31 | K24: 0 | M24: 0 | N24: 0 | O24: 0 | P24: 0 | Q24: 0 | R24: 0 | S24: 0 | T24: 0 | U24: 0 | V24: 0 | W24: 0 | X24: 0 | Y24: 0 | AA24: 0 | AB24: 0 | AC24: 0 | AD24: 0 | AE24: 0 | AF24: 0 | AG24: 0 | AH24: 0 | AI24: 0 | AJ24: 0 | AK24: 0 | AL24: 0 | AM24: 0 | AO24: 0 | AP24: 0 | AQ24: 0 | AR24: 0 | AS24: 0 | AT24: 0 | AU24: 0 | AV24: 0 | AW24: 0 | AX24: 0 | AY24: 0 | AZ24: 0 | BA24: 0
E25: 2015-04-01 | F25: 2016-03-31 | K25: 0 | M25: 0 | N25: 0 | O25: 0 | P25: 0 | Q25: 0 | R25: 0 | S25: 0 | T25: 0 | U25: 0 | V25: 0 | W25: 0 | X25: 0 | Y25: 0 | AA25: 0 | AB25: 0 | AC25: 0 | AD25: 0 | AE25: 0 | AF25: 0 | AG25: 0 | AH25: 0 | AI25: 0 | AJ25: 0 | AK25: 0 | AL25: 0 | AM25: 0 | AO25: 0 | AP25: 0 | AQ25: 0 | AR25: 0 | AS25: 0 | AT25: 0 | AU25: 0 | AV25: 0 | AW25: 0 | AX25: 0 | AY25: 0 | AZ25: 0 | BA25: 0
E26: 2015-04-01 | F26: 2016-03-31 | K26: 0 | M26: 0 | N26: 0 | O26: 0 | P26: 0 | Q26: 0 | R26: 0 | S26: 0 | T26: 0 | U26: 0 | V26: 0 | W26: 0 | X26: 0 | Y26: 0 | AA26: 0 | AB26: 0 | AC26: 0 | AD26: 0 | AE26: 0 | AF26: 0 | AG26: 0 | AH26: 0 | AI26: 0 | AJ26: 0 | AK26: 0 | AL26: 0 | AM26: 0 | AO26: 0 | AP26: 0 | AQ26: 0 | AR26: 0 | AS26: 0 | AT26: 0 | AU26: 0 | AV26: 0 | AW26: 0 | AX26: 0 | AY26: 0 | AZ26: 0 | BA26: 0
E27: 2015-04-01 | F27: 2016-03-31 | K27: 0 | M27: 0 | N27: 0 | O27: 0 | P27: 0 | Q27: 0 | R27: 0 | S27: 0 | T27: 0 | U27: 0 | V27: 0 | W27: 0 | X27: 0 | Y27: 0 | AA27: 0 | AB27: 0 | AC27: 0 | AD27: 0 | AE27: 0 | AF27: 0 | AG27: 0 | AH27: 0 | AI27: 0 | AJ27: 0 | AK27: 0 | AL27: 0 | AM27: 0 | AO27: 0 | AP27: 0 | AQ27: 0 | AR27: 0 | AS27: 0 | AT27: 0 | AU27: 0 | AV27: 0 | AW27: 0 | AX27: 0 | AY27: 0 | AZ27: 0 | BA27: 0
E28: 2015-04-01 | F28: 2016-03-31 | K28: 0 | M28: 0 | N28: 0 | O28: 0 | P28: 0 | Q28: 0 | R28: 0 | S28: 0 | T28: 0 | U28: 0 | V28: 0 | W28: 0 | X28: 0 | Y28: 0 | AA28: 0 | AB28: 0 | AC28: 0 | AD28: 0 | AE28: 0 | AF28: 0 | AG28: 0 | AH28: 0 | AI28: 0 | AJ28: 0 | AK28: 0 | AL28: 0 | AM28: 0 | AO28: 0 | AP28: 0 | AQ28: 0 | AR28: 0 | AS28: 0 | AT28: 0 | AU28: 0 | AV28: 0 | AW28: 0 | AX28: 0 | AY28: 0 | AZ28: 0 | BA28: 0
E29: 2015-04-01 | F29: 2016-03-31 | K29: 0 | M29: 0 | N29: 0 | O29: 0 | P29: 0 | Q29: 0 | R29: 0 | S29: 0 | T29: 0 | U29: 0 | V29: 0 | W29: 0 | X29: 0 | Y29: 0 | AA29: 0 | AB29: 0 | AC29: 0 | AD29: 0 | AE29: 0 | AF29: 0 | AG29: 0 | AH29: 0 | AI29: 0 | AJ29: 0 | AK29: 0 | AL29: 0 | AM29: 0 | AO29: 0 | AP29: 0 | AQ29: 0 | AR29: 0 | AS29: 0 | AT29: 0 | AU29: 0 | AV29: 0 | AW29: 0 | AX29: 0 | AY29: 0 | AZ29: 0 | BA29: 0
E30: 2015-04-01 | F30: 2016-03-31 | K30: 0 | M30: 0 | N30: 0 | O30: 0 | P30: 0 | Q30: 0 | R30: 0 | S30: 0 | T30: 0 | U30: 0 | V30: 0 | W30: 0 | X30: 0 | Y30: 0 | AA30: 0 | AB30: 0 | AC30: 0 | AD30: 0 | AE30: 0 | AF30: 0 | AG30: 0 | AH30: 0 | AI30: 0 | AJ30: 0 | AK30: 0 | AL30: 0 | AM30: 0 | AO30: 0 | AP30: 0 | AQ30: 0 | AR30: 0 | AS30: 0 | AT30: 0 | AU30: 0 | AV30: 0 | AW30: 0 | AX30: 0 | AY30: 0 | AZ30: 0 | BA30: 0
E31: 2015-04-01 | F31: 2016-03-31 | K31: 0 | M31: 0 | N31: 0 | O31: 0 | P31: 0 | Q31: 0 | R31: 0 | S31: 0 | T31: 0 | U31: 0 | V31: 0 | W31: 0 | X31: 0 | Y31: 0 | AA31: 0 | AB31: 0 | AC31: 0 | AD31: 0 | AE31: 0 | AF31: 0 | AG31: 0 | AH31: 0 | AI31: 0 | AJ31: 0 | AK31: 0 | AL31: 0 | AM31: 0 | AO31: 0 | AP31: 0 | AQ31: 0 | AR31: 0 | AS31: 0 | AT31: 0 | AU31: 0 | AV31: 0 | AW31: 0 | AX31: 0 | AY31: 0 | AZ31: 0 | BA31: 0
E32: 2015-04-01 | F32: 2016-03-31 | K32: 0 | M32: 0 | N32: 0 | O32: 0 | P32: 0 | Q32: 0 | R32: 0 | S32: 0 | T32: 0 | U32: 0 | V32: 0 | W32: 0 | X32: 0 | Y32: 0 | AA32: 0 | AB32: 0 | AC32: 0 | AD32: 0 | AE32: 0 | AF32: 0 | AG32: 0 | AH32: 0 | AI32: 0 | AJ32: 0 | AK32: 0 | AL32: 0 | AM32: 0 | AO32: 0 | AP32: 0 | AQ32: 0 | AR32: 0 | AS32: 0 | AT32: 0 | AU32: 0 | AV32: 0 | AW32: 0 | AX32: 0 | AY32: 0 | AZ32: 0 | BA32: 0
E33: 2015-04-01 | F33: 2016-03-31 | K33: 0 | M33: 0 | N33: 0 | O33: 0 | P33: 0 | Q33: 0 | R33: 0 | S33: 0 | T33: 0 | U33: 0 | V33: 0 | W33: 0 | X33: 0 | Y33: 0 | AA33: 0 | AB33: 0 | AC33: 0 | AD33: 0 | AE33: 0 | AF33: 0 | AG33: 0 | AH33: 0 | AI33: 0 | AJ33: 0 | AK33: 0 | AL33: 0 | AM33: 0 | AO33: 0 | AP33: 0 | AQ33: 0 | AR33: 0 | AS33: 0 | AT33: 0 | AU33: 0 | AV33: 0 | AW33: 0 | AX33: 0 | AY33: 0 | AZ33: 0 | BA33: 0
E34: 2015-04-01 | F34: 2016-03-31 | K34: 0 | M34: 0 | N34: 0 | O34: 0 | P34: 0 | Q34: 0 | R34: 0 | S34: 0 | T34: 0 | U34: 0 | V34: 0 | W34: 0 | X34: 0 | Y34: 0 | AA34: 0 | AB34: 0 | AC34: 0 | AD34: 0 | AE34: 0 | AF34: 0 | AG34: 0 | AH34: 0 | AI34: 0 | AJ34: 0 | AK34: 0 | AL34: 0 | AM34: 0 | AO34: 0 | AP34: 0 | AQ34: 0 | AR34: 0 | AS34: 0 | AT34: 0 | AU34: 0 | AV34: 0 | AW34: 0 | AX34: 0 | AY34: 0 | AZ34: 0 | BA34: 0
E35: 2015-04-01 | F35: 2016-03-31 | K35: 0 | M35: 0 | N35: 0 | O35: 0 | P35: 0 | Q35: 0 | R35: 0 | S35: 0 | T35: 0 | U35: 0 | V35: 0 | W35: 0 | X35: 0 | Y35: 0 | AA35: 0 | AB35: 0 | AC35: 0 | AD35: 0 | AE35: 0 | AF35: 0 | AG35: 0 | AH35: 0 | AI35: 0 | AJ35: 0 | AK35: 0 | AL35: 0 | AM35: 0 | AO35: 0 | AP35: 0 | AQ35: 0 | AR35: 0 | AS35: 0 | AT35: 0 | AU35: 0 | AV35: 0 | AW35: 0 | AX35: 0 | AY35: 0 | AZ35: 0 | BA35: 0
E36: 2015-04-01 | F36: 2016-03-31 | K36: 0 | M36: 0 | N36: 0 | O36: 0 | P36: 0 | Q36: 0 | R36: 0 | S36: 0 | T36: 0 | U36: 0 | V36: 0 | W36: 0 | X36: 0 | Y36: 0 | AA36: 0 | AB36: 0 | AC36: 0 | AD36: 0 | AE36: 0 | AF36: 0 | AG36: 0 | AH36: 0 | AI36: 0 | AJ36: 0 | AK36: 0 | AL36: 0 | AM36: 0 | AO36: 0 | AP36: 0 | AQ36: 0 | AR36: 0 | AS36: 0 | AT36: 0 | AU36: 0 | AV36: 0 | AW36: 0 | AX36: 0 | AY36: 0 | AZ36: 0 | BA36: 0
E37: 2015-04-01 | F37: 2016-03-31 | K37: 0 | M37: 0 | N37: 0 | O37: 0 | P37: 0 | Q37: 0 | R37: 0 | S37: 0 | T37: 0 | U37: 0 | V37: 0 | W37: 0 | X37: 0 | Y37: 0 | AA37: 0 | AB37: 0 | AC37: 0 | AD37: 0 | AE37: 0 | AF37: 0 | AG37: 0 | AH37: 0 | AI37: 0 | AJ37: 0 | AK37: 0 | AL37: 0 | AM37: 0 | AO37: 0 | AP37: 0 | AQ37: 0 | AR37: 0 | AS37: 0 | AT37: 0 | AU37: 0 | AV37: 0 | AW37: 0 | AX37: 0 | AY37: 0 | AZ37: 0 | BA37: 0
E38: 2015-04-01 | F38: 2016-03-31 | K38: 0 | M38: 0 | N38: 0 | O38: 0 | P38: 0 | Q38: 0 | R38: 0 | S38: 0 | T38: 0 | U38: 0 | V38: 0 | W38: 0 | X38: 0 | Y38: 0 | AA38: 0 | AB38: 0 | AC38: 0 | AD38: 0 | AE38: 0 | AF38: 0 | AG38: 0 | AH38: 0 | AI38: 0 | AJ38: 0 | AK38: 0 | AL38: 0 | AM38: 0 | AO38: 0 | AP38: 0 | AQ38: 0 | AR38: 0 | AS38: 0 | AT38: 0 | AU38: 0 | AV38: 0 | AW38: 0 | AX38: 0 | AY38: 0 | AZ38: 0 | BA38: 0
E39: 2015-04-01 | F39: 2016-03-31 | K39: 0 | M39: 0 | N39: 0 | O39: 0 | P39: 0 | Q39: 0 | R39: 0 | S39: 0 | T39: 0 | U39: 0 | V39: 0 | W39: 0 | X39: 0 | Y39: 0 | AA39: 0 | AB39: 0 | AC39: 0 | AD39: 0 | AE39: 0 | AF39: 0 | AG39: 0 | AH39: 0 | AI39: 0 | AJ39: 0 | AK39: 0 | AL39: 0 | AM39: 0 | AO39: 0 | AP39: 0 | AQ39: 0 | AR39: 0 | AS39: 0 | AT39: 0 | AU39: 0 | AV39: 0 | AW39: 0 | AX39: 0 | AY39: 0 | AZ39: 0 | BA39: 0
E40: 2015-04-01 | F40: 2016-03-31 | K40: 0 | M40: 0 | N40: 0 | O40: 0 | P40: 0 | Q40: 0 | R40: 0 | S40: 0 | T40: 0 | U40: 0 | V40: 0 | W40: 0 | X40: 0 | Y40: 0 | AA40: 0 | AB40: 0 | AC40: 0 | AD40: 0 | AE40: 0 | AF40: 0 | AG40: 0 | AH40: 0 | AI40: 0 | AJ40: 0 | AK40: 0 | AL40: 0 | AM40: 0 | AO40: 0 | AP40: 0 | AQ40: 0 | AR40: 0 | AS40: 0 | AT40: 0 | AU40: 0 | AV40: 0 | AW40: 0 | AX40: 0 | AY40: 0 | AZ40: 0 | BA40: 0
E41: 2015-04-01 | F41: 2016-03-31 | K41: 0 | M41: 0 | N41: 0 | O41: 0 | P41: 0 | Q41: 0 | R41: 0 | S41: 0 | T41: 0 | U41: 0 | V41: 0 | W41: 0 | X41: 0 | Y41: 0 | AA41: 0 | AB41: 0 | AC41: 0 | AD41: 0 | AE41: 0 | AF41: 0 | AG41: 0 | AH41: 0 | AI41: 0 | AJ41: 0 | AK41: 0 | AL41: 0 | AM41: 0 | AO41: 0 | AP41: 0 | AQ41: 0 | AR41: 0 | AS41: 0 | AT41: 0 | AU41: 0 | AV41: 0 | AW41: 0 | AX41: 0 | AY41: 0 | AZ41: 0 | BA41: 0
E42: 2015-04-01 | F42: 2016-03-31 | K42: 0 | M42: 0 | N42: 0 | O42: 0 | P42: 0 | Q42: 0 | R42: 0 | S42: 0 | T42: 0 | U42: 0 | V42: 0 | W42: 0 | X42: 0 | Y42: 0 | AA42: 0 | AB42: 0 | AC42: 0 | AD42: 0 | AE42: 0 | AF42: 0 | AG42: 0 | AH42: 0 | AI42: 0 | AJ42: 0 | AK42: 0 | AL42: 0 | AM42: 0 | AO42: 0 | AP42: 0 | AQ42: 0 | AR42: 0 | AS42: 0 | AT42: 0 | AU42: 0 | AV42: 0 | AW42: 0 | AX42: 0 | AY42: 0 | AZ42: 0 | BA42: 0
E43: 2015-04-01 | F43: 2016-03-31 | K43: 0 | M43: 0 | N43: 0 | O43: 0 | P43: 0 | Q43: 0 | R43: 0 | S43: 0 | T43: 0 | U43: 0 | V43: 0 | W43: 0 | X43: 0 | Y43: 0 | AA43: 0 | AB43: 0 | AC43: 0 | AD43: 0 | AE43: 0 | AF43: 0 | AG43: 0 | AH43: 0 | AI43: 0 | AJ43: 0 | AK43: 0 | AL43: 0 | AM43: 0 | AO43: 0 | AP43: 0 | AQ43: 0 | AR43: 0 | AS43: 0 | AT43: 0 | AU43: 0 | AV43: 0 | AW43: 0 | AX43: 0 | AY43: 0 | AZ43: 0 | BA43: 0
E44: 2015-04-01 | F44: 2016-03-31 | K44: 0 | M44: 0 | N44: 0 | O44: 0 | P44: 0 | Q44: 0 | R44: 0 | S44: 0 | T44: 0 | U44: 0 | V44: 0 | W44: 0 | X44: 0 | Y44: 0 | AA44: 0 | AB44: 0 | AC44: 0 | AD44: 0 | AE44: 0 | AF44: 0 | AG44: 0 | AH44: 0 | AI44: 0 | AJ44: 0 | AK44: 0 | AL44: 0 | AM44: 0 | AO44: 0 | AP44: 0 | AQ44: 0 | AR44: 0 | AS44: 0 | AT44: 0 | AU44: 0 | AV44: 0 | AW44: 0 | AX44: 0 | AY44: 0 | AZ44: 0 | BA44: 0
E45: 2015-04-01 | F45: 2016-03-31 | K45: 0 | M45: 0 | N45: 0 | O45: 0 | P45: 0 | Q45: 0 | R45: 0 | S45: 0 | T45: 0 | U45: 0 | V45: 0 | W45: 0 | X45: 0 | Y45: 0 | AA45: 0 | AB45: 0 | AC45: 0 | AD45: 0 | AE45: 0 | AF45: 0 | AG45: 0 | AH45: 0 | AI45: 0 | AJ45: 0 | AK45: 0 | AL45: 0 | AM45: 0 | AO45: 0 | AP45: 0 | AQ45: 0 | AR45: 0 | AS45: 0 | AT45: 0 | AU45: 0 | AV45: 0 | AW45: 0 | AX45: 0 | AY45: 0 | AZ45: 0 | BA45: 0
E46: 2015-04-01 | F46: 2016-03-31 | K46: 0 | M46: 0 | N46: 0 | O46: 0 | P46: 0 | Q46: 0 | R46: 0 | S46: 0 | T46: 0 | U46: 0 | V46: 0 | W46: 0 | X46: 0 | Y46: 0 | AA46: 0 | AB46: 0 | AC46: 0 | AD46: 0 | AE46: 0 | AF46: 0 | AG46: 0 | AH46: 0 | AI46: 0 | AJ46: 0 | AK46: 0 | AL46: 0 | AM46: 0 | AO46: 0 | AP46: 0 | AQ46: 0 | AR46: 0 | AS46: 0 | AT46: 0 | AU46: 0 | AV46: 0 | AW46: 0 | AX46: 0 | AY46: 0 | AZ46: 0 | BA46: 0
E47: 2015-04-01 | F47: 2016-03-31 | K47: 0 | M47: 0 | N47: 0 | O47: 0 | P47: 0 | Q47: 0 | R47: 0 | S47: 0 | T47: 0 | U47: 0 | V47: 0 | W47: 0 | X47: 0 | Y47: 0 | AA47: 0 | AB47: 0 | AC47: 0 | AD47: 0 | AE47: 0 | AF47: 0 | AG47: 0 | AH47: 0 | AI47: 0 | AJ47: 0 | AK47: 0 | AL47: 0 | AM47: 0 | AO47: 0 | AP47: 0 | AQ47: 0 | AR47: 0 | AS47: 0 | AT47: 0 | AU47: 0 | AV47: 0 | AW47: 0 | AX47: 0 | AY47: 0 | AZ47: 0 | BA47: 0
E48: 2015-04-01 | F48: 2016-03-31 | K48: 0 | M48: 0 | N48: 0 | O48: 0 | P48: 0 | Q48: 0 | R48: 0 | S48: 0 | T48: 0 | U48: 0 | V48: 0 | W48: 0 | X48: 0 | Y48: 0 | AA48: 0 | AB48: 0 | AC48: 0 | AD48: 0 | AE48: 0 | AF48: 0 | AG48: 0 | AH48: 0 | AI48: 0 | AJ48: 0 | AK48: 0 | AL48: 0 | AM48: 0 | AO48: 0 | AP48: 0 | AQ48: 0 | AR48: 0 | AS48: 0 | AT48: 0 | AU48: 0 | AV48: 0 | AW48: 0 | AX48: 0 | AY48: 0 | AZ48: 0 | BA48: 0
E49: 2015-04-01 | F49: 2016-03-31 | K49: 0 | M49: 0 | N49: 0 | O49: 0 | P49: 0 | Q49: 0 | R49: 0 | S49: 0 | T49: 0 | U49: 0 | V49: 0 | W49: 0 | X49: 0 | Y49: 0 | AA49: 0 | AB49: 0 | AC49: 0 | AD49: 0 | AE49: 0 | AF49: 0 | AG49: 0 | AH49: 0 | AI49: 0 | AJ49: 0 | AK49: 0 | AL49: 0 | AM49: 0 | AO49: 0 | AP49: 0 | AQ49: 0 | AR49: 0 | AS49: 0 | AT49: 0 | AU49: 0 | AV49: 0 | AW49: 0 | AX49: 0 | AY49: 0 | AZ49: 0 | BA49: 0
E50: 2015-04-01 | F50: 2016-03-31 | K50: 0 | M50: 0 | N50: 0 | O50: 0 | P50: 0 | Q50: 0 | R50: 0 | S50: 0 | T50: 0 | U50: 0 | V50: 0 | W50: 0 | X50: 0 | Y50: 0 | AA50: 0 | AB50: 0 | AC50: 0 | AD50: 0 | AE50: 0 | AF50: 0 | AG50: 0 | AH50: 0 | AI50: 0 | AJ50: 0 | AK50: 0 | AL50: 0 | AM50: 0 | AO50: 0 | AP50: 0 | AQ50: 0 | AR50: 0 | AS50: 0 | AT50: 0 | AU50: 0 | AV50: 0 | AW50: 0 | AX50: 0 | AY50: 0 | AZ50: 0 | BA50: 0
E51: 2015-04-01 | F51: 2016-03-31 | K51: 0 | M51: 0 | N51: 0 | O51: 0 | P51: 0 | Q51: 0 | R51: 0 | S51: 0 | T51: 0 | U51: 0 | V51: 0 | W51: 0 | X51: 0 | Y51: 0 | AA51: 0 | AB51: 0 | AC51: 0 | AD51: 0 | AE51: 0 | AF51: 0 | AG51: 0 | AH51: 0 | AI51: 0 | AJ51: 0 | AK51: 0 | AL51: 0 | AM51: 0 | AO51: 0 | AP51: 0 | AQ51: 0 | AR51: 0 | AS51: 0 | AT51: 0 | AU51: 0 | AV51: 0 | AW51: 0 | AX51: 0 | AY51: 0 | AZ51: 0 | BA51: 0
C53: Place Plus funding for pupils who start the financial year with a pre existing statement and who havent yet been costed under the new rules
C54: When pupils transfer to the new arrangements, put the review date as the end date and then start a new line above with a start date at the beginning of the next term. Check that the funding doesn’t overlap
C55: Pupils with a statement of less than 25 hours will be detailed on the April advance for reconciliation purposes. Records held at the school should be used in the mean time for budget planning purposes
C56: In the consultation documents these pupils are those in category A and B A) Pupils that already have a statement or Education Health and Care Plan (EHCP) of 25hrs per week (existing pupils eligible under the 2014-15 criteria). B) Pupil already has a statement or EHCP but less than 25 hrs per week
C58: Pupil Data | M58: Element 3 top up | AA58: Notional SEN budget top up | AO58: Post 16 Element 2
C59: Name | D59: Date of Birth | E59: Start Date | F59: End Date | G59: Need Type | H59: Statement hours | I59: Pro rata rate | K59: Total Funding Linked to this Pupil | M59: April | N59: May | O59: June | P59: July | Q59: August | R59: September | S59: October | T59: November | U59: December | V59: January | W59: February | X59: March | Y59: Total | AA59: April | AB59: May | AC59: June | AD59: July | AE59: August | AF59: September | AG59: October | AH59: November | AI59: December | AJ59: January | AK59: February | AL59: March | AM59: Total | AO59: April | AP59: May | AQ59: June | AR59: July | AS59: August | AT59: September | AU59: October | AV59: November | AW59: December | AX59: January | AY59: February | AZ59: March | BA59: Total
E60: 2015-04-01 | F60: 2016-03-31 | I60: =IF((IF(G60="SLCN & SPLD",10653.1,IF(G60="SLD",12602.66,IF(G60="ASD",14551.23,IF(G60="PD HI & VI",19028.88,0))))*IF(H60>=25,1,H60/25))-6000<0,0,(IF(G60="SLCN & SPLD",10653.1,IF(G60="SLD",12602.66,IF(G60="ASD",14551.23,IF(G60="PD HI & VI",19028.88,0))))*IF(H60>=25,1,H60/25))-6000) -> 0 | K60: =Y60+AM60+BA60 -> 0 | M60: =IF(AND($E60<42125,$F60>42095),$I60/12,0) -> 0 | N60: =IF(AND($E60<42156,$F60>42095),$I60/12,0) -> 0 | O60: =IF(AND($E60<42186,$F60>42095),$I60/12,0) -> 0 | P60: =IF(AND($E60<42217,$F60>42095),$I60/12,0) -> 0 | Q60: =IF(AND($E60<42248,$F60>42095),$I60/12,0) -> 0 | R60: =IF(AND($E60<42278,$F60>42248),$I60/12,0) -> 0 | S60: =IF(AND($E60<42309,$F60>42248),$I60/12,0) -> 0 | T60: =IF(AND($E60<42339,$F60>42248),$I60/12,0) -> 0 | U60: =IF(AND($E60<42370,$F60>42248),$I60/12,0) -> 0 | V60: =IF(AND($E60<42401,$F60>42370),$I60/12,0) -> 0 | W60: =IF(AND($E60<42430,$F60>42370),$I60/12,0) -> 0 | X60: =IF(AND($E60<42461,$F60>42370),$I60/12,0) -> 0 | Y60: =SUM(M60:X60) -> 0 | AA60: =IF(AND(M60>0,$D60>36038),sentopup/12,0) -> 0 | AB60: =IF(AND(N60>0,$D60>36038),sentopup/12,0) -> 0 | AC60: =IF(AND(O60>0,$D60>36038),sentopup/12,0) -> 0 | AD60: =IF(AND(P60>0,$D60>36038),sentopup/12,0) -> 0 | AE60: =IF(AND(Q60>0,$D60>36038),sentopup/12,0) -> 0 | AF60: =IF(AND(R60>0,$D60>36403),sentopup/12,0) -> 0 | AG60: =IF(AND(S60>0,$D60>36403),sentopup/12,0) -> 0 | AH60: =IF(AND(T60>0,$D60>36403),sentopup/12,0) -> 0 | AI60: =IF(AND(U60>0,$D60>36403),sentopup/12,0) -> 0 | AJ60: =IF(AND(V60>0,$D60>36403),sentopup/12,0) -> 0 | AK60: =IF(AND(W60>0,$D60>36403),sentopup/12,0) -> 0 | AL60: =IF(AND(X60>0,$D60>36403),sentopup/12,0) -> 0 | AM60: =SUM(AA60:AL60) -> 0 | AO60: =IF(AND(M60>0,$D60<36039),500,0) -> 0 | AP60: =IF(AND(N60>0,$D60<36039),500,0) -> 0 | AQ60: =IF(AND(O60>0,$D60<36039),500,0) -> 0 | AR60: =IF(AND(P60>0,$D60<36039),500,0) -> 0 | AS60: =IF(AND(Q60>0,$D60<36039),500,0) -> 0 | AT60: =IF(AND(R60>0,$D60<36404),500,0) -> 0 | AU60: =IF(AND(S60>0,$D60<36404),500,0) -> 0 | AV60: =IF(AND(T60>0,$D60<36404),500,0) -> 0 | AW60: =IF(AND(U60>0,$D60<36404),500,0) -> 0 | AX60: =IF(AND(V60>0,$D60<36404),500,0) -> 0 | AY60: =IF(AND(W60>0,$D60<36404),500,0) -> 0 | AZ60: =IF(AND(X60>0,$D60<36404),500,0) -> 0 | BA60: =SUM(AO60:AZ60) -> 0
E61: 2015-04-01 | F61: 2016-03-31 | I61: =IF((IF(G61="SLCN & SPLD",10653.1,IF(G61="SLD",12602.66,IF(G61="ASD",14551.23,IF(G61="PD HI & VI",19028.88,0))))*IF(H61>=25,1,H61/25))-6000<0,0,(IF(G61="SLCN & SPLD",10653.1,IF(G61="SLD",12602.66,IF(G61="ASD",14551.23,IF(G61="PD HI & VI",19028.88,0))))*IF(H61>=25,1,H61/25))-6000) -> 0 | K61: =Y61+AM61+BA61 -> 0 | M61: =IF(AND($E61<42125,$F61>42095),$I61/12,0) -> 0 | N61: =IF(AND($E61<42156,$F61>42095),$I61/12,0) -> 0 | O61: =IF(AND($E61<42186,$F61>42095),$I61/12,0) -> 0 | P61: =IF(AND($E61<42217,$F61>42095),$I61/12,0) -> 0 | Q61: =IF(AND($E61<42248,$F61>42095),$I61/12,0) -> 0 | R61: =IF(AND($E61<42278,$F61>42248),$I61/12,0) -> 0 | S61: =IF(AND($E61<42309,$F61>42248),$I61/12,0) -> 0 | T61: =IF(AND($E61<42339,$F61>42248),$I61/12,0) -> 0 | U61: =IF(AND($E61<42370,$F61>42248),$I61/12,0) -> 0 | V61: =IF(AND($E61<42401,$F61>42370),$I61/12,0) -> 0 | W61: =IF(AND($E61<42430,$F61>42370),$I61/12,0) -> 0 | X61: =IF(AND($E61<42461,$F61>42370),$I61/12,0) -> 0 | Y61: =SUM(M61:X61) -> 0 | AA61: 0 | AB61: 0 | AC61: 0 | AD61: 0 | AE61: 0 | AF61: 0 | AG61: 0 | AH61: 0 | AI61: 0 | AJ61: 0 | AK61: 0 | AL61: 0 | AM61: =SUM(AA61:AL61) -> 0 | AO61: =IF(AND(M61>0,$D61<36039),500,0) -> 0 | AP61: 0 | AQ61: 0 | AR61: 0 | AS61: 0 | AT61: =IF(AND(R61>0,$D61<36404),500,0) -> 0 | AU61: 0 | AV61: 0 | AW61: 0 | AX61: 0 | AY61: 0 | AZ61: 0 | BA61: =SUM(AO61:AZ61) -> 0
E62: 2015-04-01 | F62: 2016-03-31 | I62: 0 | K62: 0 | M62: 0 | N62: 0 | O62: 0 | P62: 0 | Q62: 0 | R62: 0 | S62: 0 | T62: 0 | U62: 0 | V62: 0 | W62: 0 | X62: 0 | Y62: 0 | AA62: 0 | AB62: 0 | AC62: 0 | AD62: 0 | AE62: 0 | AF62: 0 | AG62: 0 | AH62: 0 | AI62: 0 | AJ62: 0 | AK62: 0 | AL62: 0 | AM62: 0 | AO62: 0 | AP62: 0 | AQ62: 0 | AR62: 0 | AS62: 0 | AT62: 0 | AU62: 0 | AV62: 0 | AW62: 0 | AX62: 0 | AY62: 0 | AZ62: 0 | BA62: 0
E63: 2015-04-01 | F63: 2016-03-31 | I63: 0 | K63: 0 | M63: 0 | N63: 0 | O63: 0 | P63: 0 | Q63: 0 | R63: 0 | S63: 0 | T63: 0 | U63: 0 | V63: 0 | W63: 0 | X63: 0 | Y63: 0 | AA63: 0 | AB63: 0 | AC63: 0 | AD63: 0 | AE63: 0 | AF63: 0 | AG63: 0 | AH63: 0 | AI63: 0 | AJ63: 0 | AK63: 0 | AL63: 0 | AM63: 0 | AO63: 0 | AP63: 0 | AQ63: 0 | AR63: 0 | AS63: 0 | AT63: 0 | AU63: 0 | AV63: 0 | AW63: 0 | AX63: 0 | AY63: 0 | AZ63: 0 | BA63: 0
E64: 2015-04-01 | F64: 2016-03-31 | I64: 0 | K64: 0 | M64: 0 | N64: 0 | O64: 0 | P64: 0 | Q64: 0 | R64: 0 | S64: 0 | T64: 0 | U64: 0 | V64: 0 | W64: 0 | X64: 0 | Y64: 0 | AA64: 0 | AB64: 0 | AC64: 0 | AD64: 0 | AE64: 0 | AF64: 0 | AG64: 0 | AH64: 0 | AI64: 0 | AJ64: 0 | AK64: 0 | AL64: 0 | AM64: 0 | AO64: 0 | AP64: 0 | AQ64: 0 | AR64: 0 | AS64: 0 | AT64: 0 | AU64: 0 | AV64: 0 | AW64: 0 | AX64: 0 | AY64: 0 | AZ64: 0 | BA64: 0
E65: 2015-04-01 | F65: 2016-03-31 | I65: 0 | K65: 0 | M65: 0 | N65: 0 | O65: 0 | P65: 0 | Q65: 0 | R65: 0 | S65: 0 | T65: 0 | U65: 0 | V65: 0 | W65: 0 | X65: 0 | Y65: 0 | AA65: 0 | AB65: 0 | AC65: 0 | AD65: 0 | AE65: 0 | AF65: 0 | AG65: 0 | AH65: 0 | AI65: 0 | AJ65: 0 | AK65: 0 | AL65: 0 | AM65: 0 | AO65: 0 | AP65: 0 | AQ65: 0 | AR65: 0 | AS65: 0 | AT65: 0 | AU65: 0 | AV65: 0 | AW65: 0 | AX65: 0 | AY65: 0 | AZ65: 0 | BA65: 0
E66: 2015-04-01 | F66: 2016-03-31 | I66: 0 | K66: 0 | M66: 0 | N66: 0 | O66: 0 | P66: 0 | Q66: 0 | R66: 0 | S66: 0 | T66: 0 | U66: 0 | V66: 0 | W66: 0 | X66: 0 | Y66: 0 | AA66: 0 | AB66: 0 | AC66: 0 | AD66: 0 | AE66: 0 | AF66: 0 | AG66: 0 | AH66: 0 | AI66: 0 | AJ66: 0 | AK66: 0 | AL66: 0 | AM66: 0 | AO66: 0 | AP66: 0 | AQ66: 0 | AR66: 0 | AS66: 0 | AT66: 0 | AU66: 0 | AV66: 0 | AW66: 0 | AX66: 0 | AY66: 0 | AZ66: 0 | BA66: 0
E67: 2015-04-01 | F67: 2016-03-31 | I67: =IF((IF(G67="SLCN & SPLD",10653.1,IF(G67="SLD",12602.66,IF(G67="ASD",14551.23,IF(G67="PD HI & VI",19028.88,0))))*IF(H67>=25,1,H67/25))-6000<0,0,(IF(G67="SLCN & SPLD",10653.1,IF(G67="SLD",12602.66,IF(G67="ASD",14551.23,IF(G67="PD HI & VI",19028.88,0))))*IF(H67>=25,1,H67/25))-6000) -> 0 | K67: =Y67+AM67+BA67 -> 0 | M67: 0 | N67: 0 | O67: 0 | P67: 0 | Q67: 0 | R67: 0 | S67: 0 | T67: 0 | U67: 0 | V67: 0 | W67: 0 | X67: 0 | Y67: =SUM(M67:X67) -> 0 | AA67: =IF(AND(M67>0,$D67>36038),sentopup/12,0) -> 0 | AB67: =IF(AND(N67>0,$D67>36038),sentopup/12,0) -> 0 | AC67: =IF(AND(O67>0,$D67>36038),sentopup/12,0) -> 0 | AD67: =IF(AND(P67>0,$D67>36038),sentopup/12,0) -> 0 | AE67: =IF(AND(Q67>0,$D67>36038),sentopup/12,0) -> 0 | AF67: =IF(AND(R67>0,$D67>36403),sentopup/12,0) -> 0 | AG67: =IF(AND(S67>0,$D67>36403),sentopup/12,0) -> 0 | AH67: =IF(AND(T67>0,$D67>36403),sentopup/12,0) -> 0 | AI67: =IF(AND(U67>0,$D67>36403),sentopup/12,0) -> 0 | AJ67: =IF(AND(V67>0,$D67>36403),sentopup/12,0) -> 0 | AK67: =IF(AND(W67>0,$D67>36403),sentopup/12,0) -> 0 | AL67: =IF(AND(X67>0,$D67>36403),sentopup/12,0) -> 0 | AM67: =SUM(AA67:AL67) -> 0 | AO67: =IF(AND(M67>0,$D67<36039),500,0) -> 0 | AP67: =IF(AND(N67>0,$D67<36039),500,0) -> 0 | AQ67: =IF(AND(O67>0,$D67<36039),500,0) -> 0 | AR67: =IF(AND(P67>0,$D67<36039),500,0) -> 0 | AS67: =IF(AND(Q67>0,$D67<36039),500,0) -> 0 | AT67: =IF(AND(R67>0,$D67<36404),500,0) -> 0 | AU67: =IF(AND(S67>0,$D67<36404),500,0) -> 0 | AV67: =IF(AND(T67>0,$D67<36404),500,0) -> 0 | AW67: =IF(AND(U67>0,$D67<36404),500,0) -> 0 | AX67: =IF(AND(V67>0,$D67<36404),500,0) -> 0 | AY67: =IF(AND(W67>0,$D67<36404),500,0) -> 0 | AZ67: =IF(AND(X67>0,$D67<36404),500,0) -> 0 | BA67: =SUM(AO67:AZ67) -> 0
E68: 2015-04-01 | F68: 2016-03-31 | I68: 0 | K68: 0 | M68: 0 | N68: 0 | O68: 0 | P68: 0 | Q68: 0 | R68: 0 | S68: 0 | T68: 0 | U68: 0 | V68: 0 | W68: 0 | X68: 0 | Y68: 0 | AA68: 0 | AB68: 0 | AC68: 0 | AD68: 0 | AE68: 0 | AF68: 0 | AG68: 0 | AH68: 0 | AI68: 0 | AJ68: 0 | AK68: 0 | AL68: 0 | AM68: 0 | AO68: 0 | AP68: 0 | AQ68: 0 | AR68: 0 | AS68: 0 | AT68: 0 | AU68: 0 | AV68: 0 | AW68: 0 | AX68: 0 | AY68: 0 | AZ68: 0 | BA68: 0
E69: 2015-04-01 | F69: 2016-03-31 | I69: 0 | K69: 0 | M69: 0 | N69: 0 | O69: 0 | P69: 0 | Q69: 0 | R69: 0 | S69: 0 | T69: 0 | U69: 0 | V69: 0 | W69: 0 | X69: 0 | Y69: 0 | AA69: 0 | AB69: 0 | AC69: 0 | AD69: 0 | AE69: 0 | AF69: 0 | AG69: 0 | AH69: 0 | AI69: 0 | AJ69: 0 | AK69: 0 | AL69: 0 | AM69: 0 | AO69: 0 | AP69: 0 | AQ69: 0 | AR69: 0 | AS69: 0 | AT69: 0 | AU69: 0 | AV69: 0 | AW69: 0 | AX69: 0 | AY69: 0 | AZ69: 0 | BA69: 0
E70: 2015-04-01 | F70: 2016-03-31 | I70: 0 | K70: 0 | M70: 0 | N70: 0 | O70: 0 | P70: 0 | Q70: 0 | R70: 0 | S70: 0 | T70: 0 | U70: 0 | V70: 0 | W70: 0 | X70: 0 | Y70: 0 | AA70: 0 | AB70: 0 | AC70: 0 | AD70: 0 | AE70: 0 | AF70: 0 | AG70: 0 | AH70: 0 | AI70: 0 | AJ70: 0 | AK70: 0 | AL70: 0 | AM70: 0 | AO70: 0 | AP70: 0 | AQ70: 0 | AR70: 0 | AS70: 0 | AT70: 0 | AU70: 0 | AV70: 0 | AW70: 0 | AX70: 0 | AY70: 0 | AZ70: 0 | BA70: 0
E71: 2015-04-01 | F71: 2016-03-31 | I71: 0 | K71: 0 | M71: 0 | N71: 0 | O71: 0 | P71: 0 | Q71: 0 | R71: 0 | S71: 0 | T71: 0 | U71: 0 | V71: 0 | W71: 0 | X71: 0 | Y71: 0 | AA71: 0 | AB71: 0 | AC71: 0 | AD71: 0 | AE71: 0 | AF71: 0 | AG71: 0 | AH71: 0 | AI71: 0 | AJ71: 0 | AK71: 0 | AL71: 0 | AM71: 0 | AO71: 0 | AP71: 0 | AQ71: 0 | AR71: 0 | AS71: 0 | AT71: 0 | AU71: 0 | AV71: 0 | AW71: 0 | AX71: 0 | AY71: 0 | AZ71: 0 | BA71: 0
E72: 2015-04-01 | F72: 2016-03-31 | I72: 0 | K72: 0 | M72: 0 | N72: 0 | O72: 0 | P72: 0 | Q72: 0 | R72: 0 | S72: 0 | T72: 0 | U72: 0 | V72: 0 | W72: 0 | X72: 0 | Y72: 0 | AA72: 0 | AB72: 0 | AC72: 0 | AD72: 0 | AE72: 0 | AF72: 0 | AG72: 0 | AH72: 0 | AI72: 0 | AJ72: 0 | AK72: 0 | AL72: 0 | AM72: 0 | AO72: 0 | AP72: 0 | AQ72: 0 | AR72: 0 | AS72: 0 | AT72: 0 | AU72: 0 | AV72: 0 | AW72: 0 | AX72: 0 | AY72: 0 | AZ72: 0 | BA72: 0
E73: 2015-04-01 | F73: 2016-03-31 | I73: 0 | K73: 0 | M73: 0 | N73: 0 | O73: 0 | P73: 0 | Q73: 0 | R73: 0 | S73: 0 | T73: 0 | U73: 0 | V73: 0 | W73: 0 | X73: 0 | Y73: 0 | AA73: 0 | AB73: 0 | AC73: 0 | AD73: 0 | AE73: 0 | AF73: 0 | AG73: 0 | AH73: 0 | AI73: 0 | AJ73: 0 | AK73: 0 | AL73: 0 | AM73: 0 | AO73: 0 | AP73: 0 | AQ73: 0 | AR73: 0 | AS73: 0 | AT73: 0 | AU73: 0 | AV73: 0 | AW73: 0 | AX73: 0 | AY73: 0 | AZ73: 0 | BA73: 0
E74: 2015-04-01 | F74: 2016-03-31 | I74: 0 | K74: 0 | M74: 0 | N74: 0 | O74: 0 | P74: 0 | Q74: 0 | R74: 0 | S74: 0 | T74: 0 | U74: 0 | V74: 0 | W74: 0 | X74: 0 | Y74: 0 | AA74: 0 | AB74: 0 | AC74: 0 | AD74: 0 | AE74: 0 | AF74: 0 | AG74: 0 | AH74: 0 | AI74: 0 | AJ74: 0 | AK74: 0 | AL74: 0 | AM74: 0 | AO74: 0 | AP74: 0 | AQ74: 0 | AR74: 0 | AS74: 0 | AT74: 0 | AU74: 0 | AV74: 0 | AW74: 0 | AX74: 0 | AY74: 0 | AZ74: 0 | BA74: 0
E75: 2015-04-01 | F75: 2016-03-31 | I75: 0 | K75: 0 | M75: 0 | N75: 0 | O75: 0 | P75: 0 | Q75: 0 | R75: 0 | S75: 0 | T75: 0 | U75: 0 | V75: 0 | W75: 0 | X75: 0 | Y75: 0 | AA75: 0 | AB75: 0 | AC75: 0 | AD75: 0 | AE75: 0 | AF75: 0 | AG75: 0 | AH75: 0 | AI75: 0 | AJ75: 0 | AK75: 0 | AL75: 0 | AM75: 0 | AO75: 0 | AP75: 0 | AQ75: 0 | AR75: 0 | AS75: 0 | AT75: 0 | AU75: 0 | AV75: 0 | AW75: 0 | AX75: 0 | AY75: 0 | AZ75: 0 | BA75: 0
E76: 2015-04-01 | F76: 2016-03-31 | I76: 0 | K76: 0 | M76: 0 | N76: 0 | O76: 0 | P76: 0 | Q76: 0 | R76: 0 | S76: 0 | T76: 0 | U76: 0 | V76: 0 | W76: 0 | X76: 0 | Y76: 0 | AA76: 0 | AB76: 0 | AC76: 0 | AD76: 0 | AE76: 0 | AF76: 0 | AG76: 0 | AH76: 0 | AI76: 0 | AJ76: 0 | AK76: 0 | AL76: 0 | AM76: 0 | AO76: 0 | AP76: 0 | AQ76: 0 | AR76: 0 | AS76: 0 | AT76: 0 | AU76: 0 | AV76: 0 | AW76: 0 | AX76: 0 | AY76: 0 | AZ76: 0 | BA76: 0
E77: 2015-04-01 | F77: 2016-03-31 | I77: 0 | K77: 0 | M77: 0 | N77: 0 | O77: 0 | P77: 0 | Q77: 0 | R77: 0 | S77: 0 | T77: 0 | U77: 0 | V77: 0 | W77: 0 | X77: 0 | Y77: 0 | AA77: 0 | AB77: 0 | AC77: 0 | AD77: 0 | AE77: 0 | AF77: 0 | AG77: 0 | AH77: 0 | AI77: 0 | AJ77: 0 | AK77: 0 | AL77: 0 | AM77: 0 | AO77: 0 | AP77: 0 | AQ77: 0 | AR77: 0 | AS77: 0 | AT77: 0 | AU77: 0 | AV77: 0 | AW77: 0 | AX77: 0 | AY77: 0 | AZ77: 0 | BA77: 0
E78: 2015-04-01 | F78: 2016-03-31 | I78: 0 | K78: 0 | M78: 0 | N78: 0 | O78: 0 | P78: 0 | Q78: 0 | R78: 0 | S78: 0 | T78: 0 | U78: 0 | V78: 0 | W78: 0 | X78: 0 | Y78: 0 | AA78: 0 | AB78: 0 | AC78: 0 | AD78: 0 | AE78: 0 | AF78: 0 | AG78: 0 | AH78: 0 | AI78: 0 | AJ78: 0 | AK78: 0 | AL78: 0 | AM78: 0 | AO78: 0 | AP78: 0 | AQ78: 0 | AR78: 0 | AS78: 0 | AT78: 0 | AU78: 0 | AV78: 0 | AW78: 0 | AX78: 0 | AY78: 0 | AZ78: 0 | BA78: 0
E79: 2015-04-01 | F79: 2016-03-31 | I79: 0 | K79: 0 | M79: 0 | N79: 0 | O79: 0 | P79: 0 | Q79: 0 | R79: 0 | S79: 0 | T79: 0 | U79: 0 | V79: 0 | W79: 0 | X79: 0 | Y79: 0 | AA79: 0 | AB79: 0 | AC79: 0 | AD79: 0 | AE79: 0 | AF79: 0 | AG79: 0 | AH79: 0 | AI79: 0 | AJ79: 0 | AK79: 0 | AL79: 0 | AM79: 0 | AO79: 0 | AP79: 0 | AQ79: 0 | AR79: 0 | AS79: 0 | AT79: 0 | AU79: 0 | AV79: 0 | AW79: 0 | AX79: 0 | AY79: 0 | AZ79: 0 | BA79: 0
E80: 2015-04-01 | F80: 2016-03-31 | I80: 0 | K80: 0 | M80: 0 | N80: 0 | O80: 0 | P80: 0 | Q80: 0 | R80: 0 | S80: 0 | T80: 0 | U80: 0 | V80: 0 | W80: 0 | X80: 0 | Y80: 0 | AA80: 0 | AB80: 0 | AC80: 0 | AD80: 0 | AE80: 0 | AF80: 0 | AG80: 0 | AH80: 0 | AI80: 0 | AJ80: 0 | AK80: 0 | AL80: 0 | AM80: 0 | AO80: 0 | AP80: 0 | AQ80: 0 | AR80: 0 | AS80: 0 | AT80: 0 | AU80: 0 | AV80: 0 | AW80: 0 | AX80: 0 | AY80: 0 | AZ80: 0 | BA80: 0
E81: 2015-04-01 | F81: 2016-03-31 | I81: 0 | K81: 0 | M81: 0 | N81: 0 | O81: 0 | P81: 0 | Q81: 0 | R81: 0 | S81: 0 | T81: 0 | U81: 0 | V81: 0 | W81: 0 | X81: 0 | Y81: 0 | AA81: 0 | AB81: 0 | AC81: 0 | AD81: 0 | AE81: 0 | AF81: 0 | AG81: 0 | AH81: 0 | AI81: 0 | AJ81: 0 | AK81: 0 | AL81: 0 | AM81: 0 | AO81: 0 | AP81: 0 | AQ81: 0 | AR81: 0 | AS81: 0 | AT81: 0 | AU81: 0 | AV81: 0 | AW81: 0 | AX81: 0 | AY81: 0 | AZ81: 0 | BA81: 0
E82: 2015-04-01 | F82: 2016-03-31 | I82: 0 | K82: 0 | M82: 0 | N82: 0 | O82: 0 | P82: 0 | Q82: 0 | R82: 0 | S82: 0 | T82: 0 | U82: 0 | V82: 0 | W82: 0 | X82: 0 | Y82: 0 | AA82: 0 | AB82: 0 | AC82: 0 | AD82: 0 | AE82: 0 | AF82: 0 | AG82: 0 | AH82: 0 | AI82: 0 | AJ82: 0 | AK82: 0 | AL82: 0 | AM82: 0 | AO82: 0 | AP82: 0 | AQ82: 0 | AR82: 0 | AS82: 0 | AT82: 0 | AU82: 0 | AV82: 0 | AW82: 0 | AX82: 0 | AY82: 0 | AZ82: 0 | BA82: 0
E83: 2015-04-01 | F83: 2016-03-31 | I83: 0 | K83: 0 | M83: 0 | N83: 0 | O83: 0 | P83: 0 | Q83: 0 | R83: 0 | S83: 0 | T83: 0 | U83: 0 | V83: 0 | W83: 0 | X83: 0 | Y83: 0 | AA83: 0 | AB83: 0 | AC83: 0 | AD83: 0 | AE83: 0 | AF83: 0 | AG83: 0 | AH83: 0 | AI83: 0 | AJ83: 0 | AK83: 0 | AL83: 0 | AM83: 0 | AO83: 0 | AP83: 0 | AQ83: 0 | AR83: 0 | AS83: 0 | AT83: 0 | AU83: 0 | AV83: 0 | AW83: 0 | AX83: 0 | AY83: 0 | AZ83: 0 | BA83: 0
E84: 2015-04-01 | F84: 2016-03-31 | I84: 0 | K84: 0 | M84: 0 | N84: 0 | O84: 0 | P84: 0 | Q84: 0 | R84: 0 | S84: 0 | T84: 0 | U84: 0 | V84: 0 | W84: 0 | X84: 0 | Y84: 0 | AA84: 0 | AB84: 0 | AC84: 0 | AD84: 0 | AE84: 0 | AF84: 0 | AG84: 0 | AH84: 0 | AI84: 0 | AJ84: 0 | AK84: 0 | AL84: 0 | AM84: 0 | AO84: 0 | AP84: 0 | AQ84: 0 | AR84: 0 | AS84: 0 | AT84: 0 | AU84: 0 | AV84: 0 | AW84: 0 | AX84: 0 | AY84: 0 | AZ84: 0 | BA84: 0
E85: 2015-04-01 | F85: 2016-03-31 | I85: 0 | K85: 0 | M85: 0 | N85: 0 | O85: 0 | P85: 0 | Q85: 0 | R85: 0 | S85: 0 | T85: 0 | U85: 0 | V85: 0 | W85: 0 | X85: 0 | Y85: 0 | AA85: 0 | AB85: 0 | AC85: 0 | AD85: 0 | AE85: 0 | AF85: 0 | AG85: 0 | AH85: 0 | AI85: 0 | AJ85: 0 | AK85: 0 | AL85: 0 | AM85: 0 | AO85: 0 | AP85: 0 | AQ85: 0 | AR85: 0 | AS85: 0 | AT85: 0 | AU85: 0 | AV85: 0 | AW85: 0 | AX85: 0 | AY85: 0 | AZ85: 0 | BA85: 0
E86: 2015-04-01 | F86: 2016-03-31 | I86: 0 | K86: 0 | M86: 0 | N86: 0 | O86: 0 | P86: 0 | Q86: 0 | R86: 0 | S86: 0 | T86: 0 | U86: 0 | V86: 0 | W86: 0 | X86: 0 | Y86: 0 | AA86: 0 | AB86: 0 | AC86: 0 | AD86: 0 | AE86: 0 | AF86: 0 | AG86: 0 | AH86: 0 | AI86: 0 | AJ86: 0 | AK86: 0 | AL86: 0 | AM86: 0 | AO86: 0 | AP86: 0 | AQ86: 0 | AR86: 0 | AS86: 0 | AT86: 0 | AU86: 0 | AV86: 0 | AW86: 0 | AX86: 0 | AY86: 0 | AZ86: 0 | BA86: 0
E87: 2015-04-01 | F87: 2016-03-31 | I87: 0 | K87: 0 | M87: 0 | N87: 0 | O87: 0 | P87: 0 | Q87: 0 | R87: 0 | S87: 0 | T87: 0 | U87: 0 | V87: 0 | W87: 0 | X87: 0 | Y87: 0 | AA87: 0 | AB87: 0 | AC87: 0 | AD87: 0 | AE87: 0 | AF87: 0 | AG87: 0 | AH87: 0 | AI87: 0 | AJ87: 0 | AK87: 0 | AL87: 0 | AM87: 0 | AO87: 0 | AP87: 0 | AQ87: 0 | AR87: 0 | AS87: 0 | AT87: 0 | AU87: 0 | AV87: 0 | AW87: 0 | AX87: 0 | AY87: 0 | AZ87: 0 | BA87: 0
E88: 2015-04-01 | F88: 2016-03-31 | I88: 0 | K88: 0 | M88: 0 | N88: 0 | O88: 0 | P88: 0 | Q88: 0 | R88: 0 | S88: 0 | T88: 0 | U88: 0 | V88: 0 | W88: 0 | X88: 0 | Y88: 0 | AA88: 0 | AB88: 0 | AC88: 0 | AD88: 0 | AE88: 0 | AF88: 0 | AG88: 0 | AH88: 0 | AI88: 0 | AJ88: 0 | AK88: 0 | AL88: 0 | AM88: 0 | AO88: 0 | AP88: 0 | AQ88: 0 | AR88: 0 | AS88: 0 | AT88: 0 | AU88: 0 | AV88: 0 | AW88: 0 | AX88: 0 | AY88: 0 | AZ88: 0 | BA88: 0
E89: 2015-04-01 | F89: 2016-03-31 | I89: 0 | K89: 0 | M89: 0 | N89: 0 | O89: 0 | P89: 0 | Q89: 0 | R89: 0 | S89: 0 | T89: 0 | U89: 0 | V89: 0 | W89: 0 | X89: 0 | Y89: 0 | AA89: 0 | AB89: 0 | AC89: 0 | AD89: 0 | AE89: 0 | AF89: 0 | AG89: 0 | AH89: 0 | AI89: 0 | AJ89: 0 | AK89: 0 | AL89: 0 | AM89: 0 | AO89: 0 | AP89: 0 | AQ89: 0 | AR89: 0 | AS89: 0 | AT89: 0 | AU89: 0 | AV89: 0 | AW89: 0 | AX89: 0 | AY89: 0 | AZ89: 0 | BA89: 0
K90: =AM90 -> 0 | AL90: Extra top up due to 20% rule: | AM90: 0
K91: =SUM(K60:K90)+SUM(K17:K51) -> 0 | Y91: =SUM(Y60:Y89)+SUM(Y17:Y51) -> 0 | AM91: =SUM(AM60:AM90)+SUM(AM17:AM51) -> 0 | BA91: =SUM(BA60:BA89)+SUM(BA17:BA51) -> 0

Sheet Early Years
F2: =dfenum -> 0
B5: =Home!B13 -> 
B7: 2018/19 Early Years Budget Estimation
B9: Hourly Rate | E9: Hourly rate
B10: Base rate | E10: =IFERROR(VLOOKUP(dfenum,data,3,0),0) -> 0
B11: Qualified Teacher Supplement | E11: =IFERROR(VLOOKUP(dfenum,data,4,0),0) -> 0
B12: Disadvantage supplement | E12: =IFERROR(VLOOKUP(dfenum,data,5,0),0) -> 0
E13: =SUM(E10:E12) -> 0
B15: Please Enter your Pupil Numbers
B17: Please only enter qualifying pupils (follow link for guidance)
C18: 2018/19 | F18: 2019/20
B19: Pupils Early Years Hours | C19: Summer | D19: Autumn | E19: Spring | F19: Summer (Rates may be revised as new Local Authority funding period)
B20: 1
B21: 2
B22: 3
B23: 4
B24: 5
B25: 6
B26: 7
B27: 8
B28: 9
B29: 10
B30: 11
B31: 12
B32: 13
B33: 14
B34: 15
B35: 16
B36: 17
B37: 18
B38: 19
B39: 20
B40: 21
B41: 22
B42: 23
B43: 24
B44: 25
B45: 26
B46: 27
B47: 28
B48: 29
B49: 30
B50: Total pupils: | C50: =SUM(C20:C49) -> 0 | D50: 0 | E50: 0 | F50: 0
B51: Total Weekly Hours: | C51: =SUMPRODUCT(C20:C49,$B$20:$B$49) -> 0 | D51: =SUMPRODUCT(D20:D49,$B$20:$B$49) -> 0 | E51: 0 | F51: 0
B52: Total Hours for Term: | C52: =C51*$E$55 -> 0 | D52: =D51*$E$56 -> 0 | E52: =E51*$E$57 -> 0 | F52: =F51*$E$55 -> 0
C54: Hourly Rate | D54: Weekly Hours | E54: Weeks
B55: Summer term 2018 | C55: =$E$13 -> 0 | D55: =C51 -> 0 | E55: 13 | F55: =SUM(D55*E55)*C55 -> 0
B56: Autumn term 2018 | C56: =$E$13 -> 0 | D56: =D51 -> 0 | E56: 14 | F56: =SUM(D56*E56)*C56 -> 0
B57: Spring term 2019 | C57: 0 | D57: =E51 -> 0 | E57: 11 | F57: =SUM(D57*E57)*C57 -> 0
B58: Summer term 2019 | C58: 0 | D58: =F51 -> 0 | E58: 13 | F58: =SUM(D58*E58)*C58 -> 0
B61: Total 2018/19 Financial Year Estimated Budget (April 2018 to March 2019): | F61: =SUM(F55:F57) -> 0
B63: Total 2018/19 Academic Year Estimated Budget (September 2018 to August 2019): | F63: =SUM($F$56:$F$58) -> 0
B65: Total Estimated Budget (April 2018 to August 2019): | F65: =SUM($F$55:$F$58) -> 0
B69: Early Years Pupil Premium (EYPP)
B71: Please only enter pupils who qualify for the Early Years Pupil Premium
C73: 2018/19 | F73: 2019/20
B74: Pupils Early Years Hours | C74: Summer | D74: Autumn | E74: Spring | F74: Summer (Rates may be revised as new Local Authority funding period)
B75: 1
B76: 2
B77: 3
B78: 4
B79: 5
B80: 6
B81: 7
B82: 8
B83: 9
B84: 10
B85: 11
B86: 12
B87: 13
B88: 14
B89: 15
B90: Total pupils: | C90: =SUM(C75:C89) -> 0 | D90: =SUM(D75:D89) -> 0 | E90: =SUM(E75:E89) -> 0 | F90: =SUM(F75:F89) -> 0
B91: Total Weekly Hours: | C91: =SUMPRODUCT(C75:C89,$B$75:$B$89) -> 0 | D91: =SUMPRODUCT(D75:D89,$B$75:$B$89) -> 0 | E91: 0 | F91: 0
B92: Total Hours for Term: | C92: =C91*13 -> 0 | D92: =D91*14 -> 0 | E92: =E91*11 -> 0 | F92: =F91*13 -> 0
B93: Rate per funded hour: | C93: 0.53 | D93: 0.53 | E93: 0.53 | F93: 0.53
B94: Estimated Pupil Premium Funding: | C94: =C92*C93 -> 0 | D94: =D92*D93 -> 0 | E94: 0 | F94: 0
B96: Total 2018/19 Financial Year Estimated Budget (April 2018 to March 2019): | F96: =SUM($C$94:$E$94) -> 0
B98: Total 2018/19 Academic Year Estimated Budget (September 2018 to August 2019): | F98: =SUM($D$94:$F$94) -> 0
B100: Total Estimated Budget (April 2018 to August 2019): | F100: =SUM($C$94:$F$94) -> 0
B103: 2 Year old funding
B105: Please only enter pupils who qualify for the 2 Year old funding
C107: 2018/19 | F107: 2019/20
B108: Pupils Early Years Hours | C108: Summer | D108: Autumn | E108: Spring | F108: Summer (Rates may be revised as new Local Authority funding period)
B109: 1
B110: 2
B111: 3
B112: 4
B113: 5
B114: 6
B115: 7
B116: 8
B117: 9
B118: 10
B119: 11
B120: 12
B121: 13
B122: 14
B123: 15
B124: Total pupils: | C124: =SUM(C109:C123) -> 0 | D124: =SUM(D109:D123) -> 0 | E124: =SUM(E109:E123) -> 0 | F124: =SUM(F109:F123) -> 0
B125: Total Weekly Hours: | C125: =SUMPRODUCT(C109:C123,$B$109:$B$123) -> 0 | D125: =SUMPRODUCT(D109:D123,$B$109:$B$123) -> 0 | E125: 0 | F125: 0
B126: Total Hours for Term: | C126: =C125*13 -> 0 | D126: =D125*14 -> 0 | E126: =E125*11 -> 0 | F126: =F125*13 -> 0
B127: Rate per funded hour: | C127: 5.02 | D127: 5.02 | E127: 5.02 | F127: 5.02
B128: Estimated 2 Year old Funding: | C128: =C126*C127 -> 0 | D128: =D126*D127 -> 0 | E128: 0 | F128: 0
B130: Total 2018/19 Financial Year Estimated Budget (April 2018 to March 2019): | F130: =SUM($C$128:$E$128) -> 0
B132: Total 2018/19 Academic Year Estimated Budget (September 2018 to August 2019): | F132: =SUM($D$128:$F$128) -> 0
B134: Total Estimated Budget (April 2018 to August 2019): | F134: =SUM($C$128:$F$128) -> 0
C137: 2018/19
B138: Special Educational Needs Inclusion Fund (SENIF)
B139: Disability Access Fund (DAF)
B141: Please only enter funding for pupils who qualify for the DAF funding
B143: Please only enter funding for pupils who qualify for the SENIF funding

Sheet High Needs Mainstream
P1: Notional SEN budget top up rate working
D2: =dfenum -> 0 | P2: Notional AEN/SEN Budget
S3: IDACI | V3: =IF(ISERROR(VLOOKUP(dfenum,Data!A:X,6,0)),0,VLOOKUP(dfenum,Data!A:X,6,0)) -> 0
D4: =Home!B13 ->  | S4: Ever 6 FSM | V4: =IF(ISERROR(VLOOKUP(dfenum,Data!A:X,7,0)),0,VLOOKUP(dfenum,Data!A:X,7,0)) -> 0
D5: 2018/19 | S5: Low Cost, high Incidence SEN | V5: =IF(ISERROR(VLOOKUP(dfenum,Data!A:X,8,0)),0,VLOOKUP(dfenum,Data!A:X,8,0)) -> 0
S6: English as an additional language | V6: =IF(ISERROR(VLOOKUP(dfenum,Data!A:X,9,0)),0,VLOOKUP(dfenum,Data!A:X,9,0)) -> 0
S7: Element of Lump Sum | V7: =IF(ISERROR(VLOOKUP(dfenum,Data!A:X,10,0)),0,VLOOKUP(dfenum,Data!A:X,10,0)) -> 0
S8: Area Cost Adjustment-London Fringe | V8: =IFERROR(VLOOKUP(dfenum,Data!A4:K400,11,0),0)*SUM(V3:V7) -> 0
S9: Total (with Area Cost Adjustment if applicable) | X9: =SUM(V3:V8) -> 0
P10: School Contribution per Pre-16 Pupil | X10: 6000 | AD10: Extra top up due to 28% rule
P11: Notional AEN/SEN Top Up per Pre-16 Pupil (10%) | X11: =IF(dfenum=1001,0,IF(X9>=60000,0,6000-(X9*0.1))) -> 6000 | AD11: =IF(BF15>=senmax,"Y","N") -> Y | AE11: Y | AF11: Y | AG11: Y | AH11: Y | AI11: Y | AJ11: Y | AK11: Y | AL11: Y | AM11: Y | AN11: Y | AO11: Y | AP11: Total
P12: Maximum Contribution for all Pre-16 Pupils (28%) | X12: =X9*0.28 -> 0 | AD12: =BF13 -> 0 | AE12: =BG13-AD12 -> 0 | AF12: =BH13-SUM(AD12:AE12) -> 0 | AG12: =BI13-SUM(AD12:AF12) -> 0 | AH12: =BJ13-SUM(AD12:AG12) -> 0 | AI12: =BK13-SUM(AD12:AH12) -> 0 | AJ12: =BL13-SUM(AD12:AI12) -> 0 | AK12: =BM13-SUM(AD12:AJ12) -> 0 | AL12: =BN13-SUM(AD12:AK12) -> 0 | AM12: =BO13-SUM(AD12:AL12) -> 0 | AN12: =BP13-SUM(AD12:AM12) -> 0 | AO12: =BQ13-SUM(AD12:AN12) -> 0 | AP12: =SUM(AD12:AO12) -> 0
BF13: =IF(BF15-senmax<0,0,BF15-senmax) -> 0 | BG13: 0 | BH13: 0 | BI13: 0 | BJ13: 0 | BK13: 0 | BL13: 0 | BM13: 0 | BN13: 0 | BO13: 0 | BP13: 0 | BQ13: 0
E14: 2017-09-01 | F14: 2018-09-01
C15: Pupil Data | P15: Element 3 top up | AD15: Notional SEN budget top up | AR15: Post 16 Element 2 | BF15: =BF16 -> 0 | BG15: =BG16+BF15 -> 0 | BH15: 0 | BI15: 0 | BJ15: 0 | BK15: 0 | BL15: 0 | BM15: 0 | BN15: 0 | BO15: 0 | BP15: 0 | BQ15: =BQ16+BP15 -> 0 | BU15: 2019/20
C16: Name | D16: Date of Birth | E16: Year Group (Academic Year Sept 17 - Aug 18) | F16: Year Group (Academic Year Sept 18 - Aug 19) | G16: Start Date | H16: End Date | I16: Year 1 - Period 1 - (Apr to Aug) Monthly top up rate | J16: Year 1 - Period 2 - (Sep to Dec) Monthly top up rate | K16: Year 1 - Period 3 - (Jan to Mar) Monthly top up rate | L16: Year 2 Monthly top up rate | M16: Year 1 Total Funding linked to this Pupil | P16: April | Q16: May | R16: June | S16: July | T16: August | U16: September | V16: October | W16: November | X16: December | Y16: January | Z16: February | AA16: March | AB16: Total | AD16: April | AE16: May | AF16: June | AG16: July | AH16: August | AI16: September | AJ16: October | AK16: November | AL16: December | AM16: January | AN16: February | AO16: March | AP16: Total | AR16: April | AS16: May | AT16: June | AU16: July | AV16: August | AW16: September | AX16: October | AY16: November | AZ16: December | BA16: January | BB16: February | BC16: March | BD16: Total | BF16: =SUM(BF17:BF81) -> 0 | BG16: =SUM(BG17:BG81) -> 0 | BH16: 0 | BI16: 0 | BJ16: 0 | BK16: 0 | BL16: 0 | BM16: 0 | BN16: 0 | BO16: 0 | BP16: 0 | BQ16: 0 | BR16: Name | BS16: Pupil present between April and August | BT16: September to March Indicator | BU16: April to August (£) | BV16: Notional SEN Budget Top Up (Rates may be revised as new Local Authority funding period) | BW16: Post 16 Element 2 | CA16: April | CB16: May | CC16: June | CD16: July | CE16: August | CF16: September | CG16: October | CH16: November | CI16: December | CJ16: January | CK16: February | CL16: March | CM16: Age1 | CN16: Age2 | CO16: Pre months | CP16: Post months | CR16: April | CS16: May | CT16: June | CU16: July | CV16: August | CW16: September | CX16: October | CY16: November | CZ16: December | DA16: January | DB16: February | DC16: March | DD16: Age1 | DE16: Age2 | DF16: Pre months | DG16: Post months
E17: =IF(D17="","",IF(SUM(DATEDIF(D17,DATE(YEAR($E$14)+(MONTH($E$14)>8),8,31),"Y")-5)=0,"R",IF(SUM(DATEDIF(D17,DATE(YEAR($E$14)+(MONTH($E$14)>8),8,31),"Y")-5)<0,"",DATEDIF(D17,DATE(YEAR($E$14)+(MONTH($E$14)>8),8,31),"Y")-5))) ->  | F17: =IF(D17="","",IF(SUM(DATEDIF(D17,DATE(YEAR($F$14)+(MONTH($F$14)>8),8,31),"Y")-5)=0,"R",DATEDIF(D17,DATE(YEAR($F$14)+(MONTH($F$14)>8),8,31),"Y")-5)) ->  | G17: 2018-04-01 | M17: =AB17+AP17+BD17 -> 0 | P17: =IF(AND($G17<DATE(2018,5,1),$H17>=DATE(2018,4,1)),$I17,0) -> 0 | Q17: =IF(AND($G17<DATE(2018,6,1),$H17>=DATE(2018,4,1)),$I17,0) -> 0 | R17: =IF(AND($G17<DATE(2018,7,1),$H17>=DATE(2018,4,1)),$I17,0) -> 0 | S17: =IF(AND($G17<DATE(2018,8,1),$H17>=DATE(2018,4,1)),$I17,0) -> 0 | T17: =IF(AND($G17<DATE(2018,9,1),$H17>=DATE(2018,4,1)),$I17,0) -> 0 | U17: =IF(AND($G17<DATE(2018,10,1),$H17>=DATE(2018,9,1)),$J17,0) -> 0 | V17: =IF(AND($G17<DATE(2018,11,1),$H17>=DATE(2018,9,1)),$J17,0) -> 0 | W17: =IF(AND($G17<DATE(2018,12,1),$H17>=DATE(2018,9,1)),$J17,0) -> 0 | X17: =IF(AND($G17<DATE(2019,1,1),$H17>=DATE(2018,9,1)),$J17,0) -> 0 | Y17: =IF(AND($G17<DATE(2019,2,1),$H17>=DATE(2019,1,1)),$K17,0) -> 0 | Z17: =IF(AND($G17<DATE(2019,3,1),$H17>=DATE(2019,1,1)),$K17,0) -> 0 | AA17: =IF(AND($G17<DATE(2019,4,1),$H17>=DATE(2019,1,1)),$K17,0) -> 0 | AB17: =SUM(P17:AA17) -> 0 | AD17: =IF(AND(P17>0,$D17>DATE(2001,8,31)),sentopup/12,0) -> 0 | AE17: =IF(AND(Q17>0,$D17>DATE(2001,8,31)),sentopup/12,0) -> 0 | AF17: =IF(AND(R17>0,$D17>DATE(2001,8,31)),sentopup/12,0) -> 0 | AG17: =IF(AND(S17>0,$D17>DATE(2001,8,31)),sentopup/12,0) -> 0 | AH17: =IF(AND(T17>0,$D17>DATE(2001,8,31)),sentopup/12,0) -> 0 | AI17: =IF(AND(U17>0,$D17>DATE(2002,8,1)),sentopup/12,0) -> 0 | AJ17: =IF(AND(V17>0,$D17>DATE(2002,8,1)),sentopup/12,0) -> 0 | AK17: =IF(AND(W17>0,$D17>DATE(2002,8,1)),sentopup/12,0) -> 0 | AL17: =IF(AND(X17>0,$D17>DATE(2002,8,1)),sentopup/12,0) -> 0 | AM17: =IF(AND(Y17>0,$D17>DATE(2002,8,1)),sentopup/12,0) -> 0 | AN17: =IF(AND(Z17>0,$D17>DATE(2002,8,1)),sentopup/12,0) -> 0 | AO17: =IF(AND(AA17>0,$D17>DATE(2002,8,1)),sentopup/12,0) -> 0 | AP17: =SUM(AD17:AO17) -> 0 | AR17: =IF(AND(P17>0,$D17<DATE(2001,9,1),$D17>1),500,0) -> 0 | AS17: =IF(AND(Q17>0,$D17<DATE(2001,9,1),$D17>1),500,0) -> 0 | AT17: =IF(AND(R17>0,$D17<DATE(2001,9,1),$D17>1),500,0) -> 0 | AU17: =IF(AND(S17>0,$D17<DATE(2001,9,1),$D17>1),500,0) -> 0 | AV17: =IF(AND(T17>0,$D17<DATE(2001,9,1),$D17>1),500,0) -> 0 | AW17: =IF(AND(U17>0,$D17<DATE(2002,9,1),$D17>1),500,0) -> 0 | AX17: 0 | AY17: 0 | AZ17: 0 | BA17: 0 | BB17: 0 | BC17: 0 | BD17: =SUM(AR17:BC17) -> 0 | BF17: =IF(P17>0,500-AD17-AR17,0) -> 0 | BG17: =IF(Q17>0,500-AE17-AS17,0) -> 0 | BH17: 0 | BI17: 0 | BJ17: 0 | BK17: 0 | BL17: 0 | BM17: 0 | BN17: 0 | BO17: 0 | BP17: 0 | BQ17: 0 | BR17: =IF(AA17>0,C17,"") ->  | BS17: =IF(H17>DATE(2019,3,1),"Yes","No") -> No | BT17: =IF(H17>DATE(2019,8,31),"Yes","No") -> No | BU17: =IFERROR(IF(BS17="Yes",L17*SUM(CA17:CE17),0),"") -> 0 | BV17: =SUM(sentopup/12)*CO17 -> 0 | BW17: =SUM(6000/12)*CP17 -> 0 | CA17: =IF(AND($G17<DATE(2019,5,1),$H17>DATE(2019,3,31)),1,0) -> 0 | CB17: =IF(AND($G17<DATE(2019,6,1),$H17>DATE(2019,3,31)),1,0) -> 0 | CC17: =IF(AND($G17<DATE(2019,7,1),$H17>DATE(2019,3,31)),1,0) -> 0 | CD17: =IF(AND($G17<DATE(2019,8,1),$H17>DATE(2019,3,31)),1,0) -> 0 | CE17: =IF(AND($G17<DATE(2019,9,1),$H17>DATE(2019,3,31)),1,0) -> 0 | CM17: =IF(AND(D17>1,D17<DATE(2002,9,1)),"post",IF(AND(D17>1,D17>DATE(2002,8,31)),"pre","null")) -> null | CN17: =IF(AND(D17>1,D17<DATE(2003,9,1)),"post",IF(AND(D17>1,D17>DATE(2003,8,31)),"pre","null")) -> null | CO17: =IF(AND(CM17="pre",CN17="pre"),SUM(CA17:CL17), IF(AND(CM17="post",CN17="post"),0, IF(AND(CM17="pre",CN17="post"),SUM(CA17:CE17),0))) -> 0 | CP17: =IF(AND(CM17="pre",CN17="pre"),0, IF(AND(CM17="post",CN17="post"),SUM(CA17:CL17), IF(AND(CM17="pre",CN17="post"),SUM(CF17:CL17),0))) -> 0 | CR17: =IF(AND($G17<DATE(2020,5,1),$H17>DATE(2020,3,31)),1,0) -> 0 | CS17: =IF(AND($G17<DATE(2020,6,1),$H17>DATE(2020,3,31)),1,0) -> 0 | CT17: =IF(AND($G17<DATE(2020,7,1),$H17>DATE(2020,3,31)),1,0) -> 0 | CU17: =IF(AND($G17<DATE(2020,8,1),$H17>DATE(2020,3,31)),1,0) -> 0 | CV17: =IF(AND($G17<DATE(2020,9,1),$H17>DATE(2020,3,31)),1,0) -> 0 | CW17: =IF(AND($G17<DATE(2020,10,1),$H17>DATE(2020,8,31)),1,0) -> 0 | CX17: =IF(AND($G17<DATE(2020,11,1),$H17>DATE(2020,8,31)),1,0) -> 0 | CY17: =IF(AND($G17<DATE(2020,12,1),$H17>DATE(2020,8,31)),1,0) -> 0 | CZ17: =IF(AND($G17<DATE(2021,1,1),$H17>DATE(2020,8,31)),1,0) -> 0 | DA17: =IF(AND($G17<DATE(2021,2,1),$H17>DATE(2020,12,31)),1,0) -> 0 | DB17: =IF(AND($G17<DATE(2021,3,1),$H17>DATE(2020,12,31)),1,0) -> 0 | DC17: =IF(AND($G17<DATE(2021,4,1),$H17>DATE(2020,12,31)),1,0) -> 0 | DD17: =IF(AND(D17>1,D17<DATE(2003,9,1)),"post",IF(AND(D17>1,D17>DATE(2003,8,31)),"pre","null")) -> null | DE17: =IF(AND(D17>1,D17<DATE(2004,9,1)),"post",IF(AND(D17>1,D17>DATE(2004,8,31)),"pre","null")) -> null | DF17: =IF(AND(DD17="pre",DE17="pre"),SUM(CR17:DC17), IF(AND(DD17="post",DE17="post"),0, IF(AND(DD17="pre",DE17="post"),SUM(CR17:CV17),0))) -> 0 | DG17: =IF(AND(DD17="pre",DE17="pre"),0, IF(AND(DD17="post",DE17="post"),SUM(CR17:DC17), IF(AND(DD17="pre",DE17="post"),SUM(CW17:DC17),0))) -> 0
G18: 2018-04-01 | M18: =AB18+AP18+BD18 -> 0 | P18: =IF(AND($G18<DATE(2018,5,1),$H18>=DATE(2018,4,1)),$I18,0) -> 0 | Q18: =IF(AND($G18<DATE(2018,6,1),$H18>=DATE(2018,4,1)),$I18,0) -> 0 | R18: =IF(AND($G18<DATE(2018,7,1),$H18>=DATE(2018,4,1)),$I18,0) -> 0 | S18: =IF(AND($G18<DATE(2018,8,1),$H18>=DATE(2018,4,1)),$I18,0) -> 0 | T18: =IF(AND($G18<DATE(2018,9,1),$H18>=DATE(2018,4,1)),$I18,0) -> 0 | U18: =IF(AND($G18<DATE(2018,10,1),$H18>=DATE(2018,9,1)),$J18,0) -> 0 | V18: =IF(AND($G18<DATE(2018,11,1),$H18>=DATE(2018,9,1)),$J18,0) -> 0 | W18: =IF(AND($G18<DATE(2018,12,1),$H18>=DATE(2018,9,1)),$J18,0) -> 0 | X18: =IF(AND($G18<DATE(2019,1,1),$H18>=DATE(2018,9,1)),$J18,0) -> 0 | Y18: =IF(AND($G18<DATE(2019,2,1),$H18>=DATE(2019,1,1)),$K18,0) -> 0 | Z18: =IF(AND($G18<DATE(2019,3,1),$H18>=DATE(2019,1,1)),$K18,0) -> 0 | AA18: =IF(AND($G18<DATE(2019,4,1),$H18>=DATE(2019,1,1)),$K18,0) -> 0 | AB18: =SUM(P18:AA18) -> 0 | AD18: 0 | AE18: 0 | AF18: 0 | AG18: 0 | AH18: 0 | AI18: 0 | AJ18: 0 | AK18: 0 | AL18: 0 | AM18: 0 | AN18: 0 | AO18: 0 | AP18: =SUM(AD18:AO18) -> 0 | AR18: =IF(AND(P18>0,$D18<DATE(2001,9,1),$D18>1),500,0) -> 0 | AS18: 0 | AT18: 0 | AU18: 0 | AV18: 0 | AW18: 0 | AX18: 0 | AY18: 0 | AZ18: 0 | BA18: 0 | BB18: 0 | BC18: 0 | BD18: =SUM(AR18:BC18) -> 0 | BF18: =IF(P18>0,500-AD18-AR18,0) -> 0 | BG18: 0 | BH18: 0 | BI18: 0 | BJ18: 0 | BK18: 0 | BL18: 0 | BM18: 0 | BN18: 0 | BO18: 0 | BP18: 0 | BQ18: 0 | BS18: No | BT18: No | BU18: 0 | BV18: 0 | BW18: =SUM(6000/12)*CP18 -> 0 | CA18: =IF(AND($G18<DATE(2019,5,1),$H18>DATE(2019,3,31)),1,0) -> 0 | CB18: =IF(AND($G18<DATE(2019,6,1),$H18>DATE(2019,3,31)),1,0) -> 0 | CC18: =IF(AND($G18<DATE(2019,7,1),$H18>DATE(2019,3,31)),1,0) -> 0 | CD18: =IF(AND($G18<DATE(2019,8,1),$H18>DATE(2019,3,31)),1,0) -> 0 | CE18: =IF(AND($G18<DATE(2019,9,1),$H18>DATE(2019,3,31)),1,0) -> 0 | CM18: null | CN18: null | CO18: =IF(AND(CM18="pre",CN18="pre"),SUM(CA18:CL18), IF(AND(CM18="post",CN18="post"),0, IF(AND(CM18="pre",CN18="post"),SUM(CA18:CE18),0))) -> 0 | CP18: =IF(AND(CM18="pre",CN18="pre"),0, IF(AND(CM18="post",CN18="post"),SUM(CA18:CL18), IF(AND(CM18="pre",CN18="post"),SUM(CF18:CL18),0))) -> 0 | CR18: =IF(AND($G18<DATE(2020,5,1),$H18>DATE(2020,3,31)),1,0) -> 0 | CS18: =IF(AND($G18<DATE(2020,6,1),$H18>DATE(2020,3,31)),1,0) -> 0 | CT18: =IF(AND($G18<DATE(2020,7,1),$H18>DATE(2020,3,31)),1,0) -> 0 | CU18: =IF(AND($G18<DATE(2020,8,1),$H18>DATE(2020,3,31)),1,0) -> 0 | CV18: =IF(AND($G18<DATE(2020,9,1),$H18>DATE(2020,3,31)),1,0) -> 0 | CW18: =IF(AND($G18<DATE(2020,10,1),$H18>DATE(2020,8,31)),1,0) -> 0 | CX18: =IF(AND($G18<DATE(2020,11,1),$H18>DATE(2020,8,31)),1,0) -> 0 | CY18: =IF(AND($G18<DATE(2020,12,1),$H18>DATE(2020,8,31)),1,0) -> 0 | CZ18: =IF(AND($G18<DATE(2021,1,1),$H18>DATE(2020,8,31)),1,0) -> 0 | DA18: =IF(AND($G18<DATE(2021,2,1),$H18>DATE(2020,12,31)),1,0) -> 0 | DB18: =IF(AND($G18<DATE(2021,3,1),$H18>DATE(2020,12,31)),1,0) -> 0 | DC18: =IF(AND($G18<DATE(2021,4,1),$H18>DATE(2020,12,31)),1,0) -> 0 | DD18: null | DE18: null | DF18: =IF(AND(DD18="pre",DE18="pre"),SUM(CR18:DC18), IF(AND(DD18="post",DE18="post"),0, IF(AND(DD18="pre",DE18="post"),SUM(CR18:CV18),0))) -> 0 | DG18: =IF(AND(DD18="pre",DE18="pre"),0, IF(AND(DD18="post",DE18="post"),SUM(CR18:DC18), IF(AND(DD18="pre",DE18="post"),SUM(CW18:DC18),0))) -> 0
G19: 2018-04-01 | M19: 0 | P19: 0 | Q19: 0 | R19: 0 | S19: 0 | T19: 0 | U19: 0 | V19: 0 | W19: 0 | X19: 0 | Y19: 0 | Z19: 0 | AA19: 0 | AB19: 0 | AD19: 0 | AE19: 0 | AF19: 0 | AG19: 0 | AH19: 0 | AI19: 0 | AJ19: 0 | AK19: 0 | AL19: 0 | AM19: 0 | AN19: 0 | AO19: 0 | AP19: 0 | AR19: 0 | AS19: 0 | AT19: 0 | AU19: 0 | AV19: 0 | AW19: 0 | AX19: 0 | AY19: 0 | AZ19: 0 | BA19: 0 | BB19: 0 | BC19: 0 | BD19: 0 | BF19: 0 | BG19: 0 | BH19: 0 | BI19: 0 | BJ19: 0 | BK19: 0 | BL19: 0 | BM19: 0 | BN19: 0 | BO19: 0 | BP19: 0 | BQ19: 0 | BS19: No | BT19: No | BU19: 0 | BV19: 0 | BW19: 0 | CA19: 0 | CB19: 0 | CC19: 0 | CD19: 0 | CE19: 0 | CM19: null | CN19: null | CO19: 0 | CP19: 0 | CR19: 0 | CS19: 0 | CT19: 0 | CU19: 0 | CV19: 0 | CW19: 0 | CX19: 0 | CY19: 0 | CZ19: 0 | DA19: 0 | DB19: 0 | DC19: 0 | DD19: null | DE19: null | DF19: 0 | DG19: 0
G20: 2018-04-01 | M20: 0 | P20: 0 | Q20: 0 | R20: 0 | S20: 0 | T20: 0 | U20: 0 | V20: 0 | W20: 0 | X20: 0 | Y20: 0 | Z20: 0 | AA20: 0 | AB20: 0 | AD20: 0 | AE20: 0 | AF20: 0 | AG20: 0 | AH20: 0 | AI20: 0 | AJ20: 0 | AK20: 0 | AL20: 0 | AM20: 0 | AN20: 0 | AO20: 0 | AP20: 0 | AR20: 0 | AS20: 0 | AT20: 0 | AU20: 0 | AV20: 0 | AW20: 0 | AX20: 0 | AY20: 0 | AZ20: 0 | BA20: 0 | BB20: 0 | BC20: 0 | BD20: 0 | BF20: 0 | BG20: 0 | BH20: 0 | BI20: 0 | BJ20: 0 | BK20: 0 | BL20: 0 | BM20: 0 | BN20: 0 | BO20: 0 | BP20: 0 | BQ20: 0 | BS20: No | BT20: No | BU20: 0 | BV20: 0 | BW20: 0 | CA20: 0 | CB20: 0 | CC20: 0 | CD20: 0 | CE20: 0 | CM20: null | CN20: null | CO20: 0 | CP20: 0 | CR20: 0 | CS20: 0 | CT20: 0 | CU20: 0 | CV20: 0 | CW20: 0 | CX20: 0 | CY20: 0 | CZ20: 0 | DA20: 0 | DB20: 0 | DC20: 0 | DD20: null | DE20: null | DF20: 0 | DG20: 0
G21: 2018-04-01 | M21: 0 | P21: 0 | Q21: 0 | R21: 0 | S21: 0 | T21: 0 | U21: 0 | V21: 0 | W21: 0 | X21: 0 | Y21: 0 | Z21: 0 | AA21: 0 | AB21: 0 | AD21: 0 | AE21: 0 | AF21: 0 | AG21: 0 | AH21: 0 | AI21: 0 | AJ21: 0 | AK21: 0 | AL21: 0 | AM21: 0 | AN21: 0 | AO21: 0 | AP21: 0 | AR21: 0 | AS21: 0 | AT21: 0 | AU21: 0 | AV21: 0 | AW21: 0 | AX21: 0 | AY21: 0 | AZ21: 0 | BA21: 0 | BB21: 0 | BC21: 0 | BD21: 0 | BF21: 0 | BG21: 0 | BH21: 0 | BI21: 0 | BJ21: 0 | BK21: 0 | BL21: 0 | BM21: 0 | BN21: 0 | BO21: 0 | BP21: 0 | BQ21: 0 | BS21: No | BT21: No | BU21: 0 | BV21: 0 | BW21: 0 | CA21: 0 | CB21: 0 | CC21: 0 | CD21: 0 | CE21: 0 | CM21: null | CN21: null | CO21: 0 | CP21: 0 | CR21: 0 | CS21: 0 | CT21: 0 | CU21: 0 | CV21: 0 | CW21: 0 | CX21: 0 | CY21: 0 | CZ21: 0 | DA21: 0 | DB21: 0 | DC21: 0 | DD21: null | DE21: null | DF21: 0 | DG21: 0
G22: 2018-04-01 | M22: 0 | P22: 0 | Q22: 0 | R22: 0 | S22: 0 | T22: 0 | U22: 0 | V22: 0 | W22: 0 | X22: 0 | Y22: 0 | Z22: 0 | AA22: 0 | AB22: 0 | AD22: 0 | AE22: 0 | AF22: 0 | AG22: 0 | AH22: 0 | AI22: 0 | AJ22: 0 | AK22: 0 | AL22: 0 | AM22: 0 | AN22: 0 | AO22: 0 | AP22: 0 | AR22: 0 | AS22: 0 | AT22: 0 | AU22: 0 | AV22: 0 | AW22: 0 | AX22: 0 | AY22: 0 | AZ22: 0 | BA22: 0 | BB22: 0 | BC22: 0 | BD22: 0 | BF22: 0 | BG22: 0 | BH22: 0 | BI22: 0 | BJ22: 0 | BK22: 0 | BL22: 0 | BM22: 0 | BN22: 0 | BO22: 0 | BP22: 0 | BQ22: 0 | BS22: No | BT22: No | BU22: 0 | BV22: 0 | BW22: 0 | CA22: 0 | CB22: 0 | CC22: 0 | CD22: 0 | CE22: 0 | CM22: null | CN22: null | CO22: 0 | CP22: 0 | CR22: 0 | CS22: 0 | CT22: 0 | CU22: 0 | CV22: 0 | CW22: 0 | CX22: 0 | CY22: 0 | CZ22: 0 | DA22: 0 | DB22: 0 | DC22: 0 | DD22: null | DE22: null | DF22: 0 | DG22: 0
G23: 2018-04-01 | M23: 0 | P23: 0 | Q23: 0 | R23: 0 | S23: 0 | T23: 0 | U23: 0 | V23: 0 | W23: 0 | X23: 0 | Y23: 0 | Z23: 0 | AA23: 0 | AB23: =SUM(P23:AA23) -> 0 | AD23: 0 | AE23: 0 | AF23: 0 | AG23: 0 | AH23: 0 | AI23: 0 | AJ23: 0 | AK23: 0 | AL23: 0 | AM23: 0 | AN23: 0 | AO23: 0 | AP23: =SUM(AD23:AO23) -> 0 | AR23: 0 | AS23: 0 | AT23: 0 | AU23: 0 | AV23: 0 | AW23: 0 | AX23: 0 | AY23: 0 | AZ23: 0 | BA23: 0 | BB23: 0 | BC23: 0 | BD23: =SUM(AR23:BC23) -> 0 | BF23: 0 | BG23: 0 | BH23: 0 | BI23: 0 | BJ23: 0 | BK23: 0 | BL23: 0 | BM23: 0 | BN23: 0 | BO23: 0 | BP23: 0 | BQ23: 0 | BS23: No | BT23: No | BU23: 0 | BV23: 0 | BW23: 0 | CA23: 0 | CB23: 0 | CC23: 0 | CD23: 0 | CE23: 0 | CM23: null | CN23: null | CO23: 0 | CP23: 0 | CR23: 0 | CS23: 0 | CT23: 0 | CU23: 0 | CV23: 0 | CW23: 0 | CX23: 0 | CY23: 0 | CZ23: 0 | DA23: 0 | DB23: 0 | DC23: 0 | DD23: null | DE23: null | DF23: 0 | DG23: 0
G24: 2018-04-01 | M24: 0 | P24: 0 | Q24: 0 | R24: 0 | S24: 0 | T24: 0 | U24: 0 | V24: 0 | W24: 0 | X24: 0 | Y24: 0 | Z24: 0 | AA24: 0 | AB24: 0 | AD24: 0 | AE24: 0 | AF24: 0 | AG24: 0 | AH24: 0 | AI24: 0 | AJ24: 0 | AK24: 0 | AL24: 0 | AM24: 0 | AN24: 0 | AO24: 0 | AP24: 0 | AR24: 0 | AS24: 0 | AT24: 0 | AU24: 0 | AV24: 0 | AW24: 0 | AX24: 0 | AY24: 0 | AZ24: 0 | BA24: 0 | BB24: 0 | BC24: 0 | BD24: 0 | BF24: 0 | BG24: 0 | BH24: 0 | BI24: 0 | BJ24: 0 | BK24: 0 | BL24: 0 | BM24: 0 | BN24: 0 | BO24: 0 | BP24: 0 | BQ24: 0 | BS24: No | BT24: No | BU24: 0 | BV24: 0 | BW24: 0 | CA24: 0 | CB24: 0 | CC24: 0 | CD24: 0 | CE24: 0 | CM24: null | CN24: null | CO24: 0 | CP24: 0 | CR24: 0 | CS24: 0 | CT24: 0 | CU24: 0 | CV24: 0 | CW24: 0 | CX24: 0 | CY24: 0 | CZ24: 0 | DA24: 0 | DB24: 0 | DC24: 0 | DD24: null | DE24: null | DF24: 0 | DG24: 0
G25: 2018-04-01 | M25: 0 | P25: 0 | Q25: 0 | R25: 0 | S25: 0 | T25: 0 | U25: 0 | V25: 0 | W25: 0 | X25: 0 | Y25: 0 | Z25: 0 | AA25: 0 | AB25: 0 | AD25: 0 | AE25: 0 | AF25: 0 | AG25: 0 | AH25: 0 | AI25: 0 | AJ25: 0 | AK25: 0 | AL25: 0 | AM25: 0 | AN25: 0 | AO25: 0 | AP25: 0 | AR25: 0 | AS25: 0 | AT25: 0 | AU25: 0 | AV25: 0 | AW25: 0 | AX25: 0 | AY25: 0 | AZ25: 0 | BA25: 0 | BB25: 0 | BC25: 0 | BD25: 0 | BF25: 0 | BG25: 0 | BH25: 0 | BI25: 0 | BJ25: 0 | BK25: 0 | BL25: 0 | BM25: 0 | BN25: 0 | BO25: 0 | BP25: 0 | BQ25: 0 | BS25: No | BT25: No | BU25: 0 | BV25: 0 | BW25: 0 | CA25: 0 | CB25: 0 | CC25: 0 | CD25: 0 | CE25: 0 | CM25: null | CN25: null | CO25: 0 | CP25: 0 | CR25: 0 | CS25: 0 | CT25: 0 | CU25: 0 | CV25: 0 | CW25: 0 | CX25: 0 | CY25: 0 | CZ25: 0 | DA25: 0 | DB25: 0 | DC25: 0 | DD25: null | DE25: null | DF25: 0 | DG25: 0
G26: 2018-04-01 | M26: 0 | P26: 0 | Q26: 0 | R26: 0 | S26: 0 | T26: 0 | U26: 0 | V26: 0 | W26: 0 | X26: 0 | Y26: 0 | Z26: 0 | AA26: 0 | AB26: 0 | AD26: 0 | AE26: 0 | AF26: 0 | AG26: 0 | AH26: 0 | AI26: 0 | AJ26: 0 | AK26: 0 | AL26: 0 | AM26: 0 | AN26: 0 | AO26: 0 | AP26: 0 | AR26: 0 | AS26: 0 | AT26: 0 | AU26: 0 | AV26: 0 | AW26: 0 | AX26: 0 | AY26: 0 | AZ26: 0 | BA26: 0 | BB26: 0 | BC26: 0 | BD26: 0 | BF26: 0 | BG26: 0 | BH26: 0 | BI26: 0 | BJ26: 0 | BK26: 0 | BL26: 0 | BM26: 0 | BN26: 0 | BO26: 0 | BP26: 0 | BQ26: 0 | BS26: No | BT26: No | BU26: 0 | BV26: 0 | BW26: 0 | CA26: 0 | CB26: 0 | CC26: 0 | CD26: 0 | CE26: 0 | CM26: null | CN26: null | CO26: 0 | CP26: 0 | CR26: 0 | CS26: 0 | CT26: 0 | CU26: 0 | CV26: 0 | CW26: 0 | CX26: 0 | CY26: 0 | CZ26: 0 | DA26: 0 | DB26: 0 | DC26: 0 | DD26: null | DE26: null | DF26: 0 | DG26: 0
G27: 2018-04-01 | M27: 0 | P27: 0 | Q27: 0 | R27: 0 | S27: 0 | T27: 0 | U27: 0 | V27: 0 | W27: 0 | X27: 0 | Y27: 0 | Z27: 0 | AA27: 0 | AB27: 0 | AD27: 0 | AE27: 0 | AF27: 0 | AG27: 0 | AH27: 0 | AI27: 0 | AJ27: 0 | AK27: 0 | AL27: 0 | AM27: 0 | AN27: 0 | AO27: 0 | AP27: 0 | AR27: 0 | AS27: 0 | AT27: 0 | AU27: 0 | AV27: 0 | AW27: 0 | AX27: 0 | AY27: 0 | AZ27: 0 | BA27: 0 | BB27: 0 | BC27: 0 | BD27: 0 | BF27: 0 | BG27: 0 | BH27: 0 | BI27: 0 | BJ27: 0 | BK27: 0 | BL27: 0 | BM27: 0 | BN27: 0 | BO27: 0 | BP27: 0 | BQ27: 0 | BS27: No | BT27: No | BU27: 0 | BV27: 0 | BW27: 0 | CA27: 0 | CB27: 0 | CC27: 0 | CD27: 0 | CE27: 0 | CM27: null | CN27: null | CO27: 0 | CP27: 0 | CR27: 0 | CS27: 0 | CT27: 0 | CU27: 0 | CV27: 0 | CW27: 0 | CX27: 0 | CY27: 0 | CZ27: 0 | DA27: 0 | DB27: 0 | DC27: 0 | DD27: null | DE27: null | DF27: 0 | DG27: 0
G28: 2018-04-01 | M28: 0 | P28: 0 | Q28: 0 | R28: 0 | S28: 0 | T28: 0 | U28: 0 | V28: 0 | W28: 0 | X28: 0 | Y28: 0 | Z28: 0 | AA28: 0 | AB28: 0 | AD28: 0 | AE28: 0 | AF28: 0 | AG28: 0 | AH28: 0 | AI28: 0 | AJ28: 0 | AK28: 0 | AL28: 0 | AM28: 0 | AN28: 0 | AO28: 0 | AP28: 0 | AR28: 0 | AS28: 0 | AT28: 0 | AU28: 0 | AV28: 0 | AW28: 0 | AX28: 0 | AY28: 0 | AZ28: 0 | BA28: 0 | BB28: 0 | BC28: 0 | BD28: 0 | BF28: 0 | BG28: 0 | BH28: 0 | BI28: 0 | BJ28: 0 | BK28: 0 | BL28: 0 | BM28: 0 | BN28: 0 | BO28: 0 | BP28: 0 | BQ28: 0 | BS28: No | BT28: No | BU28: 0 | BV28: 0 | BW28: 0 | CA28: 0 | CB28: 0 | CC28: 0 | CD28: 0 | CE28: 0 | CM28: null | CN28: null | CO28: 0 | CP28: 0 | CR28: 0 | CS28: 0 | CT28: 0 | CU28: 0 | CV28: 0 | CW28: 0 | CX28: 0 | CY28: 0 | CZ28: 0 | DA28: 0 | DB28: 0 | DC28: 0 | DD28: null | DE28: null | DF28: 0 | DG28: 0
G29: 2018-04-01 | M29: 0 | P29: 0 | Q29: 0 | R29: 0 | S29: 0 | T29: 0 | U29: 0 | V29: 0 | W29: 0 | X29: 0 | Y29: 0 | Z29: 0 | AA29: 0 | AB29: 0 | AD29: 0 | AE29: 0 | AF29: 0 | AG29: 0 | AH29: 0 | AI29: 0 | AJ29: 0 | AK29: 0 | AL29: 0 | AM29: 0 | AN29: 0 | AO29: 0 | AP29: 0 | AR29: 0 | AS29: 0 | AT29: 0 | AU29: 0 | AV29: 0 | AW29: 0 | AX29: 0 | AY29: 0 | AZ29: 0 | BA29: 0 | BB29: 0 | BC29: 0 | BD29: 0 | BF29: 0 | BG29: 0 | BH29: 0 | BI29: 0 | BJ29: 0 | BK29: 0 | BL29: 0 | BM29: 0 | BN29: 0 | BO29: 0 | BP29: 0 | BQ29: 0 | BS29: No | BT29: No | BU29: 0 | BV29: 0 | BW29: 0 | CA29: 0 | CB29: 0 | CC29: 0 | CD29: 0 | CE29: 0 | CM29: null | CN29: null | CO29: 0 | CP29: 0 | CR29: 0 | CS29: 0 | CT29: 0 | CU29: 0 | CV29: 0 | CW29: 0 | CX29: 0 | CY29: 0 | CZ29: 0 | DA29: 0 | DB29: 0 | DC29: 0 | DD29: null | DE29: null | DF29: 0 | DG29: 0
G30: 2018-04-01 | M30: 0 | P30: 0 | Q30: 0 | R30: 0 | S30: 0 | T30: 0 | U30: 0 | V30: 0 | W30: 0 | X30: 0 | Y30: 0 | Z30: 0 | AA30: 0 | AB30: 0 | AD30: 0 | AE30: 0 | AF30: 0 | AG30: 0 | AH30: 0 | AI30: 0 | AJ30: 0 | AK30: 0 | AL30: 0 | AM30: 0 | AN30: 0 | AO30: 0 | AP30: 0 | AR30: 0 | AS30: 0 | AT30: 0 | AU30: 0 | AV30: 0 | AW30: 0 | AX30: 0 | AY30: 0 | AZ30: 0 | BA30: 0 | BB30: 0 | BC30: 0 | BD30: 0 | BF30: 0 | BG30: 0 | BH30: 0 | BI30: 0 | BJ30: 0 | BK30: 0 | BL30: 0 | BM30: 0 | BN30: 0 | BO30: 0 | BP30: 0 | BQ30: 0 | BS30: No | BT30: No | BU30: 0 | BV30: 0 | BW30: 0 | CA30: 0 | CB30: 0 | CC30: 0 | CD30: 0 | CE30: 0 | CM30: null | CN30: null | CO30: 0 | CP30: 0 | CR30: 0 | CS30: 0 | CT30: 0 | CU30: 0 | CV30: 0 | CW30: 0 | CX30: 0 | CY30: 0 | CZ30: 0 | DA30: 0 | DB30: 0 | DC30: 0 | DD30: null | DE30: null | DF30: 0 | DG30: 0
G31: 2018-04-01 | M31: 0 | P31: 0 | Q31: 0 | R31: 0 | S31: 0 | T31: 0 | U31: 0 | V31: 0 | W31: 0 | X31: 0 | Y31: 0 | Z31: 0 | AA31: 0 | AB31: 0 | AD31: 0 | AE31: 0 | AF31: 0 | AG31: 0 | AH31: 0 | AI31: 0 | AJ31: 0 | AK31: 0 | AL31: 0 | AM31: 0 | AN31: 0 | AO31: 0 | AP31: 0 | AR31: 0 | AS31: 0 | AT31: 0 | AU31: 0 | AV31: 0 | AW31: 0 | AX31: 0 | AY31: 0 | AZ31: 0 | BA31: 0 | BB31: 0 | BC31: 0 | BD31: 0 | BF31: 0 | BG31: 0 | BH31: 0 | BI31: 0 | BJ31: 0 | BK31: 0 | BL31: 0 | BM31: 0 | BN31: 0 | BO31: 0 | BP31: 0 | BQ31: 0 | BS31: No | BT31: No | BU31: 0 | BV31: 0 | BW31: 0 | CA31: 0 | CB31: 0 | CC31: 0 | CD31: 0 | CE31: 0 | CM31: null | CN31: null | CO31: 0 | CP31: 0 | CR31: 0 | CS31: 0 | CT31: 0 | CU31: 0 | CV31: 0 | CW31: 0 | CX31: 0 | CY31: 0 | CZ31: 0 | DA31: 0 | DB31: 0 | DC31: 0 | DD31: null | DE31: null | DF31: 0 | DG31: 0
G32: 2018-04-01 | M32: 0 | P32: 0 | Q32: 0 | R32: 0 | S32: 0 | T32: 0 | U32: 0 | V32: 0 | W32: 0 | X32: 0 | Y32: 0 | Z32: 0 | AA32: 0 | AB32: 0 | AD32: 0 | AE32: 0 | AF32: 0 | AG32: 0 | AH32: 0 | AI32: 0 | AJ32: 0 | AK32: 0 | AL32: 0 | AM32: 0 | AN32: 0 | AO32: 0 | AP32: 0 | AR32: 0 | AS32: 0 | AT32: 0 | AU32: 0 | AV32: 0 | AW32: 0 | AX32: 0 | AY32: 0 | AZ32: 0 | BA32: 0 | BB32: 0 | BC32: 0 | BD32: 0 | BF32: 0 | BG32: 0 | BH32: 0 | BI32: 0 | BJ32: 0 | BK32: 0 | BL32: 0 | BM32: 0 | BN32: 0 | BO32: 0 | BP32: 0 | BQ32: 0 | BS32: No | BT32: No | BU32: 0 | BV32: 0 | BW32: 0 | CA32: 0 | CB32: 0 | CC32: 0 | CD32: 0 | CE32: 0 | CM32: null | CN32: null | CO32: 0 | CP32: 0 | CR32: 0 | CS32: 0 | CT32: 0 | CU32: 0 | CV32: 0 | CW32: 0 | CX32: 0 | CY32: 0 | CZ32: 0 | DA32: 0 | DB32: 0 | DC32: 0 | DD32: null | DE32: null | DF32: 0 | DG32: 0
G33: 2018-04-01 | M33: 0 | P33: 0 | Q33: 0 | R33: 0 | S33: 0 | T33: 0 | U33: 0 | V33: 0 | W33: 0 | X33: 0 | Y33: 0 | Z33: 0 | AA33: 0 | AB33: 0 | AD33: 0 | AE33: 0 | AF33: 0 | AG33: 0 | AH33: 0 | AI33: 0 | AJ33: 0 | AK33: 0 | AL33: 0 | AM33: 0 | AN33: 0 | AO33: 0 | AP33: 0 | AR33: 0 | AS33: 0 | AT33: 0 | AU33: 0 | AV33: 0 | AW33: =IF(AND(U33>0,$D33<DATE(2002,9,1),$D33>1),500,0) -> 0 | AX33: 0 | AY33: 0 | AZ33: 0 | BA33: 0 | BB33: 0 | BC33: 0 | BD33: 0 | BF33: 0 | BG33: 0 | BH33: 0 | BI33: 0 | BJ33: 0 | BK33: 0 | BL33: 0 | BM33: 0 | BN33: 0 | BO33: 0 | BP33: 0 | BQ33: 0 | BS33: No | BT33: No | BU33: 0 | BV33: 0 | BW33: 0 | CA33: 0 | CB33: 0 | CC33: 0 | CD33: 0 | CE33: 0 | CM33: null | CN33: null | CO33: 0 | CP33: 0 | CR33: 0 | CS33: 0 | CT33: 0 | CU33: 0 | CV33: 0 | CW33: 0 | CX33: 0 | CY33: 0 | CZ33: 0 | DA33: 0 | DB33: 0 | DC33: 0 | DD33: null | DE33: null | DF33: 0 | DG33: 0
G34: 2018-04-01 | M34: 0 | P34: 0 | Q34: 0 | R34: 0 | S34: 0 | T34: 0 | U34: 0 | V34: 0 | W34: 0 | X34: 0 | Y34: 0 | Z34: 0 | AA34: 0 | AB34: 0 | AD34: 0 | AE34: 0 | AF34: 0 | AG34: 0 | AH34: 0 | AI34: 0 | AJ34: 0 | AK34: 0 | AL34: 0 | AM34: 0 | AN34: 0 | AO34: 0 | AP34: 0 | AR34: 0 | AS34: 0 | AT34: 0 | AU34: 0 | AV34: 0 | AW34: 0 | AX34: 0 | AY34: 0 | AZ34: 0 | BA34: 0 | BB34: 0 | BC34: 0 | BD34: 0 | BF34: 0 | BG34: 0 | BH34: 0 | BI34: 0 | BJ34: 0 | BK34: 0 | BL34: 0 | BM34: 0 | BN34: 0 | BO34: 0 | BP34: 0 | BQ34: 0 | BS34: No | BT34: No | BU34: 0 | BV34: 0 | BW34: 0 | CA34: 0 | CB34: 0 | CC34: 0 | CD34: 0 | CE34: 0 | CM34: null | CN34: null | CO34: 0 | CP34: 0 | CR34: 0 | CS34: 0 | CT34: 0 | CU34: 0 | CV34: 0 | CW34: 0 | CX34: 0 | CY34: 0 | CZ34: 0 | DA34: 0 | DB34: 0 | DC34: 0 | DD34: null | DE34: null | DF34: 0 | DG34: 0
G35: 2018-04-01 | M35: 0 | P35: 0 | Q35: 0 | R35: 0 | S35: 0 | T35: 0 | U35: 0 | V35: 0 | W35: 0 | X35: 0 | Y35: 0 | Z35: 0 | AA35: 0 | AB35: 0 | AD35: 0 | AE35: 0 | AF35: 0 | AG35: 0 | AH35: 0 | AI35: 0 | AJ35: 0 | AK35: 0 | AL35: 0 | AM35: 0 | AN35: 0 | AO35: 0 | AP35: 0 | AR35: 0 | AS35: 0 | AT35: 0 | AU35: 0 | AV35: 0 | AW35: 0 | AX35: 0 | AY35: 0 | AZ35: 0 | BA35: 0 | BB35: 0 | BC35: 0 | BD35: 0 | BF35: 0 | BG35: 0 | BH35: 0 | BI35: 0 | BJ35: 0 | BK35: 0 | BL35: 0 | BM35: 0 | BN35: 0 | BO35: 0 | BP35: 0 | BQ35: 0 | BS35: No | BT35: No | BU35: 0 | BV35: 0 | BW35: 0 | CA35: 0 | CB35: 0 | CC35: 0 | CD35: 0 | CE35: 0 | CM35: null | CN35: null | CO35: 0 | CP35: 0 | CR35: 0 | CS35: 0 | CT35: 0 | CU35: 0 | CV35: 0 | CW35: 0 | CX35: 0 | CY35: 0 | CZ35: 0 | DA35: 0 | DB35: 0 | DC35: 0 | DD35: null | DE35: null | DF35: 0 | DG35: 0
G36: 2018-04-01 | M36: 0 | P36: 0 | Q36: 0 | R36: 0 | S36: 0 | T36: 0 | U36: 0 | V36: 0 | W36: 0 | X36: 0 | Y36: 0 | Z36: 0 | AA36: 0 | AB36: 0 | AD36: 0 | AE36: 0 | AF36: 0 | AG36: 0 | AH36: 0 | AI36: 0 | AJ36: 0 | AK36: 0 | AL36: 0 | AM36: 0 | AN36: 0 | AO36: 0 | AP36: 0 | AR36: 0 | AS36: 0 | AT36: 0 | AU36: 0 | AV36: 0 | AW36: 0 | AX36: 0 | AY36: 0 | AZ36: 0 | BA36: 0 | BB36: 0 | BC36: 0 | BD36: 0 | BF36: 0 | BG36: 0 | BH36: 0 | BI36: 0 | BJ36: 0 | BK36: 0 | BL36: 0 | BM36: 0 | BN36: 0 | BO36: 0 | BP36: 0 | BQ36: 0 | BS36: No | BT36: No | BU36: 0 | BV36: 0 | BW36: 0 | CA36: 0 | CB36: 0 | CC36: 0 | CD36: 0 | CE36: 0 | CM36: null | CN36: null | CO36: 0 | CP36: 0 | CR36: 0 | CS36: 0 | CT36: 0 | CU36: 0 | CV36: 0 | CW36: 0 | CX36: 0 | CY36: 0 | CZ36: 0 | DA36: 0 | DB36: 0 | DC36: 0 | DD36: null | DE36: null | DF36: 0 | DG36: 0
G37: 2018-04-01 | M37: 0 | P37: 0 | Q37: 0 | R37: 0 | S37: 0 | T37: 0 | U37: 0 | V37: 0 | W37: 0 | X37: 0 | Y37: 0 | Z37: 0 | AA37: 0 | AB37: 0 | AD37: 0 | AE37: 0 | AF37: 0 | AG37: 0 | AH37: 0 | AI37: 0 | AJ37: 0 | AK37: 0 | AL37: 0 | AM37: 0 | AN37: 0 | AO37: 0 | AP37: 0 | AR37: 0 | AS37: 0 | AT37: 0 | AU37: 0 | AV37: 0 | AW37: 0 | AX37: 0 | AY37: 0 | AZ37: 0 | BA37: 0 | BB37: 0 | BC37: 0 | BD37: 0 | BF37: 0 | BG37: 0 | BH37: 0 | BI37: 0 | BJ37: 0 | BK37: 0 | BL37: 0 | BM37: 0 | BN37: 0 | BO37: 0 | BP37: 0 | BQ37: 0 | BS37: No | BT37: No | BU37: 0 | BV37: 0 | BW37: 0 | CA37: 0 | CB37: 0 | CC37: 0 | CD37: 0 | CE37: 0 | CM37: null | CN37: null | CO37: 0 | CP37: 0 | CR37: 0 | CS37: 0 | CT37: 0 | CU37: 0 | CV37: 0 | CW37: 0 | CX37: 0 | CY37: 0 | CZ37: 0 | DA37: 0 | DB37: 0 | DC37: 0 | DD37: null | DE37: null | DF37: 0 | DG37: 0
G38: 2018-04-01 | M38: 0 | P38: 0 | Q38: 0 | R38: 0 | S38: 0 | T38: 0 | U38: 0 | V38: 0 | W38: 0 | X38: 0 | Y38: 0 | Z38: 0 | AA38: 0 | AB38: 0 | AD38: 0 | AE38: 0 | AF38: 0 | AG38: 0 | AH38: 0 | AI38: 0 | AJ38: 0 | AK38: 0 | AL38: 0 | AM38: 0 | AN38: 0 | AO38: 0 | AP38: 0 | AR38: 0 | AS38: 0 | AT38: 0 | AU38: 0 | AV38: 0 | AW38: 0 | AX38: 0 | AY38: 0 | AZ38: 0 | BA38: 0 | BB38: 0 | BC38: 0 | BD38: 0 | BF38: 0 | BG38: 0 | BH38: 0 | BI38: 0 | BJ38: 0 | BK38: 0 | BL38: 0 | BM38: 0 | BN38: 0 | BO38: 0 | BP38: 0 | BQ38: 0 | BS38: No | BT38: No | BU38: 0 | BV38: 0 | BW38: 0 | CA38: 0 | CB38: 0 | CC38: 0 | CD38: 0 | CE38: 0 | CM38: null | CN38: null | CO38: 0 | CP38: 0 | CR38: 0 | CS38: 0 | CT38: 0 | CU38: 0 | CV38: 0 | CW38: 0 | CX38: 0 | CY38: 0 | CZ38: 0 | DA38: 0 | DB38: 0 | DC38: 0 | DD38: null | DE38: null | DF38: 0 | DG38: 0
G39: 2018-04-01 | M39: 0 | P39: 0 | Q39: 0 | R39: 0 | S39: 0 | T39: 0 | U39: 0 | V39: 0 | W39: 0 | X39: 0 | Y39: 0 | Z39: 0 | AA39: 0 | AB39: 0 | AD39: 0 | AE39: 0 | AF39: 0 | AG39: 0 | AH39: 0 | AI39: 0 | AJ39: 0 | AK39: 0 | AL39: 0 | AM39: 0 | AN39: 0 | AO39: 0 | AP39: 0 | AR39: 0 | AS39: 0 | AT39: 0 | AU39: 0 | AV39: 0 | AW39: 0 | AX39: 0 | AY39: 0 | AZ39: 0 | BA39: 0 | BB39: 0 | BC39: 0 | BD39: 0 | BF39: 0 | BG39: 0 | BH39: 0 | BI39: 0 | BJ39: 0 | BK39: 0 | BL39: 0 | BM39: 0 | BN39: 0 | BO39: 0 | BP39: 0 | BQ39: 0 | BS39: No | BT39: No | BU39: 0 | BV39: 0 | BW39: 0 | CA39: 0 | CB39: 0 | CC39: 0 | CD39: 0 | CE39: 0 | CM39: null | CN39: null | CO39: 0 | CP39: 0 | CR39: 0 | CS39: 0 | CT39: 0 | CU39: 0 | CV39: 0 | CW39: 0 | CX39: 0 | CY39: 0 | CZ39: 0 | DA39: 0 | DB39: 0 | DC39: 0 | DD39: null | DE39: null | DF39: 0 | DG39: 0
G40: 2018-04-01 | M40: 0 | P40: 0 | Q40: 0 | R40: 0 | S40: 0 | T40: 0 | U40: 0 | V40: 0 | W40: 0 | X40: 0 | Y40: 0 | Z40: 0 | AA40: 0 | AB40: 0 | AD40: 0 | AE40: 0 | AF40: 0 | AG40: 0 | AH40: 0 | AI40: 0 | AJ40: 0 | AK40: 0 | AL40: 0 | AM40: 0 | AN40: 0 | AO40: 0 | AP40: 0 | AR40: 0 | AS40: 0 | AT40: 0 | AU40: 0 | AV40: 0 | AW40: 0 | AX40: 0 | AY40: 0 | AZ40: 0 | BA40: 0 | BB40: 0 | BC40: 0 | BD40: 0 | BF40: 0 | BG40: 0 | BH40: 0 | BI40: 0 | BJ40: 0 | BK40: 0 | BL40: 0 | BM40: 0 | BN40: 0 | BO40: 0 | BP40: 0 | BQ40: 0 | BS40: No | BT40: No | BU40: 0 | BV40: 0 | BW40: 0 | CA40: 0 | CB40: 0 | CC40: 0 | CD40: 0 | CE40: 0 | CM40: null | CN40: null | CO40: 0 | CP40: 0 | CR40: 0 | CS40: 0 | CT40: 0 | CU40: 0 | CV40: 0 | CW40: 0 | CX40: 0 | CY40: 0 | CZ40: 0 | DA40: 0 | DB40: 0 | DC40: 0 | DD40: null | DE40: null | DF40: 0 | DG40: 0
G41: 2018-04-01 | M41: 0 | P41: 0 | Q41: 0 | R41: 0 | S41: 0 | T41: 0 | U41: 0 | V41: 0 | W41: 0 | X41: 0 | Y41: 0 | Z41: 0 | AA41: 0 | AB41: 0 | AD41: 0 | AE41: 0 | AF41: 0 | AG41: 0 | AH41: 0 | AI41: 0 | AJ41: 0 | AK41: 0 | AL41: 0 | AM41: 0 | AN41: 0 | AO41: 0 | AP41: 0 | AR41: 0 | AS41: 0 | AT41: 0 | AU41: 0 | AV41: 0 | AW41: 0 | AX41: 0 | AY41: 0 | AZ41: 0 | BA41: 0 | BB41: 0 | BC41: 0 | BD41: 0 | BF41: 0 | BG41: 0 | BH41: 0 | BI41: 0 | BJ41: 0 | BK41: 0 | BL41: 0 | BM41: 0 | BN41: 0 | BO41: 0 | BP41: 0 | BQ41: 0 | BS41: No | BT41: No | BU41: 0 | BV41: 0 | BW41: 0 | CA41: 0 | CB41: 0 | CC41: 0 | CD41: 0 | CE41: 0 | CM41: null | CN41: null | CO41: 0 | CP41: 0 | CR41: 0 | CS41: 0 | CT41: 0 | CU41: 0 | CV41: 0 | CW41: 0 | CX41: 0 | CY41: 0 | CZ41: 0 | DA41: 0 | DB41: 0 | DC41: 0 | DD41: null | DE41: null | DF41: 0 | DG41: 0
G42: 2018-04-01 | M42: 0 | P42: 0 | Q42: 0 | R42: 0 | S42: 0 | T42: 0 | U42: 0 | V42: 0 | W42: 0 | X42: 0 | Y42: 0 | Z42: 0 | AA42: 0 | AB42: 0 | AD42: 0 | AE42: 0 | AF42: 0 | AG42: 0 | AH42: 0 | AI42: 0 | AJ42: 0 | AK42: 0 | AL42: 0 | AM42: 0 | AN42: 0 | AO42: 0 | AP42: 0 | AR42: 0 | AS42: 0 | AT42: 0 | AU42: 0 | AV42: 0 | AW42: 0 | AX42: 0 | AY42: 0 | AZ42: 0 | BA42: 0 | BB42: 0 | BC42: 0 | BD42: 0 | BF42: 0 | BG42: 0 | BH42: 0 | BI42: 0 | BJ42: 0 | BK42: 0 | BL42: 0 | BM42: 0 | BN42: 0 | BO42: 0 | BP42: 0 | BQ42: 0 | BS42: No | BT42: No | BU42: 0 | BV42: 0 | BW42: 0 | CA42: 0 | CB42: 0 | CC42: 0 | CD42: 0 | CE42: 0 | CM42: null | CN42: null | CO42: 0 | CP42: 0 | CR42: 0 | CS42: 0 | CT42: 0 | CU42: 0 | CV42: 0 | CW42: 0 | CX42: 0 | CY42: 0 | CZ42: 0 | DA42: 0 | DB42: 0 | DC42: 0 | DD42: null | DE42: null | DF42: 0 | DG42: 0
G43: 2018-04-01 | M43: 0 | P43: 0 | Q43: 0 | R43: 0 | S43: 0 | T43: 0 | U43: 0 | V43: 0 | W43: 0 | X43: 0 | Y43: 0 | Z43: 0 | AA43: 0 | AB43: 0 | AD43: 0 | AE43: 0 | AF43: 0 | AG43: 0 | AH43: 0 | AI43: 0 | AJ43: 0 | AK43: 0 | AL43: 0 | AM43: 0 | AN43: 0 | AO43: 0 | AP43: 0 | AR43: 0 | AS43: 0 | AT43: 0 | AU43: 0 | AV43: 0 | AW43: 0 | AX43: 0 | AY43: 0 | AZ43: 0 | BA43: 0 | BB43: 0 | BC43: 0 | BD43: 0 | BF43: 0 | BG43: 0 | BH43: 0 | BI43: 0 | BJ43: 0 | BK43: 0 | BL43: 0 | BM43: 0 | BN43: 0 | BO43: 0 | BP43: 0 | BQ43: 0 | BS43: No | BT43: No | BU43: 0 | BV43: 0 | BW43: 0 | CA43: 0 | CB43: 0 | CC43: 0 | CD43: 0 | CE43: 0 | CM43: null | CN43: null | CO43: 0 | CP43: 0 | CR43: 0 | CS43: 0 | CT43: 0 | CU43: 0 | CV43: 0 | CW43: 0 | CX43: 0 | CY43: 0 | CZ43: 0 | DA43: 0 | DB43: 0 | DC43: 0 | DD43: null | DE43: null | DF43: 0 | DG43: 0
G44: 2018-04-01 | M44: 0 | P44: 0 | Q44: 0 | R44: 0 | S44: 0 | T44: 0 | U44: 0 | V44: 0 | W44: 0 | X44: 0 | Y44: 0 | Z44: 0 | AA44: 0 | AB44: 0 | AD44: 0 | AE44: 0 | AF44: 0 | AG44: 0 | AH44: 0 | AI44: 0 | AJ44: 0 | AK44: 0 | AL44: 0 | AM44: 0 | AN44: 0 | AO44: 0 | AP44: 0 | AR44: 0 | AS44: 0 | AT44: 0 | AU44: 0 | AV44: 0 | AW44: 0 | AX44: 0 | AY44: 0 | AZ44: 0 | BA44: 0 | BB44: 0 | BC44: 0 | BD44: 0 | BF44: 0 | BG44: 0 | BH44: 0 | BI44: 0 | BJ44: 0 | BK44: 0 | BL44: 0 | BM44: 0 | BN44: 0 | BO44: 0 | BP44: 0 | BQ44: 0 | BS44: No | BT44: No | BU44: 0 | BV44: 0 | BW44: 0 | CA44: 0 | CB44: 0 | CC44: 0 | CD44: 0 | CE44: 0 | CM44: null | CN44: null | CO44: 0 | CP44: 0 | CR44: 0 | CS44: 0 | CT44: 0 | CU44: 0 | CV44: 0 | CW44: 0 | CX44: 0 | CY44: 0 | CZ44: 0 | DA44: 0 | DB44: 0 | DC44: 0 | DD44: null | DE44: null | DF44: 0 | DG44: 0
G45: 2018-04-01 | M45: 0 | P45: 0 | Q45: 0 | R45: 0 | S45: 0 | T45: 0 | U45: 0 | V45: 0 | W45: 0 | X45: 0 | Y45: 0 | Z45: 0 | AA45: 0 | AB45: 0 | AD45: 0 | AE45: 0 | AF45: 0 | AG45: 0 | AH45: 0 | AI45: 0 | AJ45: 0 | AK45: 0 | AL45: 0 | AM45: 0 | AN45: 0 | AO45: 0 | AP45: 0 | AR45: 0 | AS45: 0 | AT45: 0 | AU45: 0 | AV45: 0 | AW45: 0 | AX45: 0 | AY45: 0 | AZ45: 0 | BA45: 0 | BB45: 0 | BC45: 0 | BD45: 0 | BF45: 0 | BG45: 0 | BH45: 0 | BI45: 0 | BJ45: 0 | BK45: 0 | BL45: 0 | BM45: 0 | BN45: 0 | BO45: 0 | BP45: 0 | BQ45: 0 | BS45: No | BT45: No | BU45: 0 | BV45: 0 | BW45: 0 | CA45: 0 | CB45: 0 | CC45: 0 | CD45: 0 | CE45: 0 | CM45: null | CN45: null | CO45: 0 | CP45: 0 | CR45: 0 | CS45: 0 | CT45: 0 | CU45: 0 | CV45: 0 | CW45: 0 | CX45: 0 | CY45: 0 | CZ45: 0 | DA45: 0 | DB45: 0 | DC45: 0 | DD45: null | DE45: null | DF45: 0 | DG45: 0
G46: 2018-04-01 | M46: 0 | P46: 0 | Q46: 0 | R46: 0 | S46: 0 | T46: 0 | U46: 0 | V46: 0 | W46: 0 | X46: 0 | Y46: 0 | Z46: 0 | AA46: 0 | AB46: 0 | AD46: 0 | AE46: 0 | AF46: 0 | AG46: 0 | AH46: 0 | AI46: 0 | AJ46: 0 | AK46: 0 | AL46: 0 | AM46: 0 | AN46: 0 | AO46: 0 | AP46: 0 | AR46: 0 | AS46: 0 | AT46: 0 | AU46: 0 | AV46: 0 | AW46: 0 | AX46: 0 | AY46: 0 | AZ46: 0 | BA46: 0 | BB46: 0 | BC46: 0 | BD46: 0 | BF46: 0 | BG46: 0 | BH46: 0 | BI46: 0 | BJ46: 0 | BK46: 0 | BL46: 0 | BM46: 0 | BN46: 0 | BO46: 0 | BP46: 0 | BQ46: 0 | BS46: No | BT46: No | BU46: 0 | BV46: 0 | BW46: 0 | CA46: 0 | CB46: 0 | CC46: 0 | CD46: 0 | CE46: 0 | CM46: null | CN46: null | CO46: 0 | CP46: 0 | CR46: 0 | CS46: 0 | CT46: 0 | CU46: 0 | CV46: 0 | CW46: 0 | CX46: 0 | CY46: 0 | CZ46: 0 | DA46: 0 | DB46: 0 | DC46: 0 | DD46: null | DE46: null | DF46: 0 | DG46: 0
G47: 2018-04-01 | M47: 0 | P47: 0 | Q47: 0 | R47: 0 | S47: 0 | T47: 0 | U47: 0 | V47: 0 | W47: 0 | X47: 0 | Y47: 0 | Z47: 0 | AA47: 0 | AB47: 0 | AD47: 0 | AE47: 0 | AF47: 0 | AG47: 0 | AH47: 0 | AI47: 0 | AJ47: 0 | AK47: 0 | AL47: 0 | AM47: 0 | AN47: 0 | AO47: 0 | AP47: 0 | AR47: 0 | AS47: 0 | AT47: 0 | AU47: 0 | AV47: 0 | AW47: 0 | AX47: 0 | AY47: 0 | AZ47: 0 | BA47: 0 | BB47: 0 | BC47: 0 | BD47: 0 | BF47: 0 | BG47: 0 | BH47: 0 | BI47: 0 | BJ47: 0 | BK47: 0 | BL47: 0 | BM47: 0 | BN47: 0 | BO47: 0 | BP47: 0 | BQ47: 0 | BS47: No | BT47: No | BU47: 0 | BV47: 0 | BW47: 0 | CA47: 0 | CB47: 0 | CC47: 0 | CD47: 0 | CE47: 0 | CM47: null | CN47: null | CO47: 0 | CP47: 0 | CR47: 0 | CS47: 0 | CT47: 0 | CU47: 0 | CV47: 0 | CW47: 0 | CX47: 0 | CY47: 0 | CZ47: 0 | DA47: 0 | DB47: 0 | DC47: 0 | DD47: null | DE47: null | DF47: 0 | DG47: 0
G48: 2018-04-01 | M48: 0 | P48: 0 | Q48: 0 | R48: 0 | S48: 0 | T48: 0 | U48: 0 | V48: 0 | W48: 0 | X48: 0 | Y48: 0 | Z48: 0 | AA48: 0 | AB48: =SUM(P48:AA48) -> 0 | AD48: 0 | AE48: 0 | AF48: 0 | AG48: 0 | AH48: 0 | AI48: 0 | AJ48: 0 | AK48: 0 | AL48: 0 | AM48: 0 | AN48: 0 | AO48: 0 | AP48: =SUM(AD48:AO48) -> 0 | AR48: 0 | AS48: 0 | AT48: 0 | AU48: 0 | AV48: 0 | AW48: 0 | AX48: 0 | AY48: 0 | AZ48: 0 | BA48: 0 | BB48: 0 | BC48: 0 | BD48: =SUM(AR48:BC48) -> 0 | BF48: 0 | BG48: 0 | BH48: 0 | BI48: 0 | BJ48: 0 | BK48: 0 | BL48: 0 | BM48: 0 | BN48: 0 | BO48: 0 | BP48: 0 | BQ48: 0 | BS48: No | BT48: No | BU48: 0 | BV48: 0 | BW48: 0 | CA48: 0 | CB48: 0 | CC48: 0 | CD48: 0 | CE48: 0 | CM48: null | CN48: null | CO48: 0 | CP48: 0 | CR48: 0 | CS48: 0 | CT48: 0 | CU48: 0 | CV48: 0 | CW48: 0 | CX48: 0 | CY48: 0 | CZ48: 0 | DA48: 0 | DB48: 0 | DC48: 0 | DD48: null | DE48: null | DF48: 0 | DG48: 0
E49: =IF(D49="","",IF(SUM(DATEDIF(D49,DATE(YEAR($E$14)+(MONTH($E$14)>8),8,31),"Y")-5)=0,"R",IF(SUM(DATEDIF(D49,DATE(YEAR($E$14)+(MONTH($E$14)>8),8,31),"Y")-5)<0,"",DATEDIF(D49,DATE(YEAR($E$14)+(MONTH($E$14)>8),8,31),"Y")-5))) ->  | G49: 2018-04-01 | M49: 0 | P49: 0 | Q49: 0 | R49: 0 | S49: 0 | T49: 0 | U49: 0 | V49: 0 | W49: 0 | X49: 0 | Y49: 0 | Z49: 0 | AA49: 0 | AB49: 0 | AD49: =IF(AND(P49>0,$D49>DATE(2001,8,31)),sentopup/12,0) -> 0 | AE49: =IF(AND(Q49>0,$D49>DATE(2001,8,31)),sentopup/12,0) -> 0 | AF49: =IF(AND(R49>0,$D49>DATE(2001,8,31)),sentopup/12,0) -> 0 | AG49: =IF(AND(S49>0,$D49>DATE(2001,8,31)),sentopup/12,0) -> 0 | AH49: =IF(AND(T49>0,$D49>DATE(2001,8,31)),sentopup/12,0) -> 0 | AI49: =IF(AND(U49>0,$D49>DATE(2002,8,1)),sentopup/12,0) -> 0 | AJ49: =IF(AND(V49>0,$D49>DATE(2002,8,1)),sentopup/12,0) -> 0 | AK49: =IF(AND(W49>0,$D49>DATE(2002,8,1)),sentopup/12,0) -> 0 | AL49: =IF(AND(X49>0,$D49>DATE(2002,8,1)),sentopup/12,0) -> 0 | AM49: =IF(AND(Y49>0,$D49>DATE(2002,8,1)),sentopup/12,0) -> 0 | AN49: =IF(AND(Z49>0,$D49>DATE(2002,8,1)),sentopup/12,0) -> 0 | AO49: =IF(AND(AA49>0,$D49>DATE(2002,8,1)),sentopup/12,0) -> 0 | AP49: 0 | AR49: 0 | AS49: 0 | AT49: 0 | AU49: 0 | AV49: 0 | AW49: 0 | AX49: 0 | AY49: 0 | AZ49: 0 | BA49: 0 | BB49: 0 | BC49: 0 | BD49: 0 | BF49: 0 | BG49: 0 | BH49: 0 | BI49: 0 | BJ49: 0 | BK49: 0 | BL49: 0 | BM49: 0 | BN49: 0 | BO49: 0 | BP49: 0 | BQ49: 0 | BS49: =IF(H49>DATE(2019,3,1),"Yes","No") -> No | BT49: =IF(H49>DATE(2019,8,31),"Yes","No") -> No | BU49: =IFERROR(IF(BS49="Yes",L49*SUM(CA49:CE49),0),"") -> 0 | BV49: =SUM(sentopup/12)*CO49 -> 0 | BW49: 0 | CA49: 0 | CB49: 0 | CC49: 0 | CD49: 0 | CE49: 0 | CM49: =IF(AND(D49>1,D49<DATE(2002,9,1)),"post",IF(AND(D49>1,D49>DATE(2002,8,31)),"pre","null")) -> null | CN49: =IF(AND(D49>1,D49<DATE(2003,9,1)),"post",IF(AND(D49>1,D49>DATE(2003,8,31)),"pre","null")) -> null | CO49: 0 | CP49: 0 | CR49: 0 | CS49: 0 | CT49: 0 | CU49: 0 | CV49: 0 | CW49: 0 | CX49: 0 | CY49: 0 | CZ49: 0 | DA49: 0 | DB49: 0 | DC49: 0 | DD49: =IF(AND(D49>1,D49<DATE(2003,9,1)),"post",IF(AND(D49>1,D49>DATE(2003,8,31)),"pre","null")) -> null | DE49: =IF(AND(D49>1,D49<DATE(2004,9,1)),"post",IF(AND(D49>1,D49>DATE(2004,8,31)),"pre","null")) -> null | DF49: 0 | DG49: 0
G50: 2018-04-01 | M50: 0 | P50: 0 | Q50: 0 | R50: 0 | S50: 0 | T50: 0 | U50: 0 | V50: 0 | W50: 0 | X50: 0 | Y50: 0 | Z50: 0 | AA50: 0 | AB50: 0 | AD50: 0 | AE50: 0 | AF50: 0 | AG50: 0 | AH50: 0 | AI50: 0 | AJ50: 0 | AK50: 0 | AL50: 0 | AM50: 0 | AN50: 0 | AO50: 0 | AP50: 0 | AR50: 0 | AS50: 0 | AT50: 0 | AU50: 0 | AV50: 0 | AW50: 0 | AX50: 0 | AY50: 0 | AZ50: 0 | BA50: 0 | BB50: 0 | BC50: 0 | BD50: 0 | BF50: 0 | BG50: 0 | BH50: 0 | BI50: 0 | BJ50: 0 | BK50: 0 | BL50: 0 | BM50: 0 | BN50: 0 | BO50: 0 | BP50: 0 | BQ50: 0 | BS50: No | BT50: No | BU50: 0 | BV50: 0 | BW50: 0 | CA50: 0 | CB50: 0 | CC50: 0 | CD50: 0 | CE50: 0 | CM50: null | CN50: null | CO50: 0 | CP50: 0 | CR50: 0 | CS50: 0 | CT50: 0 | CU50: 0 | CV50: 0 | CW50: 0 | CX50: 0 | CY50: 0 | CZ50: 0 | DA50: 0 | DB50: 0 | DC50: 0 | DD50: null | DE50: null | DF50: 0 | DG50: 0
G51: 2018-04-01 | M51: 0 | P51: 0 | Q51: 0 | R51: 0 | S51: 0 | T51: 0 | U51: 0 | V51: 0 | W51: 0 | X51: 0 | Y51: 0 | Z51: 0 | AA51: 0 | AB51: 0 | AD51: 0 | AE51: 0 | AF51: 0 | AG51: 0 | AH51: 0 | AI51: 0 | AJ51: 0 | AK51: 0 | AL51: 0 | AM51: 0 | AN51: 0 | AO51: 0 | AP51: 0 | AR51: 0 | AS51: 0 | AT51: 0 | AU51: 0 | AV51: 0 | AW51: 0 | AX51: 0 | AY51: 0 | AZ51: 0 | BA51: 0 | BB51: 0 | BC51: 0 | BD51: 0 | BF51: 0 | BG51: 0 | BH51: 0 | BI51: 0 | BJ51: 0 | BK51: 0 | BL51: 0 | BM51: 0 | BN51: 0 | BO51: 0 | BP51: 0 | BQ51: 0 | BS51: No | BT51: No | BU51: 0 | BV51: 0 | BW51: 0 | CA51: 0 | CB51: 0 | CC51: 0 | CD51: 0 | CE51: 0 | CM51: null | CN51: null | CO51: 0 | CP51: 0 | CR51: 0 | CS51: 0 | CT51: 0 | CU51: 0 | CV51: 0 | CW51: 0 | CX51: 0 | CY51: 0 | CZ51: 0 | DA51: 0 | DB51: 0 | DC51: 0 | DD51: null | DE51: null | DF51: 0 | DG51: 0
G52: 2018-04-01 | M52: 0 | P52: 0 | Q52: 0 | R52: 0 | S52: 0 | T52: 0 | U52: 0 | V52: 0 | W52: 0 | X52: 0 | Y52: 0 | Z52: 0 | AA52: 0 | AB52: 0 | AD52: 0 | AE52: 0 | AF52: 0 | AG52: 0 | AH52: 0 | AI52: 0 | AJ52: 0 | AK52: 0 | AL52: 0 | AM52: 0 | AN52: 0 | AO52: 0 | AP52: 0 | AR52: 0 | AS52: 0 | AT52: 0 | AU52: 0 | AV52: 0 | AW52: 0 | AX52: 0 | AY52: 0 | AZ52: 0 | BA52: 0 | BB52: 0 | BC52: 0 | BD52: 0 | BF52: 0 | BG52: 0 | BH52: 0 | BI52: 0 | BJ52: 0 | BK52: 0 | BL52: 0 | BM52: 0 | BN52: 0 | BO52: 0 | BP52: 0 | BQ52: 0 | BS52: No | BT52: No | BU52: 0 | BV52: 0 | BW52: 0 | CA52: 0 | CB52: 0 | CC52: 0 | CD52: 0 | CE52: 0 | CM52: null | CN52: null | CO52: 0 | CP52: 0 | CR52: 0 | CS52: 0 | CT52: 0 | CU52: 0 | CV52: 0 | CW52: 0 | CX52: 0 | CY52: 0 | CZ52: 0 | DA52: 0 | DB52: 0 | DC52: 0 | DD52: null | DE52: null | DF52: 0 | DG52: 0
G53: 2018-04-01 | M53: 0 | P53: 0 | Q53: 0 | R53: 0 | S53: 0 | T53: 0 | U53: 0 | V53: 0 | W53: 0 | X53: 0 | Y53: 0 | Z53: 0 | AA53: 0 | AB53: 0 | AD53: 0 | AE53: 0 | AF53: 0 | AG53: 0 | AH53: 0 | AI53: 0 | AJ53: 0 | AK53: 0 | AL53: 0 | AM53: 0 | AN53: 0 | AO53: 0 | AP53: 0 | AR53: 0 | AS53: 0 | AT53: 0 | AU53: 0 | AV53: 0 | AW53: 0 | AX53: 0 | AY53: 0 | AZ53: 0 | BA53: 0 | BB53: 0 | BC53: 0 | BD53: 0 | BF53: =IF(P53>0,500-AD53-AR53,0) -> 0 | BG53: 0 | BH53: 0 | BI53: 0 | BJ53: 0 | BK53: 0 | BL53: 0 | BM53: 0 | BN53: 0 | BO53: 0 | BP53: 0 | BQ53: 0 | BS53: No | BT53: No | BU53: 0 | BV53: 0 | BW53: 0 | CA53: 0 | CB53: 0 | CC53: 0 | CD53: 0 | CE53: 0 | CM53: null | CN53: null | CO53: 0 | CP53: 0 | CR53: 0 | CS53: 0 | CT53: 0 | CU53: 0 | CV53: 0 | CW53: 0 | CX53: 0 | CY53: 0 | CZ53: 0 | DA53: 0 | DB53: 0 | DC53: 0 | DD53: null | DE53: null | DF53: 0 | DG53: 0
G54: 2018-04-01 | M54: 0 | P54: 0 | Q54: 0 | R54: 0 | S54: 0 | T54: 0 | U54: 0 | V54: 0 | W54: 0 | X54: 0 | Y54: 0 | Z54: 0 | AA54: 0 | AB54: 0 | AD54: 0 | AE54: 0 | AF54: 0 | AG54: 0 | AH54: 0 | AI54: 0 | AJ54: 0 | AK54: 0 | AL54: 0 | AM54: 0 | AN54: 0 | AO54: 0 | AP54: 0 | AR54: 0 | AS54: 0 | AT54: 0 | AU54: 0 | AV54: 0 | AW54: 0 | AX54: 0 | AY54: 0 | AZ54: 0 | BA54: 0 | BB54: 0 | BC54: 0 | BD54: 0 | BF54: 0 | BG54: 0 | BH54: 0 | BI54: 0 | BJ54: 0 | BK54: 0 | BL54: 0 | BM54: 0 | BN54: 0 | BO54: 0 | BP54: 0 | BQ54: 0 | BS54: No | BT54: No | BU54: 0 | BV54: 0 | BW54: 0 | CA54: 0 | CB54: 0 | CC54: 0 | CD54: 0 | CE54: 0 | CM54: null | CN54: null | CO54: 0 | CP54: 0 | CR54: 0 | CS54: 0 | CT54: 0 | CU54: 0 | CV54: 0 | CW54: 0 | CX54: 0 | CY54: 0 | CZ54: 0 | DA54: 0 | DB54: 0 | DC54: 0 | DD54: null | DE54: null | DF54: 0 | DG54: 0
G55: 2018-04-01 | M55: 0 | P55: 0 | Q55: 0 | R55: 0 | S55: 0 | T55: 0 | U55: 0 | V55: 0 | W55: 0 | X55: 0 | Y55: 0 | Z55: 0 | AA55: 0 | AB55: 0 | AD55: 0 | AE55: 0 | AF55: 0 | AG55: 0 | AH55: 0 | AI55: 0 | AJ55: 0 | AK55: 0 | AL55: 0 | AM55: 0 | AN55: 0 | AO55: 0 | AP55: 0 | AR55: 0 | AS55: 0 | AT55: 0 | AU55: 0 | AV55: 0 | AW55: 0 | AX55: 0 | AY55: 0 | AZ55: 0 | BA55: 0 | BB55: 0 | BC55: 0 | BD55: 0 | BF55: 0 | BG55: 0 | BH55: 0 | BI55: 0 | BJ55: 0 | BK55: 0 | BL55: 0 | BM55: 0 | BN55: 0 | BO55: 0 | BP55: 0 | BQ55: 0 | BS55: No | BT55: No | BU55: 0 | BV55: 0 | BW55: 0 | CA55: 0 | CB55: 0 | CC55: 0 | CD55: 0 | CE55: 0 | CM55: null | CN55: null | CO55: 0 | CP55: 0 | CR55: 0 | CS55: 0 | CT55: 0 | CU55: 0 | CV55: 0 | CW55: 0 | CX55: 0 | CY55: 0 | CZ55: 0 | DA55: 0 | DB55: 0 | DC55: 0 | DD55: null | DE55: null | DF55: 0 | DG55: 0
G56: 2018-04-01 | M56: 0 | P56: 0 | Q56: 0 | R56: 0 | S56: 0 | T56: 0 | U56: 0 | V56: 0 | W56: 0 | X56: 0 | Y56: 0 | Z56: 0 | AA56: 0 | AB56: 0 | AD56: 0 | AE56: 0 | AF56: 0 | AG56: 0 | AH56: 0 | AI56: 0 | AJ56: 0 | AK56: 0 | AL56: 0 | AM56: 0 | AN56: 0 | AO56: 0 | AP56: 0 | AR56: 0 | AS56: 0 | AT56: 0 | AU56: 0 | AV56: 0 | AW56: 0 | AX56: 0 | AY56: 0 | AZ56: 0 | BA56: 0 | BB56: 0 | BC56: 0 | BD56: 0 | BF56: 0 | BG56: 0 | BH56: 0 | BI56: 0 | BJ56: 0 | BK56: 0 | BL56: 0 | BM56: 0 | BN56: 0 | BO56: 0 | BP56: 0 | BQ56: 0 | BS56: No | BT56: No | BU56: 0 | BV56: 0 | BW56: 0 | CA56: 0 | CB56: 0 | CC56: 0 | CD56: 0 | CE56: 0 | CM56: null | CN56: null | CO56: 0 | CP56: 0 | CR56: 0 | CS56: 0 | CT56: 0 | CU56: 0 | CV56: 0 | CW56: 0 | CX56: 0 | CY56: 0 | CZ56: 0 | DA56: 0 | DB56: 0 | DC56: 0 | DD56: null | DE56: null | DF56: 0 | DG56: 0
G57: 2018-04-01 | M57: 0 | P57: 0 | Q57: 0 | R57: 0 | S57: 0 | T57: 0 | U57: 0 | V57: 0 | W57: 0 | X57: 0 | Y57: 0 | Z57: 0 | AA57: 0 | AB57: 0 | AD57: 0 | AE57: 0 | AF57: 0 | AG57: 0 | AH57: 0 | AI57: 0 | AJ57: 0 | AK57: 0 | AL57: 0 | AM57: 0 | AN57: 0 | AO57: 0 | AP57: 0 | AR57: 0 | AS57: 0 | AT57: 0 | AU57: 0 | AV57: 0 | AW57: 0 | AX57: 0 | AY57: 0 | AZ57: 0 | BA57: 0 | BB57: 0 | BC57: 0 | BD57: 0 | BF57: 0 | BG57: 0 | BH57: 0 | BI57: 0 | BJ57: 0 | BK57: 0 | BL57: 0 | BM57: 0 | BN57: 0 | BO57: 0 | BP57: 0 | BQ57: 0 | BS57: No | BT57: No | BU57: 0 | BV57: 0 | BW57: 0 | CA57: 0 | CB57: 0 | CC57: 0 | CD57: 0 | CE57: 0 | CM57: null | CN57: null | CO57: 0 | CP57: 0 | CR57: 0 | CS57: 0 | CT57: 0 | CU57: 0 | CV57: 0 | CW57: 0 | CX57: 0 | CY57: 0 | CZ57: 0 | DA57: 0 | DB57: 0 | DC57: 0 | DD57: null | DE57: null | DF57: 0 | DG57: 0
G58: 2018-04-01 | M58: 0 | P58: 0 | Q58: 0 | R58: 0 | S58: 0 | T58: 0 | U58: 0 | V58: 0 | W58: 0 | X58: 0 | Y58: 0 | Z58: 0 | AA58: 0 | AB58: 0 | AD58: 0 | AE58: 0 | AF58: 0 | AG58: 0 | AH58: 0 | AI58: 0 | AJ58: 0 | AK58: 0 | AL58: 0 | AM58: 0 | AN58: 0 | AO58: 0 | AP58: 0 | AR58: 0 | AS58: 0 | AT58: 0 | AU58: 0 | AV58: 0 | AW58: 0 | AX58: 0 | AY58: 0 | AZ58: 0 | BA58: 0 | BB58: 0 | BC58: 0 | BD58: 0 | BF58: 0 | BG58: 0 | BH58: 0 | BI58: 0 | BJ58: 0 | BK58: 0 | BL58: 0 | BM58: 0 | BN58: 0 | BO58: 0 | BP58: 0 | BQ58: 0 | BS58: No | BT58: No | BU58: 0 | BV58: 0 | BW58: 0 | CA58: 0 | CB58: 0 | CC58: 0 | CD58: 0 | CE58: 0 | CM58: null | CN58: null | CO58: 0 | CP58: 0 | CR58: 0 | CS58: 0 | CT58: 0 | CU58: 0 | CV58: 0 | CW58: 0 | CX58: 0 | CY58: 0 | CZ58: 0 | DA58: 0 | DB58: 0 | DC58: 0 | DD58: null | DE58: null | DF58: 0 | DG58: 0
G59: 2018-04-01 | M59: 0 | P59: 0 | Q59: 0 | R59: 0 | S59: 0 | T59: 0 | U59: 0 | V59: 0 | W59: 0 | X59: 0 | Y59: 0 | Z59: 0 | AA59: 0 | AB59: 0 | AD59: 0 | AE59: 0 | AF59: 0 | AG59: 0 | AH59: 0 | AI59: 0 | AJ59: 0 | AK59: 0 | AL59: 0 | AM59: 0 | AN59: 0 | AO59: 0 | AP59: 0 | AR59: 0 | AS59: 0 | AT59: 0 | AU59: 0 | AV59: 0 | AW59: 0 | AX59: 0 | AY59: 0 | AZ59: 0 | BA59: 0 | BB59: 0 | BC59: 0 | BD59: 0 | BF59: 0 | BG59: 0 | BH59: 0 | BI59: 0 | BJ59: 0 | BK59: 0 | BL59: 0 | BM59: 0 | BN59: 0 | BO59: 0 | BP59: 0 | BQ59: 0 | BS59: No | BT59: No | BU59: 0 | BV59: 0 | BW59: 0 | CA59: 0 | CB59: 0 | CC59: 0 | CD59: 0 | CE59: 0 | CM59: null | CN59: null | CO59: 0 | CP59: 0 | CR59: 0 | CS59: 0 | CT59: 0 | CU59: 0 | CV59: 0 | CW59: 0 | CX59: 0 | CY59: 0 | CZ59: 0 | DA59: 0 | DB59: 0 | DC59: 0 | DD59: null | DE59: null | DF59: 0 | DG59: 0
G60: 2018-04-01 | M60: 0 | P60: 0 | Q60: 0 | R60: 0 | S60: 0 | T60: 0 | U60: 0 | V60: 0 | W60: 0 | X60: 0 | Y60: 0 | Z60: 0 | AA60: 0 | AB60: 0 | AD60: 0 | AE60: 0 | AF60: 0 | AG60: 0 | AH60: 0 | AI60: 0 | AJ60: 0 | AK60: 0 | AL60: 0 | AM60: 0 | AN60: 0 | AO60: 0 | AP60: 0 | AR60: 0 | AS60: 0 | AT60: 0 | AU60: 0 | AV60: 0 | AW60: 0 | AX60: 0 | AY60: 0 | AZ60: 0 | BA60: 0 | BB60: 0 | BC60: 0 | BD60: 0 | BF60: 0 | BG60: 0 | BH60: 0 | BI60: 0 | BJ60: 0 | BK60: 0 | BL60: 0 | BM60: 0 | BN60: 0 | BO60: 0 | BP60: 0 | BQ60: 0 | BS60: No | BT60: No | BU60: 0 | BV60: 0 | BW60: 0 | CA60: 0 | CB60: 0 | CC60: 0 | CD60: 0 | CE60: 0 | CM60: null | CN60: null | CO60: 0 | CP60: 0 | CR60: 0 | CS60: 0 | CT60: 0 | CU60: 0 | CV60: 0 | CW60: 0 | CX60: 0 | CY60: 0 | CZ60: 0 | DA60: 0 | DB60: 0 | DC60: 0 | DD60: null | DE60: null | DF60: 0 | DG60: 0
G61: 2018-04-01 | M61: 0 | P61: 0 | Q61: 0 | R61: 0 | S61: 0 | T61: 0 | U61: 0 | V61: 0 | W61: 0 | X61: 0 | Y61: 0 | Z61: 0 | AA61: 0 | AB61: 0 | AD61: 0 | AE61: 0 | AF61: 0 | AG61: 0 | AH61: 0 | AI61: 0 | AJ61: 0 | AK61: 0 | AL61: 0 | AM61: 0 | AN61: 0 | AO61: 0 | AP61: 0 | AR61: 0 | AS61: 0 | AT61: 0 | AU61: 0 | AV61: 0 | AW61: 0 | AX61: 0 | AY61: 0 | AZ61: 0 | BA61: 0 | BB61: 0 | BC61: 0 | BD61: 0 | BF61: 0 | BG61: 0 | BH61: 0 | BI61: 0 | BJ61: 0 | BK61: 0 | BL61: 0 | BM61: 0 | BN61: 0 | BO61: 0 | BP61: 0 | BQ61: 0 | BS61: No | BT61: No | BU61: 0 | BV61: 0 | BW61: 0 | CA61: 0 | CB61: 0 | CC61: 0 | CD61: 0 | CE61: 0 | CM61: null | CN61: null | CO61: 0 | CP61: 0 | CR61: 0 | CS61: 0 | CT61: 0 | CU61: 0 | CV61: 0 | CW61: 0 | CX61: 0 | CY61: 0 | CZ61: 0 | DA61: 0 | DB61: 0 | DC61: 0 | DD61: null | DE61: null | DF61: 0 | DG61: 0
G62: 2018-04-01 | M62: 0 | P62: 0 | Q62: 0 | R62: 0 | S62: 0 | T62: 0 | U62: 0 | V62: 0 | W62: 0 | X62: 0 | Y62: 0 | Z62: 0 | AA62: 0 | AB62: 0 | AD62: 0 | AE62: 0 | AF62: 0 | AG62: 0 | AH62: 0 | AI62: 0 | AJ62: 0 | AK62: 0 | AL62: 0 | AM62: 0 | AN62: 0 | AO62: 0 | AP62: 0 | AR62: 0 | AS62: 0 | AT62: 0 | AU62: 0 | AV62: 0 | AW62: 0 | AX62: 0 | AY62: 0 | AZ62: 0 | BA62: 0 | BB62: 0 | BC62: 0 | BD62: 0 | BF62: 0 | BG62: 0 | BH62: 0 | BI62: 0 | BJ62: 0 | BK62: 0 | BL62: 0 | BM62: 0 | BN62: 0 | BO62: 0 | BP62: 0 | BQ62: 0 | BS62: No | BT62: No | BU62: 0 | BV62: 0 | BW62: 0 | CA62: 0 | CB62: 0 | CC62: 0 | CD62: 0 | CE62: 0 | CM62: null | CN62: null | CO62: 0 | CP62: 0 | CR62: 0 | CS62: 0 | CT62: 0 | CU62: 0 | CV62: 0 | CW62: 0 | CX62: 0 | CY62: 0 | CZ62: 0 | DA62: 0 | DB62: 0 | DC62: 0 | DD62: null | DE62: null | DF62: 0 | DG62: 0
G63: 2018-04-01 | M63: 0 | P63: 0 | Q63: 0 | R63: 0 | S63: 0 | T63: 0 | U63: 0 | V63: 0 | W63: 0 | X63: 0 | Y63: 0 | Z63: 0 | AA63: 0 | AB63: 0 | AD63: 0 | AE63: 0 | AF63: 0 | AG63: 0 | AH63: 0 | AI63: 0 | AJ63: 0 | AK63: 0 | AL63: 0 | AM63: 0 | AN63: 0 | AO63: 0 | AP63: 0 | AR63: 0 | AS63: 0 | AT63: 0 | AU63: 0 | AV63: 0 | AW63: 0 | AX63: 0 | AY63: 0 | AZ63: 0 | BA63: 0 | BB63: 0 | BC63: 0 | BD63: 0 | BF63: 0 | BG63: 0 | BH63: 0 | BI63: 0 | BJ63: 0 | BK63: 0 | BL63: 0 | BM63: 0 | BN63: 0 | BO63: 0 | BP63: 0 | BQ63: 0 | BS63: No | BT63: No | BU63: 0 | BV63: 0 | BW63: 0 | CA63: 0 | CB63: 0 | CC63: 0 | CD63: 0 | CE63: 0 | CM63: null | CN63: null | CO63: 0 | CP63: 0 | CR63: 0 | CS63: 0 | CT63: 0 | CU63: 0 | CV63: 0 | CW63: 0 | CX63: 0 | CY63: 0 | CZ63: 0 | DA63: 0 | DB63: 0 | DC63: 0 | DD63: null | DE63: null | DF63: 0 | DG63: 0
G64: 2018-04-01 | M64: 0 | P64: 0 | Q64: 0 | R64: 0 | S64: 0 | T64: 0 | U64: 0 | V64: 0 | W64: 0 | X64: 0 | Y64: 0 | Z64: 0 | AA64: 0 | AB64: 0 | AD64: 0 | AE64: 0 | AF64: 0 | AG64: 0 | AH64: 0 | AI64: 0 | AJ64: 0 | AK64: 0 | AL64: 0 | AM64: 0 | AN64: 0 | AO64: 0 | AP64: 0 | AR64: 0 | AS64: 0 | AT64: 0 | AU64: 0 | AV64: 0 | AW64: 0 | AX64: 0 | AY64: 0 | AZ64: 0 | BA64: 0 | BB64: 0 | BC64: 0 | BD64: 0 | BF64: 0 | BG64: 0 | BH64: 0 | BI64: 0 | BJ64: 0 | BK64: 0 | BL64: 0 | BM64: 0 | BN64: 0 | BO64: 0 | BP64: 0 | BQ64: 0 | BS64: No | BT64: No | BU64: 0 | BV64: 0 | BW64: 0 | CA64: 0 | CB64: 0 | CC64: 0 | CD64: 0 | CE64: 0 | CM64: null | CN64: null | CO64: 0 | CP64: 0 | CR64: 0 | CS64: 0 | CT64: 0 | CU64: 0 | CV64: 0 | CW64: 0 | CX64: 0 | CY64: 0 | CZ64: 0 | DA64: 0 | DB64: 0 | DC64: 0 | DD64: null | DE64: null | DF64: 0 | DG64: 0
G65: 2018-04-01 | M65: 0 | P65: 0 | Q65: 0 | R65: 0 | S65: 0 | T65: 0 | U65: 0 | V65: 0 | W65: 0 | X65: 0 | Y65: 0 | Z65: 0 | AA65: 0 | AB65: 0 | AD65: 0 | AE65: 0 | AF65: 0 | AG65: 0 | AH65: 0 | AI65: 0 | AJ65: 0 | AK65: 0 | AL65: 0 | AM65: 0 | AN65: 0 | AO65: 0 | AP65: 0 | AR65: 0 | AS65: 0 | AT65: 0 | AU65: 0 | AV65: 0 | AW65: 0 | AX65: 0 | AY65: 0 | AZ65: 0 | BA65: 0 | BB65: 0 | BC65: 0 | BD65: 0 | BF65: 0 | BG65: 0 | BH65: 0 | BI65: 0 | BJ65: 0 | BK65: 0 | BL65: 0 | BM65: 0 | BN65: 0 | BO65: 0 | BP65: 0 | BQ65: 0 | BS65: No | BT65: No | BU65: 0 | BV65: 0 | BW65: 0 | CA65: 0 | CB65: 0 | CC65: 0 | CD65: 0 | CE65: 0 | CM65: null | CN65: null | CO65: 0 | CP65: 0 | CR65: 0 | CS65: 0 | CT65: 0 | CU65: 0 | CV65: 0 | CW65: 0 | CX65: 0 | CY65: 0 | CZ65: 0 | DA65: 0 | DB65: 0 | DC65: 0 | DD65: null | DE65: null | DF65: 0 | DG65: 0
G66: 2018-04-01 | M66: 0 | P66: 0 | Q66: 0 | R66: 0 | S66: 0 | T66: 0 | U66: 0 | V66: 0 | W66: 0 | X66: 0 | Y66: 0 | Z66: 0 | AA66: 0 | AB66: 0 | AD66: 0 | AE66: 0 | AF66: 0 | AG66: 0 | AH66: 0 | AI66: 0 | AJ66: 0 | AK66: 0 | AL66: 0 | AM66: 0 | AN66: 0 | AO66: 0 | AP66: 0 | AR66: 0 | AS66: 0 | AT66: 0 | AU66: 0 | AV66: 0 | AW66: 0 | AX66: 0 | AY66: 0 | AZ66: 0 | BA66: 0 | BB66: 0 | BC66: 0 | BD66: 0 | BF66: 0 | BG66: 0 | BH66: 0 | BI66: 0 | BJ66: 0 | BK66: 0 | BL66: 0 | BM66: 0 | BN66: 0 | BO66: 0 | BP66: 0 | BQ66: 0 | BS66: No | BT66: No | BU66: 0 | BV66: 0 | BW66: 0 | CA66: 0 | CB66: 0 | CC66: 0 | CD66: 0 | CE66: 0 | CM66: null | CN66: null | CO66: 0 | CP66: 0 | CR66: 0 | CS66: 0 | CT66: 0 | CU66: 0 | CV66: 0 | CW66: 0 | CX66: 0 | CY66: 0 | CZ66: 0 | DA66: 0 | DB66: 0 | DC66: 0 | DD66: null | DE66: null | DF66: 0 | DG66: 0
G67: 2018-04-01 | M67: 0 | P67: 0 | Q67: 0 | R67: 0 | S67: 0 | T67: 0 | U67: 0 | V67: 0 | W67: 0 | X67: 0 | Y67: 0 | Z67: 0 | AA67: 0 | AB67: 0 | AD67: 0 | AE67: 0 | AF67: 0 | AG67: 0 | AH67: 0 | AI67: 0 | AJ67: 0 | AK67: 0 | AL67: 0 | AM67: 0 | AN67: 0 | AO67: 0 | AP67: 0 | AR67: 0 | AS67: 0 | AT67: 0 | AU67: 0 | AV67: 0 | AW67: 0 | AX67: 0 | AY67: 0 | AZ67: 0 | BA67: 0 | BB67: 0 | BC67: 0 | BD67: 0 | BF67: 0 | BG67: 0 | BH67: 0 | BI67: 0 | BJ67: 0 | BK67: 0 | BL67: 0 | BM67: 0 | BN67: 0 | BO67: 0 | BP67: 0 | BQ67: 0 | BS67: No | BT67: No | BU67: 0 | BV67: 0 | BW67: 0 | CA67: 0 | CB67: 0 | CC67: 0 | CD67: 0 | CE67: 0 | CM67: null | CN67: null | CO67: 0 | CP67: 0 | CR67: 0 | CS67: 0 | CT67: 0 | CU67: 0 | CV67: 0 | CW67: 0 | CX67: 0 | CY67: 0 | CZ67: 0 | DA67: 0 | DB67: 0 | DC67: 0 | DD67: null | DE67: null | DF67: 0 | DG67: 0
G68: 2018-04-01 | M68: 0 | P68: 0 | Q68: 0 | R68: 0 | S68: 0 | T68: 0 | U68: 0 | V68: 0 | W68: 0 | X68: 0 | Y68: 0 | Z68: 0 | AA68: 0 | AB68: 0 | AD68: 0 | AE68: 0 | AF68: 0 | AG68: 0 | AH68: 0 | AI68: 0 | AJ68: 0 | AK68: 0 | AL68: 0 | AM68: 0 | AN68: 0 | AO68: 0 | AP68: 0 | AR68: 0 | AS68: 0 | AT68: 0 | AU68: 0 | AV68: 0 | AW68: 0 | AX68: 0 | AY68: 0 | AZ68: 0 | BA68: 0 | BB68: 0 | BC68: 0 | BD68: 0 | BF68: 0 | BG68: 0 | BH68: 0 | BI68: 0 | BJ68: 0 | BK68: 0 | BL68: 0 | BM68: 0 | BN68: 0 | BO68: 0 | BP68: 0 | BQ68: 0 | BS68: No | BT68: No | BU68: 0 | BV68: 0 | BW68: 0 | CA68: 0 | CB68: 0 | CC68: 0 | CD68: 0 | CE68: 0 | CM68: null | CN68: null | CO68: 0 | CP68: 0 | CR68: 0 | CS68: 0 | CT68: 0 | CU68: 0 | CV68: 0 | CW68: 0 | CX68: 0 | CY68: 0 | CZ68: 0 | DA68: 0 | DB68: 0 | DC68: 0 | DD68: null | DE68: null | DF68: 0 | DG68: 0
G69: 2018-04-01 | M69: 0 | P69: 0 | Q69: 0 | R69: 0 | S69: 0 | T69: 0 | U69: 0 | V69: 0 | W69: 0 | X69: 0 | Y69: 0 | Z69: 0 | AA69: 0 | AB69: 0 | AD69: 0 | AE69: 0 | AF69: 0 | AG69: 0 | AH69: 0 | AI69: 0 | AJ69: 0 | AK69: 0 | AL69: 0 | AM69: 0 | AN69: 0 | AO69: 0 | AP69: 0 | AR69: =IF(AND(P69>0,$D69<DATE(2001,9,1),$D69>1),500,0) -> 0 | AS69: 0 | AT69: 0 | AU69: 0 | AV69: 0 | AW69: 0 | AX69: 0 | AY69: 0 | AZ69: =IF(AND(X69>0,$D69<DATE(2002,9,1),$D69>1),500,0) -> 0 | BA69: 0 | BB69: 0 | BC69: 0 | BD69: 0 | BF69: 0 | BG69: 0 | BH69: 0 | BI69: 0 | BJ69: 0 | BK69: 0 | BL69: 0 | BM69: 0 | BN69: 0 | BO69: 0 | BP69: 0 | BQ69: 0 | BS69: No | BT69: No | BU69: 0 | BV69: 0 | BW69: 0 | CA69: 0 | CB69: 0 | CC69: 0 | CD69: 0 | CE69: 0 | CM69: null | CN69: null | CO69: 0 | CP69: 0 | CR69: 0 | CS69: 0 | CT69: 0 | CU69: 0 | CV69: 0 | CW69: 0 | CX69: 0 | CY69: 0 | CZ69: 0 | DA69: 0 | DB69: 0 | DC69: 0 | DD69: null | DE69: null | DF69: 0 | DG69: 0
G70: 2018-04-01 | M70: 0 | P70: 0 | Q70: 0 | R70: 0 | S70: 0 | T70: 0 | U70: 0 | V70: 0 | W70: 0 | X70: 0 | Y70: 0 | Z70: 0 | AA70: 0 | AB70: 0 | AD70: 0 | AE70: 0 | AF70: 0 | AG70: 0 | AH70: 0 | AI70: 0 | AJ70: 0 | AK70: 0 | AL70: 0 | AM70: 0 | AN70: 0 | AO70: 0 | AP70: 0 | AR70: 0 | AS70: 0 | AT70: 0 | AU70: 0 | AV70: 0 | AW70: =IF(AND(U70>0,$D70<DATE(2002,9,1),$D70>1),500,0) -> 0 | AX70: 0 | AY70: 0 | AZ70: 0 | BA70: 0 | BB70: 0 | BC70: 0 | BD70: 0 | BF70: 0 | BG70: 0 | BH70: 0 | BI70: 0 | BJ70: 0 | BK70: 0 | BL70: 0 | BM70: 0 | BN70: 0 | BO70: 0 | BP70: 0 | BQ70: 0 | BS70: No | BT70: No | BU70: 0 | BV70: 0 | BW70: 0 | CA70: 0 | CB70: 0 | CC70: 0 | CD70: 0 | CE70: 0 | CM70: null | CN70: null | CO70: 0 | CP70: 0 | CR70: 0 | CS70: 0 | CT70: 0 | CU70: 0 | CV70: 0 | CW70: 0 | CX70: 0 | CY70: 0 | CZ70: 0 | DA70: 0 | DB70: 0 | DC70: 0 | DD70: null | DE70: null | DF70: 0 | DG70: 0
G71: 2018-04-01 | M71: 0 | P71: 0 | Q71: 0 | R71: 0 | S71: 0 | T71: 0 | U71: 0 | V71: 0 | W71: 0 | X71: 0 | Y71: 0 | Z71: 0 | AA71: 0 | AB71: 0 | AD71: 0 | AE71: 0 | AF71: 0 | AG71: 0 | AH71: 0 | AI71: 0 | AJ71: 0 | AK71: 0 | AL71: 0 | AM71: 0 | AN71: 0 | AO71: 0 | AP71: 0 | AR71: 0 | AS71: 0 | AT71: 0 | AU71: 0 | AV71: 0 | AW71: 0 | AX71: 0 | AY71: 0 | AZ71: 0 | BA71: 0 | BB71: 0 | BC71: 0 | BD71: 0 | BF71: 0 | BG71: 0 | BH71: 0 | BI71: 0 | BJ71: 0 | BK71: 0 | BL71: 0 | BM71: 0 | BN71: 0 | BO71: 0 | BP71: 0 | BQ71: 0 | BS71: No | BT71: No | BU71: 0 | BV71: 0 | BW71: 0 | CA71: 0 | CB71: 0 | CC71: 0 | CD71: 0 | CE71: 0 | CM71: null | CN71: null | CO71: 0 | CP71: 0 | CR71: 0 | CS71: 0 | CT71: 0 | CU71: 0 | CV71: 0 | CW71: 0 | CX71: 0 | CY71: 0 | CZ71: 0 | DA71: 0 | DB71: 0 | DC71: 0 | DD71: null | DE71: null | DF71: 0 | DG71: 0
G72: 2018-04-01 | M72: 0 | P72: 0 | Q72: 0 | R72: 0 | S72: 0 | T72: 0 | U72: 0 | V72: 0 | W72: 0 | X72: 0 | Y72: 0 | Z72: 0 | AA72: 0 | AB72: 0 | AD72: 0 | AE72: 0 | AF72: 0 | AG72: 0 | AH72: 0 | AI72: 0 | AJ72: 0 | AK72: 0 | AL72: 0 | AM72: 0 | AN72: 0 | AO72: 0 | AP72: 0 | AR72: 0 | AS72: 0 | AT72: 0 | AU72: 0 | AV72: 0 | AW72: 0 | AX72: 0 | AY72: 0 | AZ72: 0 | BA72: 0 | BB72: 0 | BC72: 0 | BD72: 0 | BF72: 0 | BG72: 0 | BH72: 0 | BI72: 0 | BJ72: 0 | BK72: 0 | BL72: 0 | BM72: 0 | BN72: 0 | BO72: 0 | BP72: 0 | BQ72: 0 | BS72: No | BT72: No | BU72: 0 | BV72: 0 | BW72: 0 | CA72: 0 | CB72: 0 | CC72: 0 | CD72: 0 | CE72: 0 | CM72: null | CN72: null | CO72: 0 | CP72: 0 | CR72: 0 | CS72: 0 | CT72: 0 | CU72: 0 | CV72: 0 | CW72: 0 | CX72: 0 | CY72: 0 | CZ72: 0 | DA72: 0 | DB72: 0 | DC72: 0 | DD72: null | DE72: null | DF72: 0 | DG72: 0
G73: 2018-04-01 | M73: 0 | P73: 0 | Q73: 0 | R73: 0 | S73: 0 | T73: 0 | U73: 0 | V73: 0 | W73: 0 | X73: 0 | Y73: 0 | Z73: 0 | AA73: 0 | AB73: 0 | AD73: 0 | AE73: 0 | AF73: 0 | AG73: 0 | AH73: 0 | AI73: 0 | AJ73: 0 | AK73: 0 | AL73: 0 | AM73: 0 | AN73: 0 | AO73: 0 | AP73: 0 | AR73: 0 | AS73: 0 | AT73: 0 | AU73: 0 | AV73: 0 | AW73: 0 | AX73: 0 | AY73: 0 | AZ73: 0 | BA73: 0 | BB73: 0 | BC73: 0 | BD73: 0 | BF73: 0 | BG73: 0 | BH73: 0 | BI73: 0 | BJ73: 0 | BK73: 0 | BL73: 0 | BM73: 0 | BN73: 0 | BO73: 0 | BP73: 0 | BQ73: 0 | BS73: No | BT73: No | BU73: 0 | BV73: 0 | BW73: 0 | CA73: 0 | CB73: 0 | CC73: 0 | CD73: 0 | CE73: 0 | CM73: null | CN73: null | CO73: 0 | CP73: 0 | CR73: 0 | CS73: 0 | CT73: 0 | CU73: 0 | CV73: 0 | CW73: 0 | CX73: 0 | CY73: 0 | CZ73: 0 | DA73: 0 | DB73: 0 | DC73: 0 | DD73: null | DE73: null | DF73: 0 | DG73: 0
G74: 2018-04-01 | M74: 0 | P74: 0 | Q74: 0 | R74: 0 | S74: 0 | T74: 0 | U74: 0 | V74: 0 | W74: 0 | X74: 0 | Y74: 0 | Z74: 0 | AA74: 0 | AB74: 0 | AD74: 0 | AE74: 0 | AF74: 0 | AG74: 0 | AH74: 0 | AI74: 0 | AJ74: 0 | AK74: 0 | AL74: 0 | AM74: 0 | AN74: 0 | AO74: 0 | AP74: 0 | AR74: 0 | AS74: 0 | AT74: 0 | AU74: 0 | AV74: 0 | AW74: 0 | AX74: 0 | AY74: 0 | AZ74: 0 | BA74: 0 | BB74: 0 | BC74: 0 | BD74: 0 | BF74: 0 | BG74: 0 | BH74: 0 | BI74: =IF(S74>0,500-AG74-AU74,0) -> 0 | BJ74: 0 | BK74: 0 | BL74: 0 | BM74: 0 | BN74: 0 | BO74: 0 | BP74: 0 | BQ74: 0 | BS74: No | BT74: No | BU74: 0 | BV74: 0 | BW74: 0 | CA74: 0 | CB74: 0 | CC74: 0 | CD74: 0 | CE74: 0 | CM74: null | CN74: null | CO74: 0 | CP74: 0 | CR74: 0 | CS74: 0 | CT74: 0 | CU74: 0 | CV74: 0 | CW74: 0 | CX74: 0 | CY74: 0 | CZ74: 0 | DA74: 0 | DB74: 0 | DC74: 0 | DD74: null | DE74: null | DF74: 0 | DG74: 0
G75: 2018-04-01 | M75: 0 | P75: 0 | Q75: 0 | R75: 0 | S75: 0 | T75: 0 | U75: 0 | V75: 0 | W75: 0 | X75: 0 | Y75: 0 | Z75: 0 | AA75: 0 | AB75: 0 | AD75: 0 | AE75: 0 | AF75: 0 | AG75: 0 | AH75: 0 | AI75: 0 | AJ75: 0 | AK75: 0 | AL75: 0 | AM75: 0 | AN75: 0 | AO75: 0 | AP75: 0 | AR75: 0 | AS75: 0 | AT75: 0 | AU75: 0 | AV75: 0 | AW75: 0 | AX75: 0 | AY75: 0 | AZ75: 0 | BA75: 0 | BB75: 0 | BC75: 0 | BD75: 0 | BF75: =IF(P75>0,500-AD75-AR75,0) -> 0 | BG75: 0 | BH75: 0 | BI75: 0 | BJ75: 0 | BK75: 0 | BL75: 0 | BM75: 0 | BN75: 0 | BO75: 0 | BP75: 0 | BQ75: 0 | BS75: No | BT75: No | BU75: 0 | BV75: 0 | BW75: 0 | CA75: 0 | CB75: 0 | CC75: 0 | CD75: 0 | CE75: 0 | CM75: null | CN75: null | CO75: 0 | CP75: 0 | CR75: 0 | CS75: 0 | CT75: 0 | CU75: 0 | CV75: 0 | CW75: 0 | CX75: 0 | CY75: 0 | CZ75: 0 | DA75: 0 | DB75: 0 | DC75: 0 | DD75: null | DE75: null | DF75: 0 | DG75: 0
G76: 2018-04-01 | M76: 0 | P76: 0 | Q76: 0 | R76: 0 | S76: 0 | T76: 0 | U76: 0 | V76: 0 | W76: 0 | X76: 0 | Y76: 0 | Z76: 0 | AA76: 0 | AB76: 0 | AD76: 0 | AE76: 0 | AF76: 0 | AG76: 0 | AH76: 0 | AI76: 0 | AJ76: 0 | AK76: 0 | AL76: 0 | AM76: 0 | AN76: 0 | AO76: 0 | AP76: 0 | AR76: 0 | AS76: 0 | AT76: 0 | AU76: 0 | AV76: 0 | AW76: 0 | AX76: 0 | AY76: 0 | AZ76: 0 | BA76: 0 | BB76: 0 | BC76: 0 | BD76: 0 | BF76: 0 | BG76: 0 | BH76: 0 | BI76: 0 | BJ76: 0 | BK76: 0 | BL76: 0 | BM76: 0 | BN76: 0 | BO76: 0 | BP76: 0 | BQ76: 0 | BS76: No | BT76: No | BU76: 0 | BV76: 0 | BW76: 0 | CA76: 0 | CB76: 0 | CC76: 0 | CD76: 0 | CE76: 0 | CM76: null | CN76: null | CO76: 0 | CP76: 0 | CR76: 0 | CS76: 0 | CT76: 0 | CU76: 0 | CV76: 0 | CW76: 0 | CX76: 0 | CY76: 0 | CZ76: 0 | DA76: 0 | DB76: 0 | DC76: 0 | DD76: null | DE76: null | DF76: 0 | DG76: 0
G77: 2018-04-01 | M77: 0 | P77: 0 | Q77: 0 | R77: 0 | S77: 0 | T77: 0 | U77: 0 | V77: 0 | W77: 0 | X77: 0 | Y77: 0 | Z77: 0 | AA77: 0 | AB77: 0 | AD77: 0 | AE77: 0 | AF77: 0 | AG77: 0 | AH77: 0 | AI77: 0 | AJ77: 0 | AK77: 0 | AL77: 0 | AM77: 0 | AN77: 0 | AO77: 0 | AP77: 0 | AR77: 0 | AS77: 0 | AT77: 0 | AU77: 0 | AV77: 0 | AW77: 0 | AX77: 0 | AY77: 0 | AZ77: 0 | BA77: 0 | BB77: 0 | BC77: 0 | BD77: 0 | BF77: 0 | BG77: 0 | BH77: 0 | BI77: 0 | BJ77: 0 | BK77: 0 | BL77: 0 | BM77: 0 | BN77: 0 | BO77: 0 | BP77: 0 | BQ77: 0 | BS77: No | BT77: No | BU77: 0 | BV77: 0 | BW77: 0 | CA77: 0 | CB77: 0 | CC77: 0 | CD77: 0 | CE77: 0 | CM77: null | CN77: null | CO77: 0 | CP77: 0 | CR77: 0 | CS77: 0 | CT77: 0 | CU77: 0 | CV77: 0 | CW77: 0 | CX77: 0 | CY77: 0 | CZ77: 0 | DA77: 0 | DB77: 0 | DC77: 0 | DD77: null | DE77: null | DF77: 0 | DG77: 0
G78: 2018-04-01 | M78: 0 | P78: 0 | Q78: 0 | R78: 0 | S78: 0 | T78: 0 | U78: 0 | V78: 0 | W78: 0 | X78: 0 | Y78: 0 | Z78: 0 | AA78: 0 | AB78: 0 | AD78: 0 | AE78: 0 | AF78: 0 | AG78: 0 | AH78: 0 | AI78: 0 | AJ78: 0 | AK78: 0 | AL78: 0 | AM78: 0 | AN78: 0 | AO78: 0 | AP78: 0 | AR78: 0 | AS78: 0 | AT78: 0 | AU78: 0 | AV78: 0 | AW78: 0 | AX78: 0 | AY78: 0 | AZ78: 0 | BA78: 0 | BB78: 0 | BC78: 0 | BD78: 0 | BF78: 0 | BG78: 0 | BH78: 0 | BI78: 0 | BJ78: 0 | BK78: 0 | BL78: 0 | BM78: 0 | BN78: 0 | BO78: 0 | BP78: 0 | BQ78: 0 | BS78: No | BT78: No | BU78: 0 | BV78: 0 | BW78: 0 | CA78: 0 | CB78: 0 | CC78: 0 | CD78: 0 | CE78: 0 | CM78: null | CN78: null | CO78: 0 | CP78: 0 | CR78: 0 | CS78: 0 | CT78: 0 | CU78: 0 | CV78: 0 | CW78: 0 | CX78: 0 | CY78: 0 | CZ78: 0 | DA78: 0 | DB78: 0 | DC78: 0 | DD78: null | DE78: null | DF78: 0 | DG78: 0
G79: 2018-04-01 | M79: 0 | P79: 0 | Q79: 0 | R79: 0 | S79: 0 | T79: 0 | U79: 0 | V79: 0 | W79: 0 | X79: 0 | Y79: 0 | Z79: 0 | AA79: 0 | AB79: 0 | AD79: 0 | AE79: 0 | AF79: 0 | AG79: 0 | AH79: 0 | AI79: 0 | AJ79: 0 | AK79: 0 | AL79: 0 | AM79: 0 | AN79: 0 | AO79: 0 | AP79: 0 | AR79: 0 | AS79: 0 | AT79: 0 | AU79: 0 | AV79: 0 | AW79: 0 | AX79: 0 | AY79: 0 | AZ79: 0 | BA79: 0 | BB79: 0 | BC79: 0 | BD79: 0 | BF79: 0 | BG79: 0 | BH79: 0 | BI79: 0 | BJ79: 0 | BK79: 0 | BL79: 0 | BM79: 0 | BN79: 0 | BO79: 0 | BP79: 0 | BQ79: 0 | BS79: No | BT79: No | BU79: 0 | BV79: 0 | BW79: 0 | CA79: 0 | CB79: 0 | CC79: 0 | CD79: 0 | CE79: 0 | CM79: null | CN79: null | CO79: 0 | CP79: 0 | CR79: 0 | CS79: 0 | CT79: 0 | CU79: 0 | CV79: 0 | CW79: 0 | CX79: 0 | CY79: 0 | CZ79: 0 | DA79: 0 | DB79: 0 | DC79: 0 | DD79: null | DE79: null | DF79: 0 | DG79: 0
G80: 2018-04-01 | M80: 0 | P80: 0 | Q80: 0 | R80: 0 | S80: 0 | T80: 0 | U80: 0 | V80: 0 | W80: 0 | X80: 0 | Y80: 0 | Z80: 0 | AA80: 0 | AB80: 0 | AD80: 0 | AE80: 0 | AF80: 0 | AG80: 0 | AH80: 0 | AI80: 0 | AJ80: 0 | AK80: 0 | AL80: 0 | AM80: 0 | AN80: 0 | AO80: 0 | AP80: 0 | AR80: 0 | AS80: 0 | AT80: 0 | AU80: 0 | AV80: 0 | AW80: 0 | AX80: 0 | AY80: 0 | AZ80: 0 | BA80: 0 | BB80: 0 | BC80: 0 | BD80: 0 | BF80: 0 | BG80: 0 | BH80: 0 | BI80: 0 | BJ80: 0 | BK80: 0 | BL80: 0 | BM80: 0 | BN80: 0 | BO80: 0 | BP80: 0 | BQ80: 0 | BS80: No | BT80: No | BU80: 0 | BV80: 0 | BW80: 0 | CA80: 0 | CB80: 0 | CC80: 0 | CD80: 0 | CE80: 0 | CM80: null | CN80: null | CO80: 0 | CP80: 0 | CR80: 0 | CS80: 0 | CT80: 0 | CU80: 0 | CV80: 0 | CW80: 0 | CX80: 0 | CY80: 0 | CZ80: 0 | DA80: 0 | DB80: 0 | DC80: 0 | DD80: null | DE80: null | DF80: 0 | DG80: 0
E81: =IF(D81="","",IF(SUM(DATEDIF(D81,DATE(YEAR($E$14)+(MONTH($E$14)>8),8,31),"Y")-5)=0,"R",IF(SUM(DATEDIF(D81,DATE(YEAR($E$14)+(MONTH($E$14)>8),8,31),"Y")-5)<0,"",DATEDIF(D81,DATE(YEAR($E$14)+(MONTH($E$14)>8),8,31),"Y")-5))) ->  | F81: =IF(D81="","",IF(SUM(DATEDIF(D81,DATE(YEAR($F$14)+(MONTH($F$14)>8),8,31),"Y")-5)=0,"R",DATEDIF(D81,DATE(YEAR($F$14)+(MONTH($F$14)>8),8,31),"Y")-5)) ->  | G81: 2018-04-01 | M81: 0 | P81: 0 | Q81: 0 | R81: 0 | S81: 0 | T81: 0 | U81: 0 | V81: 0 | W81: 0 | X81: 0 | Y81: 0 | Z81: 0 | AA81: 0 | AB81: 0 | AD81: 0 | AE81: 0 | AF81: 0 | AG81: 0 | AH81: 0 | AI81: 0 | AJ81: 0 | AK81: 0 | AL81: 0 | AM81: 0 | AN81: 0 | AO81: 0 | AP81: 0 | AR81: 0 | AS81: 0 | AT81: 0 | AU81: 0 | AV81: 0 | AW81: 0 | AX81: 0 | AY81: 0 | AZ81: 0 | BA81: 0 | BB81: 0 | BC81: 0 | BD81: 0 | BF81: 0 | BG81: 0 | BH81: 0 | BI81: 0 | BJ81: 0 | BK81: 0 | BL81: 0 | BM81: 0 | BN81: 0 | BO81: 0 | BP81: 0 | BQ81: 0 | BS81: No | BT81: No | BU81: 0 | BV81: 0 | BW81: 0 | CA81: 0 | CB81: 0 | CC81: 0 | CD81: 0 | CE81: 0 | CM81: null | CN81: null | CO81: 0 | CP81: 0 | CR81: 0 | CS81: 0 | CT81: 0 | CU81: 0 | CV81: 0 | CW81: 0 | CX81: 0 | CY81: 0 | CZ81: 0 | DA81: 0 | DB81: 0 | DC81: 0 | DD81: null | DE81: null | DF81: 0 | DG81: 0
M83: =SUM(M17:N81) -> 0 | AB83: =SUM(AB17:AB81) -> 0 | AP83: =SUM(AP17:AP81) -> 0 | BD83: =SUM(BD17:BD81) -> 0 | BU83: =SUM(BU17:BU82) -> 0 | BV83: =SUM(BV17:BV82) -> 0 | BW83: =SUM(BW17:BW82) -> 0
AO84: 28% rule | AP84: =AP12 -> 0
AO85: Grand total | AP85: =AP84+AP83 -> 0 | BW85: =SUM(BU83:BW83) -> 0

Sheet Specialist Resourced Provision
H2: =dfenum -> 0
C6: =academyname -> 
C8: High Needs funding in a Specialist Resourced Provision (SRP) - Place Plus
B10: 2018/19 Place Funding | K10: 2018/19 Element 3 Input (top-up funding)
B12: 1. Element 1 April to August paid via General Accounting Grant (GAG). 2. From September 2018 SRP pupils will be included on your Academies roll and funding for these pupils will be included in your GAG. This means Element 1 will no longer be paid via your SRP budget. 3.From September 2018 where place numbers exceeed actual SRP number recorded on the October 2017 census funding will be allocated at £4,000 per annum for these pupils | K12: Pupils should only be recorded on this sheet where the School is named on the pupils Education Health Care Plan (EHCP)
K13: SRP funding agreed with other local authorities for pupils they have placed should be entered on Budget Preparation
B14: Guidance notes - Changes to SRP funding (Click link) | K14: A designation must always be selected. Apart from one school with two SRPs the designation will always be 1.
B15: Pre-16
E16: KCC Commissioned Places | K16: Designation | L16: Pupil Surname | M16: Pupil Forename | N16: D.O.B | O16: Pre/Post 16 SUMMER | P16: Pre/Post 16 WINTER | Q16: Placement START Date | R16: Placement END Date | S16: Monthly Rate Apr-Aug | T16: Monthly Rate Sep-Mar | U16: April (March Pupils) | V16: May (April Pupils) | W16: June (May Pupils) | X16: July (June Pupils) | Y16: August (July Pupils) | Z16: September (July Pupils) | AA16: October (September Pupils) | AB16: November (October Pupils) | AC16: December (November Pupils) | AD16: January (December Pupils) | AE16: February (January Pupils) | AF16: March (February Pupils) | AG16: Total For Pupil
B17: Element 1 | C17: Apr to Aug | E17: =IFERROR(VLOOKUP(dfenum,Data!A:S,16,0),0) -> 0 | O17: =IF(N17=0,"",IF(N17<DATE(2001,9,1),"Post-16","Pre-16")) ->  | P17: =IF(N17=0,"",IF(N17<DATE(2002,9,1),"Post-16","Pre-16")) ->  | Q17: 2018-03-31 | R17: 2019-03-31 | S17: =IF(AND(K17="Designation 1",O17="Pre-16"),VLOOKUP(dfenum,data,12,0), IF(AND(K17="Designation 1",O17="Post-16"),VLOOKUP(dfenum,data,13,0), IF(AND(K17="Designation 2",O17="Pre-16"),VLOOKUP(dfenum,data,14,0), IF(AND(K17="Designation 1",O17="Post-16"),VLOOKUP(dfenum,data,15,0),0)))) -> 0 | T17: =IF(AND(K17="Designation 1",P17="Pre-16"),VLOOKUP(dfenum,data,12,0), IF(AND(K17="Designation 1",P17="Post-16"),VLOOKUP(dfenum,data,13,0), IF(AND(K17="Designation 2",P17="Pre-16"),VLOOKUP(dfenum,data,14,0), IF(AND(K17="Designation 2",P17="Post-16"),VLOOKUP(dfenum,data,15,0),0)))) -> 0 | U17: =IF(OR(Q17>DATE(2018,3,31),R17<DATE(2018,3,1)),0,S17) -> 0 | V17: =IF(OR(Q17>DATE(2018,4,30),R17<DATE(2018,4,1)),0,S17) -> 0 | W17: =IF(OR(Q17>DATE(2018,5,31),R17<DATE(2018,5,1)),0,S17) -> 0 | X17: =IF(OR(Q17>DATE(2018,6,30),R17<DATE(2018,6,1)),0,S17) -> 0 | Y17: =IF(OR(Q17>DATE(2018,7,31),R17<DATE(2018,7,1)),0,S17) -> 0 | Z17: =IF(OR(Q17>DATE(2018,7,31),R17<DATE(2018,7,1)),0,S17) -> 0 | AA17: =IF(OR(Q17>DATE(2018,9,30),R17<DATE(2018,9,1)),0,T17) -> 0 | AB17: =IF(OR(Q17>DATE(2018,10,31),R17<DATE(2018,10,1)),0,T17) -> 0 | AC17: =IF(OR(Q17>DATE(2018,11,30),R17<DATE(2018,11,1)),0,T17) -> 0 | AD17: =IF(OR(Q17>DATE(2018,12,31),R17<DATE(2018,12,1)),0,T17) -> 0 | AE17: =IF(OR(Q17>DATE(2019,1,31),R17<DATE(2019,1,1)),0,T17) -> 0 | AF17: =IF(OR(Q17>DATE(2019,2,28),R17<DATE(2019,2,1)),0,T17) -> 0 | AG17: =SUM(U17:AF17) -> 0
O18: =IF(N18=0,"",IF(N18<DATE(2001,9,1),"Post-16","Pre-16")) ->  | P18: =IF(N18=0,"",IF(N18<DATE(2002,9,1),"Post-16","Pre-16")) ->  | Q18: 2018-03-31 | R18: 2019-03-31 | S18: 0 | T18: 0 | U18: 0 | V18: 0 | W18: 0 | X18: 0 | Y18: 0 | Z18: 0 | AA18: 0 | AB18: 0 | AC18: 0 | AD18: 0 | AE18: 0 | AF18: 0 | AG18: =SUM(U18:AF18) -> 0
O19: =IF(N19=0,"",IF(N19<DATE(2001,9,1),"Post-16","Pre-16")) ->  | P19: =IF(N19=0,"",IF(N19<DATE(2002,9,1),"Post-16","Pre-16")) ->  | Q19: 2018-03-31 | R19: 2019-03-31 | S19: 0 | T19: 0 | U19: 0 | V19: 0 | W19: 0 | X19: 0 | Y19: 0 | Z19: 0 | AA19: 0 | AB19: 0 | AC19: 0 | AD19: 0 | AE19: 0 | AF19: 0 | AG19: 0
Q20: 2018-03-31 | R20: 2019-03-31 | S20: 0 | T20: 0 | U20: 0 | V20: 0 | W20: 0 | X20: 0 | Y20: 0 | Z20: 0 | AA20: 0 | AB20: 0 | AC20: 0 | AD20: 0 | AE20: 0 | AF20: 0 | AG20: 0
B21: Element 2 | C21: Apr to Aug | E21: =E17 -> 0 | Q21: 2018-03-31 | R21: 2019-03-31 | S21: 0 | T21: 0 | U21: 0 | V21: 0 | W21: 0 | X21: 0 | Y21: 0 | Z21: 0 | AA21: 0 | AB21: 0 | AC21: 0 | AD21: 0 | AE21: 0 | AF21: 0 | AG21: 0
C22: Sep to Mar | E22: =IFERROR(VLOOKUP(dfenum,Data!A:S,18,0),0) -> 0 | Q22: 2018-03-31 | R22: 2019-03-31 | S22: 0 | T22: 0 | U22: 0 | V22: 0 | W22: 0 | X22: 0 | Y22: 0 | Z22: 0 | AA22: 0 | AB22: 0 | AC22: 0 | AD22: 0 | AE22: 0 | AF22: 0 | AG22: 0
Q23: 2018-03-31 | R23: 2019-03-31 | S23: 0 | T23: 0 | U23: 0 | V23: 0 | W23: 0 | X23: 0 | Y23: 0 | Z23: 0 | AA23: 0 | AB23: 0 | AC23: 0 | AD23: 0 | AE23: 0 | AF23: 0 | AG23: 0
Q24: 2018-03-31 | R24: 2019-03-31 | S24: 0 | T24: 0 | U24: 0 | V24: 0 | W24: 0 | X24: 0 | Y24: 0 | Z24: 0 | AA24: 0 | AB24: 0 | AC24: 0 | AD24: 0 | AE24: 0 | AF24: 0 | AG24: 0
Q25: 2018-03-31 | R25: 2019-03-31 | S25: 0 | T25: 0 | U25: 0 | V25: 0 | W25: 0 | X25: 0 | Y25: 0 | Z25: 0 | AA25: 0 | AB25: 0 | AC25: 0 | AD25: 0 | AE25: 0 | AF25: 0 | AG25: 0
Q26: 2018-03-31 | R26: 2019-03-31 | S26: 0 | T26: 0 | U26: 0 | V26: 0 | W26: 0 | X26: 0 | Y26: 0 | Z26: 0 | AA26: 0 | AB26: 0 | AC26: 0 | AD26: 0 | AE26: 0 | AF26: 0 | AG26: 0
E27: KCC Commissioned Places | Q27: 2018-03-31 | R27: 2019-03-31 | S27: 0 | T27: 0 | U27: 0 | V27: 0 | W27: 0 | X27: 0 | Y27: 0 | Z27: 0 | AA27: 0 | AB27: 0 | AC27: 0 | AD27: 0 | AE27: 0 | AF27: 0 | AG27: 0
B28: Post-16 | Q28: 2018-03-31 | R28: 2019-03-31 | S28: 0 | T28: 0 | U28: 0 | V28: 0 | W28: 0 | X28: 0 | Y28: 0 | Z28: 0 | AA28: 0 | AB28: 0 | AC28: 0 | AD28: 0 | AE28: 0 | AF28: 0 | AG28: 0
Q29: 2018-03-31 | R29: 2019-03-31 | S29: 0 | T29: 0 | U29: 0 | V29: 0 | W29: 0 | X29: 0 | Y29: 0 | Z29: 0 | AA29: 0 | AB29: 0 | AC29: 0 | AD29: 0 | AE29: 0 | AF29: 0 | AG29: 0
B30: Element 1 | C30: Apr to Jul | D30: Included within your 16-19 formula allocation on actual number of lagged pupils | Q30: 2018-03-31 | R30: 2019-03-31 | S30: 0 | T30: 0 | U30: 0 | V30: 0 | W30: 0 | X30: 0 | Y30: 0 | Z30: 0 | AA30: 0 | AB30: 0 | AC30: 0 | AD30: 0 | AE30: 0 | AF30: 0 | AG30: 0
C31: Aug to Mar | Q31: 2018-03-31 | R31: 2019-03-31 | S31: 0 | T31: 0 | U31: 0 | V31: 0 | W31: 0 | X31: 0 | Y31: 0 | Z31: 0 | AA31: 0 | AB31: 0 | AC31: 0 | AD31: 0 | AE31: 0 | AF31: 0 | AG31: 0
Q32: 2018-03-31 | R32: 2019-03-31 | S32: 0 | T32: 0 | U32: 0 | V32: 0 | W32: 0 | X32: 0 | Y32: 0 | Z32: 0 | AA32: 0 | AB32: 0 | AC32: 0 | AD32: 0 | AE32: 0 | AF32: 0 | AG32: 0
Q33: 2018-03-31 | R33: 2019-03-31 | S33: 0 | T33: 0 | U33: 0 | V33: 0 | W33: 0 | X33: 0 | Y33: 0 | Z33: 0 | AA33: 0 | AB33: 0 | AC33: 0 | AD33: 0 | AE33: 0 | AF33: 0 | AG33: 0
B34: Element 2 | C34: Apr to Jul | E34: =IFERROR(VLOOKUP(dfenum,Data!A:S,17,0),0) -> 0 | Q34: 2018-03-31 | R34: 2019-03-31 | S34: 0 | T34: 0 | U34: 0 | V34: 0 | W34: 0 | X34: 0 | Y34: 0 | Z34: 0 | AA34: 0 | AB34: 0 | AC34: 0 | AD34: 0 | AE34: 0 | AF34: 0 | AG34: 0
C35: Aug to Mar | E35: =IFERROR(VLOOKUP(dfenum,Data!A:S,19,0),0) -> 0 | Q35: 2018-03-31 | R35: 2019-03-31 | S35: 0 | T35: 0 | U35: 0 | V35: 0 | W35: 0 | X35: 0 | Y35: 0 | Z35: 0 | AA35: 0 | AB35: 0 | AC35: 0 | AD35: 0 | AE35: 0 | AF35: 0 | AG35: 0
I36: =H36+H23 -> 0 | Q36: 2018-03-31 | R36: 2019-03-31 | S36: 0 | T36: 0 | U36: 0 | V36: 0 | W36: 0 | X36: 0 | Y36: 0 | Z36: 0 | AA36: 0 | AB36: 0 | AC36: 0 | AD36: 0 | AE36: 0 | AF36: 0 | AG36: 0
Q37: 2018-03-31 | R37: 2019-03-31 | S37: 0 | T37: 0 | U37: 0 | V37: 0 | W37: 0 | X37: 0 | Y37: 0 | Z37: 0 | AA37: 0 | AB37: 0 | AC37: 0 | AD37: 0 | AE37: 0 | AF37: 0 | AG37: 0
Q38: 2018-03-31 | R38: 2019-03-31 | S38: 0 | T38: 0 | U38: 0 | V38: 0 | W38: 0 | X38: 0 | Y38: 0 | Z38: 0 | AA38: 0 | AB38: 0 | AC38: 0 | AD38: 0 | AE38: 0 | AF38: 0 | AG38: 0
Q39: 2018-03-31 | R39: 2019-03-31 | S39: 0 | T39: 0 | U39: 0 | V39: 0 | W39: 0 | X39: 0 | Y39: 0 | Z39: 0 | AA39: 0 | AB39: 0 | AC39: 0 | AD39: 0 | AE39: 0 | AF39: 0 | AG39: 0
Q40: 2018-03-31 | R40: 2019-03-31 | S40: 0 | T40: 0 | U40: 0 | V40: 0 | W40: 0 | X40: 0 | Y40: 0 | Z40: 0 | AA40: 0 | AB40: 0 | AC40: 0 | AD40: 0 | AE40: 0 | AF40: 0 | AG40: 0
Q41: 2018-03-31 | R41: 2019-03-31 | S41: 0 | T41: 0 | U41: 0 | V41: 0 | W41: 0 | X41: 0 | Y41: 0 | Z41: 0 | AA41: 0 | AB41: 0 | AC41: 0 | AD41: 0 | AE41: 0 | AF41: 0 | AG41: 0
Q42: 2018-03-31 | R42: 2019-03-31 | S42: 0 | T42: 0 | U42: 0 | V42: 0 | W42: 0 | X42: 0 | Y42: 0 | Z42: 0 | AA42: 0 | AB42: 0 | AC42: 0 | AD42: 0 | AE42: 0 | AF42: 0 | AG42: 0
Q43: 2018-03-31 | R43: 2019-03-31 | S43: 0 | T43: 0 | U43: 0 | V43: 0 | W43: 0 | X43: 0 | Y43: 0 | Z43: 0 | AA43: 0 | AB43: 0 | AC43: 0 | AD43: 0 | AE43: 0 | AF43: 0 | AG43: 0
B44: Excess Place Funding (Elements 1 & 2) | Q44: 2018-03-31 | R44: 2019-03-31 | S44: 0 | T44: 0 | U44: 0 | V44: 0 | W44: 0 | X44: 0 | Y44: 0 | Z44: 0 | AA44: 0 | AB44: 0 | AC44: 0 | AD44: 0 | AE44: 0 | AF44: 0 | AG44: 0
B45: Place funding is guaranteed for your commissioned number of places, no place funding will be deducted. Excess Place funding is only relevant where you exceed your commissioned places and will only ever be a positive amount. | Q45: 2018-03-31 | R45: 2019-03-31 | S45: 0 | T45: 0 | U45: 0 | V45: 0 | W45: 0 | X45: 0 | Y45: 0 | Z45: 0 | AA45: 0 | AB45: 0 | AC45: 0 | AD45: 0 | AE45: 0 | AF45: 0 | AG45: 0
Q46: 2018-03-31 | R46: 2019-03-31 | S46: 0 | T46: 0 | U46: 0 | V46: 0 | W46: 0 | X46: 0 | Y46: 0 | Z46: 0 | AA46: 0 | AB46: 0 | AC46: 0 | AD46: 0 | AE46: 0 | AF46: 0 | AG46: 0
Q47: 2018-03-31 | R47: 2019-03-31 | S47: 0 | T47: 0 | U47: 0 | V47: 0 | W47: 0 | X47: 0 | Y47: 0 | Z47: 0 | AA47: 0 | AB47: 0 | AC47: 0 | AD47: 0 | AE47: 0 | AF47: 0 | AG47: 0
D48: Pre-16 Excess Pupil Numbers | E48: Pre-16 Funding | F48: Post-16 Excess Pupil Numbers | G48: Post-16 Funding | H48: Total Funding | Q48: 2018-03-31 | R48: 2019-03-31 | S48: 0 | T48: 0 | U48: 0 | V48: 0 | W48: 0 | X48: 0 | Y48: 0 | Z48: 0 | AA48: 0 | AB48: 0 | AC48: 0 | AD48: 0 | AE48: 0 | AF48: 0 | AG48: 0
Q49: 2018-03-31 | R49: 2019-03-31 | S49: =IF(AND(K49="Designation 1",O49="Pre-16"),VLOOKUP(dfenum,data,12,0), IF(AND(K49="Designation 1",O49="Post-16"),VLOOKUP(dfenum,data,13,0), IF(AND(K49="Designation 2",O49="Pre-16"),VLOOKUP(dfenum,data,14,0), IF(AND(K49="Designation 1",O49="Post-16"),VLOOKUP(dfenum,data,15,0),0)))) -> 0 | T49: =IF(AND(K49="Designation 1",P49="Pre-16"),VLOOKUP(dfenum,data,12,0), IF(AND(K49="Designation 1",P49="Post-16"),VLOOKUP(dfenum,data,13,0), IF(AND(K49="Designation 2",P49="Pre-16"),VLOOKUP(dfenum,data,14,0), IF(AND(K49="Designation 2",P49="Post-16"),VLOOKUP(dfenum,data,15,0),0)))) -> 0 | U49: 0 | V49: 0 | W49: 0 | X49: 0 | Y49: 0 | Z49: 0 | AA49: 0 | AB49: 0 | AC49: 0 | AD49: 0 | AE49: 0 | AF49: 0 | AG49: =SUM(U49:AF49) -> 0
B50: April | D50: =U176 -> 0 | E50: =U178 -> 0 | F50: =U177 -> 0 | G50: =U179 -> 0 | H50: =U180 -> 0 | Q50: 2018-03-31 | R50: 2019-03-31 | S50: 0 | T50: 0 | U50: 0 | V50: 0 | W50: 0 | X50: 0 | Y50: 0 | Z50: 0 | AA50: 0 | AB50: 0 | AC50: 0 | AD50: 0 | AE50: 0 | AF50: 0 | AG50: 0
B51: May | D51: =V176 -> 0 | E51: =V178 -> 0 | F51: =V177 -> 0 | G51: =V179 -> 0 | H51: =V180 -> 0 | Q51: 2018-03-31 | R51: 2019-03-31 | S51: 0 | T51: 0 | U51: 0 | V51: 0 | W51: 0 | X51: 0 | Y51: 0 | Z51: 0 | AA51: 0 | AB51: 0 | AC51: 0 | AD51: 0 | AE51: 0 | AF51: 0 | AG51: 0
B52: June | D52: =W176 -> 0 | E52: =W178 -> 0 | F52: =W177 -> 0 | G52: =W179 -> 0 | H52: =W180 -> 0 | Q52: 2018-03-31 | R52: 2019-03-31 | S52: 0 | T52: 0 | U52: 0 | V52: 0 | W52: 0 | X52: 0 | Y52: 0 | Z52: 0 | AA52: 0 | AB52: 0 | AC52: 0 | AD52: 0 | AE52: 0 | AF52: 0 | AG52: 0
B53: July | D53: =X176 -> 0 | E53: =X178 -> 0 | F53: =X177 -> 0 | G53: =X179 -> 0 | H53: =X180 -> 0 | Q53: 2018-03-31 | R53: 2019-03-31 | S53: 0 | T53: 0 | U53: 0 | V53: 0 | W53: 0 | X53: 0 | Y53: 0 | Z53: 0 | AA53: 0 | AB53: 0 | AC53: 0 | AD53: 0 | AE53: 0 | AF53: 0 | AG53: 0
B54: August | D54: =Y176 -> 0 | E54: =Y178 -> 0 | F54: =Y177 -> 0 | G54: =Y179 -> 0 | H54: =Y180 -> 0 | Q54: 2018-03-31 | R54: 2019-03-31 | S54: 0 | T54: 0 | U54: 0 | V54: 0 | W54: 0 | X54: 0 | Y54: 0 | Z54: 0 | AA54: 0 | AB54: 0 | AC54: 0 | AD54: 0 | AE54: 0 | AF54: 0 | AG54: 0
B55: September | D55: =Z176 -> 0 | E55: =Z178 -> 0 | F55: =Z177 -> 0 | G55: =Z179 -> 0 | H55: =Z180 -> 0 | Q55: 2018-03-31 | R55: 2019-03-31 | S55: 0 | T55: 0 | U55: 0 | V55: 0 | W55: 0 | X55: 0 | Y55: 0 | Z55: 0 | AA55: 0 | AB55: 0 | AC55: 0 | AD55: 0 | AE55: 0 | AF55: 0 | AG55: 0
B56: October | D56: =AA176 -> 0 | E56: =AA178 -> 0 | F56: =AA177 -> 0 | G56: =AA179 -> 0 | H56: =AA180 -> 0 | Q56: 2018-03-31 | R56: 2019-03-31 | S56: 0 | T56: 0 | U56: 0 | V56: 0 | W56: 0 | X56: 0 | Y56: 0 | Z56: 0 | AA56: 0 | AB56: 0 | AC56: 0 | AD56: 0 | AE56: 0 | AF56: 0 | AG56: 0
B57: November | D57: =AB176 -> 0 | E57: =AB178 -> 0 | F57: =AB177 -> 0 | G57: =AB179 -> 0 | H57: =AB180 -> 0 | Q57: 2018-03-31 | R57: 2019-03-31 | S57: 0 | T57: 0 | U57: 0 | V57: 0 | W57: 0 | X57: 0 | Y57: 0 | Z57: 0 | AA57: 0 | AB57: 0 | AC57: 0 | AD57: 0 | AE57: 0 | AF57: 0 | AG57: 0
B58: December | D58: =AC176 -> 0 | E58: =AC178 -> 0 | F58: =AC177 -> 0 | G58: =AC179 -> 0 | H58: =AC180 -> 0 | Q58: 2018-03-31 | R58: 2019-03-31 | S58: 0 | T58: 0 | U58: 0 | V58: 0 | W58: 0 | X58: 0 | Y58: 0 | Z58: 0 | AA58: 0 | AB58: 0 | AC58: 0 | AD58: 0 | AE58: 0 | AF58: 0 | AG58: 0
B59: January | D59: =AD176 -> 0 | E59: =AD178 -> 0 | F59: =AD177 -> 0 | G59: =AD179 -> 0 | H59: =AD180 -> 0 | Q59: 2018-03-31 | R59: 2019-03-31 | S59: 0 | T59: 0 | U59: 0 | V59: 0 | W59: 0 | X59: 0 | Y59: 0 | Z59: 0 | AA59: 0 | AB59: 0 | AC59: 0 | AD59: 0 | AE59: 0 | AF59: 0 | AG59: 0
B60: February | D60: =AE176 -> 0 | E60: =AE178 -> 0 | F60: =AE177 -> 0 | G60: =AE179 -> 0 | H60: =AE180 -> 0 | Q60: 2018-03-31 | R60: 2019-03-31 | S60: 0 | T60: 0 | U60: 0 | V60: 0 | W60: 0 | X60: 0 | Y60: 0 | Z60: 0 | AA60: 0 | AB60: 0 | AC60: 0 | AD60: 0 | AE60: 0 | AF60: 0 | AG60: 0
B61: March | D61: =AF176 -> 0 | E61: =AF178 -> 0 | F61: =AF177 -> 0 | G61: =AF179 -> 0 | H61: =AF180 -> 0 | Q61: 2018-03-31 | R61: 2019-03-31 | S61: 0 | T61: 0 | U61: 0 | V61: 0 | W61: 0 | X61: 0 | Y61: 0 | Z61: 0 | AA61: 0 | AB61: 0 | AC61: 0 | AD61: 0 | AE61: 0 | AF61: 0 | AG61: 0
H62: =SUM(H50:H61) -> 0 | Q62: 2018-03-31 | R62: 2019-03-31 | S62: 0 | T62: 0 | U62: 0 | V62: 0 | W62: 0 | X62: 0 | Y62: 0 | Z62: 0 | AA62: 0 | AB62: 0 | AC62: 0 | AD62: 0 | AE62: 0 | AF62: 0 | AG62: 0
Q63: 2018-03-31 | R63: 2019-03-31 | S63: 0 | T63: 0 | U63: 0 | V63: 0 | W63: 0 | X63: 0 | Y63: 0 | Z63: 0 | AA63: 0 | AB63: 0 | AC63: 0 | AD63: 0 | AE63: 0 | AF63: 0 | AG63: 0
